Workbook

Sheet 21.1 (Simple WWR example)
B9: Parameters | F9: Mu(t) | G9: Sigma(t) | H9: Normal EPE | I9: survival | J9: s'(t) | K9: Sigma'(t) | L9: Mu'(t) | M9: Wrong-way EPE
B10: Mu | C10: 0 | E10: 1e-07 | F10: =E10*Mu -> 0 | G10: =SQRT(E10)*Sigma -> 3.16227766e-05 | H10: =F10*NORMSDIST(F10/G10)+G10*NORMDIST(F10/G10,0,1,FALSE) -> 1.261566261e-05 | I10: =EXP(-Spread*E10/LGD) -> 0.999999998 | J10: =NORMSINV(I10) -> 5.884193359 | K10: =SQRT(1-Correlation^2)*G10 -> 2.738612788e-05 | L10: =F10+Correlation*G10*J10 -> 9.303726604e-05 | M10: =L10*NORMSDIST(L10/K10)+K10*NORMDIST(L10/K10,0,1,FALSE) -> 9.303966491e-05 | O10: Blue = Inputs
B11: Sigma | C11: 0.1 | E11: 0.05 | F11: 0 | G11: 0.02236067977 | H11: =F11*NORMSDIST(F11/G11)+G11*NORMDIST(F11/G11,0,1,FALSE) -> 0.008920620581 | I11: 0.9990004998 | J11: =NORMSINV(I11) -> 3.090380787 | K11: 0.01936491673 | L11: 0.03455150758 | M11: 0.03483911599 | O11: Grey = Fixed
B12: Spread | C12: 0.012 | E12: 0.1 | F12: 0 | G12: 0.0316227766 | H12: =F12*NORMSDIST(F12/G12)+G12*NORMDIST(F12/G12,0,1,FALSE) -> 0.01261566261 | I12: 0.9980019987 | J12: 2.87847712 | K12: 0.02738612788 | L12: 0.04551271946 | M12: 0.04606197537 | O12: White = Calculations
B13: LGD | C13: 0.6 | E13: 0.15 | F13: 0 | G13: 0.03872983346 | H13: 0.01545096808 | I13: 0.9970044955 | J13: 2.748273073 | K13: 0.03354101966 | L13: 0.05322007921 | M13: 0.05402438504 | O13: Green = Results
B14: Correlation | C14: 0.5 | E14: 0.2 | F14: 0 | G14: 0.04472135955 | H14: 0.01784124116 | I14: 0.9960079893 | J14: 2.652744785 | K14: 0.03872983346 | L14: 0.05931717667 | M14: 0.06037301646
E15: 0.25 | F15: 0 | G15: 0.05 | H15: 0.01994711402 | I15: 0.9950124792 | J15: 2.576693294 | K15: 0.04330127019 | L15: 0.06441733236 | M15: 0.0657224971
E16: 0.3 | F16: 0 | G16: 0.05477225575 | H16: 0.02185096861 | I16: 0.9940179641 | J16: 2.513202263 | K16: 0.0474341649 | L16: 0.06882687856 | M16: 0.07037986491
E17: 0.35 | F17: 0 | G17: 0.05916079783 | H17: 0.0236017436 | I17: 0.9930244429 | J17: 2.458519651 | K17: 0.05123475383 | L17: 0.07272399201 | M17: 0.07452372973
E18: 0.4 | F18: 0 | G18: 0.0632455532 | H18: 0.02523132522 | I18: 0.9920319148 | J18: 2.410374103 | K18: 0.05477225575 | L18: 0.0762227218 | M18: 0.07826842885
E19: 0.5 | F19: 0 | G19: 0.07071067812 | H19: 0.02820947918 | I19: 0.9900498337 | J19: 2.328221738 | K19: 0.06123724357 | L19: 0.08231506894 | M19: 0.08485112606
E20: 0.6 | F20: 0 | G20: 0.07745966692 | H20: 0.03090193616 | I20: 0.9880717129 | J20: 2.259431219 | K20: 0.06708203932 | L20: 0.08750739483 | M20: 0.09053250654
E21: 0.8 | F21: 0 | G21: 0.0894427191 | H21: 0.03568248232 | I21: 0.9841273201 | J21: 2.147602334 | K21: 0.07745966692 | L21: 0.09604369613 | M21: 0.1000453606
E22: 1 | F22: 0 | G22: 0.1 | H22: 0.03989422804 | I22: 0.9801986733 | J22: 2.057869592 | K22: 0.08660254038 | L22: 0.1028934796 | M22: 0.1078717606
E23: 1.2 | F23: 0 | G23: 0.1095445115 | H23: 0.04370193722 | I23: 0.9762857098 | J23: 1.982452841 | K23: 0.09486832981 | L23: 0.108583414 | M23: 0.1145397948
E24: 1.4 | F24: 0 | G24: 0.1183215957 | H24: 0.04720348719 | I24: 0.9723883668 | J24: 1.917115449 | K24: 0.1024695077 | L24: 0.1134180795 | M24: 0.1203548227
E25: 1.6 | F25: 0 | G25: 0.1264911064 | H25: 0.05046265044 | I25: 0.9685065821 | J25: 1.859284408 | K25: 0.1095445115 | L25: 0.117591471 | M25: 0.1255112973
E26: 1.8 | F26: 0 | G26: 0.1341640786 | H26: 0.05352372348 | I26: 0.9646402935 | J26: 1.807274993 | K26: 0.1161895004 | L26: 0.1212356922 | M26: 0.1301416016
E27: 2 | F27: 0 | G27: 0.1414213562 | H27: 0.05641895835 | I27: 0.9607894392 | J27: 1.759921475 | K27: 0.1224744871 | L27: 0.1244452409 | M27: 0.1343404061
E28: 2.2 | F28: 0 | G28: 0.1483239697 | H28: 0.05917270273 | I28: 0.9569539575 | J28: 1.716382349 | K28: 0.1284523258 | L28: 0.1272903218 | M28: 0.1381780214
E29: 2.4 | F29: 0 | G29: 0.1549193338 | H29: 0.06180387232 | I29: 0.9531337871 | J29: 1.676029442 | K29: 0.1341640786 | L29: 0.1298246823 | M29: 0.1417082574
E30: 2.6 | F30: 0 | G30: 0.161245155 | H30: 0.06432750983 | I30: 0.9493288668 | J30: 1.638380874 | K30: 0.1396424004 | L30: 0.132090489 | M30: 0.1449733138
E31: 2.8 | F31: 0 | G31: 0.1673320053 | H31: 0.06675581178 | I31: 0.9455391359 | J31: 1.60305855 | K31: 0.1449137675 | L31: 0.1341215009 | M31: 0.1480069628
E32: 3 | F32: 0 | G32: 0.1732050808 | H32: 0.06909882989 | I32: 0.9417645336 | J32: 1.569760102 | K32: 0.15 | L32: 0.1359452126 | M32: 0.1508366982
E33: 3.2 | F33: 0 | G33: 0.1788854382 | H33: 0.07136496465 | I33: 0.9380049995 | J33: 1.538239767 | K33: 0.1549193338 | L33: 0.1375843474 | M33: 0.1534852324
E34: 3.4 | F34: 0 | G34: 0.1843908891 | H34: 0.0735613218 | I34: 0.9342604736 | J34: 1.508294959 | K34: 0.1596871942 | L34: 0.1390579243 | M34: 0.155971567
E35: 3.6 | F35: 0 | G35: 0.1897366596 | H35: 0.07569397566 | I35: 0.9305308958 | J35: 1.479756624 | K35: 0.1643167673 | L35: 0.1403820394 | M35: 0.1583117755
E36: 3.8 | F36: 0 | G36: 0.1949358869 | H36: 0.07776816725 | I36: 0.9268162066 | J36: 1.452482157 | K36: 0.1688194302 | L36: 0.1415704488 | M36: 0.1605195881
E37: 4 | F37: 0 | G37: 0.2 | H37: 0.07978845608 | I37: 0.9231163464 | J37: 1.426350109 | K37: 0.1732050808 | L37: 0.1426350109 | M37: 0.1626068346
E38: 4.2 | F38: 0 | G38: 0.2049390153 | H38: 0.08175883811 | I38: 0.9194312561 | J38: 1.401256153 | K38: 0.1774823935 | L38: 0.1435860281 | M38: 0.1645837876
E39: 4.4 | F39: 0 | G39: 0.2097617696 | H39: 0.08368283872 | I39: 0.9157608767 | J39: 1.377109983 | K39: 0.1816590212 | L39: 0.1444325136 | M39: 0.1664594289
E40: 4.6 | F40: 0 | G40: 0.2144761059 | H40: 0.08556358678 | I40: 0.9121051495 | J40: 1.353832881 | K40: 0.1857417562 | L40: 0.1451824021 | M40: 0.1682416618
E41: 4.8 | F41: 0 | G41: 0.219089023 | H41: 0.08740387445 | I41: 0.9084640161 | J41: 1.331355794 | K41: 0.1897366596 | L41: 0.14584272 | M41: 0.1699374804
E42: 5 | F42: =E42*Mu -> 0 | G42: =SQRT(E42)*Sigma -> 0.2236067977 | H42: 0.08920620581 | I42: =EXP(-Spread*E42/LGD) -> 0.904837418 | J42: 1.309617799 | K42: =SQRT(1-Correlation^2)*G42 -> 0.1936491673 | L42: =F42+Correlation*G42*J42 -> 0.1464197212 | M42: 0.1715531066
E43: 5.2 | F43: 0 | G43: 0.228035085 | H43: 0.09097283683 | I43: 0.9012252974 | J43: 1.288564864 | K43: 0.1974841766 | L43: 0.1469189991 | M43: 0.173094102
E44: 5.4 | F44: 0 | G44: 0.2323790008 | H44: 0.09270580849 | I44: 0.8976275964 | J44: 1.268148828 | K44: 0.201246118 | L44: 0.1473455788 | M44: 0.1745654597
E45: 5.6 | F45: 0 | G45: 0.2366431913 | H45: 0.09440697439 | I45: 0.8940442575 | J45: 1.248326578 | K45: 0.2049390153 | L45: 0.1477039926 | M45: 0.175971681
E46: 5.8 | F46: 0 | G46: 0.2408318916 | H46: 0.09607802402 | I46: 0.8904752233 | J46: 1.229059353 | K46: 0.2085665361 | L46: 0.1479983445 | M46: 0.1773168386
E47: 6 | F47: 0 | G47: 0.2449489743 | H47: 0.09772050238 | I47: 0.8869204367 | J47: 1.210312178 | K47: 0.2121320344 | L47: 0.1482323632 | M47: 0.1786046312
E48: 6.2 | F48: 0 | G48: 0.248997992 | H48: 0.09933582673 | I48: 0.8833798409 | J48: 1.192053373 | K48: 0.2156385865 | L48: 0.148409448 | M48: 0.1798384277
E49: 6.4 | F49: 0 | G49: 0.2529822128 | H49: 0.1009253009 | I49: 0.8798533791 | J49: 1.174254152 | K49: 0.219089023 | L49: 0.1485327068 | M49: 0.1810213069
E50: 6.6 | F50: 0 | G50: 0.2569046516 | H50: 0.1024901275 | I50: 0.8763409951 | J50: 1.156888275 | K50: 0.2224859546 | L50: 0.1486049896 | M50: 0.1821560898
E51: 6.8 | F51: 0 | G51: 0.2607680962 | H51: 0.104031419 | I51: 0.8728426325 | J51: 1.139931753 | K51: 0.2258317958 | L51: 0.1486289165 | M51: 0.1832453685
E52: 7 | F52: 0 | G52: 0.2645751311 | H52: 0.1055502061 | I52: 0.8693582354 | J52: 1.123362595 | K52: 0.2291287847 | L52: 0.1486069029 | M52: 0.1842915305
E53: 7.2 | F53: 0 | G53: 0.2683281573 | H53: 0.107047447 | I53: 0.8658877481 | J53: 1.107160588 | K53: 0.2323790008 | L53: 0.1485411802 | M53: 0.1852967803
E54: 7.4 | F54: 0 | G54: 0.2720294102 | H54: 0.1085240332 | I54: 0.8624311149 | J54: 1.09130711 | K54: 0.2355843798 | L54: 0.1484338148 | M54: 0.1862631574
E55: 7.6 | F55: 0 | G55: 0.275680975 | H55: 0.1099807968 | I55: 0.8589882807 | J55: 1.075784964 | K55: 0.2387467277 | L55: 0.1482867239 | M55: 0.1871925534
E56: 7.8 | F56: 0 | G56: 0.2792848009 | H56: 0.1114185153 | I56: 0.8555591904 | J56: 1.060578233 | K56: 0.2418677324 | L56: 0.1481016902 | M56: 0.1880867255
E57: 8 | F57: 0 | G57: 0.2828427125 | H57: 0.1128379167 | I57: 0.852143789 | J57: 1.045672157 | K57: 0.2449489743 | L57: 0.1478803746 | M57: 0.1889473096
E58: 8.2 | F58: 0 | G58: 0.2863564213 | H58: 0.1142396837 | I58: 0.8487420219 | J58: 1.031053022 | K58: 0.2479919354 | L58: 0.1476243267 | M58: 0.1897758309
E59: 8.4 | F59: 0 | G59: 0.2898275349 | H59: 0.1156244577 | I59: 0.8453538347 | J59: 1.016708059 | K59: 0.250998008 | L59: 0.1473349953 | M59: 0.1905737144
E60: 8.6 | F60: =E60*Mu -> 0 | G60: =SQRT(E60)*Sigma -> 0.293257566 | H60: 0.1169928421 | I60: 0.8419791732 | J60: 1.002625363 | K60: =SQRT(1-Correlation^2)*G60 -> 0.253968502 | L60: =F60+Correlation*G60*J60 -> 0.1470137368 | M60: 0.1913422932
E61: 8.8 | F61: 0 | G61: 0.2966479395 | H61: 0.1183454055 | I61: 0.8386179833 | J61: 0.9887938102 | K61: 0.2569046516 | L61: 0.1466618232 | M61: 0.1920828165
E62: 9 | F62: 0 | G62: 0.3 | H62: 0.1196826841 | I62: 0.8352702114 | J62: 0.9752029942 | K62: 0.2598076211 | L62: 0.1462804491 | M62: 0.1927964564
E63: 9.2 | F63: 0 | G63: 0.3033150178 | H63: 0.1210051849 | I63: 0.8319358038 | J63: 0.9618431635 | K63: 0.2626785107 | L63: 0.1458707381 | M63: 0.1934843145
E64: 9.4 | F64: 0 | G64: 0.3065941943 | H64: 0.122313387 | I64: 0.8286147072 | J64: 0.9487051666 | K64: 0.2655183609 | L64: 0.1454337481 | M64: 0.1941474275
E65: 9.6 | F65: 0 | G65: 0.3098386677 | H65: 0.1236077446 | I65: 0.8253068685 | J65: 0.9357804038 | K65: 0.2683281573 | L65: 0.1449704768 | M65: 0.1947867718
E66: 9.8 | F66: 0 | G66: 0.3130495168 | H66: 0.1248886881 | I66: 0.8220122347 | J66: 0.9230607823 | K66: 0.2711088342 | L66: 0.144481866 | M66: 0.1954032688
E67: 10 | F67: 0 | G67: 0.316227766 | H67: 0.1261566261 | I67: 0.8187307531 | J67: 0.9105386774 | K67: 0.2738612788 | L67: 0.1439688059 | M67: 0.1959977884

Sheet 21.2 (Copula WWR)
B9: Inputs | I9: Blue = Inputs
B10: Credit Curve | C10: ZZZ | E10: CVA | F10: =(SUMPRODUCT(D16:AQ16,D17:AQ17)-SUMPRODUCT(C16:AP16,D17:AQ17))*60%*10000 -> -22.86837733 | I10: Grey = Fixed | AV10: XXX | AW10: YYY | AX10: ZZZ | AY10: ZYX
B11: LGD | C11: 0.6 | E11: CVA (WWR) | F11: =(SUMPRODUCT(D16:AQ16,D18:AQ18)-SUMPRODUCT(C16:AP16,D18:AQ18))*60%*10000 -> -34.83033639 | I11: White = Calculations | AU11: 1 | AV11: 0.0005 | AW11: 0.005 | AX11: 0.0018 | AY11: 0.145 | AZ11: =INDIRECT(CreditCurve) -> 0.0018
B12: Correlation | C12: 0.25 | I12: Green = Results | AU12: 3 | AV12: 0.0009 | AW12: 0.012 | AX12: 0.005 | AY12: 0.13 | AZ12: 0.005
AU13: 5 | AV13: 0.0022 | AW13: 0.017 | AX13: 0.0092 | AY13: 0.125 | AZ13: 0.0092
C14: 0 | D14: =C14+0.25 -> 0.25 | E14: =D14+0.25 -> 0.5 | F14: 0.75 | G14: 1 | H14: 1.25 | I14: 1.5 | J14: 1.75 | K14: 2 | L14: 2.25 | M14: 2.5 | N14: 2.75 | O14: 3 | P14: 3.25 | Q14: 3.5 | R14: 3.75 | S14: 4 | T14: 4.25 | U14: 4.5 | V14: 4.75 | W14: 5 | X14: 5.25 | Y14: 5.5 | Z14: 5.75 | AA14: 6 | AB14: 6.25 | AC14: 6.5 | AD14: 6.75 | AE14: 7 | AF14: 7.25 | AG14: 7.5 | AH14: 7.75 | AI14: 8 | AJ14: 8.25 | AK14: 8.5 | AL14: 8.75 | AM14: 9 | AN14: 9.25 | AO14: 9.5 | AP14: 9.75 | AQ14: 10 | AU14: 7 | AV14: 0.0035 | AW14: 0.0195 | AX14: 0.012 | AY14: 0.1225 | AZ14: 0.012
C15: =TRANSPOSE(CubicSplineInterpolate(Tenors,CreditSpreadCurve,TRANSPOSE(C14:AQ14))) -> 0.0003280882766 | D15: 0.0007100758627 | E15: 0.001080055173 | F15: 0.001442028966 | G15: 0.0018 | H15: 0.002157971034 | I15: 0.002519944827 | J15: 0.002889924137 | K15: 0.003271911723 | L15: 0.003669910344 | M15: 0.004087922758 | N15: 0.004529951724 | O15: 0.005 | P15: 0.005500020712 | Q15: 0.00602376845 | R15: 0.00656294817 | S15: 0.00710926483 | T15: 0.007654423386 | U15: 0.008190128795 | V15: 0.008708086014 | W15: 0.0092 | X15: 0.009659133619 | Y15: 0.01008498137 | Z15: 0.01047859568 | AA15: 0.01084102896 | AB15: 0.01117333361 | AC15: 0.01147656206 | AD15: 0.01175176672 | AE15: 0.012 | AF15: 0.0122224543 | AG15: 0.01242088195 | AH15: 0.01259717524 | AI15: 0.0127532265 | AJ15: 0.01289092803 | AK15: 0.01301217213 | AL15: 0.01311885111 | AM15: 0.01321285728 | AN15: 0.01329608294 | AO15: 0.01337042042 | AP15: 0.013437762 | AQ15: 0.0135 | AU15: 10 | AV15: 0.0045 | AW15: 0.0207 | AX15: 0.0135 | AY15: 0.12 | AZ15: 0.0135
B16: Survival | C16: =EXP(-C15*C14/LGD) -> 1 | D16: =EXP(-D15*D14/LGD) -> 0.9997041788 | E16: 0.9991003589 | F16: 0.9981990874 | G16: 0.9970044955 | H16: 0.9955143179 | I16: 0.9937199405 | J16: 0.9916064786 | K16: 0.9891528864 | L16: 0.9863321019 | M16: 0.9831112301 | N16: 0.9794517734 | O16: 0.975309912 | P16: 0.9706476219 | Q16: 0.965471545 | R16: 0.9598114442 | S16: 0.9537105132 | T16: 0.9472248004 | U16: 0.9404225664 | V16: 0.9333836014 | W16: 0.926198535 | X16: 0.9189556478 | Y16: 0.911698749 | Z16: 0.9044575789 | AA16: 0.8972593847 | AB16: 0.8901289921 | AC16: 0.8830888838 | AD16: 0.8761592822 | AE16: 0.8693582354 | AF16: 0.8627002445 | AG16: 0.8561916615 | AH16: 0.8498346196 | AI16: 0.8436285229 | AJ16: 0.8375701477 | AK16: 0.831653738 | AL16: 0.8258710936 | AM16: 0.8202116526 | AN16: 0.8146625678 | AO16: 0.8092087802 | AP16: 0.8038330887 | AQ16: 0.7985162188 | AU16: 20 | AV16: 0.0049 | AW16: 0.0211 | AX16: 0.0142 | AY16: 0.115 | AZ16: 0.0142
B17: EPE (no WWR) | C17: =SUMIF(C23:C1022,">0")/10000 -> 3.968129313e-07 | D17: =SUMIF(D23:D10022,">0")/10000 -> 0.0119347082 | E17: =SUMIF(E23:E10022,">0")/10000 -> 0.0175921347 | F17: 0.02190199435 | G17: 0.02483747916 | H17: 0.02703000176 | I17: 0.02831645954 | J17: 0.02948534927 | K17: 0.03018482897 | L17: 0.03075946233 | M17: 0.03110390318 | N17: 0.0311095908 | O17: 0.03100972167 | P17: 0.03059502654 | Q17: 0.03004448655 | R17: 0.02941012445 | S17: 0.02869367889 | T17: 0.02810274542 | U17: 0.02728623241 | V17: 0.02644038105 | W17: 0.02529389359 | X17: 0.02428359125 | Y17: 0.02340045399 | Z17: 0.02227083454 | AA17: 0.02102771635 | AB17: 0.01981982734 | AC17: 0.01858815911 | AD17: 0.01729111812 | AE17: 0.01612117558 | AF17: 0.01480282722 | AG17: 0.01359681913 | AH17: 0.0121713824 | AI17: 0.01090707932 | AJ17: 0.009555726472 | AK17: 0.008251058216 | AL17: 0.00689276602 | AM17: 0.005532758845 | AN17: 0.004162007735 | AO17: 0.002783439934 | AP17: 0.001392692764 | AQ17: 0
B18: EPE (WWR) | C18: =SUMIF(C20:C20,">0")/10000 -> 0 | D18: =SUMPRODUCT(--(D23:D10022>0),D23:D10022,AU10024:AU20023) -> 0.02757129418 | E18: =SUMPRODUCT(--(E23:E10022>0),E23:E10022,AV10024:AV20023) -> 0.03743063122 | F18: =SUMPRODUCT(--(F23:F10022>0),F23:F10022,AW10024:AW20023) -> 0.04434245887 | G18: =SUMPRODUCT(--(G23:G10022>0),G23:G10022,AX10024:AX20023) -> 0.04853866307 | H18: =SUMPRODUCT(--(H23:H10022>0),H23:H10022,AY10024:AY20023) -> 0.05124044712 | I18: =SUMPRODUCT(--(I23:I10022>0),I23:I10022,AZ10024:AZ20023) -> 0.05239207103 | J18: =SUMPRODUCT(--(J23:J10022>0),J23:J10022,BA10024:BA20023) -> 0.05329195632 | K18: =SUMPRODUCT(--(K23:K10022>0),K23:K10022,BB10024:BB20023) -> 0.0536958 | L18: =SUMPRODUCT(--(L23:L10022>0),L23:L10022,BC10024:BC20023) -> 0.05379504471 | M18: =SUMPRODUCT(--(M23:M10022>0),M23:M10022,BD10024:BD20023) -> 0.05365773708 | N18: =SUMPRODUCT(--(N23:N10022>0),N23:N10022,BE10024:BE20023) -> 0.05276211619 | O18: =SUMPRODUCT(--(O23:O10022>0),O23:O10022,BF10024:BF20023) -> 0.05165645313 | P18: =SUMPRODUCT(--(P23:P10022>0),P23:P10022,BG10024:BG20023) -> 0.05024432773 | Q18: =SUMPRODUCT(--(Q23:Q10022>0),Q23:Q10022,BH10024:BH20023) -> 0.04861732406 | R18: =SUMPRODUCT(--(R23:R10022>0),R23:R10022,BI10024:BI20023) -> 0.04686514447 | S18: =SUMPRODUCT(--(S23:S10022>0),S23:S10022,BJ10024:BJ20023) -> 0.04502033694 | T18: =SUMPRODUCT(--(T23:T10022>0),T23:T10022,BK10024:BK20023) -> 0.04343386747 | U18: =SUMPRODUCT(--(U23:U10022>0),U23:U10022,BL10024:BL20023) -> 0.04158999888 | V18: =SUMPRODUCT(--(V23:V10022>0),V23:V10022,BM10024:BM20023) -> 0.03978907381 | W18: =SUMPRODUCT(--(W23:W10022>0),W23:W10022,BN10024:BN20023) -> 0.03757852078 | X18: =SUMPRODUCT(--(X23:X10022>0),X23:X10022,BO10024:BO20023) -> 0.03564442883 | Y18: =SUMPRODUCT(--(Y23:Y10022>0),Y23:Y10022,BP10024:BP20023) -> 0.03394035769 | Z18: =SUMPRODUCT(--(Z23:Z10022>0),Z23:Z10022,BQ10024:BQ20023) -> 0.03194109224 | AA18: =SUMPRODUCT(--(AA23:AA10022>0),AA23:AA10022,BR10024:BR20023) -> 0.02986402832 | AB18: =SUMPRODUCT(--(AB23:AB10022>0),AB23:AB10022,BS10024:BS20023) -> 0.02790318535 | AC18: =SUMPRODUCT(--(AC23:AC10022>0),AC23:AC10022,BT10024:BT20023) -> 0.02595624058 | AD18: =SUMPRODUCT(--(AD23:AD10022>0),AD23:AD10022,BU10024:BU20023) -> 0.02395282528 | AE18: =SUMPRODUCT(--(AE23:AE10022>0),AE23:AE10022,BV10024:BV20023) -> 0.02213304337 | AF18: =SUMPRODUCT(--(AF23:AF10022>0),AF23:AF10022,BW10024:BW20023) -> 0.02017575366 | AG18: =SUMPRODUCT(--(AG23:AG10022>0),AG23:AG10022,BX10024:BX20023) -> 0.01838554218 | AH18: =SUMPRODUCT(--(AH23:AH10022>0),AH23:AH10022,BY10024:BY20023) -> 0.01634567386 | AI18: =SUMPRODUCT(--(AI23:AI10022>0),AI23:AI10022,BZ10024:BZ20023) -> 0.01453716081 | AJ18: =SUMPRODUCT(--(AJ23:AJ10022>0),AJ23:AJ10022,CA10024:CA20023) -> 0.01265464169 | AK18: =SUMPRODUCT(--(AK23:AK10022>0),AK23:AK10022,CB10024:CB20023) -> 0.01084826566 | AL18: =SUMPRODUCT(--(AL23:AL10022>0),AL23:AL10022,CC10024:CC20023) -> 0.009007402638 | AM18: =SUMPRODUCT(--(AM23:AM10022>0),AM23:AM10022,CD10024:CD20023) -> 0.007184841658 | AN18: =SUMPRODUCT(--(AN23:AN10022>0),AN23:AN10022,CE10024:CE20023) -> 0.005371361056 | AO18: =SUMPRODUCT(--(AO23:AO10022>0),AO23:AO10022,CF10024:CF20023) -> 0.003570711444 | AP18: =SUMPRODUCT(--(AP23:AP10022>0),AP23:AP10022,CG10024:CG20023) -> 0.001777090609 | AQ18: =SUMPRODUCT(--(AQ23:AQ10022>0),AQ23:AQ10022,CH10024:CH20023) -> 0
C21: =SQRT(1-Correlation^2) -> 0.9682458366
C22: Simulation are sorted
B23: 1 | C23: 3.968129313e-06 | D23: -0.09179639717 | E23: -0.1128703925 | F23: -0.1179519664 | G23: -0.1564499219 | H23: -0.1680414908 | I23: -0.1681041699 | J23: -0.1744512999 | K23: -0.1767060536 | L23: -0.1854823195 | M23: -0.1733740075 | N23: -0.1798543648 | O23: -0.1720881313 | P23: -0.1674852619 | Q23: -0.1686078391 | R23: -0.1674398575 | S23: -0.1454428183 | T23: -0.1497008634 | U23: -0.1484522837 | V23: -0.1462317215 | W23: -0.1375965293 | X23: -0.1446037225 | Y23: -0.1268900104 | Z23: -0.1240545969 | AA23: -0.1184169447 | AB23: -0.1160650973 | AC23: -0.10268409 | AD23: -0.1001526938 | AE23: -0.09458797634 | AF23: -0.09093920678 | AG23: -0.08239517767 | AH23: -0.07561840113 | AI23: -0.07097343671 | AJ23: -0.06495869626 | AK23: -0.05490540159 | AL23: -0.05128934482 | AM23: -0.03793351485 | AN23: -0.0272829876 | AO23: -0.01935798245 | AP23: -0.009842616267 | AQ23: 0 | AS23: =B23/10000 -> 0.0001 | AU23: =NORMSDIST(-(Correlation*NORMSINV(D$16)-NORMSINV($AS23))/CorrTerm) -> 1.133685239e-06 | AV23: =NORMSDIST(-(Correlation*NORMSINV(E$16)-NORMSINV($AS23))/CorrTerm) -> 1.68436736e-06 | AW23: =NORMSDIST(-(Correlation*NORMSINV(F$16)-NORMSINV($AS23))/CorrTerm) -> 2.18856606e-06 | AX23: =NORMSDIST(-(Correlation*NORMSINV(G$16)-NORMSINV($AS23))/CorrTerm) -> 2.67485148e-06 | AY23: =NORMSDIST(-(Correlation*NORMSINV(H$16)-NORMSINV($AS23))/CorrTerm) -> 3.155480416e-06 | AZ23: =NORMSDIST(-(Correlation*NORMSINV(I$16)-NORMSINV($AS23))/CorrTerm) -> 3.638024612e-06 | BA23: =NORMSDIST(-(Correlation*NORMSINV(J$16)-NORMSINV($AS23))/CorrTerm) -> 4.12820771e-06 | BB23: =NORMSDIST(-(Correlation*NORMSINV(K$16)-NORMSINV($AS23))/CorrTerm) -> 4.630925846e-06 | BC23: =NORMSDIST(-(Correlation*NORMSINV(L$16)-NORMSINV($AS23))/CorrTerm) -> 5.150699023e-06 | BD23: =NORMSDIST(-(Correlation*NORMSINV(M$16)-NORMSINV($AS23))/CorrTerm) -> 5.691900158e-06 | BE23: =NORMSDIST(-(Correlation*NORMSINV(N$16)-NORMSINV($AS23))/CorrTerm) -> 6.25888498e-06 | BF23: =NORMSDIST(-(Correlation*NORMSINV(O$16)-NORMSINV($AS23))/CorrTerm) -> 6.85607417e-06 | BG23: =NORMSDIST(-(Correlation*NORMSINV(P$16)-NORMSINV($AS23))/CorrTerm) -> 7.486596554e-06 | BH23: =NORMSDIST(-(Correlation*NORMSINV(Q$16)-NORMSINV($AS23))/CorrTerm) -> 8.147920397e-06 | BI23: =NORMSDIST(-(Correlation*NORMSINV(R$16)-NORMSINV($AS23))/CorrTerm) -> 8.835815551e-06 | BJ23: =NORMSDIST(-(Correlation*NORMSINV(S$16)-NORMSINV($AS23))/CorrTerm) -> 9.545686057e-06 | BK23: =NORMSDIST(-(Correlation*NORMSINV(T$16)-NORMSINV($AS23))/CorrTerm) -> 1.027250252e-05 | BL23: =NORMSDIST(-(Correlation*NORMSINV(U$16)-NORMSINV($AS23))/CorrTerm) -> 1.101072394e-05 | BM23: =NORMSDIST(-(Correlation*NORMSINV(V$16)-NORMSINV($AS23))/CorrTerm) -> 1.175421679e-05 | BN23: =NORMSDIST(-(Correlation*NORMSINV(W$16)-NORMSINV($AS23))/CorrTerm) -> 1.249617517e-05 | BO23: =NORMSDIST(-(Correlation*NORMSINV(X$16)-NORMSINV($AS23))/CorrTerm) -> 1.323030283e-05 | BP23: =NORMSDIST(-(Correlation*NORMSINV(Y$16)-NORMSINV($AS23))/CorrTerm) -> 1.395477301e-05 | BQ23: =NORMSDIST(-(Correlation*NORMSINV(Z$16)-NORMSINV($AS23))/CorrTerm) -> 1.466887546e-05 | BR23: =NORMSDIST(-(Correlation*NORMSINV(AA$16)-NORMSINV($AS23))/CorrTerm) -> 1.53718486e-05 | BS23: =NORMSDIST(-(Correlation*NORMSINV(AB$16)-NORMSINV($AS23))/CorrTerm) -> 1.606290504e-05 | BT23: =NORMSDIST(-(Correlation*NORMSINV(AC$16)-NORMSINV($AS23))/CorrTerm) -> 1.674125145e-05 | BU23: =NORMSDIST(-(Correlation*NORMSINV(AD$16)-NORMSINV($AS23))/CorrTerm) -> 1.740610449e-05 | BV23: =NORMSDIST(-(Correlation*NORMSINV(AE$16)-NORMSINV($AS23))/CorrTerm) -> 1.80567041e-05 | BW23: =NORMSDIST(-(Correlation*NORMSINV(AF$16)-NORMSINV($AS23))/CorrTerm) -> 1.869246392e-05 | BX23: =NORMSDIST(-(Correlation*NORMSINV(AG$16)-NORMSINV($AS23))/CorrTerm) -> 1.931342794e-05 | BY23: =NORMSDIST(-(Correlation*NORMSINV(AH$16)-NORMSINV($AS23))/CorrTerm) -> 1.991991417e-05 | BZ23: =NORMSDIST(-(Correlation*NORMSINV(AI$16)-NORMSINV($AS23))/CorrTerm) -> 2.051239345e-05 | CA23: =NORMSDIST(-(Correlation*NORMSINV(AJ$16)-NORMSINV($AS23))/CorrTerm) -> 2.109149909e-05 | CB23: =NORMSDIST(-(Correlation*NORMSINV(AK$16)-NORMSINV($AS23))/CorrTerm) -> 2.165803543e-05 | CC23: =NORMSDIST(-(Correlation*NORMSINV(AL$16)-NORMSINV($AS23))/CorrTerm) -> 2.221298535e-05 | CD23: =NORMSDIST(-(Correlation*NORMSINV(AM$16)-NORMSINV($AS23))/CorrTerm) -> 2.275751708e-05 | CE23: =NORMSDIST(-(Correlation*NORMSINV(AN$16)-NORMSINV($AS23))/CorrTerm) -> 2.329299009e-05 | CF23: =NORMSDIST(-(Correlation*NORMSINV(AO$16)-NORMSINV($AS23))/CorrTerm) -> 2.38209605e-05 | CG23: =NORMSDIST(-(Correlation*NORMSINV(AP$16)-NORMSINV($AS23))/CorrTerm) -> 2.434318581e-05 | CH23: =NORMSDIST(-(Correlation*NORMSINV(AQ$16)-NORMSINV($AS23))/CorrTerm) -> 2.486162909e-05
B24: =B23+1 -> 2 | C24: 3.968129313e-06 | D24: -0.08441100341 | E24: -0.1050247487 | F24: -0.1174512517 | G24: -0.142989955 | H24: -0.1492614579 | I24: -0.1646465521 | J24: -0.1690132077 | K24: -0.1751989276 | L24: -0.17239654 | M24: -0.1703342392 | N24: -0.1641613928 | O24: -0.1648961525 | P24: -0.1673620558 | Q24: -0.1679731853 | R24: -0.153986668 | S24: -0.1430883133 | T24: -0.1428567114 | U24: -0.1421751455 | V24: -0.1448700053 | W24: -0.1364487782 | X24: -0.1285138163 | Y24: -0.1241321942 | Z24: -0.1220933183 | AA24: -0.1119197753 | AB24: -0.1103201816 | AC24: -0.1025374555 | AD24: -0.09814129403 | AE24: -0.09318352901 | AF24: -0.08266113248 | AG24: -0.07930821127 | AH24: -0.07427995565 | AI24: -0.06569674811 | AJ24: -0.05831375238 | AK24: -0.0532655434 | AL24: -0.04657353458 | AM24: -0.03661218811 | AN24: -0.02679073605 | AO24: -0.01847485921 | AP24: -0.009512310002 | AQ24: 0 | AS24: =B24/10000 -> 0.0002 | AU24: 2.770282981e-06 | AV24: 4.057024814e-06 | AW24: 5.220806344e-06 | AX24: 6.333383659e-06 | AY24: 7.425273023e-06 | AZ24: 8.514958519e-06 | BA24: 9.616066239e-06 | BB24: 1.073995684e-05 | BC24: 1.189687493e-05 | BD24: 1.309653193e-05 | BE24: 1.434843428e-05 | BF24: 1.566208766e-05 | BG24: 1.704404153e-05 | BH24: 1.848842432e-05 | BI24: 1.99857661e-05 | BJ24: 2.152593541e-05 | BK24: 2.309799175e-05 | BL24: 2.469001692e-05 | BM24: 2.628894191e-05 | BN24: 2.788037693e-05 | BO24: 2.945113873e-05 | BP24: 3.099766495e-05 | BQ24: 3.251876563e-05 | BR24: 3.401312068e-05 | BS24: 3.547933806e-05 | BT24: 3.691599877e-05 | BU24: 3.832169261e-05 | BV24: 3.969504745e-05 | BW24: 4.103504696e-05 | BX24: 4.234198961e-05 | BY24: 4.361673251e-05 | BZ24: 4.486043551e-05 | CA24: 4.607458144e-05 | CB24: 4.726099397e-05 | CC24: 4.842185322e-05 | CD24: 4.95597096e-05 | CE24: 5.067749601e-05 | CF24: 5.177853861e-05 | CG24: 5.286656626e-05 | CH24: 5.394571881e-05
B25: =B24+1 -> 3 | C25: 3.968129313e-06 | D25: -0.083885981 | E25: -0.1024137919 | F25: -0.1173707154 | G25: -0.13303583 | H25: -0.1454649865 | I25: -0.1593281018 | J25: -0.1649758609 | K25: -0.1579856221 | L25: -0.1617918353 | M25: -0.1680381253 | N25: -0.1616974389 | O25: -0.1598959209 | P25: -0.1622937121 | Q25: -0.1550530388 | R25: -0.1508952363 | S25: -0.1423704653 | T25: -0.1420331908 | U25: -0.1398432222 | V25: -0.1421665496 | W25: -0.1356202541 | X25: -0.1283560638 | Y25: -0.1230986583 | Z25: -0.1177749735 | AA25: -0.1116877937 | AB25: -0.1098409984 | AC25: -0.1020642373 | AD25: -0.09508716159 | AE25: -0.09058766047 | AF25: -0.08264641892 | AG25: -0.07510039949 | AH25: -0.07268666228 | AI25: -0.06398357019 | AJ25: -0.05684656563 | AK25: -0.05309141169 | AL25: -0.04397771147 | AM25: -0.03565681694 | AN25: -0.02610165153 | AO25: -0.01780545346 | AP25: -0.009247320593 | AQ25: 0 | AS25: 0.0003 | AU25: 4.686005752e-06 | AV25: 6.802977124e-06 | AW25: 8.703475257e-06 | AX25: 1.051066289e-05 | AY25: 1.227666074e-05 | AZ25: 1.403269741e-05 | BA25: 1.580147134e-05 | BB25: 1.760162858e-05 | BC25: 1.944975075e-05 | BD25: 2.136136297e-05 | BE25: 2.335149999e-05 | BF25: 2.54350555e-05 | BG25: 2.762212488e-05 | BH25: 2.990313336e-05 | BI25: 3.226293093e-05 | BJ25: 3.468545384e-05 | BK25: 3.715349037e-05 | BL25: 3.964841492e-05 | BM25: 4.214991685e-05 | BN25: 4.463573532e-05 | BO25: 4.708559838e-05 | BP25: 4.94942908e-05 | BQ25: 5.186027908e-05 | BR25: 5.418180489e-05 | BS25: 5.645697982e-05 | BT25: 5.868385817e-05 | BU25: 6.086049451e-05 | BV25: 6.298499044e-05 | BW25: 6.505598643e-05 | BX25: 6.707414093e-05 | BY25: 6.904095708e-05 | BZ25: 7.095838697e-05 | CA25: 7.282886306e-05 | CB25: 7.465532563e-05 | CC25: 7.644124691e-05 | CD25: 7.819065215e-05 | CE25: 7.990813828e-05 | CF25: 8.159889012e-05 | CG25: 8.326869456e-05 | CH25: 8.492395284e-05
B26: 4 | C26: 3.968129313e-06 | D26: -0.08231108985 | E26: -0.1012557149 | F26: -0.1142521001 | G26: -0.1244211388 | H26: -0.1435699982 | I26: -0.1531755555 | J26: -0.1648173663 | K26: -0.150866019 | L26: -0.1577691725 | M26: -0.1599392293 | N26: -0.1571544251 | O26: -0.1524867562 | P26: -0.161262369 | Q26: -0.1494915927 | R26: -0.1496165328 | S26: -0.1414451734 | T26: -0.1387239892 | U26: -0.1370640702 | V26: -0.1368852283 | W26: -0.1329057801 | X26: -0.1276893227 | Y26: -0.1223475233 | Z26: -0.1151775693 | AA26: -0.1113322665 | AB26: -0.106279311 | AC26: -0.1014169457 | AD26: -0.09497776668 | AE26: -0.08988066295 | AF26: -0.08024449518 | AG26: -0.07503514059 | AH26: -0.07195652973 | AI26: -0.06295259757 | AJ26: -0.05669553163 | AK26: -0.05235248944 | AL26: -0.04316970016 | AM26: -0.03504111246 | AN26: -0.02608801541 | AO26: -0.01727385764 | AP26: -0.008989031656 | AQ26: 0 | AS26: 0.0004 | AU26: 6.813943534e-06 | AV26: 9.829844862e-06 | AW26: 1.252276355e-05 | AX26: 1.50735302e-05 | AY26: 1.755840681e-05 | AZ26: 2.002274708e-05 | BA26: 2.249919616e-05 | BB26: 2.501429304e-05 | BC26: 2.75914046e-05 | BD26: 3.025221329e-05 | BE26: 3.301755134e-05 | BF26: 3.590791318e-05 | BG26: 3.893702662e-05 | BH26: 4.209136396e-05 | BI26: 4.534979615e-05 | BJ26: 4.869006164e-05 | BK26: 5.20884402e-05 | BL26: 5.551938479e-05 | BM26: 5.895514803e-05 | BN26: 6.236541801e-05 | BO26: 6.572271327e-05 | BP26: 6.902023516e-05 | BQ26: 7.225621007e-05 | BR26: 7.54285329e-05 | BS26: 7.853490111e-05 | BT26: 8.15729173e-05 | BU26: 8.45401701e-05 | BV26: 8.743429939e-05 | BW26: 9.025366693e-05 | BX26: 9.299936693e-05 | BY26: 9.567362448e-05 | BZ26: 9.827925657e-05 | CA26: 0.0001008197151 | CB26: 0.0001032991243 | CC26: 0.0001057223136 | CD26: 0.000108094846 | CE26: 0.0001104230435 | CF26: 0.0001127140086 | CG26: 0.0001149756436 | CH26: 0.0001172166665
B27: 5 | C27: 3.968129313e-06 | D27: -0.07660786555 | E27: -0.1003708296 | F27: -0.1129403981 | G27: -0.1231505635 | H27: -0.1422104389 | I27: -0.1461634217 | J27: -0.1627292776 | K27: -0.1478158228 | L27: -0.1547644609 | M27: -0.1573448724 | N27: -0.1567054075 | O27: -0.1501950091 | P27: -0.1589837208 | Q27: -0.1480404486 | R27: -0.1426324731 | S27: -0.1413214562 | T27: -0.1382105648 | U27: -0.1361151316 | V27: -0.1354931879 | W27: -0.1328883833 | X27: -0.1258837779 | Y27: -0.1217177087 | Z27: -0.1130595495 | AA27: -0.1099986424 | AB27: -0.1052333006 | AC27: -0.1003232656 | AD27: -0.09465881613 | AE27: -0.08794585568 | AF27: -0.08018307196 | AG27: -0.0737582859 | AH27: -0.06726477454 | AI27: -0.06164963389 | AJ27: -0.05600396469 | AK27: -0.0498177317 | AL27: -0.04294648326 | AM27: -0.03488468806 | AN27: -0.0252484145 | AO27: -0.01708821836 | AP27: -0.008677489741 | AQ27: 0 | AS27: 0.0005 | AU27: 9.117979158e-06 | AV27: 1.308814933e-05 | AW27: 1.661803787e-05 | AX27: 1.995133867e-05 | AY27: 2.319055362e-05 | AZ27: 2.639629867e-05 | BA27: 2.961188191e-05 | BB27: 3.287222974e-05 | BC27: 3.620785647e-05 | BD27: 3.964687721e-05 | BE27: 4.321613543e-05 | BF27: 4.694189335e-05 | BG27: 5.084157866e-05 | BH27: 5.489751825e-05 | BI27: 5.908237553e-05 | BJ27: 6.336749047e-05 | BK27: 6.772245705e-05 | BL27: 7.211464889e-05 | BM27: 7.650873974e-05 | BN27: 8.086623738e-05 | BO27: 8.515236745e-05 | BP27: 8.935880838e-05 | BQ27: 9.348363176e-05 | BR27: 9.752446114e-05 | BS27: 0.0001014786476 | BT27: 0.0001053434038 | BU27: 0.0001091159092 | BV27: 0.0001127933949 | BW27: 0.0001163739964 | BX27: 0.0001198593039 | BY27: 0.0001232523243 | BZ27: 0.0001265567965 | CA27: 0.0001297772462 | CB27: 0.0001329190339 | CC27: 0.0001359883962 | CD27: 0.0001389924823 | CE27: 0.0001419393855 | CF27: 0.0001448381707 | CG27: 0.0001476988983 | CH27: 0.0001505326444
B28: 6 | C28: 3.968129313e-06 | D28: -0.07614964375 | E28: -0.09855698895 | F28: -0.1120299325 | G28: -0.1229202835 | H28: -0.1396961566 | I28: -0.1443896896 | J28: -0.1512058151 | K28: -0.14566727 | L28: -0.1524534761 | M28: -0.1561380052 | N28: -0.15480041 | O28: -0.1501684131 | P28: -0.1586548316 | Q28: -0.1475478764 | R28: -0.141759118 | S28: -0.1407749986 | T28: -0.137912824 | U28: -0.1346999378 | V28: -0.1341227653 | W28: -0.1321858623 | X28: -0.124855774 | Y28: -0.1173156404 | Z28: -0.1116450125 | AA28: -0.1094688638 | AB28: -0.1041640514 | AC28: -0.09991386588 | AD28: -0.09439449368 | AE28: -0.087310702 | AF28: -0.08009467399 | AG28: -0.07308641987 | AH28: -0.06710499205 | AI28: -0.06096329974 | AJ28: -0.05591529172 | AK28: -0.04821649728 | AL28: -0.04082942557 | AM28: -0.03423059088 | AN28: -0.02505358145 | AO28: -0.01691594713 | AP28: -0.008671700949 | AQ28: 0 | AS28: 0.0006 | AU28: 1.157484403e-05 | AV28: 1.654618708e-05 | AW28: 2.095059204e-05 | AX28: 2.509912164e-05 | AY28: 2.912233323e-05 | AZ28: 3.309708552e-05 | BA28: 3.707796455e-05 | BB28: 4.110870672e-05 | BC28: 4.522728154e-05 | BD28: 4.946846935e-05 | BE28: 5.386530413e-05 | BF28: 5.844995492e-05 | BG28: 6.324360506e-05 | BH28: 6.82242787e-05 | BI28: 7.335824611e-05 | BJ28: 7.861028722e-05 | BK28: 8.39431689e-05 | BL28: 8.931706086e-05 | BM28: 9.46889472e-05 | BN28: 0.0001000120558 | BO28: 0.0001052442574 | BP28: 0.0001103757617 | BQ28: 0.0001154045589 | BR28: 0.0001203280661 | BS28: 0.0001251433464 | BT28: 0.0001298472754 | BU28: 0.0001344366723 | BV28: 0.0001389084048 | BW28: 0.0001432604265 | BX28: 0.0001474948743 | BY28: 0.0001516155866 | BZ28: 0.0001556272716 | CA28: 0.0001595355739 | CB28: 0.000163347133 | CC28: 0.0001670696337 | CD28: 0.0001707118506 | CE28: 0.0001742836859 | CF28: 0.0001777962028 | CG28: 0.0001812616544 | CH28: 0.0001846935073
B29: 7 | C29: 3.968129313e-06 | D29: -0.07519374282 | E29: -0.0979983311 | F29: -0.1115444013 | G29: -0.1221667965 | H29: -0.1345025022 | I29: -0.138496655 | J29: -0.1485092064 | K29: -0.1431736902 | L29: -0.1497451422 | M29: -0.1557428532 | N29: -0.154050666 | O29: -0.1475354583 | P29: -0.1511320129 | Q29: -0.1462443941 | R29: -0.1413068251 | S29: -0.1404969657 | T29: -0.1359218567 | U29: -0.1334895168 | V29: -0.1335910448 | W29: -0.1319101593 | X29: -0.124208836 | Y29: -0.116482276 | Z29: -0.1101232839 | AA29: -0.109040308 | AB29: -0.1041227318 | AC29: -0.09959609895 | AD29: -0.09305192145 | AE29: -0.0866216924 | AF29: -0.07980297914 | AG29: -0.07294444755 | AH29: -0.06699557162 | AI29: -0.06042645205 | AJ29: -0.05521684498 | AK29: -0.04785387189 | AL29: -0.04076097461 | AM29: -0.03392147327 | AN29: -0.02495416207 | AO29: -0.01674780847 | AP29: -0.008671033438 | AQ29: 0 | AS29: 0.0007 | AU29: 1.416804543e-05 | AV29: 2.018158219e-05 | AW29: 2.549318717e-05 | AX29: 3.04853068e-05 | AY29: 3.531816853e-05 | AZ29: 4.008574348e-05 | BA29: 4.485443928e-05 | BB29: 4.967717444e-05 | BC29: 5.459964352e-05 | BD29: 5.966349493e-05 | BE29: 6.490810873e-05 | BF29: 7.037168053e-05 | BG29: 7.607919732e-05 | BH29: 8.200424704e-05 | BI29: 8.810655028e-05 | BJ29: 9.434419169e-05 | BK29: 0.0001006729938 | BL29: 0.0001070458199 | BM29: 0.0001134118744 | BN29: 0.0001197160249 | BO29: 0.0001259087396 | BP29: 0.0001319788083 | BQ29: 0.0001379242049 | BR29: 0.0001437421977 | BS29: 0.000149429613 | BT29: 0.0001549830363 | BU29: 0.0001603989698 | BV29: 0.0001656739573 | BW29: 0.0001708058098 | BX29: 0.0001757972546 | BY29: 0.0001806530049 | BZ29: 0.0001853787783 | CA29: 0.000189981377 | CB29: 0.000194468756 | CC29: 0.0001988500834 | CD29: 0.0002031357919 | CE29: 0.0002073376244 | CF29: 0.0002114686727 | CG29: 0.0002155434109 | CH29: 0.0002195777236
B30: 8 | C30: 3.968129313e-06 | D30: -0.07495915996 | E30: -0.09618465863 | F30: -0.1108554676 | G30: -0.1220835238 | H30: -0.1302188155 | I30: -0.1356620379 | J30: -0.1459505166 | K30: -0.1426405315 | L30: -0.1493849278 | M30: -0.1540098338 | N30: -0.1494504276 | O30: -0.1475197144 | P30: -0.1483351615 | Q30: -0.146120815 | R30: -0.1405825301 | S30: -0.1389553176 | T30: -0.1344360359 | U30: -0.1331132301 | V30: -0.1324885076 | W30: -0.1281667492 | X30: -0.1210609323 | Y30: -0.1160582296 | Z30: -0.1096029427 | AA30: -0.1075008031 | AB30: -0.1025222906 | AC30: -0.09792638777 | AD30: -0.092803243 | AE30: -0.08632295956 | AF30: -0.07885796042 | AG30: -0.07286997239 | AH30: -0.06624229035 | AI30: -0.06002312355 | AJ30: -0.05472344945 | AK30: -0.04731112078 | AL30: -0.04068267835 | AM30: -0.03386478461 | AN30: -0.02491352857 | AO30: -0.01673750677 | AP30: -0.008477221217 | AQ30: 0 | AS30: 0.0008 | AU30: 1.688516134e-05 | AV30: 2.397754053e-05 | AW30: 3.02254283e-05 | AX30: 3.608629916e-05 | AY30: 4.17515138e-05 | AZ30: 4.733294195e-05 | BA30: 5.290930303e-05 | BB30: 5.854303202e-05 | BC30: 6.428779014e-05 | BD30: 7.01922748e-05 | BE30: 7.630235015e-05 | BF30: 8.266234414e-05 | BG30: 8.930108965e-05 | BH30: 9.61876224e-05 | BI30: 0.0001032749777 | BJ30: 0.0001105144289 | BK30: 0.0001178547538 | BL30: 0.000125241423 | BM30: 0.0001326157855 | BN30: 0.0001399142824 | BO30: 0.0001470799406 | BP30: 0.0001541001756 | BQ30: 0.0001609730035 | BR30: 0.0001676955953 | BS30: 0.0001742645873 | BT30: 0.000180676317 | BU30: 0.0001869270079 | BV30: 0.0001930129161 | BW30: 0.000198931745 | BX30: 0.0002046868509 | BY30: 0.0002102838593 | BZ30: 0.0002157295336 | CA30: 0.0002210318669 | CB30: 0.0002262001618 | CC30: 0.0002312450997 | CD30: 0.0002361788006 | CE30: 0.0002410148752 | CF30: 0.0002457684698 | CG30: 0.0002504563041 | CH30: 0.0002550967038
B31: 9 | C31: 3.968129313e-06 | D31: -0.07461775051 | E31: -0.09607530097 | F31: -0.1106999465 | G31: -0.1216941938 | H31: -0.1301965315 | I31: -0.1332715039 | J31: -0.1445772562 | K31: -0.1423551022 | L31: -0.1390109883 | M31: -0.1523188437 | N31: -0.1490443687 | O31: -0.1461766869 | P31: -0.1473537108 | Q31: -0.1448615571 | R31: -0.1391454412 | S31: -0.1389291605 | T31: -0.1331470432 | U31: -0.1325461495 | V31: -0.1275198285 | W31: -0.1275134105 | X31: -0.1210301315 | Y31: -0.1153133289 | Z31: -0.1077292861 | AA31: -0.1073505898 | AB31: -0.101897357 | AC31: -0.09685600439 | AD31: -0.09167755474 | AE31: -0.08626368274 | AF31: -0.07869358192 | AG31: -0.07199437272 | AH31: -0.06613143382 | AI31: -0.05996040838 | AJ31: -0.05449744039 | AK31: -0.04622348538 | AL31: -0.04061793984 | AM31: -0.03346372507 | AN31: -0.02484396072 | AO31: -0.01673467798 | AP31: -0.008468071607 | AQ31: 0 | AS31: 0.0009 | AU31: 1.971643173e-05 | AV31: 2.792090621e-05 | AW31: 3.513137147e-05 | AX31: 4.188368281e-05 | AY31: 4.840167812e-05 | AZ31: 5.481584651e-05 | BA31: 6.121766747e-05 | BB31: 6.767939745e-05 | BC31: 7.426288398e-05 | BD31: 8.102403739e-05 | BE31: 8.801533045e-05 | BF31: 9.528731844e-05 | BG31: 0.0001028727181 | BH31: 0.00011073591 | BI31: 0.0001188231249 | BJ31: 0.0001270787226 | BK31: 0.0001354443496 | BL31: 0.0001438580088 | BM31: 0.000152253129 | BN31: 0.0001605576687 | BO31: 0.000168707182 | BP31: 0.0001766877525 | BQ31: 0.0001844974919 | BR31: 0.0001921335212 | BS31: 0.0001995923288 | BT31: 0.0002068700429 | BU31: 0.0002139626436 | BV31: 0.000220866132 | BW31: 0.0002275781352 | BX31: 0.0002341026737 | BY31: 0.0002404463195 | BZ31: 0.0002466169132 | CA31: 0.0002526236692 | CB31: 0.000258477266 | CC31: 0.0002641899253 | CD31: 0.0002697754797 | CE31: 0.0002752494318 | CF31: 0.000280629005 | CG31: 0.0002859331863 | CH31: 0.0002911827626
B32: 10 | C32: 3.968129313e-06 | D32: -0.07394191341 | E32: -0.09562376826 | F32: -0.1104366265 | G32: -0.1202767469 | H32: -0.1295905064 | I32: -0.1323487217 | J32: -0.1407476855 | K32: -0.141658832 | L32: -0.1375098421 | M32: -0.1518332546 | N32: -0.1478043671 | O32: -0.1441380157 | P32: -0.1455752771 | Q32: -0.144214533 | R32: -0.1389834399 | S32: -0.1387083058 | T32: -0.1328522672 | U32: -0.1323646451 | V32: -0.1272436917 | W32: -0.1247341129 | X32: -0.1206698212 | Y32: -0.1152530733 | Z32: -0.1037854443 | AA32: -0.1064975813 | AB32: -0.1008309863 | AC32: -0.09546590072 | AD32: -0.09121575361 | AE32: -0.0860606692 | AF32: -0.07664495513 | AG32: -0.07163491991 | AH32: -0.06607941218 | AI32: -0.05990090792 | AJ32: -0.05402954384 | AK32: -0.04608070427 | AL32: -0.04053276465 | AM32: -0.0333361689 | AN32: -0.02472451794 | AO32: -0.01662174158 | AP32: -0.008318905481 | AQ32: 0 | AS32: 0.001 | AU32: 2.2653945e-05 | AV32: 3.200104263e-05 | AW32: 4.019814894e-05 | AX32: 4.786261587e-05 | AY32: 5.525200585e-05 | AZ32: 6.251609514e-05 | BA32: 6.975953775e-05 | BB32: 7.706469286e-05 | BC32: 8.450179638e-05 | BD32: 9.213412184e-05 | BE32: 0.0001000208645 | BF32: 0.0001082188932 | BG32: 0.0001167648432 | BH32: 0.0001256183477 | BI32: 0.0001347187259 | BJ32: 0.0001440033335 | BK32: 0.0001534066086 | BL32: 0.0001628590207 | BM32: 0.0001722860227 | BN32: 0.0001816070416 | BO32: 0.000190750133 | BP32: 0.0001997000877 | BQ32: 0.0002084551627 | BR32: 0.0002170124726 | BS32: 0.0002253683972 | BT32: 0.0002335188905 | BU32: 0.0002414597218 | BV32: 0.0002491866672 | BW32: 0.0002566973068 | BX32: 0.000263996357 | BY32: 0.000271091367 | BZ32: 0.0002779912836 | CA32: 0.0002847065697 | CB32: 0.0002912493054 | CC32: 0.0002976332767 | CD32: 0.0003038740518 | CE32: 0.0003099890467 | CF32: 0.000315997582 | CG32: 0.0003219209312 | CH32: 0.00032778236
B33: 11 | C33: 3.968129313e-06 | D33: -0.07265661204 | E33: -0.09516406899 | F33: -0.1096485588 | G33: -0.1197986498 | H33: -0.1291882238 | I33: -0.1320065807 | J33: -0.1392515563 | K33: -0.1401235875 | L33: -0.1374688499 | M33: -0.1511720301 | N33: -0.1471436352 | O33: -0.1440807195 | P33: -0.1422131791 | Q33: -0.1431595526 | R33: -0.1387746284 | S33: -0.1385574574 | T33: -0.1318180156 | U33: -0.1314298106 | V33: -0.1252316923 | W33: -0.1245789462 | X33: -0.1190552222 | Y33: -0.1150172031 | Z33: -0.103563729 | AA33: -0.104797762 | AB33: -0.1007151299 | AC33: -0.0935478888 | AD33: -0.09058849268 | AE33: -0.0837163377 | AF33: -0.07631303487 | AG33: -0.0711153872 | AH33: -0.0659958069 | AI33: -0.05987278735 | AJ33: -0.05307615258 | AK33: -0.04596510786 | AL33: -0.04040920516 | AM33: -0.03296019066 | AN33: -0.02449511967 | AO33: -0.01648072215 | AP33: -0.008291498604 | AQ33: 0 | AS33: 0.0011 | AU33: 2.569113203e-05 | AV33: 3.620913842e-05 | AW33: 4.541511798e-05 | AX33: 5.401083818e-05 | AY33: 6.228875304e-05 | AZ33: 7.041854976e-05 | BA33: 7.851844334e-05 | BB33: 8.668115742e-05 | BC33: 9.498550381e-05 | BD33: 0.0001035022583 | BE33: 0.0001122974437 | BF33: 0.0001214343221 | BG33: 0.0001309534786 | BH33: 0.0001408097154 | BI33: 0.0001509353434 | BJ33: 0.0001612606327 | BK33: 0.0001717127441 | BL33: 0.0001822145556 | BM33: 0.0001926834945 | BN33: 0.0002030304142 | BO33: 0.0002131758499 | BP33: 0.0002231033369 | BQ33: 0.0002328113236 | BR33: 0.0002422969586 | BS33: 0.0002515565495 | BT33: 0.0002605859091 | BU33: 0.0002693806262 | BV33: 0.0002779362796 | BW33: 0.0002862504296 | BX33: 0.0002943285174 | BY33: 0.0003021790979 | BZ33: 0.0003098122508 | CA33: 0.0003172397119 | CB33: 0.0003244749865 | CC33: 0.0003315334471 | CD33: 0.0003384324176 | CE33: 0.0003451912472 | CF33: 0.0003518313721 | CG33: 0.000358376369 | CH33: 0.0003648519987
B34: 12 | C34: 3.968129313e-06 | D34: -0.07236267054 | E34: -0.09508475811 | F34: -0.1074160803 | G34: -0.1186086573 | H34: -0.1285707402 | I34: -0.1318116362 | J34: -0.1389855347 | K34: -0.14010806 | L34: -0.1362698627 | M34: -0.1510252713 | N34: -0.1465591461 | O34: -0.1422197519 | P34: -0.1422041937 | Q34: -0.1419351299 | R34: -0.1381440565 | S34: -0.1374703896 | T34: -0.1313795002 | U34: -0.1288794528 | V34: -0.1243824653 | W34: -0.1236561054 | X34: -0.1181353104 | Y34: -0.1147652558 | Z34: -0.103536581 | AA34: -0.1046162191 | AB34: -0.1005053374 | AC34: -0.0934616855 | AD34: -0.09048593488 | AE34: -0.08341313908 | AF34: -0.07571821245 | AG34: -0.07063329243 | AH34: -0.06597425778 | AI34: -0.05957430358 | AJ34: -0.05276582752 | AK34: -0.04586619523 | AL34: -0.04003371816 | AM34: -0.0328726144 | AN34: -0.02437987141 | AO34: -0.01637540973 | AP34: -0.008055784514 | AQ34: 0 | AS34: 0.0012 | AU34: 2.882243341e-05 | AV34: 4.053775204e-05 | AW34: 5.07733032e-05 | AX34: 6.03180219e-05 | AY34: 6.950035285e-05 | AZ34: 7.851048086e-05 | BA34: 8.748054471e-05 | BB34: 9.651387772e-05 | BC34: 0.000105698043 | BD34: 0.0001151114483 | BE34: 0.0001248270417 | BF34: 0.000134914552 | BG34: 0.0001454185438 | BH34: 0.0001562889116 | BI34: 0.0001674508695 | BJ34: 0.0001788275278 | BK34: 0.0001903387081 | BL34: 0.0002018996447 | BM34: 0.000213419695 | BN34: 0.0002248011017 | BO34: 0.000235956861 | BP34: 0.0002468692882 | BQ34: 0.000257537066 | BR34: 0.0002679574153 | BS34: 0.0002781266053 | BT34: 0.0002880403387 | BU34: 0.0002976940519 | BV34: 0.0003070831525 | BW34: 0.000316205206 | BX34: 0.0003250664058 | BY34: 0.0003336763386 | BZ34: 0.0003420462412 | CA34: 0.0003501891455 | CB34: 0.0003581200033 | CC34: 0.0003658557935 | CD34: 0.0003734156153 | CE34: 0.0003808207683 | CF34: 0.0003880948211 | CG34: 0.0003952636692 | CH34: 0.0004023555828
B35: 13 | C35: 3.968129313e-06 | D35: -0.07195740463 | E35: -0.09490704764 | F35: -0.1068684351 | G35: -0.1182605573 | H35: -0.1283326836 | I35: -0.1311183541 | J35: -0.1377821946 | K35: -0.1397399499 | L35: -0.1359275849 | M35: -0.1503790291 | N35: -0.1429022823 | O35: -0.1418731271 | P35: -0.1388166617 | Q35: -0.1393499394 | R35: -0.137103565 | S35: -0.1363144649 | T35: -0.1308820655 | U35: -0.1283456656 | V35: -0.1236581252 | W35: -0.1232209494 | X35: -0.116285968 | Y35: -0.1136161763 | Z35: -0.1031814064 | AA35: -0.1036539242 | AB35: -0.09904439264 | AC35: -0.09231758895 | AD35: -0.09034700354 | AE35: -0.08334684821 | AF35: -0.07492426293 | AG35: -0.07006723147 | AH35: -0.06414792892 | AI35: -0.0590916519 | AJ35: -0.0526560001 | AK35: -0.04580905059 | AL35: -0.03988315533 | AM35: -0.0328645841 | AN35: -0.02428970271 | AO35: -0.01624588565 | AP35: -0.00804699766 | AQ35: 0 | AS35: 0.0013 | AU35: 3.204307067e-05 | AV35: 4.49804993e-05 | AW35: 5.626501448e-05 | AX35: 6.677532722e-05 | AY35: 7.687691354e-05 | AZ35: 8.678101059e-05 | BA35: 9.663402352e-05 | BB35: 0.0001065501264 | BC35: 0.0001166257986 | BD35: 0.0001269472018 | BE35: 0.0001375943004 | BF35: 0.000148643359 | BG35: 0.0001601429491 | BH35: 0.0001720379866 | BI35: 0.0001842465074 | BJ35: 0.0001966843946 | BK35: 0.0002092640736 | BL35: 0.0002218930878 | BM35: 0.0002344726854 | BN35: 0.000246896465 | BO35: 0.0002590698683 | BP35: 0.0002709740242 | BQ35: 0.0002826078902 | BR35: 0.0002939687955 | BS35: 0.0003050530028 | BT35: 0.000315856134 | BU35: 0.0003263734993 | BV35: 0.0003366003599 | BW35: 0.0003465343101 | BX35: 0.0003561823206 | BY35: 0.0003655550344 | BZ35: 0.000374664868 | CA35: 0.0003835261709 | CB35: 0.0003921553611 | CC35: 0.0004005710427 | CD35: 0.0004087941073 | CE35: 0.0004168478215 | CF35: 0.0004247579014 | CG35: 0.0004325525756 | CH35: 0.0004402626368
B36: 14 | C36: 3.968129313e-06 | D36: -0.07187711123 | E36: -0.09399168539 | F36: -0.1066898713 | G36: -0.117885587 | H36: -0.1270266937 | I36: -0.130558091 | J36: -0.13272757 | K36: -0.1395387395 | L36: -0.1352832551 | M36: -0.1502337311 | N36: -0.1404297294 | O36: -0.1391311842 | P36: -0.1378949195 | Q36: -0.1384052815 | R36: -0.135316175 | S36: -0.1359576639 | T36: -0.1296917841 | U36: -0.1280347772 | V36: -0.1234696209 | W36: -0.1215950976 | X36: -0.1156898355 | Y36: -0.1120334775 | Z36: -0.103021855 | AA36: -0.1032397189 | AB36: -0.09821405906 | AC36: -0.09231675975 | AD36: -0.08659258223 | AE36: -0.08277594318 | AF36: -0.07488974781 | AG36: -0.07004285021 | AH36: -0.06392262214 | AI36: -0.05884624418 | AJ36: -0.05245910947 | AK36: -0.04573961693 | AL36: -0.03970974162 | AM36: -0.03224602896 | AN36: -0.02387229215 | AO36: -0.01608404038 | AP36: -0.008014827773 | AQ36: 0 | AS36: 0.0014 | AU36: 3.53488834e-05 | AV36: 4.953183136e-05 | AW36: 6.188357588e-05 | AX36: 7.337508727e-05 | AY36: 8.440986264e-05 | AZ36: 9.522071847e-05 | BA36: 0.0001059686512 | BB36: 0.0001167788947 | BC36: 0.0001277570003 | BD36: 0.0001389969984 | BE36: 0.0001505859563 | BF36: 0.0001626067386 | BG36: 0.0001751119494 | BH36: 0.0001880414604 | BI36: 0.0002013060543 | BJ36: 0.0002148143239 | BK36: 0.0002284712471 | BL36: 0.000242176633 | BM36: 0.000255823585 | BN36: 0.000269297028 | BO36: 0.0002824948358 | BP36: 0.0002953969829 | BQ36: 0.00030800274 | BR36: 0.0003203095785 | BS36: 0.0003323137854 | BT36: 0.0003440109286 | BU36: 0.0003553962178 | BV36: 0.0003664647905 | BW36: 0.0003772142923 | BX36: 0.000387652495 | BY36: 0.0003977911205 | BZ36: 0.0004076437866 | CA36: 0.0004172261798 | CB36: 0.000426556203 | CC36: 0.0004356541028 | CD36: 0.0004445425795 | CE36: 0.0004532468818 | CF36: 0.0004617948873 | CG36: 0.0004702171707 | CH36: 0.0004785470593
B37: 15 | C37: 3.968129313e-06 | D37: -0.07152277235 | E37: -0.0931952255 | F37: -0.1065136441 | G37: -0.117789814 | H37: -0.1257940317 | I37: -0.1301444137 | J37: -0.1301328661 | K37: -0.1380669755 | L37: -0.1351141236 | M37: -0.1498413789 | N37: -0.1386310347 | O37: -0.1389901192 | P37: -0.1370848546 | Q37: -0.1361606768 | R37: -0.1352327711 | S37: -0.1348421033 | T37: -0.1294840964 | U37: -0.1277519984 | V37: -0.1233089566 | W37: -0.1212200833 | X37: -0.1156166854 | Y37: -0.111127892 | Z37: -0.1025058629 | AA37: -0.1029019536 | AB37: -0.09721555274 | AC37: -0.09198620107 | AD37: -0.08642129146 | AE37: -0.08234020314 | AF37: -0.07459633259 | AG37: -0.06972409855 | AH37: -0.06323981766 | AI37: -0.05799866525 | AJ37: -0.0524175233 | AK37: -0.04565617048 | AL37: -0.03943543863 | AM37: -0.03191477651 | AN37: -0.02371994305 | AO37: -0.01606261091 | AP37: -0.007976874567 | AQ37: 0 | AS37: 0.0015 | AU37: 3.873620981e-05 | AV37: 5.418687212e-05 | AW37: 6.762312727e-05 | AX37: 8.011057792e-05 | AY37: 9.209168728e-05 | AZ37: 0.0001038213537 | BA37: 0.0001154754744 | BB37: 0.0001271905512 | BC37: 0.0001390813556 | BD37: 0.0001512498956 | BE37: 0.0001637904224 | BF37: 0.0001767924618 | BG37: 0.000190312675 | BH37: 0.0002042858278 | BI37: 0.0002186153797 | BJ37: 0.0002332025757 | BK37: 0.0002479448978 | BL37: 0.0002627343816 | BM37: 0.0002774559534 | BN37: 0.0002919858376 | BO37: 0.0003062143282 | BP37: 0.0003201202765 | BQ37: 0.000333703303 | BR37: 0.0003469610533 | BS37: 0.0003598898674 | BT37: 0.0003724852857 | BU37: 0.0003847424409 | BV37: 0.0003966563692 | BW37: 0.000408224788 | BX37: 0.000419456293 | BY37: 0.0004303637062 | BZ37: 0.0004409618667 | CA37: 0.0004512678168 | CB37: 0.0004613009616 | CC37: 0.0004710832062 | CD37: 0.0004806390749 | CE37: 0.0004899958124 | CF37: 0.0004991834711 | CG37: 0.0005082349837 | CH37: 0.0005171862233
B38: 16 | C38: 3.968129313e-06 | D38: -0.07141488413 | E38: -0.09230634933 | F38: -0.1064456622 | G38: -0.1175854824 | H38: -0.1247595196 | I38: -0.1300248933 | J38: -0.1285224301 | K38: -0.1349253494 | L38: -0.1351062157 | M38: -0.1483315712 | N38: -0.1385407966 | O38: -0.1372821042 | P38: -0.1365874267 | Q38: -0.1360710039 | R38: -0.1342110062 | S38: -0.1346884141 | T38: -0.1293082089 | U38: -0.1253126424 | V38: -0.1231945403 | W38: -0.1201278971 | X38: -0.1146854892 | Y38: -0.1100235275 | Z38: -0.1024441047 | AA38: -0.1027631036 | AB38: -0.09651890674 | AC38: -0.09148077958 | AD38: -0.08640900089 | AE38: -0.08151618766 | AF38: -0.07427658462 | AG38: -0.06972221696 | AH38: -0.06318010768 | AI38: -0.05793234717 | AJ38: -0.05192560592 | AK38: -0.0453121114 | AL38: -0.03941761063 | AM38: -0.0317159501 | AN38: -0.02367327119 | AO38: -0.01605685244 | AP38: -0.007920413589 | AQ38: 0 | AS38: 0.0016 | AU38: 4.220179689e-05 | AV38: 5.894129624e-05 | AW38: 7.347847571e-05 | AX38: 8.697584544e-05 | AY38: 9.991573985e-05 | AZ38: 0.0001125756201 | BA38: 0.00012514658 | BB38: 0.0001377765879 | BC38: 0.0001505897766 | BD38: 0.0001636962353 | BE38: 0.0001771974767 | BF38: 0.0001911897448 | BG38: 0.0002057337814 | BH38: 0.000220759189 | BI38: 0.0002361620382 | BJ38: 0.0002518361721 | BK38: 0.0002676715326 | BL38: 0.0002835523458 | BM38: 0.0002993553306 | BN38: 0.0003149479872 | BO38: 0.00033021302 | BP38: 0.0003451281862 | BQ38: 0.0003596934912 | BR38: 0.0003739067857 | BS38: 0.00038776449 | BT38: 0.0004012621418 | BU38: 0.0004143948198 | BV38: 0.0004271574793 | BW38: 0.00043954793 | BX38: 0.0004515756124 | BY38: 0.0004632544692 | BZ38: 0.0004746005795 | CA38: 0.0004856323587 | CB38: 0.0004963707305 | CC38: 0.0005068392741 | CD38: 0.0005170643514 | CE38: 0.0005270752165 | CF38: 0.0005369041087 | CG38: 0.0005465863302 | CH38: 0.0005561603102
B39: 17 | C39: 3.968129313e-06 | D39: -0.07088985354 | E39: -0.09197635203 | F39: -0.1063359797 | G39: -0.1168785568 | H39: -0.1241910545 | I39: -0.1296633946 | J39: -0.1284318354 | K39: -0.1338069137 | L39: -0.1350135154 | M39: -0.1445032603 | N39: -0.1384252224 | O39: -0.1371509026 | P39: -0.1356590554 | Q39: -0.1360121465 | R39: -0.1331127406 | S39: -0.1344656869 | T39: -0.1282351514 | U39: -0.1245864344 | V39: -0.1230565389 | W39: -0.1195453491 | X39: -0.1142690058 | Y39: -0.1098119037 | Z39: -0.1024181092 | AA39: -0.1014084197 | AB39: -0.09581602375 | AC39: -0.09114732741 | AD39: -0.08620813457 | AE39: -0.08141482049 | AF39: -0.07402510909 | AG39: -0.06925922148 | AH39: -0.06308977855 | AI39: -0.05788790751 | AJ39: -0.05189535273 | AK39: -0.04506201158 | AL39: -0.03871918509 | AM39: -0.03158013844 | AN39: -0.023619995 | AO39: -0.01592496428 | AP39: -0.007917324309 | AQ39: 0 | AS39: 0.0017 | AU39: 4.574273156e-05 | AV39: 6.379123568e-05 | AW39: 7.944498172e-05 | AX39: 9.396557455e-05 | AY39: 0.0001078760894 | AZ39: 0.0001214770116 | BA39: 0.0001349749152 | BB39: 0.0001485294255 | BC39: 0.0001622741712 | BD39: 0.0001763274216 | BE39: 0.0001907980243 | BF39: 0.000205788997 | BG39: 0.0002213651834 | BH39: 0.0002374509687 | BI39: 0.0002539349734 | BJ39: 0.0002707035879 | BK39: 0.000287639173 | BL39: 0.0003046181114 | BM39: 0.0003215088878 | BN39: 0.0003381702559 | BO39: 0.000354477322 | BP39: 0.0003704067778 | BQ39: 0.0003859590469 | BR39: 0.0004011322144 | BS39: 0.0004159228074 | BT39: 0.0004303263846 | BU39: 0.0004443379921 | BV39: 0.0004579525247 | BW39: 0.0004711679033 | BX39: 0.0004839944333 | BY39: 0.0004964471974 | BZ39: 0.0005085435323 | CA39: 0.0005203032434 | CB39: 0.0005317487883 | CC39: 0.0005429054344 | CD39: 0.0005538013949 | CE39: 0.0005644679456 | CF39: 0.0005749395239 | CG39: 0.0005852538121 | CH39: 0.0005954518049
B40: 18 | C40: 3.968129313e-06 | D40: -0.06960843264 | E40: -0.09140643213 | F40: -0.1057399113 | G40: -0.1152828847 | H40: -0.1241599682 | I40: -0.1290825848 | J40: -0.1282619963 | K40: -0.1319480868 | L40: -0.1348342597 | M40: -0.1415671978 | N40: -0.1374282351 | O40: -0.1362267508 | P40: -0.1350462964 | Q40: -0.1354790748 | R40: -0.1311548803 | S40: -0.1343860114 | T40: -0.1280654057 | U40: -0.1236166959 | V40: -0.1228341032 | W40: -0.1195040209 | X40: -0.1140306466 | Y40: -0.1091008257 | Z40: -0.1020748547 | AA40: -0.1010117555 | AB40: -0.09564526519 | AC40: -0.09107828674 | AD40: -0.08562256421 | AE40: -0.08139670581 | AF40: -0.07368776959 | AG40: -0.06922853095 | AH40: -0.06298822653 | AI40: -0.05714374332 | AJ40: -0.05180636043 | AK40: -0.04478999315 | AL40: -0.03821846078 | AM40: -0.03131858795 | AN40: -0.02329998472 | AO40: -0.01587240479 | AP40: -0.007901558406 | AQ40: 0 | AS40: 0.0018 | AU40: 4.935638678e-05 | AV40: 6.87332067e-05 | AW40: 8.551847048e-05 | AX40: 0.0001010749857 | AY40: 0.0001159674058 | AZ40: 0.0001305196845 | BA40: 0.0001449541485 | BB40: 0.0001594422623 | BC40: 0.0001741272804 | BD40: 0.0001891357465 | BE40: 0.0002045839136 | BF40: 0.000220581625 | BG40: 0.0002371978477 | BH40: 0.0002543516984 | BI40: 0.0002719242893 | BJ40: 0.0002897945109 | BK40: 0.0003078371044 | BL40: 0.0003259205779 | BM40: 0.0003439051568 | BN40: 0.0003616408281 | BO40: 0.0003789950927 | BP40: 0.0003959436046 | BQ40: 0.0004124872374 | BR40: 0.0004286243386 | BS40: 0.0004443515676 | BT40: 0.0004596645266 | BU40: 0.0004745582501 | BV40: 0.0004890275914 | BW40: 0.0005030706009 | BX40: 0.0005166984682 | BY40: 0.0005299274339 | BZ40: 0.0005427761098 | CA40: 0.0005552657066 | CB40: 0.0005674202306 | CC40: 0.0005792666508 | CD40: 0.0005908350444 | CE40: 0.0006021587204 | CF40: 0.0006132743253 | CG40: 0.0006242219311 | CH40: 0.0006350451074
B41: 19 | C41: 3.968129313e-06 | D41: -0.0692985911 | E41: -0.09069507171 | F41: -0.1050812979 | G41: -0.1150479056 | H41: -0.122553934 | I41: -0.1285842934 | J41: -0.1256658551 | K41: -0.1311925128 | L41: -0.1347226789 | M41: -0.1411121963 | N41: -0.1372249261 | O41: -0.1360675397 | P41: -0.1342805597 | Q41: -0.1349106415 | R41: -0.1305119915 | S41: -0.1342146407 | T41: -0.1272970044 | U41: -0.1230494207 | V41: -0.1224412618 | W41: -0.1187405153 | X41: -0.1137083121 | Y41: -0.1090163912 | Z41: -0.1020674902 | AA41: -0.1008927128 | AB41: -0.0954898413 | AC41: -0.09080883115 | AD41: -0.08540547216 | AE41: -0.08134728452 | AF41: -0.07345377192 | AG41: -0.06863470493 | AH41: -0.06290018985 | AI41: -0.05698347385 | AJ41: -0.05123829009 | AK41: -0.04460532213 | AL41: -0.03786623881 | AM41: -0.03121758255 | AN41: -0.02298572693 | AO41: -0.0155186131 | AP41: -0.007883862224 | AQ41: 0 | AS41: 0.0019 | AU41: 5.304037885e-05 | AV41: 7.376405207e-05 | AW41: 9.16951616e-05 | AX41: 0.0001082997539 | AY41: 0.0001241848687 | AZ41: 0.0001396983563 | BA41: 0.0001550785586 | BB41: 0.0001705089554 | BC41: 0.0001861425505 | BD41: 0.0002021142535 | BE41: 0.0002185477899 | BF41: 0.0002355598787 | BG41: 0.0002532236302 | BH41: 0.0002714528442 | BI41: 0.0002901210697 | BJ41: 0.0003090996529 | BK41: 0.0003282556791 | BL41: 0.0003474497528 | BM41: 0.0003665338168 | BN41: 0.0003853490732 | BO41: 0.0004037554113 | BP41: 0.0004217274737 | BQ41: 0.0004392666148 | BR41: 0.000456371472 | BS41: 0.0004730388606 | BT41: 0.0004892644487 | BU41: 0.000505043279 | BV41: 0.0005203701815 | BW41: 0.0005352433537 | BX41: 0.0005496748876 | BY41: 0.0005636821996 | BZ41: 0.000577285192 | CA41: 0.0005905064965 | CB41: 0.0006033716814 | CC41: 0.0006159094306 | CD41: 0.0006281516969 | CE41: 0.0006401338338 | CF41: 0.0006518947067 | CG41: 0.0006634767869 | CH41: 0.0006749262271
B42: 20 | C42: 3.968129313e-06 | D42: -0.0690638323 | E42: -0.09059185924 | F42: -0.1050487634 | G42: -0.1132113794 | H42: -0.1218657214 | I42: -0.1280716927 | J42: -0.1252162457 | K42: -0.1297529106 | L42: -0.1347072735 | M42: -0.1400749244 | N42: -0.1371429491 | O42: -0.1353830724 | P42: -0.1335024021 | Q42: -0.1343175828 | R42: -0.130441564 | S42: -0.1340038616 | T42: -0.1272847273 | U42: -0.1223473115 | V42: -0.1216856802 | W42: -0.1186260718 | X42: -0.1136053969 | Y42: -0.10891996 | Z42: -0.1020105692 | AA42: -0.1002458645 | AB42: -0.09533301318 | AC42: -0.09003820066 | AD42: -0.08457521774 | AE42: -0.08054836898 | AF42: -0.07316749832 | AG42: -0.068594108 | AH42: -0.06288306036 | AI42: -0.056969647 | AJ42: -0.05088681654 | AK42: -0.04458170342 | AL42: -0.03767832358 | AM42: -0.03109537423 | AN42: -0.02296504724 | AO42: -0.01537371939 | AP42: -0.007860727436 | AQ42: 0 | AS42: 0.002 | AU42: 5.679253295e-05 | AV42: 7.888089454e-05 | AW42: 9.797161266e-05 | AX42: 0.0001156359431 | AY42: 0.0001325240935 | AZ42: 0.0001490082245 | BA42: 0.0001653429466 | BB42: 0.0001817239242 | BC42: 0.0001983140306 | BD42: 0.000215256628 | BE42: 0.0002326829796 | BF42: 0.0002507167278 | BG42: 0.0002694351455 | BH42: 0.0002887466695 | BI42: 0.0003085172341 | BJ42: 0.0003286105986 | BK42: 0.0003488861585 | BL42: 0.0003691965876 | BM42: 0.0003893855247 | BN42: 0.0004092853701 | BO42: 0.000428748396 | BP42: 0.0004477482594 | BQ42: 0.0004662868253 | BR42: 0.0004843630469 | BS42: 0.0005019739188 | BT42: 0.000519115196 | BU42: 0.0005357819487 | BV42: 0.0005519690012 | BW42: 0.0005676747149 | BX42: 0.0005829121018 | BY42: 0.0005976997705 | BZ42: 0.0006120589299 | CA42: 0.0006260136462 | CB42: 0.0006395910635 | CC42: 0.0006528215925 | CD42: 0.0006657390731 | CE42: 0.0006783809134 | CF42: 0.0006907882079 | CG42: 0.0007030058355 | CH42: 0.00071508254
B43: 21 | C43: 3.968129313e-06 | D43: -0.06671663762 | E43: -0.08852174638 | F43: -0.1045931908 | G43: -0.1127764866 | H43: -0.1217991964 | I43: -0.1275734887 | J43: -0.1251708596 | K43: -0.1290697049 | L43: -0.1336935704 | M43: -0.1397982536 | N43: -0.1371390329 | O43: -0.1350284774 | P43: -0.1330521466 | Q43: -0.1338955528 | R43: -0.13020367 | S43: -0.13385921 | T43: -0.127054894 | U43: -0.1213642077 | V43: -0.1203626785 | W43: -0.118609923 | X43: -0.1125930906 | Y43: -0.1079957693 | Z43: -0.1009306914 | AA43: -0.1001392827 | AB43: -0.09518984286 | AC43: -0.0899223033 | AD43: -0.08433012095 | AE43: -0.08016880573 | AF43: -0.07286858833 | AG43: -0.0683066165 | AH43: -0.0627656266 | AI43: -0.05660359276 | AJ43: -0.05087452307 | AK43: -0.04449956582 | AL43: -0.03711588981 | AM43: -0.03104182152 | AN43: -0.02283408432 | AO43: -0.01531915024 | AP43: -0.007815263455 | AQ43: 0 | AS43: 0.0021 | AU43: 6.061085514e-05 | AV43: 8.408109897e-05 | AW43: 0.0001043446733 | AX43: 0.0001230799534 | AY43: 0.0001409810721 | AZ43: 0.0001584449007 | BA43: 0.0001757425637 | BB43: 0.0001930820736 | BC43: 0.0002106362887 | BD43: 0.0002285571083 | BE43: 0.0002469833952 | BF43: 0.0002660457614 | BG43: 0.0002858256611 | BH43: 0.0003062261243 | BI43: 0.0003271054206 | BJ43: 0.0003483196833 | BK43: 0.0003697205857 | BL43: 0.0003911528457 | BM43: 0.0004124517776 | BN43: 0.0004334409647 | BO43: 0.0004539650575 | BP43: 0.0004739967525 | BQ43: 0.0004935384539 | BR43: 0.0005125894557 | BS43: 0.0005311469545 | BT43: 0.0005492068124 | BU43: 0.0005667641455 | BV43: 0.0005838137896 | BW43: 0.0006003542861 | BX43: 0.0006163995839 | BY43: 0.0006319694999 | BZ43: 0.000647086564 | CA43: 0.0006617762909 | CB43: 0.0006760674128 | CC43: 0.0006899920792 | CD43: 0.0007035860278 | CE43: 0.0007168887313 | CF43: 0.0007299435219 | CG43: 0.0007427976951 | CH43: 0.000755502593
B44: 22 | C44: 3.968129313e-06 | D44: -0.06610703207 | E44: -0.08711428683 | F44: -0.1043406556 | G44: -0.1126605157 | H44: -0.1208087938 | I44: -0.12654085 | J44: -0.1240887041 | K44: -0.1287847878 | L44: -0.1335477935 | M44: -0.1392851852 | N44: -0.1370694219 | O44: -0.1346970371 | P44: -0.1315427183 | Q44: -0.1332760712 | R44: -0.1300927781 | S44: -0.1338538659 | T44: -0.1264687477 | U44: -0.1210588585 | V44: -0.1197697289 | W44: -0.1185172039 | X44: -0.1122520146 | Y44: -0.1068942298 | Z44: -0.1009084902 | AA44: -0.09991373091 | AB44: -0.09518757318 | AC44: -0.08968953732 | AD44: -0.08429596605 | AE44: -0.07996105082 | AF44: -0.07275380977 | AG44: -0.0679333618 | AH44: -0.06230228884 | AI44: -0.05651989351 | AJ44: -0.05082701681 | AK44: -0.04411659712 | AL44: -0.03710169995 | AM44: -0.03102865062 | AN44: -0.02276119778 | AO44: -0.01530724039 | AP44: -0.007794378714 | AQ44: 0 | AS44: 0.0022 | AU44: 6.449350925e-05 | AV44: 8.936224126e-05 | AW44: 0.0001108114475 | AX44: 0.0001306284775 | AY44: 0.0001495521237 | AZ44: 0.0001680043568 | BA44: 0.0001862730525 | BB44: 0.0002045787301 | BC44: 0.0002231043443 | BD44: 0.0002420104128 | BE44: 0.0002614434582 | BF44: 0.0002815411067 | BG44: 0.0003023890111 | BH44: 0.0003238847531 | BI44: 0.0003458788909 | BJ44: 0.0003682198932 | BK44: 0.0003907516814 | BL44: 0.0004133109931 | BM44: 0.0004357248001 | BN44: 0.0004578078538 | BO44: 0.0004793971795 | BP44: 0.0005004645375 | BQ44: 0.0005210128984 | BR44: 0.0005410419218 | BS44: 0.0005605490281 | BT44: 0.0005795302058 | BU44: 0.0005979806349 | BV44: 0.0006158951792 | BW44: 0.0006332725757 | BX44: 0.0006501277263 | BY44: 0.0006664816716 | BZ44: 0.0006823582766 | CA44: 0.0006977845176 | CB44: 0.0007127907274 | CC44: 0.0007274108049 | CD44: 0.0007416823959 | CE44: 0.0007556470474 | CF44: 0.0007693503383 | CG44: 0.0007828419878 | CH44: 0.0007961759439
B45: 23 | C45: 3.968129313e-06 | D45: -0.06608296152 | E45: -0.08685138353 | F45: -0.1041277706 | G45: -0.1126579735 | H45: -0.1205507508 | I45: -0.1261104162 | J45: -0.1240769682 | K45: -0.1275558147 | L45: -0.1333010514 | M45: -0.1378317377 | N45: -0.1367728802 | O45: -0.1339868662 | P45: -0.131534834 | Q45: -0.1331290561 | R45: -0.1293135298 | S45: -0.1318263403 | T45: -0.1251105204 | U45: -0.1208945341 | V45: -0.1185306459 | W45: -0.1183804509 | X45: -0.1114956504 | Y45: -0.1055491599 | Z45: -0.1008373757 | AA45: -0.09970743521 | AB45: -0.09418364031 | AC45: -0.08966913515 | AD45: -0.08416176639 | AE45: -0.07927213478 | AF45: -0.07228540457 | AG45: -0.06779065904 | AH45: -0.06205914578 | AI45: -0.05616832103 | AJ45: -0.05046678455 | AK45: -0.04382591305 | AL45: -0.03706852966 | AM45: -0.03091123957 | AN45: -0.02267069736 | AO45: -0.01530414082 | AP45: -0.007787560099 | AQ45: 0 | AS45: 0.0023 | AU45: 6.843879767e-05 | AV45: 9.472208239e-05 | AW45: 0.0001173692622 | AX45: 0.000138278464 | AY45: 0.0001582338543 | AZ45: 0.0001776828799 | BA45: 0.0001969303981 | BB45: 0.0002162095886 | BC45: 0.0002357136109 | BD45: 0.0002556116796 | BE45: 0.0002760580352 | BF45: 0.0002971973604 | BG45: 0.0003191195245 | BH45: 0.0003417166205 | BI45: 0.0003648314504 | BJ45: 0.0003883047824 | BK45: 0.0004119727571 | BL45: 0.0004356641096 | BM45: 0.0004591974513 | BN45: 0.0004823786891 | BO45: 0.0005050372194 | BP45: 0.0005271438899 | BQ45: 0.0005487022649 | BR45: 0.0005697123929 | BS45: 0.0005901719387 | BT45: 0.0006100770368 | BU45: 0.0006294229482 | BV45: 0.0006482045804 | BW45: 0.0006664208813 | BX45: 0.0006840877214 | BY45: 0.0007012273796 | BZ45: 0.0007178650698 | CA45: 0.0007340292426 | CB45: 0.0007497518423 | CC45: 0.0007650685285 | CD45: 0.0007800188651 | CE45: 0.000794646482 | CF45: 0.000808999213 | CG45: 0.0008231292088 | CH45: 0.0008370930301
B46: 24 | C46: 3.968129313e-06 | D46: -0.06587825489 | E46: -0.08678183187 | F46: -0.103205446 | G46: -0.111184609 | H46: -0.1204870665 | I46: -0.125145813 | J46: -0.123424471 | K46: -0.1266604591 | L46: -0.1325850538 | M46: -0.1371290733 | N46: -0.136390308 | O46: -0.1328139105 | P46: -0.1303483362 | Q46: -0.1326681764 | R46: -0.129234509 | S46: -0.13169325 | T46: -0.1249130063 | U46: -0.1207553743 | V46: -0.118461578 | W46: -0.118160208 | X46: -0.1114511315 | Y46: -0.1046638372 | Z46: -0.1005345144 | AA46: -0.09928978425 | AB46: -0.093872214 | AC46: -0.08958864741 | AD46: -0.0840863196 | AE46: -0.07887466591 | AF46: -0.07190128228 | AG46: -0.06729673715 | AH46: -0.06197442033 | AI46: -0.05597086695 | AJ46: -0.05018931672 | AK46: -0.04373748342 | AL46: -0.03700691285 | AM46: -0.03056247359 | AN46: -0.02259362037 | AO46: -0.01522362355 | AP46: -0.007755708404 | AQ46: 0 | AS46: 0.0024 | AU46: 7.24451452e-05 | AV46: 0.0001001585467 | AW46: 0.0001240156409 | AX46: 0.0001460270879 | AY46: 0.0001670231225 | AZ46: 0.0001874770347 | BA46: 0.0002077108872 | BB46: 0.0002279706692 | BC46: 0.0002484598496 | BD46: 0.0002693564162 | BE46: 0.0002908223837 | BF46: 0.0003130095326 | BG46: 0.0003360119653 | BH46: 0.0003597162478 | BI46: 0.0003839573829 | BJ46: 0.0004085684039 | BK46: 0.0004333776437 | BL46: 0.0004582058134 | BM46: 0.0004828631479 | BN46: 0.0005071466969 | BO46: 0.0005308782257 | BP46: 0.0005540276926 | BQ46: 0.000576599281 | BR46: 0.0005985934513 | BS46: 0.0006200081335 | BT46: 0.000640839626 | BU46: 0.0006610832879 | BV46: 0.0006807340858 | BW46: 0.0006997911927 | BX46: 0.000718271463 | BY46: 0.0007361984282 | BZ46: 0.0007535986642 | CA46: 0.0007705021077 | CB46: 0.0007869423261 | CC46: 0.0008029567498 | CD46: 0.0008185868698 | CE46: 0.0008338784082 | CF46: 0.0008488814611 | CG46: 0.0008636506183 | CH46: 0.0008782450591
B47: 25 | C47: 3.968129313e-06 | D47: -0.06558266257 | E47: -0.08645806634 | F47: -0.1030579803 | G47: -0.1103850581 | H47: -0.1199750443 | I47: -0.12412133 | J47: -0.1223920437 | K47: -0.1251835746 | L47: -0.1325766589 | M47: -0.1368276967 | N47: -0.1360266119 | O47: -0.132571041 | P47: -0.1299740071 | Q47: -0.1321703802 | R47: -0.1291896347 | S47: -0.13054257 | T47: -0.123608955 | U47: -0.1201655604 | V47: -0.1183453111 | W47: -0.1173942306 | X47: -0.1106612052 | Y47: -0.1041741077 | Z47: -0.1001828335 | AA47: -0.0973654869 | AB47: -0.09350003326 | AC47: -0.08846637746 | AD47: -0.08390462459 | AE47: -0.0781821393 | AF47: -0.07179378363 | AG47: -0.06724893736 | AH47: -0.06162230777 | AI47: -0.05570292014 | AJ47: -0.05013931235 | AK47: -0.04365762999 | AL47: -0.03697623475 | AM47: -0.03030693793 | AN47: -0.0225504964 | AO47: -0.01508522656 | AP47: -0.007709031111 | AQ47: 0 | AS47: 0.0025 | AU47: 7.651108544e-05 | AV47: 0.0001056697037 | AW47: 0.0001307482817 | AX47: 0.0001538717241 | AY47: 0.0001759170111 | AZ47: 0.0001973836323 | BA47: 0.0002186110737 | BB47: 0.0002398582791 | BC47: 0.0002613391286 | BD47: 0.000283240457 | BE47: 0.0003057321076 | BF47: 0.0003289729988 | BG47: 0.000353061482 | BH47: 0.0003778785599 | BI47: 0.0004032513946 | BJ47: 0.0004290052518 | BK47: 0.0004549606308 | BL47: 0.0004809301986 | BM47: 0.0005067157983 | BN47: 0.0005321056111 | BO47: 0.0005569137692 | BP47: 0.0005811093636 | BQ47: 0.0006046972225 | BR47: 0.00062767824 | BS47: 0.0006500506313 | BT47: 0.0006718108765 | BU47: 0.0006929544489 | BV47: 0.000713476389 | BW47: 0.0007333761096 | BX47: 0.0007526714631 | BY47: 0.0007713872476 | BZ47: 0.0007895514134 | CA47: 0.000807195395 | CB47: 0.0008243543938 | CC47: 0.0008410676204 | CD47: 0.0008573785027 | CE47: 0.0008733348625 | CF47: 0.0008889890664 | CG47: 0.0009043981496 | CH47: 0.0009196239164
B48: 26 | C48: 3.968129313e-06 | D48: -0.06524562622 | E48: -0.08573262479 | F48: -0.1028706646 | G48: -0.1103832703 | H48: -0.1194333728 | I48: -0.124044583 | J48: -0.122341638 | K48: -0.1251396458 | L48: -0.1312544411 | M48: -0.1367092548 | N48: -0.1343339611 | O48: -0.1325131797 | P48: -0.1298399386 | Q48: -0.1319541506 | R48: -0.1286577438 | S48: -0.1292553104 | T48: -0.1235096988 | U48: -0.1187974532 | V48: -0.1182873242 | W48: -0.1172814166 | X48: -0.1105454084 | Y48: -0.1032644748 | Z48: -0.1001749631 | AA48: -0.09709958096 | AB48: -0.09347677169 | AC48: -0.08800345009 | AD48: -0.08330631698 | AE48: -0.07809986647 | AF48: -0.07161141616 | AG48: -0.06708606671 | AH48: -0.06161425812 | AI48: -0.05551362284 | AJ48: -0.04999456159 | AK48: -0.0436017178 | AL48: -0.03686790231 | AM48: -0.0301946698 | AN48: -0.02249809475 | AO48: -0.01506750872 | AP48: -0.007701831618 | AQ48: 0 | AS48: 0.0026 | AU48: 8.063524912e-05 | AV48: 0.0001112537522 | AW48: 0.0001375650384 | AX48: 0.0001618099265 | AY48: 0.0001849128022 | AZ48: 0.0002073997027 | BA48: 0.0002296277494 | BB48: 0.0002518689815 | BC48: 0.0002743477895 | BD48: 0.0002972599271 | BE48: 0.0003207831187 | BF48: 0.0003450834594 | BG48: 0.0003702635655 | BH48: 0.0003961988407 | BI48: 0.0004227085672 | BJ48: 0.0004496102118 | BK48: 0.0004767164152 | BL48: 0.0005038317816 | BM48: 0.0005307497477 | BN48: 0.000557249616 | BO48: 0.0005831378836 | BP48: 0.0006083827964 | BQ48: 0.0006329898516 | BR48: 0.000656960399 | BS48: 0.0006802929577 | BT48: 0.0007029842072 | BU48: 0.0007250297506 | BV48: 0.0007464247172 | BW48: 0.0007671687727 | BX48: 0.000787280782 | BY48: 0.0008067868227 | BZ48: 0.000825716232 | CA48: 0.0008441019535 | CB48: 0.0008619808328 | CC48: 0.0008793938703 | CD48: 0.0008963864392 | CE48: 0.0009130084694 | CF48: 0.0009293146048 | CG48: 0.0009453643327 | CH48: 0.0009612220884
B49: 27 | C49: 3.968129313e-06 | D49: -0.06509672756 | E49: -0.08555395892 | F49: -0.1027800903 | G49: -0.1102636041 | H49: -0.1190238947 | I49: -0.1234558875 | J49: -0.1221211607 | K49: -0.1247390464 | L49: -0.131180572 | M49: -0.1363314752 | N49: -0.134088788 | O49: -0.1323769922 | P49: -0.1296883976 | Q49: -0.1317602217 | R49: -0.1286231086 | S49: -0.1286272101 | T49: -0.1234671792 | U49: -0.1187375721 | V49: -0.1176696015 | W49: -0.1168799466 | X49: -0.1103068347 | Y49: -0.1032115557 | Z49: -0.09994605263 | AA49: -0.09704303619 | AB49: -0.09282738361 | AC49: -0.08704037315 | AD49: -0.0831322321 | AE49: -0.07776321328 | AF49: -0.07075070809 | AG49: -0.06706764343 | AH49: -0.06128482363 | AI49: -0.05521992134 | AJ49: -0.04986275419 | AK49: -0.04350661059 | AL49: -0.03685572258 | AM49: -0.03012676296 | AN49: -0.02223030662 | AO49: -0.01494972075 | AP49: -0.007641561447 | AQ49: 0 | AS49: 0.0027 | AU49: 8.481635413e-05 | AV49: 0.0001169090071 | AW49: 0.0001444639038 | AX49: 0.0001698394086 | AY49: 0.0001940079565 | AZ49: 0.000217522472 | BA49: 0.0002407579187 | BB49: 0.0002639995684 | BC49: 0.0002874824185 | BD49: 0.0003114112113 | BE49: 0.0003359716038 | BF49: 0.0003613369052 | BG49: 0.0003876140119 | BH49: 0.0004146726945 | BI49: 0.0004423243177 | BJ49: 0.0004703785189 | BK49: 0.0004986400573 | BL49: 0.0005269054557 | BM49: 0.0005549597312 | BN49: 0.0005825732975 | BO49: 0.0006095450159 | BP49: 0.0006358423081 | BQ49: 0.0006614713645 | BR49: 0.0006864340113 | BS49: 0.0007107290904 | BT49: 0.0007343534973 | BU49: 0.0007573029808 | BV49: 0.0007795727724 | BW49: 0.0008011628044 | BX49: 0.0008220929677 | BY49: 0.0008423906325 | BZ49: 0.0008620865346 | CA49: 0.0008812151374 | CB49: 0.0008998149406 | CC49: 0.0009179287439 | CD49: 0.0009356038738 | CE49: 0.0009528923762 | CF49: 0.0009698511793 | CG49: 0.0009865422287 | CH49: 0.001003032596
B50: 28 | C50: 3.968129313e-06 | D50: -0.06449648459 | E50: -0.08551660934 | F50: -0.1025267918 | G50: -0.1092411477 | H50: -0.1187902926 | I50: -0.1215085178 | J50: -0.1215499537 | K50: -0.1247293081 | L50: -0.130777705 | M50: -0.1357925442 | N50: -0.1332373564 | O50: -0.1316156928 | P50: -0.1294167562 | Q50: -0.1309454135 | R50: -0.1283606426 | S50: -0.1277041122 | T50: -0.1234177682 | U50: -0.1179709079 | V50: -0.1176350171 | W50: -0.1165353473 | X50: -0.1098927321 | Y50: -0.1031592233 | Z50: -0.09983969091 | AA50: -0.09564060938 | AB50: -0.09254597746 | AC50: -0.08681975292 | AD50: -0.08302231989 | AE50: -0.07744706461 | AF50: -0.07066673679 | AG50: -0.06652679772 | AH50: -0.06119850292 | AI50: -0.05465313717 | AJ50: -0.04972583336 | AK50: -0.04322742509 | AL50: -0.03676497932 | AM50: -0.03001489836 | AN50: -0.02219555161 | AO50: -0.01473487061 | AP50: -0.007558024511 | AQ50: 0 | AS50: 0.0028 | AU50: 8.905319689e-05 | AV50: 0.0001226338878 | AW50: 0.0001514429966 | AX50: 0.0001779580279 | AY50: 0.0002032000956 | AZ50: 0.000227749343 | BA50: 0.0002519987774 | BB50: 0.0002762470376 | BC50: 0.0003007398215 | BD50: 0.0003256909281 | BE50: 0.0003512939968 | BF50: 0.0003777295874 | BG50: 0.0004051088912 | BH50: 0.0004332960133 | BI50: 0.0004620943637 | BJ50: 0.0004913057221 | BK50: 0.0005207269433 | BL50: 0.0005501464522 | BM50: 0.0005793408329 | BN50: 0.0006080716017 | BO50: 0.0006361299829 | BP50: 0.0006634825954 | BQ50: 0.0006901363456 | BR50: 0.0007160935566 | BS50: 0.0007413534114 | BT50: 0.0007659130381 | BU50: 0.0007897683456 | BV50: 0.0008129146818 | BW50: 0.0008353522584 | BX50: 0.0008571020055 | BY50: 0.0008781925984 | BZ50: 0.0008986561827 | CA50: 0.0009185287525 | CB50: 0.0009378504708 | CC50: 0.0009566659458 | CD50: 0.0009750244654 | CE50: 0.0009929801985 | CF50: 0.001010592364 | CG50: 0.001027925373 | CH50: 0.001045048938
B51: 29 | C51: 3.968129313e-06 | D51: -0.06432840115 | E51: -0.08551596946 | F51: -0.1019875464 | G51: -0.1090866808 | H51: -0.1180373062 | I51: -0.1213422558 | J51: -0.1205608808 | K51: -0.1242370105 | L51: -0.1304528092 | M51: -0.1352585538 | N51: -0.1322771677 | O51: -0.1294498959 | P51: -0.1288344306 | Q51: -0.1302503437 | R51: -0.1282343778 | S51: -0.1273776121 | T51: -0.1229070352 | U51: -0.1179282611 | V51: -0.1171897387 | W51: -0.1154863102 | X51: -0.1094197106 | Y51: -0.1030893206 | Z51: -0.09972681389 | AA51: -0.09508351381 | AB51: -0.09242009135 | AC51: -0.08625658864 | AD51: -0.08275522551 | AE51: -0.0771341241 | AF51: -0.07060196439 | AG51: -0.06614655017 | AH51: -0.06116032213 | AI51: -0.05457213171 | AJ51: -0.04951318386 | AK51: -0.04282159676 | AL51: -0.03664455404 | AM51: -0.02978005423 | AN51: -0.02216729649 | AO51: -0.01459736968 | AP51: -0.007556810981 | AQ51: 0 | AS51: 0.0029 | AU51: 9.334464491e-05 | AV51: 0.000128426908 | AW51: 0.0001585005486 | AX51: 0.0001861637716 | AY51: 0.0002124869858 | AZ51: 0.000238077877 | BA51: 0.0002633476936 | BB51: 0.0002886085719 | BC51: 0.0003141170022 | BD51: 0.0003400959061 | BE51: 0.0003667469541 | BF51: 0.0003942579921 | BG51: 0.0004227445207 | BH51: 0.0004520649477 | BI51: 0.0004820146935 | BJ51: 0.0005123876524 | BK51: 0.0005429727531 | BL51: 0.0005735503062 | BM51: 0.0006038884514 | BN51: 0.0006337397984 | BO51: 0.0006628879347 | BP51: 0.0006912986963 | BQ51: 0.0007189797286 | BR51: 0.0007459338714 | BS51: 0.0007721606666 | BT51: 0.0007976574908 | BU51: 0.0008224204278 | BV51: 0.0008464449548 | BW51: 0.0008697315759 | BX51: 0.0008923022731 | BY51: 0.0009141870387 | BZ51: 0.0009354194396 | CA51: 0.0009560370102 | CB51: 0.0009760815869 | CC51: 0.0009955995942 | CD51: 0.001014642289 | CE51: 0.001033265972 | CF51: 0.001051532158 | CG51: 0.001069507728 | CH51: 0.001087265043
B52: 30 | C52: 3.968129313e-06 | D52: -0.06394838107 | E52: -0.08522524913 | F52: -0.1012300751 | G52: -0.1090444239 | H52: -0.1176440505 | I52: -0.1203543203 | J52: -0.120555418 | K52: -0.1240222769 | L52: -0.1301936617 | M52: -0.1346010349 | N52: -0.1322649293 | O52: -0.128850045 | P52: -0.1287723008 | Q52: -0.1289679159 | R52: -0.1282217444 | S52: -0.1273635681 | T52: -0.121579613 | U52: -0.117902963 | V52: -0.1163250101 | W52: -0.1149049598 | X52: -0.1091680611 | Y52: -0.1021674968 | Z52: -0.09843778976 | AA52: -0.09460835259 | AB52: -0.09232571816 | AC52: -0.0860941909 | AD52: -0.08242071539 | AE52: -0.0768819025 | AF52: -0.06999473905 | AG52: -0.06614183233 | AH52: -0.0611364599 | AI52: -0.05446128422 | AJ52: -0.0494723432 | AK52: -0.04281460485 | AL52: -0.03662435217 | AM52: -0.02970289414 | AN52: -0.02213065701 | AO52: -0.01453902405 | AP52: -0.007556167347 | AQ52: 0 | AS52: 0.003 | AU52: 9.768963016e-05 | AV52: 0.0001342866671 | AW52: 0.0001656348943 | AX52: 0.0001944547449 | AY52: 0.000221866525 | AZ52: 0.0002485057799 | BA52: 0.0002748021918 | BB52: 0.0003010815224 | BC52: 0.0003276111436 | BD52: 0.0003546231644 | BE52: 0.0003823273336 | BF52: 0.0004109188177 | BG52: 0.0004405174408 | BH52: 0.0004709758828 | BI52: 0.0005020815404 | BJ52: 0.0005336203958 | BK52: 0.0005653734315 | BL52: 0.000597112828 | BM52: 0.000628598269 | BN52: 0.0006595734502 | BO52: 0.0006898143218 | BP52: 0.0007192859572 | BQ52: 0.0007479967627 | BR52: 0.0007759501145 | BS52: 0.0008031459304 | BT52: 0.0008295818512 | BU52: 0.0008552541497 | BV52: 0.0008801584458 | BW52: 0.0009042955478 | BX52: 0.0009276885023 | BY52: 0.0009503686304 | BZ52: 0.0009723709309 | CA52: 0.0009937344886 | CB52: 0.001014502822 | CC52: 0.00103472418 | CD52: 0.001054451798 | CE52: 0.001073744111 | CF52: 0.00109266494 | CG52: 0.001111283641 | CH52: 0.001129675225
B53: 31 | C53: 3.968129313e-06 | D53: -0.06333592363 | E53: -0.08431434724 | F53: -0.1007272312 | G53: -0.1082948054 | H53: -0.1162184157 | I53: -0.1196745758 | J53: -0.1204043085 | K53: -0.1238681561 | L53: -0.130127107 | M53: -0.1339651456 | N53: -0.1319851448 | O53: -0.1286287827 | P53: -0.1282314408 | Q53: -0.1286143384 | R53: -0.1274200221 | S53: -0.1261928166 | T53: -0.1201330066 | U53: -0.1176531692 | V53: -0.1161458468 | W53: -0.1147463072 | X53: -0.1089998993 | Y53: -0.1019430719 | Z53: -0.09826531717 | AA53: -0.09458213717 | AB53: -0.0921180464 | AC53: -0.08563559779 | AD53: -0.08210211283 | AE53: -0.07658963035 | AF53: -0.06968006163 | AG53: -0.06608385596 | AH53: -0.06095476711 | AI53: -0.05400676305 | AJ53: -0.04945647177 | AK53: -0.04262459653 | AL53: -0.03638211647 | AM53: -0.02967503401 | AN53: -0.02185281684 | AO53: -0.01452383401 | AP53: -0.007548166135 | AQ53: 0 | AS53: 0.0031 | AU53: 0.0001020871434 | AV53: 0.0001402118427 | AW53: 0.0001728444619 | AX53: 0.0002028291599 | AY53: 0.0002313367303 | AZ53: 0.0002590308883 | BA53: 0.0002863599384 | BB53: 0.0003136633925 | BC53: 0.0003412195915 | BD53: 0.000369269895 | BE53: 0.0003980321761 | BF53: 0.0004277089556 | BG53: 0.0004584243947 | BH53: 0.0004900254159 | BI53: 0.0005222913596 | BJ53: 0.00055500027 | BK53: 0.0005879251638 | BL53: 0.0006208300766 | BM53: 0.0006534662256 | BN53: 0.0006855683847 | BO53: 0.0007169048673 | BP53: 0.0007474400039 | BQ53: 0.0007771829831 | BR53: 0.0008061377362 | BS53: 0.0008343045743 | BT53: 0.0008616814176 | BU53: 0.0008882647415 | BV53: 0.0009140503213 | BW53: 0.0009390392816 | BX53: 0.0009632557457 | BY53: 0.0009867323748 | BZ53: 0.00100950561 | CA53: 0.001031616096 | CB53: 0.001053109043 | CC53: 0.001074034532 | CD53: 0.001094447782 | CE53: 0.001114409373 | CF53: 0.001133985435 | CG53: 0.001153247805 | CH53: 0.00117227415
B54: 32 | C54: 3.968129313e-06 | D54: -0.06311920528 | E54: -0.08402270556 | F54: -0.1007044855 | G54: -0.1082871304 | H54: -0.1156729343 | I54: -0.1195449234 | J54: -0.1198203466 | K54: -0.1226610096 | L54: -0.1295707318 | M54: -0.13390554 | N54: -0.1318895421 | O54: -0.1284464029 | P54: -0.1280650986 | Q54: -0.1285642975 | R54: -0.1272538463 | S54: -0.1260368994 | T54: -0.1199839785 | U54: -0.1174102001 | V54: -0.1158140806 | W54: -0.1145945227 | X54: -0.1085403448 | Y54: -0.1017152678 | Z54: -0.09801504948 | AA54: -0.09373082237 | AB54: -0.09175701816 | AC54: -0.0852294509 | AD54: -0.08198065839 | AE54: -0.07644491708 | AF54: -0.0693905013 | AG54: -0.066053787 | AH54: -0.06065248249 | AI54: -0.05393313323 | AJ54: -0.04931526723 | AK54: -0.04252823502 | AL54: -0.0361591188 | AM54: -0.02938706837 | AN54: -0.02184512965 | AO54: -0.0145235726 | AP54: -0.007538143661 | AQ54: 0 | AS54: 0.0032 | AU54: 0.0001065362292 | AV54: 0.0001462011834 | AW54: 0.0001801277649 | AX54: 0.0002112853265 | AY54: 0.0002408957281 | AZ54: 0.0002696511585 | BA54: 0.0002980187293 | BB54: 0.0003263518248 | BC54: 0.0003549398402 | BD54: 0.0003840334475 | BE54: 0.0004138586889 | BF54: 0.0004446254725 | BG54: 0.0004764623101 | BH54: 0.0005092103379 | BI54: 0.0005426408084 | BJ54: 0.0005765238033 | BK54: 0.0006106243543 | BL54: 0.0006446983381 | BM54: 0.000678488495 | BN54: 0.0007117206708 | BO54: 0.0007441555422 | BP54: 0.000775756716 | BQ54: 0.0008065341844 | BR54: 0.0008364924524 | BS54: 0.0008656322407 | BT54: 0.0008939517636 | BU54: 0.000921447713 | BV54: 0.0009481160317 | BW54: 0.0009739581725 | BX54: 0.0009989993471 | BY54: 0.001023273568 | BZ54: 0.001046818729 | CA54: 0.001069677044 | CB54: 0.001091895422 | CC54: 0.001113525785 | CD54: 0.001134625344 | CE54: 0.001155256827 | CF54: 0.001175488682 | CG54: 0.00119539523 | CH54: 0.001215056801
B55: 33 | C55: 3.968129313e-06 | D55: -0.06300007225 | E55: -0.08311613403 | F55: -0.1005877135 | G55: -0.1074480047 | H55: -0.1155409192 | I55: -0.1190668115 | J55: -0.1193065555 | K55: -0.1222234609 | L55: -0.1290101809 | M55: -0.1337956675 | N55: -0.1313378689 | O55: -0.1281793657 | P55: -0.1274291611 | Q55: -0.1283955798 | R55: -0.1260039604 | S55: -0.1247925671 | T55: -0.1194747027 | U55: -0.1168647697 | V55: -0.1155292384 | W55: -0.1139350153 | X55: -0.1082502348 | Y55: -0.1016603364 | Z55: -0.09757309715 | AA55: -0.09293362986 | AB55: -0.0910204657 | AC55: -0.08518305123 | AD55: -0.08196226998 | AE55: -0.07629677615 | AF55: -0.06938135957 | AG55: -0.06592653507 | AH55: -0.0606440476 | AI55: -0.05352522358 | AJ55: -0.04924272353 | AK55: -0.0424015655 | AL55: -0.03604958959 | AM55: -0.02925140639 | AN55: -0.02184346435 | AO55: -0.01447299128 | AP55: -0.007514367053 | AQ55: 0 | AS55: 0.0033 | AU55: 0.0001110359813 | AV55: 0.0001522535033 | AW55: 0.000187483395 | AX55: 0.0002198216442 | AY55: 0.0002505417443 | AZ55: 0.0002803646561 | BA55: 0.0003097764788 | BB55: 0.0003391445888 | BC55: 0.0003687695197 | BD55: 0.0003989113154 | BE55: 0.0004298042318 | BF55: 0.0004616655959 | BG55: 0.0004946282833 | BH55: 0.0005285276164 | BI55: 0.0005631267289 | BJ55: 0.0005981877161 | BK55: 0.0006334676067 | BL55: 0.0006687141051 | BM55: 0.0007036614649 | BN55: 0.0007380265975 | BO55: 0.0007715625436 | BP55: 0.0008042322052 | BQ55: 0.0008360463986 | BR55: 0.0008670102208 | BS55: 0.000897124818 | BT55: 0.0009263887135 | BU55: 0.0009547988287 | BV55: 0.0009823512862 | BW55: 0.001009047878 | BX55: 0.001034914916 | BY55: 0.001059987775 | BZ55: 0.001084305811 | CA55: 0.001107912816 | CB55: 0.001130857406 | CC55: 0.001153193353 | CD55: 0.001174979864 | CE55: 0.001196281826 | CF55: 0.001217170005 | CG55: 0.001237721215 | CH55: 0.001258018451
B56: 34 | C56: 3.968129313e-06 | D56: -0.06285844361 | E56: -0.08301056712 | F56: -0.1003411387 | G56: -0.1073396121 | H56: -0.1150435617 | I56: -0.1188370311 | J56: -0.1192837021 | K56: -0.1222082132 | L56: -0.1289963212 | M56: -0.1315864138 | N56: -0.1312592624 | O56: -0.1278394247 | P56: -0.1273523442 | Q56: -0.1265607233 | R56: -0.1259435389 | S56: -0.1238558527 | T56: -0.1192213292 | U56: -0.1167489298 | V56: -0.115107908 | W56: -0.1138961641 | X56: -0.1081950106 | Y56: -0.1016024055 | Z56: -0.09703204598 | AA56: -0.0924915234 | AB56: -0.09085817031 | AC56: -0.08506433089 | AD56: -0.0813453434 | AE56: -0.07610437747 | AF56: -0.06913683378 | AG56: -0.06587340347 | AH56: -0.06060250934 | AI56: -0.05340985219 | AJ56: -0.04913112751 | AK56: -0.04236036791 | AL56: -0.03580375167 | AM56: -0.02918832536 | AN56: -0.0218016629 | AO56: -0.01442050035 | AP56: -0.007492468535 | AQ56: 0 | AS56: 0.0034 | AU56: 0.0001155855386 | AV56: 0.0001583676762 | AW56: 0.0001949100157 | AX56: 0.0002284365944 | AY56: 0.0002602730965 | AZ56: 0.0002911695468 | BA56: 0.0003216312096 | BB56: 0.0003520395709 | BC56: 0.000382706384 | BD56: 0.0004139011242 | BE56: 0.0004458663038 | BF56: 0.0004788267001 | BG56: 0.0005129195652 | BH56: 0.0005479743808 | BI56: 0.0005837461321 | BJ56: 0.0006199889052 | BK56: 0.0006564517081 | BL56: 0.0006928740598 | BM56: 0.0007289817186 | BN56: 0.0007644826551 | BO56: 0.0007991222754 | BP56: 0.000832862795 | BQ56: 0.0008657158744 | BR56: 0.0008976872203 | BS56: 0.0009287784205 | BT56: 0.0009589883212 | BU56: 0.0009883140864 | BV56: 0.00101675203 | BW56: 0.001044304295 | BX56: 0.001070998305 | BY56: 0.001096870806 | BZ56: 0.001121962627 | CA56: 0.001146319147 | CB56: 0.001169990698 | CC56: 0.001193032906 | CD56: 0.001215506984 | CE56: 0.001237479981 | CF56: 0.00125902499 | CG56: 0.00128022132 | CH56: 0.001301154635
B57: 35 | C57: 3.968129313e-06 | D57: -0.06272620116 | E57: -0.08294180384 | F57: -0.1001933944 | G57: -0.1072474896 | H57: -0.1149344669 | I57: -0.1182542021 | J57: -0.1189427279 | K57: -0.1221476489 | L57: -0.1285293993 | M57: -0.1308610683 | N57: -0.1310007027 | O57: -0.1276102983 | P57: -0.1271102507 | Q57: -0.1253601969 | R57: -0.1259233131 | S57: -0.1237730107 | T57: -0.1191619656 | U57: -0.1167057033 | V57: -0.1149626809 | W57: -0.113038911 | X57: -0.1079818367 | Y57: -0.100546796 | Z57: -0.09697566348 | AA57: -0.09236762572 | AB57: -0.09032353341 | AC57: -0.08494376299 | AD57: -0.08129114365 | AE57: -0.07577248646 | AF57: -0.06912115335 | AG57: -0.06575718484 | AH57: -0.06059180623 | AI57: -0.05334102409 | AJ57: -0.0489791205 | AK57: -0.04230362295 | AL57: -0.03566804082 | AM57: -0.02911098891 | AN57: -0.02171133167 | AO57: -0.01439248501 | AP57: -0.007444537738 | AQ57: 0 | AS57: 0.0035 | AU57: 0.0001201840821 | AV57: 0.0001645426313 | AW57: 0.0002024063565 | AX57: 0.0002371287342 | AY57: 0.0002700881864 | AZ57: 0.0003020640888 | BA57: 0.0003335810446 | BB57: 0.0003650347645 | BC57: 0.0003967483019 | BD57: 0.0004290006208 | BE57: 0.0004620425323 | BF57: 0.0004961062945 | BG57: 0.0005313335485 | BH57: 0.0005675479091 | BI57: 0.0006044961844 | BJ57: 0.0006419244288 | BK57: 0.0006795736129 | BL57: 0.0007171750582 | BM57: 0.0007544460188 | BN57: 0.000791085519 | BO57: 0.0008268313313 | BP57: 0.0008616450033 | BQ57: 0.0008955390592 | BR57: 0.0009285198329 | BS57: 0.000960589369 | BT57: 0.000991746851 | BU57: 0.001021989698 | BV57: 0.001051314427 | BW57: 0.001079723541 | BX57: 0.001107245588 | BY57: 0.001133918697 | BZ57: 0.001159785176 | CA57: 0.001184892002 | CB57: 0.001209291229 | CC57: 0.001233040346 | CD57: 0.001256202578 | CE57: 0.001278847142 | CF57: 0.001301049461 | CG57: 0.001322891346 | CH57: 0.001344461134
B58: 36 | C58: 3.968129313e-06 | D58: -0.06261278405 | E58: -0.08284963549 | F58: -0.09999282857 | G58: -0.1068741608 | H58: -0.1148728058 | I58: -0.1180199018 | J58: -0.1180623148 | K58: -0.1212109836 | L58: -0.1282537804 | M58: -0.1297691162 | N58: -0.1309049036 | O58: -0.1272921195 | P58: -0.1268259056 | Q58: -0.1253590117 | R58: -0.1259196858 | S58: -0.1215470984 | T58: -0.1191310558 | U58: -0.1166022837 | V58: -0.1143989804 | W58: -0.1128173626 | X58: -0.1078900997 | Y58: -0.1005290031 | Z58: -0.09682302843 | AA58: -0.09227034374 | AB58: -0.08985838043 | AC58: -0.08487355141 | AD58: -0.08022672146 | AE58: -0.07574506031 | AF58: -0.06909346026 | AG58: -0.06546131884 | AH58: -0.05982137591 | AI58: -0.05329215771 | AJ58: -0.04886973639 | AK58: -0.0419289333 | AL58: -0.03564922345 | AM58: -0.0290851159 | AN58: -0.02168392217 | AO58: -0.0143544261 | AP58: -0.007419975278 | AQ58: 0 | AS58: 0.0036 | AU58: 0.0001248308309 | AV58: 0.0001707773489 | AW58: 0.0002099712081 | AX58: 0.0002458966906 | AY58: 0.0002799854934 | AZ58: 0.0003130466251 | BA58: 0.0003456241987 | BB58: 0.000378128262 | BC58: 0.0004108932472 | BD58: 0.000444207664 | BE58: 0.0004783306629 | BF58: 0.000513502013 | BG58: 0.0005498677565 | BH58: 0.0005872456161 | BI58: 0.000625374195 | BJ58: 0.000663991494 | BK58: 0.0007028304305 | BL58: 0.0007416141162 | BM58: 0.0007800512931 | BN58: 0.0008178320342 | BO58: 0.0008546864798 | BP58: 0.0008905755269 | BQ58: 0.0009255125834 | BR58: 0.0009595046271 | BS58: 0.0009925541747 | BT58: 0.00102466076 | BU58: 0.00105582207 | BV58: 0.001086034837 | BW58: 0.001115301935 | BX58: 0.001143653045 | BY58: 0.001171127689 | BZ58: 0.001197769666 | CA58: 0.001223627556 | CB58: 0.001248755146 | CC58: 0.001273211793 | CD58: 0.001297062739 | CE58: 0.001320379375 | CF58: 0.001343239462 | CG58: 0.001365727315 | CH58: 0.001387933949
B59: 37 | C59: 3.968129313e-06 | D59: -0.06224907655 | E59: -0.08281145893 | F59: -0.09978704685 | G59: -0.1065942962 | H59: -0.1147242331 | I59: -0.1176888536 | J59: -0.1176442283 | K59: -0.1210344811 | L59: -0.1275705415 | M59: -0.1296876658 | N59: -0.1305060479 | O59: -0.1269117009 | P59: -0.126535601 | Q59: -0.1248301199 | R59: -0.124852082 | S59: -0.1214214688 | T59: -0.1190600989 | U59: -0.116577547 | V59: -0.1143795962 | W59: -0.1119683247 | X59: -0.1077868691 | Y59: -0.1001189666 | Z59: -0.09662174266 | AA59: -0.0919074467 | AB59: -0.0896344009 | AC59: -0.08470197787 | AD59: -0.07993903766 | AE59: -0.07558724579 | AF59: -0.0689165068 | AG59: -0.06545155125 | AH59: -0.05953503483 | AI59: -0.05324842927 | AJ59: -0.04882489554 | AK59: -0.04189449326 | AL59: -0.03558494407 | AM59: -0.02900049316 | AN59: -0.02161200685 | AO59: -0.01433659386 | AP59: -0.007406251757 | AQ59: 0 | AS59: 0.0037 | AU59: 0.0001295250402 | AV59: 0.0001770708562 | AW59: 0.0002176034174 | AX59: 0.0002547391548 | AY59: 0.0002899635688 | AZ59: 0.0003241155775 | BA59: 0.0003577589716 | BB59: 0.0003913182469 | BC59: 0.0004251392913 | BD59: 0.0004595202155 | BE59: 0.0004947285501 | BF59: 0.0005310116042 | BG59: 0.0005685198333 | BH59: 0.0006070650433 | BI59: 0.000646377605 | BJ59: 0.0006861874454 | BK59: 0.0007262194125 | BL59: 0.0007661883974 | BM59: 0.0008057946219 | BN59: 0.0008447192029 | BO59: 0.0008826846501 | BP59: 0.0009196512278 | BQ59: 0.000955633246 | BR59: 0.0009906383434 | BS59: 0.001024669524 | BT59: 0.001057726685 | BU59: 0.001089807793 | BV59: 0.001120909806 | BW59: 0.001151035982 | BX59: 0.001180217143 | BY59: 0.001208494215 | BZ59: 0.001235912497 | CA59: 0.001262522181 | CB59: 0.00128837879 | CC59: 0.00131354356 | CD59: 0.001338083757 | CE59: 0.001362072949 | CF59: 0.00138559124 | CG59: 0.001408725454 | CH59: 0.001431569287
B60: 38 | C60: 3.968129313e-06 | D60: -0.06194110108 | E60: -0.08265847114 | F60: -0.09977497638 | G60: -0.1065557439 | H60: -0.1137933229 | I60: -0.1176673995 | J60: -0.1175991546 | K60: -0.1209162162 | L60: -0.127553096 | M60: -0.129417532 | N60: -0.1284836131 | O60: -0.1268506712 | P60: -0.1262338024 | Q60: -0.124768505 | R60: -0.124820654 | S60: -0.1213434996 | T60: -0.1189271766 | U60: -0.1161309013 | V60: -0.1141066257 | W60: -0.1119245052 | X60: -0.1075976293 | Y60: -0.1001036913 | Z60: -0.09652683558 | AA60: -0.09175303477 | AB60: -0.08961514486 | AC60: -0.08457468304 | AD60: -0.07964373458 | AE60: -0.07548817938 | AF60: -0.06882989342 | AG60: -0.06526644026 | AH60: -0.05945380119 | AI60: -0.05318956473 | AJ60: -0.04877329879 | AK60: -0.04182384465 | AL60: -0.03546686109 | AM60: -0.02897094442 | AN60: -0.02154830109 | AO60: -0.01430658519 | AP60: -0.007404339161 | AQ60: 0 | AS60: 0.0038 | AU60: 0.0001342659981 | AV60: 0.0001834222246 | AW60: 0.0002253018839 | AX60: 0.0002636548781 | AY60: 0.0003000210303 | AZ60: 0.0003352694408 | BA60: 0.0003699837422 | BB60: 0.0004046029874 | BC60: 0.0004394845956 | BD60: 0.0004749363329 | BE60: 0.0005112341495 | BF60: 0.0005486329232 | BG60: 0.0005872875345 | BH60: 0.0006270038485 | BI60: 0.0006675039775 | BJ60: 0.0007085097543 | BK60: 0.0007497379425 | BL60: 0.0007908952016 | BM60: 0.000831673226 | BN60: 0.0008717441719 | BO60: 0.0009108229205 | BP60: 0.00094886912 | BQ60: 0.0009858980018 | BR60: 0.001021917882 | BS60: 0.001056932265 | BT60: 0.001090941426 | BU60: 0.001123943623 | BV60: 0.001155936051 | BW60: 0.001186922359 | BX60: 0.001216934525 | BY60: 0.001246014885 | BZ60: 0.001274210248 | CA60: 0.001301572425 | CB60: 0.001328158686 | CC60: 0.001354032148 | CD60: 0.001379262108 | CE60: 0.001403924318 | CF60: 0.001428101228 | CG60: 0.001451882176 | CH60: 0.001475363544
B61: 39 | C61: 3.968129313e-06 | D61: -0.06191864636 | E61: -0.08256896633 | F61: -0.09945953829 | G61: -0.1054940463 | H61: -0.113768453 | I61: -0.1175404855 | J61: -0.1168064631 | K61: -0.1208111746 | L61: -0.1274765322 | M61: -0.1290992729 | N61: -0.1279917067 | O61: -0.1261358503 | P61: -0.1262162027 | Q61: -0.1242369869 | R61: -0.1247367412 | S61: -0.1211134464 | T61: -0.1188474806 | U61: -0.1159526161 | V61: -0.1129568695 | W61: -0.1119233466 | X61: -0.1070851931 | Y61: -0.1000112518 | Z61: -0.09615145534 | AA61: -0.09165025392 | AB61: -0.08952130503 | AC61: -0.08451559437 | AD61: -0.079236362 | AE61: -0.07536649222 | AF61: -0.06817606092 | AG61: -0.06522068254 | AH61: -0.05936082101 | AI61: -0.05301981206 | AJ61: -0.04865999692 | AK61: -0.04168568018 | AL61: -0.03545138092 | AM61: -0.02896323806 | AN61: -0.02154134379 | AO61: -0.01424891893 | AP61: -0.007379485898 | AQ61: 0 | AS61: 0.0039 | AU61: 0.0001390530237 | AV61: 0.0001898305659 | AW61: 0.0002330655555 | AX61: 0.000272642667 | AY61: 0.0003101565576 | AZ61: 0.0003465067771 | BA61: 0.0003822969625 | BB61: 0.00041798083 | BC61: 0.0004539274051 | BD61: 0.0004904541623 | BE61: 0.0005278455104 | BF61: 0.0005663639236 | BG61: 0.0006061687193 | BH61: 0.0006470597984 | BI61: 0.0006887509889 | BJ61: 0.0007309560098 | BK61: 0.0007733835261 | BL61: 0.0008157319551 | BM61: 0.0008576844567 | BN61: 0.0008989042226 | BO61: 0.0009390985067 | BP61: 0.0009782263589 | BQ61: 0.00101630395 | BR61: 0.001053340288 | BS61: 0.001089339395 | BT61: 0.001124301936 | BU61: 0.001158226471 | BV61: 0.001191110441 | BW61: 0.001222957902 | BX61: 0.001253801991 | BY61: 0.00128368647 | BZ61: 0.001312659662 | CA61: 0.001340775005 | CB61: 0.001368091524 | CC61: 0.001394674224 | CD61: 0.001420594437 | CE61: 0.001445930106 | CF61: 0.001470766032 | CG61: 0.001495194069 | CH61: 0.001519313289
B62: 40 | C62: 3.968129313e-06 | D62: -0.06190595498 | E62: -0.08224515179 | F62: -0.09932579443 | G62: -0.1051531905 | H62: -0.1132597368 | I62: -0.1172983085 | J62: -0.1166555977 | K62: -0.1203247827 | L62: -0.1268774148 | M62: -0.12901863 | N62: -0.1279614258 | O62: -0.1259112707 | P62: -0.1257046611 | Q62: -0.1240687871 | R62: -0.124185145 | S62: -0.1206126298 | T62: -0.1185861342 | U62: -0.1158148807 | V62: -0.1129489626 | W62: -0.1118151095 | X62: -0.1069467176 | Y62: -0.09998860197 | Z62: -0.09612131821 | AA62: -0.0916025785 | AB62: -0.08918991349 | AC62: -0.08435815604 | AD62: -0.07919914264 | AE62: -0.07525761606 | AF62: -0.06787356494 | AG62: -0.06514624836 | AH62: -0.05925415731 | AI62: -0.052954338 | AJ62: -0.04829837239 | AK62: -0.04163717271 | AL62: -0.03544950291 | AM62: -0.02894971807 | AN62: -0.02146948157 | AO62: -0.01424485898 | AP62: -0.007376518754 | AQ62: 0 | AS62: 0.004 | AU62: 0.0001438854646 | AV62: 0.0001962950297 | AW62: 0.0002408934255 | AX62: 0.00028170138 | AY62: 0.0003203688878 | AZ62: 0.0003578262116 | BA62: 0.0003946971523 | BB62: 0.0004314501945 | BC62: 0.0004684660427 | BD62: 0.0005060719324 | BE62: 0.0005445607689 | BF62: 0.0005842026506 | BG62: 0.0006251613429 | BH62: 0.0006672307598 | BI62: 0.0007101164203 | BJ62: 0.0007535239105 | BK62: 0.0007971537826 | BL62: 0.0008406962016 | BM62: 0.0008838257866 | BN62: 0.0009261967607 | BO62: 0.0009675087528 | BP62: 0.001007720231 | BQ62: 0.001046848323 | BR62: 0.001084902746 | BS62: 0.001121888052 | BT62: 0.001157805309 | BU62: 0.001192653391 | BV62: 0.001226429997 | BW62: 0.001259139594 | BX62: 0.001290816496 | BY62: 0.001321505893 | BZ62: 0.001351257632 | CA62: 0.00138012679 | CB62: 0.001408174149 | CC62: 0.001435466611 | CD62: 0.001462077548 | CE62: 0.001488087098 | CF62: 0.001513582417 | CG62: 0.001538657882 | CH62: 0.001563415256
B63: 41 | C63: 3.968129313e-06 | D63: -0.06185337618 | E63: -0.08100323147 | F63: -0.09847789273 | G63: -0.1049460029 | H63: -0.1128882011 | I63: -0.1169805048 | J63: -0.1166098759 | K63: -0.1201822373 | L63: -0.1267918807 | M63: -0.1287338581 | N63: -0.1278125782 | O63: -0.1258182921 | P63: -0.1255498847 | Q63: -0.1239200482 | R63: -0.1241303438 | S63: -0.1203942339 | T63: -0.1172500974 | U63: -0.1157894615 | V63: -0.1126969787 | W63: -0.1117807244 | X63: -0.1059523111 | Y63: -0.09985983206 | Z63: -0.09597112617 | AA63: -0.09073402002 | AB63: -0.08882921649 | AC63: -0.0838348 | AD63: -0.07911190313 | AE63: -0.07503209415 | AF63: -0.06782644683 | AG63: -0.06466044983 | AH63: -0.0591929184 | AI63: -0.05294086519 | AJ63: -0.04823588544 | AK63: -0.04124966397 | AL63: -0.03541960536 | AM63: -0.02890813961 | AN63: -0.0214656943 | AO63: -0.01416266093 | AP63: -0.0073529042 | AQ63: 0 | AS63: 0.0041 | AU63: 0.0001487626954 | AV63: 0.0002028148014 | AW63: 0.0002487845294 | AX63: 0.0002908299236 | AY63: 0.0003306568116 | AZ63: 0.0003692264283 | BA63: 0.000407182895 | BB63: 0.0004450095684 | BC63: 0.0004830989036 | BD63: 0.0005217879485 | BE63: 0.0005613781423 | BF63: 0.0006021472347 | BG63: 0.0006442634503 | BH63: 0.0006875146937 | BI63: 0.0007315981508 | BJ63: 0.0007762112566 | BK63: 0.0008210464364 | BL63: 0.0008657855941 | BM63: 0.0009100948009 | BN63: 0.0009536193079 | BO63: 0.0009960511215 | BP63: 0.001037348144 | BQ63: 0.001077528478 | BR63: 0.001116602566 | BS63: 0.001154575503 | BT63: 0.001191448771 | BU63: 0.001227221571 | BV63: 0.00126189187 | BW63: 0.001295464557 | BX63: 0.001327975129 | BY63: 0.001359470215 | BZ63: 0.001390001198 | CA63: 0.001419624794 | CB63: 0.001448403554 | CC63: 0.00147640628 | CD63: 0.001503708391 | CE63: 0.001530392226 | CF63: 0.001556547299 | CG63: 0.001582270514 | CH63: 0.001607666328
B64: 42 | C64: 3.968129313e-06 | D64: -0.06182450789 | E64: -0.08086045282 | F64: -0.097458494 | G64: -0.1046696455 | H64: -0.1124546045 | I64: -0.1167386425 | J64: -0.1165800786 | K64: -0.1197970621 | L64: -0.1264618778 | M64: -0.1276676209 | N64: -0.1264606753 | O64: -0.1251138693 | P64: -0.1248972675 | Q64: -0.123805685 | R64: -0.1234552104 | S64: -0.1198694472 | T64: -0.1166111257 | U64: -0.1157748955 | V64: -0.1121477633 | W64: -0.1111766443 | X64: -0.1055043177 | Y64: -0.09985437718 | Z64: -0.09582870336 | AA64: -0.09069036052 | AB64: -0.08872235616 | AC64: -0.08339930879 | AD64: -0.07880674185 | AE64: -0.07417178942 | AF64: -0.06766372215 | AG64: -0.06438195773 | AH64: -0.05917647657 | AI64: -0.05285688019 | AJ64: -0.04812529171 | AK64: -0.0412195248 | AL64: -0.03541897655 | AM64: -0.02871614998 | AN64: -0.02127769745 | AO64: -0.014135939 | AP64: -0.00735065692 | AQ64: 0 | AS64: 0.0042 | AU64: 0.0001536841157 | AV64: 0.0002093890991 | AW64: 0.0002567379422 | AX64: 0.0003000272494 | AY64: 0.0003410191697 | AZ64: 0.0003807061657 | BA64: 0.0004197528332 | BB64: 0.0004586575028 | BC64: 0.0004978244505 | BD64: 0.0005376005876 | BE64: 0.0005782959237 | BF64: 0.0006201958861 | BG64: 0.0006634731696 | BH64: 0.0007079096482 | BI64: 0.0007531941507 | BJ64: 0.0007990159429 | BK64: 0.0008450593108 | BL64: 0.000890997887 | BM64: 0.0009364891895 | BN64: 0.000981169494 | BO64: 0.001024723187 | BP64: 0.00106710762 | BQ64: 0.00110834189 | BR64: 0.001148437177 | BS64: 0.001187399134 | BT64: 0.00122522967 | BU64: 0.001261928324 | BV64: 0.00129749334 | BW64: 0.001331930039 | BX64: 0.001365275111 | BY64: 0.001397576632 | BZ64: 0.001428887527 | CA64: 0.001459266163 | CB64: 0.001488776862 | CC64: 0.001517490336 | CD64: 0.001545484054 | CE64: 0.001572842559 | CF64: 0.001599657731 | CG64: 0.001626029002 | CH64: 0.001652063528
B65: 43 | C65: 3.968129313e-06 | D65: -0.06174553871 | E65: -0.08066025484 | F65: -0.09693742363 | G65: -0.1039502092 | H65: -0.1117068999 | I65: -0.1165949428 | J65: -0.1165604663 | K65: -0.1194852125 | L65: -0.1263670122 | M65: -0.1271236634 | N65: -0.1260307891 | O65: -0.1246608808 | P65: -0.1246662434 | Q65: -0.1236151888 | R65: -0.1223418399 | S65: -0.1198470452 | T65: -0.1165445693 | U65: -0.115755029 | V65: -0.1120185684 | W65: -0.1111510032 | X65: -0.1054894416 | Y65: -0.0997808708 | Z65: -0.09497364031 | AA65: -0.09037494567 | AB65: -0.08837832375 | AC65: -0.08321938652 | AD65: -0.07878404634 | AE65: -0.07404892527 | AF65: -0.06740848596 | AG65: -0.06418270289 | AH65: -0.05879460897 | AI65: -0.05280494474 | AJ65: -0.04797026003 | AK65: -0.04107933555 | AL65: -0.03519551228 | AM65: -0.028685411 | AN65: -0.02121975617 | AO65: -0.01408131083 | AP65: -0.007300322041 | AQ65: 0 | AS65: 0.0043 | AU65: 0.0001586491487 | AV65: 0.000216017172 | AW65: 0.0002647527757 | AX65: 0.0003092923512 | AY65: 0.0003514548498 | AZ65: 0.0003922642135 | BA65: 0.0004324056649 | BB65: 0.0004723926079 | BC65: 0.0005126412095 | BD65: 0.0005535082936 | BE65: 0.0005953124765 | BF65: 0.0006383468892 | BG65: 0.0006827887073 | BH65: 0.000728413753 | BI65: 0.0007749024751 | BJ65: 0.0008219359531 | BK65: 0.0008691903205 | BL65: 0.00091633093 | BM65: 0.0009630067406 | BN65: 0.00100884505 | BO65: 0.001053522625 | BP65: 0.001096996287 | BQ65: 0.001139286138 | BR65: 0.001180404117 | BS65: 0.001220356444 | BT65: 0.001259145469 | BU65: 0.001296771079 | BV65: 0.001333231805 | BW65: 0.001368533408 | BX65: 0.001402713781 | BY65: 0.001435822458 | BZ65: 0.001467913912 | CA65: 0.001499048167 | CB65: 0.001529291325 | CC65: 0.001558716009 | CD65: 0.001587401748 | CE65: 0.001615435294 | CF65: 0.001642910894 | CG65: 0.001669930514 | CH65: 0.00169660401
B66: 44 | C66: 3.968129313e-06 | D66: -0.06167885954 | E66: -0.08033753096 | F66: -0.09683921497 | G66: -0.103455197 | H66: -0.1111156516 | I66: -0.1162665012 | J66: -0.1162658116 | K66: -0.1182981857 | L66: -0.1259008359 | M66: -0.1265536774 | N66: -0.1259172438 | O66: -0.1242846529 | P66: -0.1229146713 | Q66: -0.1235013904 | R66: -0.1221471296 | S66: -0.119253668 | T66: -0.1162154332 | U66: -0.1154287517 | V66: -0.1119089353 | W66: -0.1110385698 | X66: -0.1054729548 | Y66: -0.09934902815 | Z66: -0.09487176049 | AA66: -0.08985081671 | AB66: -0.08826880232 | AC66: -0.08321180865 | AD66: -0.07864834805 | AE66: -0.07361015911 | AF66: -0.06704067619 | AG66: -0.06401493834 | AH66: -0.05865788717 | AI66: -0.05276631838 | AJ66: -0.04783870895 | AK66: -0.04105494443 | AL66: -0.0351483756 | AM66: -0.02860642249 | AN66: -0.02121239988 | AO66: -0.0140632863 | AP66: -0.007287504754 | AQ66: 0 | AS66: 0.0044 | AU66: 0.0001636572395 | AV66: 0.0002226982982 | AW66: 0.0002728281764 | AX66: 0.0003186242621 | AY66: 0.0003619627835 | AZ66: 0.0004038994097 | BA66: 0.0004451401397 | BB66: 0.0004862135497 | BC66: 0.0005275477656 | BD66: 0.0005695095732 | BE66: 0.0006124262305 | BF66: 0.000656598598 | BG66: 0.0007022083426 | BH66: 0.0007490252142 | BI66: 0.0007967212592 | BJ66: 0.0008449693536 | BK66: 0.0008934374662 | BL66: 0.0009417826616 | BM66: 0.0009896453339 | BN66: 0.001036643799 | BO66: 0.001082447211 | BP66: 0.00112701187 | BQ66: 0.001170358907 | BR66: 0.001212501028 | BS66: 0.001253445038 | BT66: 0.001293193737 | BU66: 0.001331747371 | BV66: 0.001369104769 | BW66: 0.001405272142 | BX66: 0.001440288593 | BY66: 0.001474205123 | BZ66: 0.00150707776 | CA66: 0.001538968192 | CB66: 0.001569944308 | CC66: 0.00160008065 | CD66: 0.001629458809 | CE66: 0.001658167749 | CF66: 0.001686304092 | CG66: 0.001713972338 | CH66: 0.00174128505
B67: 45 | C67: 3.968129313e-06 | D67: -0.06166361411 | E67: -0.08018831472 | F67: -0.0959642645 | G67: -0.1029724308 | H67: -0.1111017059 | I67: -0.1161651133 | J67: -0.1154738364 | K67: -0.1181063377 | L67: -0.1248414342 | M67: -0.1263589137 | N67: -0.1259064195 | O67: -0.1236421096 | P67: -0.122634929 | Q67: -0.1232433672 | R67: -0.1219840373 | S67: -0.1191564427 | T67: -0.1160720336 | U67: -0.114722699 | V67: -0.1118379703 | W67: -0.110962061 | X67: -0.1039007575 | Y67: -0.0993381295 | Z67: -0.0948423878 | AA67: -0.08982019294 | AB67: -0.08807885664 | AC67: -0.08319942711 | AD67: -0.07862313832 | AE67: -0.07352658094 | AF67: -0.06677542175 | AG67: -0.06383315486 | AH67: -0.05859018367 | AI67: -0.05243455053 | AJ67: -0.04761996109 | AK67: -0.04105384023 | AL67: -0.0350876511 | AM67: -0.02850271931 | AN67: -0.02113617593 | AO67: -0.01405779259 | AP67: -0.007257371331 | AQ67: 0 | AS67: 0.0045 | AU67: 0.0001687078539 | AV67: 0.0002294317833 | AW67: 0.0002809633234 | AX67: 0.0003280220523 | AY67: 0.0003725419433 | AZ67: 0.000415610637 | BA67: 0.0004579550562 | BB67: 0.0005001190463 | BC67: 0.0005425427596 | BD67: 0.0005856029916 | BE67: 0.0006296356775 | BF67: 0.0006749494317 | BG67: 0.0007217304232 | BH67: 0.0007697423095 | BI67: 0.0008186487124 | BJ67: 0.0008681142884 | BK67: 0.0009177988294 | BL67: 0.0009673511034 | BM67: 0.001016402935 | BN67: 0.001064563656 | BO67: 0.001111494808 | BP67: 0.001157152189 | BQ67: 0.001201557973 | BR67: 0.001244725648 | BS67: 0.001286662618 | BT67: 0.001327372144 | BU67: 0.00136685484 | BV67: 0.001405109843 | BW67: 0.001442143825 | BX67: 0.001477997106 | BY67: 0.001512722162 | BZ67: 0.001546376585 | CA67: 0.001579023734 | CB67: 0.00161073329 | CC67: 0.001641581719 | CD67: 0.001671652678 | CE67: 0.001701037353 | CF67: 0.001729834739 | CG67: 0.001758151877 | CH67: 0.001786104038
B68: 46 | C68: 3.968129313e-06 | D68: -0.06151428669 | E68: -0.08005931837 | F68: -0.09447124677 | G68: -0.1029225833 | H68: -0.111026302 | I68: -0.115971477 | J68: -0.1152313205 | K68: -0.117352165 | L68: -0.124720545 | M68: -0.1261401738 | N68: -0.1252111745 | O68: -0.1234453534 | P68: -0.1223237915 | Q68: -0.1232278224 | R68: -0.1218416858 | S68: -0.1191084691 | T68: -0.1160622632 | U68: -0.1145906551 | V68: -0.1116918077 | W68: -0.1107447021 | X68: -0.1038246259 | Y68: -0.09927224663 | Z68: -0.09447164704 | AA68: -0.08972974444 | AB68: -0.08800817235 | AC68: -0.08319378644 | AD68: -0.07725250198 | AE68: -0.07352566975 | AF68: -0.06667190065 | AG68: -0.06364938753 | AH68: -0.05857845244 | AI68: -0.05236237892 | AJ68: -0.04717469798 | AK68: -0.04105365814 | AL68: -0.03508478324 | AM68: -0.0284659959 | AN68: -0.02107017543 | AO68: -0.01403001026 | AP68: -0.007239369616 | AQ68: 0 | AS68: 0.0046 | AU68: 0.0001738004775 | AV68: 0.0002362169583 | AW68: 0.0002891574261 | AX68: 0.000337484827 | AY68: 0.0003831913407 | AZ68: 0.0004273968204 | BA68: 0.0004708492583 | BB68: 0.0005141078645 | BC68: 0.0005576248841 | BD68: 0.0006017871696 | BE68: 0.0006469393673 | BF68: 0.0006933978708 | BG68: 0.0007413533611 | BH68: 0.0007905633836 | BI68: 0.0008406831145 | BJ68: 0.0008913689742 | BK68: 0.0009422725666 | BL68: 0.0009930343552 | BM68: 0.00104327759 | BN68: 0.001092602617 | BO68: 0.001140663366 | BP68: 0.001187415151 | BQ68: 0.001232881202 | BR68: 0.001277075807 | BS68: 0.001320006978 | BT68: 0.00136167845 | BU68: 0.001402091218 | BV68: 0.001441244734 | BW68: 0.001479146136 | BX68: 0.001515836976 | BY68: 0.00155137121 | BZ68: 0.001585808002 | CA68: 0.001619212389 | CB68: 0.001651655848 | CC68: 0.001683216777 | CD68: 0.001713980905 | CE68: 0.00174404164 | CF68: 0.001773500356 | CG68: 0.00180246664 | CH68: 0.00183105847
B69: 47 | C69: 3.968129313e-06 | D69: -0.06144088501 | E69: -0.08005740959 | F69: -0.09352091374 | G69: -0.1028512085 | H69: -0.110975605 | I69: -0.1158286383 | J69: -0.1151742971 | K69: -0.1171421332 | L69: -0.1240104176 | M69: -0.1257309066 | N69: -0.1249246342 | O69: -0.1232166853 | P69: -0.1220487778 | Q69: -0.1230689149 | R69: -0.1211876513 | S69: -0.1189995782 | T69: -0.1160506694 | U69: -0.1145382582 | V69: -0.1114976003 | W69: -0.1102326988 | X69: -0.1038065882 | Y69: -0.09896226957 | Z69: -0.09423011039 | AA69: -0.08954246466 | AB69: -0.0879970727 | AC69: -0.08277297846 | AD69: -0.07720091847 | AE69: -0.07336931755 | AF69: -0.06657400549 | AG69: -0.0634664277 | AH69: -0.05855798203 | AI69: -0.05223725239 | AJ69: -0.0467209059 | AK69: -0.04094800253 | AL69: -0.03503467468 | AM69: -0.02844926696 | AN69: -0.02106200934 | AO69: -0.01400008579 | AP69: -0.00721954085 | AQ69: 0 | AS69: 0.0047 | AU69: 0.0001789346138 | AV69: 0.0002430531785 | AW69: 0.000297409723 | AX69: 0.0003470117241 | AY69: 0.0003939100236 | AZ69: 0.0004392569249 | BA69: 0.0004838216333 | BB69: 0.0005281788175 | BC69: 0.0005727928808 | BD69: 0.0006180607794 | BE69: 0.0006643359047 | BF69: 0.0007119424533 | BG69: 0.0007610756286 | BH69: 0.0008114868445 | BI69: 0.0008628228108 | BJ69: 0.0009147316964 | BK69: 0.0009668569057 | BL69: 0.00101883059 | BM69: 0.00107026742 | BN69: 0.001120758754 | BO69: 0.001169950914 | BP69: 0.001217798742 | BQ69: 0.001264326544 | BR69: 0.001309549419 | BS69: 0.001353476 | BT69: 0.001396110508 | BU69: 0.001437454327 | BV69: 0.001477507236 | BW69: 0.001516276848 | BX69: 0.001553805953 | BY69: 0.001590149997 | BZ69: 0.001625369722 | CA69: 0.001659531849 | CB69: 0.00169270966 | CC69: 0.001724983487 | CD69: 0.001756441136 | CE69: 0.001787178241 | CF69: 0.001817298564 | CG69: 0.001846914233 | CH69: 0.001876145943
B70: 48 | C70: 3.968129313e-06 | D70: -0.06122028064 | E70: -0.07959386841 | F70: -0.09343371684 | G70: -0.1027521337 | H70: -0.1107335408 | I70: -0.1152516914 | J70: -0.1151153128 | K70: -0.1169136652 | L70: -0.1239892169 | M70: -0.1256393256 | N70: -0.1249225255 | O70: -0.123059585 | P70: -0.1220390622 | Q70: -0.122394057 | R70: -0.1211055489 | S70: -0.1188173248 | T70: -0.1159317312 | U70: -0.1144883949 | V70: -0.1114586272 | W70: -0.1100590286 | X70: -0.1033304022 | Y70: -0.09887992828 | Z70: -0.09413053026 | AA70: -0.08931333735 | AB70: -0.0874836066 | AC70: -0.08273024757 | AD70: -0.07676288944 | AE70: -0.07334233831 | AF70: -0.06647772296 | AG70: -0.0634606614 | AH70: -0.05854876312 | AI70: -0.05220899251 | AJ70: -0.04658188595 | AK70: -0.04086563334 | AL70: -0.03499022497 | AM70: -0.02826297907 | AN70: -0.02102832269 | AO70: -0.01398529427 | AP70: -0.007213486425 | AQ70: 0 | AS70: 0.0048 | AU70: 0.000184109784 | AV70: 0.000249939822 | AW70: 0.0003057194795 | AX70: 0.0003566019124 | AY70: 0.000404697074 | AZ70: 0.0004511899529 | BA70: 0.0004968711085 | BB70: 0.0005423307617 | BC70: 0.0005880455376 | BD70: 0.0006344225426 | BE70: 0.000681823946 | BF70: 0.0007305817715 | BG70: 0.0007808957547 | BH70: 0.0008325111596 | BI70: 0.0008850662087 | BJ70: 0.0009382008045 | BK70: 0.000991550141 | BL70: 0.00104473805 | BM70: 0.001097370619 | BN70: 0.001149030214 | BO70: 0.001199355556 | BP70: 0.001248301028 | BQ70: 0.001295892026 | BR70: 0.001342144476 | BS70: 0.001387067646 | BT70: 0.001430666251 | BU70: 0.001472942075 | BV70: 0.001513895231 | BW70: 0.00155353382 | BX70: 0.001591901875 | BY70: 0.00162905634 | BZ70: 0.001665059543 | CA70: 0.001699979896 | CB70: 0.00173389249 | CC70: 0.001766879598 | CD70: 0.001799031107 | CE70: 0.001830444883 | CF70: 0.001861227074 | CG70: 0.001891492359 | CH70: 0.001921364148
B71: 49 | C71: 3.968129313e-06 | D71: -0.06107573946 | E71: -0.07948016799 | F71: -0.09303442609 | G71: -0.1026410045 | H71: -0.1103454721 | I71: -0.1143247551 | J71: -0.1145685823 | K71: -0.1168317592 | L71: -0.1238218582 | M71: -0.1250690957 | N71: -0.124726113 | O71: -0.1228601354 | P71: -0.1214784315 | Q71: -0.1219573308 | R71: -0.1210008613 | S71: -0.1188137875 | T71: -0.1155339358 | U71: -0.1143856957 | V71: -0.1113708928 | W71: -0.109855305 | X71: -0.1031465808 | Y71: -0.098791348 | Z71: -0.09412276069 | AA71: -0.08930161322 | AB71: -0.0873414451 | AC71: -0.0824377729 | AD71: -0.07648469099 | AE71: -0.07325358819 | AF71: -0.06633133915 | AG71: -0.06342478492 | AH71: -0.05847551233 | AI71: -0.05205201092 | AJ71: -0.04656259732 | AK71: -0.04085147138 | AL71: -0.03497069997 | AM71: -0.02825596158 | AN71: -0.02100922381 | AO71: -0.01394077988 | AP71: -0.00719799457 | AQ71: 0 | AS71: 0.0049 | AU71: 0.0001893255256 | AV71: 0.0002568762882 | AW71: 0.0003140859866 | AX71: 0.0003662545898 | AY71: 0.0004155516065 | AZ71: 0.0004631949422 | BA71: 0.0005099966499 | BB71: 0.0005565625942 | BC71: 0.0006033816859 | BD71: 0.0006508712264 | BE71: 0.0006994021959 | BF71: 0.0007493144686 | BG71: 0.0008008123222 | BH71: 0.0008536348521 | BI71: 0.0009074117739 | BJ71: 0.0009617747088 | BK71: 0.00101635063 | BL71: 0.001070755042 | BM71: 0.001124585445 | BN71: 0.001177415213 | BO71: 0.001228875466 | BP71: 0.001278920144 | BQ71: 0.001327575751 | BR71: 0.001374859049 | BS71: 0.001420779954 | BT71: 0.001465343689 | BU71: 0.001508552445 | BV71: 0.001550406681 | BW71: 0.001590914989 | BX71: 0.001630122659 | BY71: 0.001668088138 | BZ71: 0.001704875348 | CA71: 0.001740554397 | CB71: 0.00177520219 | CC71: 0.001808902947 | CD71: 0.001841748643 | CE71: 0.001873839376 | CF71: 0.001905283687 | CG71: 0.001936198807 | CH71: 0.001966710865
B72: 50 | C72: 3.968129313e-06 | D72: -0.06084638977 | E72: -0.07942559838 | F72: -0.09292911132 | G72: -0.1025819453 | H72: -0.1103170274 | I72: -0.1142368939 | J72: -0.114487712 | K72: -0.1165038175 | L72: -0.1229448595 | M72: -0.1250048305 | N72: -0.1245323645 | O72: -0.1226211453 | P72: -0.1210270248 | Q72: -0.1219025235 | R72: -0.1202882574 | S72: -0.1186229473 | T72: -0.1150921103 | U72: -0.1143533698 | V72: -0.1109960178 | W72: -0.109122947 | X72: -0.10264483 | Y72: -0.09873782857 | Z72: -0.09372269719 | AA72: -0.08929908561 | AB72: -0.08723332803 | AC72: -0.08227028888 | AD72: -0.07640941017 | AE72: -0.07324859674 | AF72: -0.06625555064 | AG72: -0.0633492872 | AH72: -0.05802177582 | AI72: -0.05199959396 | AJ72: -0.04649918343 | AK72: -0.04072317448 | AL72: -0.03487326283 | AM72: -0.02822326756 | AN72: -0.0208964692 | AO72: -0.01393295719 | AP72: -0.007142109269 | AQ72: 0 | AS72: 0.005 | AU72: 0.0001945813913 | AV72: 0.0002638619972 | AW72: 0.0003225085598 | AX72: 0.0003759689819 | AY72: 0.0004264727662 | AZ72: 0.0004752709639 | BA72: 0.0005231972593 | BB72: 0.000570873251 | BC72: 0.0006188001981 | BD72: 0.0006674056418 | BE72: 0.0007170694051 | BF72: 0.0007681392362 | BG72: 0.0008208239642 | BH72: 0.0008748564981 | BI72: 0.0009298580273 | BJ72: 0.0009854518768 | BK72: 0.001041256789 | BL72: 0.001096879935 | BM72: 0.001151910222 | BN72: 0.001205912032 | BO72: 0.001258508886 | BP72: 0.001309654297 | BQ72: 0.001359375888 | BR72: 0.001407691278 | BS72: 0.001454611037 | BT72: 0.001500140906 | BU72: 0.001544283498 | BV72: 0.001587039622 | BW72: 0.001628418373 | BX72: 0.001668466302 | BY72: 0.00170724337 | BZ72: 0.001744815097 | CA72: 0.001781253295 | CB72: 0.001816636691 | CC72: 0.001851051454 | CD72: 0.001884591648 | CE72: 0.001917359615 | CF72: 0.001949466286 | CG72: 0.00198103145 | CH72: 0.002012183957
B73: 51 | C73: 3.968129313e-06 | D73: -0.06080086811 | E73: -0.07923526774 | F73: -0.09288078312 | G73: -0.1025150198 | H73: -0.1095435549 | I73: -0.1132116829 | J73: -0.114400427 | K73: -0.1163139803 | L73: -0.1224169465 | M73: -0.1245348622 | N73: -0.1243224332 | O73: -0.1225736451 | P73: -0.1210003292 | Q73: -0.1218825439 | R73: -0.1200759351 | S73: -0.1182041775 | T73: -0.1148520908 | U73: -0.1139849536 | V73: -0.1094385607 | W73: -0.1085847061 | X73: -0.1025047318 | Y73: -0.09867123022 | Z73: -0.09357746871 | AA73: -0.08918413793 | AB73: -0.08722524327 | AC73: -0.08215006101 | AD73: -0.07638454977 | AE73: -0.07322782194 | AF73: -0.06611272683 | AG73: -0.06327788955 | AH73: -0.05795332986 | AI73: -0.05191375437 | AJ73: -0.04648744521 | AK73: -0.04033454492 | AL73: -0.03466080283 | AM73: -0.02816364697 | AN73: -0.02086634183 | AO73: -0.01392585123 | AP73: -0.007131312264 | AQ73: 0 | AS73: 0.0051 | AU73: 0.000199876949 | AV73: 0.000270896388 | AW73: 0.0003309865372 | AX73: 0.0003857443403 | AY73: 0.0004374597274 | AZ73: 0.0004874171208 | BA73: 0.0005364719727 | BB73: 0.0005852617046 | BC73: 0.0006342999857 | BD73: 0.0006840246407 | BE73: 0.0007348243678 | BF73: 0.0007870548114 | BG73: 0.0008409293617 | BH73: 0.0008961747238 | BI73: 0.0009524035415 | BJ73: 0.00100923083 | BK73: 0.001066267091 | BL73: 0.001123111154 | BM73: 0.001179343333 | BN73: 0.001234519013 | BO73: 0.00128825412 | BP73: 0.001340501754 | BQ73: 0.001391290676 | BR73: 0.001440639368 | BS73: 0.001488559072 | BT73: 0.001535056057 | BU73: 0.001580133363 | BV73: 0.001623792162 | BW73: 0.001666042058 | BX73: 0.001706930872 | BY73: 0.001746520087 | BZ73: 0.001784876827 | CA73: 0.001822074613 | CB73: 0.001858193999 | CC73: 0.00189332311 | CD73: 0.001927558106 | CE73: 0.001961003569 | CF73: 0.001993772831 | CG73: 0.002025988239 | CH73: 0.002057781365
B74: 52 | C74: 3.968129313e-06 | D74: -0.06077214318 | E74: -0.07895163285 | F74: -0.09283853056 | G74: -0.1021176797 | H74: -0.1092752764 | I74: -0.1125571057 | J74: -0.1143421799 | K74: -0.1160235339 | L74: -0.1218018081 | M74: -0.1242998064 | N74: -0.1242124587 | O74: -0.1223960715 | P74: -0.1207832142 | Q74: -0.1214511374 | R74: -0.1199731782 | S74: -0.1179105436 | T74: -0.114779218 | U74: -0.1136619121 | V74: -0.1092849155 | W74: -0.108258042 | X74: -0.1024520397 | Y74: -0.09783623757 | Z74: -0.09350993661 | AA74: -0.08884777589 | AB74: -0.08708714769 | AC74: -0.08208814896 | AD74: -0.07615132269 | AE74: -0.07276524004 | AF74: -0.06601837207 | AG74: -0.06315732962 | AH74: -0.05763631922 | AI74: -0.05180867964 | AJ74: -0.04643833146 | AK74: -0.0402939567 | AL74: -0.03446165992 | AM74: -0.02810576897 | AN74: -0.02086554715 | AO74: -0.0139228787 | AP74: -0.007130346355 | AQ74: 0 | AS74: 0.0052 | AU74: 0.0002052117799 | AV74: 0.000277978918 | AW74: 0.0003395192788 | AX74: 0.0003955799413 | AY74: 0.0004485116914 | AZ74: 0.0004996325458 | BA74: 0.0005498198583 | BB74: 0.0005997269619 | BC74: 0.0006498799966 | BD74: 0.0007007271142 | BE74: 0.000752665919 | BF74: 0.0008060599742 | BG74: 0.0008611272408 | BH74: 0.0009175882023 | BI74: 0.0009750469387 | BJ74: 0.001033110141 | BK74: 0.001091380061 | BL74: 0.001149447181 | BM74: 0.001206883216 | BN74: 0.001263234555 | BO74: 0.001318109531 | BP74: 0.001371460847 | BQ74: 0.001423318413 | BR74: 0.001473701591 | BS74: 0.001522622304 | BT74: 0.00157008736 | BU74: 0.001616100237 | BV74: 0.001660662475 | BW74: 0.0017037842 | BX74: 0.001745514508 | BY74: 0.001785916409 | BZ74: 0.001825058642 | CA74: 0.001863016442 | CB74: 0.001899872194 | CC74: 0.001935715984 | CD74: 0.001970646071 | CE74: 0.002004769284 | CF74: 0.002038201357 | CG74: 0.002071067198 | CH74: 0.002103501105
B75: 53 | C75: 3.968129313e-06 | D75: -0.06064298823 | E75: -0.07892865805 | F75: -0.09201595424 | G75: -0.1021088457 | H75: -0.1092505179 | I75: -0.1123855848 | J75: -0.114170497 | K75: -0.1156717507 | L75: -0.1216162871 | M75: -0.1236239602 | N75: -0.1239033897 | O75: -0.1219486308 | P75: -0.1206737049 | Q75: -0.1213443288 | R75: -0.1199258326 | S75: -0.1178762957 | T75: -0.1146754399 | U75: -0.1136224224 | V75: -0.1088228026 | W75: -0.1082375934 | X75: -0.102157395 | Y75: -0.09763787496 | Z75: -0.09349988278 | AA75: -0.08856607965 | AB75: -0.08648245867 | AC75: -0.08189139586 | AD75: -0.07612846756 | AE75: -0.07264607206 | AF75: -0.06598453714 | AG75: -0.06282536737 | AH75: -0.05752703512 | AI75: -0.05172868929 | AJ75: -0.04640769524 | AK75: -0.04018718671 | AL75: -0.03438203758 | AM75: -0.02803770909 | AN75: -0.02075945375 | AO75: -0.01389080035 | AP75: -0.007064946799 | AQ75: 0 | AS75: 0.0053 | AU75: 0.000210585479 | AV75: 0.000285109062 | AW75: 0.000348106165 | AX75: 0.0004054750847 | AY75: 0.0004596278858 | AZ75: 0.0005119163998 | BA75: 0.0005632400151 | BB75: 0.0006142680627 | BC75: 0.0006655392137 | BD75: 0.00071751199 | BE75: 0.0007705929325 | BF75: 0.0008251535458 | BG75: 0.0008814163703 | BH75: 0.0009390956516 | BI75: 0.0009977868872 | BJ75: 0.001057088432 | BK75: 0.001116594275 | BL75: 0.001175886549 | BM75: 0.001234528364 | BN75: 0.001292057112 | BO75: 0.00134807354 | BP75: 0.001402529962 | BQ75: 0.001455457456 | BR75: 0.001506876276 | BS75: 0.001556799037 | BT75: 0.001605233096 | BU75: 0.001652182377 | BV75: 0.001697648802 | BW75: 0.001741643019 | BX75: 0.001784215412 | BY75: 0.001825430524 | BZ75: 0.001865358715 | CA75: 0.001904076939 | CB75: 0.00194166942 | CC75: 0.001978228208 | CD75: 0.002013853665 | CE75: 0.002048654872 | CF75: 0.002082749966 | CG75: 0.002116266421 | CH75: 0.002149341263
B76: 54 | C76: 3.968129313e-06 | D76: -0.0604410134 | E76: -0.07877545349 | F76: -0.09193500722 | G76: -0.1019624205 | H76: -0.1082628269 | I76: -0.1123444857 | J76: -0.1122786258 | K76: -0.1153779437 | L76: -0.1215111039 | M76: -0.1235537477 | N76: -0.1231344721 | O76: -0.1216724579 | P76: -0.1206330121 | Q76: -0.121312373 | R76: -0.1197144225 | S76: -0.1177007142 | T76: -0.1145714279 | U76: -0.1135165657 | V76: -0.1086744648 | W76: -0.108075067 | X76: -0.10188443 | Y76: -0.09762063134 | Z76: -0.09348416993 | AA76: -0.0884359707 | AB76: -0.08632378297 | AC76: -0.08140818461 | AD76: -0.0760984686 | AE76: -0.07259637368 | AF76: -0.06596960094 | AG76: -0.06263433405 | AH76: -0.05730925312 | AI76: -0.05149549233 | AJ76: -0.04628302625 | AK76: -0.04016287156 | AL76: -0.03437713098 | AM76: -0.02799274024 | AN76: -0.02068969398 | AO76: -0.01388352548 | AP76: -0.00706399542 | AQ76: 0 | AS76: 0.0054 | AU76: 0.0002159976533 | AV76: 0.000292286311 | AW76: 0.0003567465959 | AX76: 0.0004154290926 | AY76: 0.0004708075628 | AZ76: 0.0005242678709 | BA76: 0.0005767315709 | BB76: 0.0006288840778 | BC76: 0.0006812766531 | BD76: 0.0007343782307 | BE76: 0.0007886043193 | BF76: 0.0008443343857 | BG76: 0.0009017955598 | BH76: 0.0009606958321 | BI76: 0.0010206221 | BJ76: 0.001081164368 | BK76: 0.001141908356 | BL76: 0.001202427839 | BM76: 0.00126227732 | BN76: 0.001320985193 | BO76: 0.001378144618 | BP76: 0.001433707542 | BQ76: 0.001487706219 | BR76: 0.00154016181 | BS76: 0.001591087633 | BT76: 0.001640491603 | BU76: 0.001688378103 | BV76: 0.00173474944 | BW76: 0.001779616796 | BX76: 0.001823031848 | BY76: 0.001865060682 | BZ76: 0.001905775281 | CA76: 0.001945254328 | CB76: 0.001983583888 | CC76: 0.002020857981 | CD76: 0.002057179077 | CE76: 0.002092658511 | CF76: 0.002127416828 | CG76: 0.002161584069 | CH76: 0.002195299991
B77: 55 | C77: 3.968129313e-06 | D77: -0.06043387831 | E77: -0.07877260466 | F77: -0.09167916235 | G77: -0.1018059612 | H77: -0.1076454789 | I77: -0.1122517118 | J77: -0.1119729846 | K77: -0.115047445 | L77: -0.1212684745 | M77: -0.1231886579 | N77: -0.1229068059 | O77: -0.1214345555 | P77: -0.1203201444 | Q77: -0.1212166731 | R77: -0.1192941006 | S77: -0.1171661978 | T77: -0.114496433 | U77: -0.1128564213 | V77: -0.1083317483 | W77: -0.1077012791 | X77: -0.101629318 | Y77: -0.09759844502 | Z77: -0.09333123176 | AA77: -0.08820652419 | AB77: -0.08628765513 | AC77: -0.08135649606 | AD77: -0.07608827763 | AE77: -0.07230419137 | AF77: -0.065918256 | AG77: -0.06236399631 | AH77: -0.05730910175 | AI77: -0.05148723384 | AJ77: -0.04614917611 | AK77: -0.04006066134 | AL77: -0.03432272847 | AM77: -0.02796052767 | AN77: -0.02068582179 | AO77: -0.01388190555 | AP77: -0.007056447609 | AQ77: 0 | AS77: 0.0055 | AU77: 0.0002214479221 | AV77: 0.000299510172 | AW77: 0.0003654399901 | AX77: 0.0004254413079 | AY77: 0.000482049998 | AZ77: 0.0005366861726 | BA77: 0.0005902936812 | BB77: 0.0006435741075 | BC77: 0.000697091362 | BD77: 0.0007513248325 | BE77: 0.0008066990249 | BF77: 0.0008636013905 | BG77: 0.000922263657 | BH77: 0.0009823875441 | BI77: 0.001043551331 | BJ77: 0.00110533666 | BK77: 0.001167320973 | BL77: 0.001229069679 | BM77: 0.001290128674 | BN77: 0.001350017351 | BO77: 0.001408321291 | BP77: 0.00146499208 | BQ77: 0.001520063168 | BR77: 0.001573556633 | BS77: 0.001625486508 | BT77: 0.001675861278 | BU77: 0.00172468579 | BV77: 0.001771962745 | BW77: 0.001817703869 | BX77: 0.001861962139 | BY77: 0.001904805189 | BZ77: 0.001946306633 | CA77: 0.001986546889 | CB77: 0.002025613867 | CC77: 0.002063603562 | CD77: 0.002100620556 | CE77: 0.002136778441 | CF77: 0.002172200174 | CG77: 0.002207018365 | CH77: 0.002241375505
B78: 56 | C78: 3.968129313e-06 | D78: -0.06042358011 | E78: -0.07873808364 | F78: -0.09155761296 | G78: -0.1017707767 | H78: -0.1073918216 | I78: -0.1116823339 | J78: -0.1117897377 | K78: -0.1150129167 | L78: -0.1211327674 | M78: -0.1230938575 | N78: -0.122828205 | O78: -0.1212723477 | P78: -0.1203035736 | Q78: -0.1211599488 | R78: -0.1191634928 | S78: -0.1168003496 | T78: -0.1140347813 | U78: -0.1127016026 | V78: -0.1082971038 | W78: -0.1062984803 | X78: -0.101555097 | Y78: -0.09742951485 | Z78: -0.09321951899 | AA78: -0.08802917335 | AB78: -0.0862624982 | AC78: -0.08123484068 | AD78: -0.07586644453 | AE78: -0.07212771222 | AF78: -0.06588678467 | AG78: -0.06234057421 | AH78: -0.05717523045 | AI78: -0.05134070944 | AJ78: -0.04614429246 | AK78: -0.04002515669 | AL78: -0.03431142085 | AM78: -0.02788968007 | AN78: -0.02056422983 | AO78: -0.01385457719 | AP78: -0.007041503633 | AQ78: 0 | AS78: 0.0056 | AU78: 0.0002269359158 | AV78: 0.0003067801664 | AW78: 0.0003741857839 | AX78: 0.0004355110939 | AY78: 0.0004933544891 | AZ78: 0.0005491705429 | BA78: 0.0006039255277 | BB78: 0.0006583372802 | BC78: 0.0007129824176 | BD78: 0.0007683508225 | BE78: 0.0008248760283 | BF78: 0.0008829534915 | BG78: 0.0009428195466 | BH78: 0.001004169626 | BI78: 0.001066573376 | BJ78: 0.001129604061 | BK78: 0.001192830836 | BL78: 0.001255810743 | BM78: 0.001318081064 | BN78: 0.001379152191 | BO78: 0.001438602129 | BP78: 0.001496382118 | BQ78: 0.001552526819 | BR78: 0.001607059236 | BS78: 0.001659994131 | BT78: 0.001711340566 | BU78: 0.001761103863 | BV78: 0.001809287128 | BW78: 0.001855902632 | BX78: 0.001901004663 | BY78: 0.001944662409 | BZ78: 0.001986951125 | CA78: 0.002027952962 | CB78: 0.002067757686 | CC78: 0.002106463269 | CD78: 0.002144176409 | CE78: 0.002181012961 | CF78: 0.002217098295 | CG78: 0.002252567592 | CH78: 0.00228756608
B79: 57 | C79: 3.968129313e-06 | D79: -0.06016238673 | E79: -0.07846609042 | F79: -0.0914271058 | G79: -0.1015152616 | H79: -0.1066883489 | I79: -0.1114558645 | J79: -0.1114367446 | K79: -0.1149742241 | L79: -0.1210719249 | M79: -0.1230676232 | N79: -0.1227681481 | O79: -0.121079357 | P79: -0.1197829312 | Q79: -0.1209350159 | R79: -0.1189013106 | S79: -0.1167936535 | T79: -0.1136465925 | U79: -0.1125851411 | V79: -0.1081034846 | W79: -0.1060710225 | X79: -0.1014540887 | Y79: -0.09727585807 | Z79: -0.09321786368 | AA79: -0.08797235245 | AB79: -0.08619179601 | AC79: -0.08092476229 | AD79: -0.07569270888 | AE79: -0.07184088784 | AF79: -0.06575303342 | AG79: -0.06221179749 | AH79: -0.05711592501 | AI79: -0.05116308662 | AJ79: -0.0460557107 | AK79: -0.04000154433 | AL79: -0.03429621256 | AM79: -0.02788385606 | AN79: -0.02054208725 | AO79: -0.01377797366 | AP79: -0.007036756037 | AQ79: 0 | AS79: 0.0057 | AU79: 0.0002324612758 | AV79: 0.0003140958301 | AW79: 0.0003829834304 | AX79: 0.0004456378331 | AY79: 0.0005047203554 | AZ79: 0.0005617202428 | BA79: 0.0006176263171 | BB79: 0.0006731727509 | BC79: 0.0007289489252 | BD79: 0.0007854552584 | BE79: 0.00084313434 | BF79: 0.0009023896531 | BG79: 0.0009634621477 | BH79: 0.001026040954 | BI79: 0.001089687066 | BJ79: 0.00115396536 | BK79: 0.001218436698 | BL79: 0.001282649745 | BM79: 0.001346133168 | BN79: 0.001408388359 | BO79: 0.001468985749 | BP79: 0.001527876247 | BQ79: 0.001585095735 | BR79: 0.00164066816 | BS79: 0.00169460902 | BT79: 0.001746927967 | BU79: 0.001797630804 | BV79: 0.001846721049 | BW79: 0.001894211531 | BX79: 0.001940157851 | BY79: 0.001984630761 | BZ79: 0.002027707158 | CA79: 0.00206947094 | CB79: 0.002110013726 | CC79: 0.002149435473 | CD79: 0.002187845 | CE79: 0.002225360425 | CF79: 0.002262109535 | CG79: 0.002298230088 | CH79: 0.002333870047
B80: 58 | C80: 3.968129313e-06 | D80: -0.0601377605 | E80: -0.07802624688 | F80: -0.09129629181 | G80: -0.1012439533 | H80: -0.1062598695 | I80: -0.1113244833 | J80: -0.1112568663 | K80: -0.1149087408 | L80: -0.1205534272 | M80: -0.1228267718 | N80: -0.1226191733 | O80: -0.1204509406 | P80: -0.1195939521 | Q80: -0.1206497327 | R80: -0.1184736743 | S80: -0.1167607502 | T80: -0.1132822185 | U80: -0.1113773248 | V80: -0.1079367926 | W80: -0.1060610042 | X80: -0.1013881533 | Y80: -0.09718215211 | Z80: -0.09314348179 | AA80: -0.08771304876 | AB80: -0.08618948905 | AC80: -0.08091670485 | AD80: -0.07565080505 | AE80: -0.07126316464 | AF80: -0.06574231055 | AG80: -0.06218013067 | AH80: -0.05709902739 | AI80: -0.05114123329 | AJ80: -0.04597809595 | AK80: -0.03996503409 | AL80: -0.03409500444 | AM80: -0.02763375312 | AN80: -0.02051996434 | AO80: -0.01377479455 | AP80: -0.007033462443 | AQ80: 0 | AS80: 0.0058 | AU80: 0.0002380236538 | AV80: 0.0003214567124 | AW80: 0.0003918323988 | AX80: 0.0004558209258 | AY80: 0.0005161469361 | AZ80: 0.0005743345551 | BA80: 0.0006313952798 | BB80: 0.0006880797001 | BC80: 0.0007449900175 | BD80: 0.0008026372261 | BE80: 0.0008614730007 | BF80: 0.0009219088714 | BG80: 0.0009841904126 | BH80: 0.001048000437 | BI80: 0.001112891268 | BJ80: 0.001178419387 | BK80: 0.001244137349 | BL80: 0.001309585438 | BM80: 0.001374283707 | BN80: 0.001437724545 | BO80: 0.001499470811 | BP80: 0.001559473098 | BQ80: 0.001617768524 | BR80: 0.00167438199 | BS80: 0.001729329739 | BT80: 0.001782622023 | BU80: 0.001834265138 | BV80: 0.001884263019 | BW80: 0.001932629059 | BX80: 0.001979420183 | BY80: 0.002024708711 | BZ80: 0.00206857319 | CA80: 0.002111099266 | CB80: 0.002152380421 | CC80: 0.0021925186 | CD80: 0.002231624744 | CE80: 0.00226981924 | CF80: 0.002307232295 | CG80: 0.002344004245 | CH80: 0.002380285792
B81: 59 | C81: 3.968129313e-06 | D81: -0.06010939125 | E81: -0.0779890464 | F81: -0.09117242814 | G81: -0.1008792527 | H81: -0.106020365 | I81: -0.1110785029 | J81: -0.1110889642 | K81: -0.1143295303 | L81: -0.120152487 | M81: -0.1215181651 | N81: -0.1225699951 | O81: -0.1200767126 | P81: -0.1191273323 | Q81: -0.1205267092 | R81: -0.1178071807 | S81: -0.1164709255 | T81: -0.112608994 | U81: -0.1109968823 | V81: -0.1073728861 | W81: -0.1056942099 | X81: -0.1012816813 | Y81: -0.09716494282 | Z81: -0.092880034 | AA81: -0.08769726635 | AB81: -0.08616305466 | AC81: -0.0809132479 | AD81: -0.07564299132 | AE81: -0.0711543302 | AF81: -0.06555611507 | AG81: -0.06216305224 | AH81: -0.05692185137 | AI81: -0.05106718455 | AJ81: -0.04592358127 | AK81: -0.03995878269 | AL81: -0.03402251134 | AM81: -0.02751263978 | AN81: -0.02044538198 | AO81: -0.01377007688 | AP81: -0.007022150802 | AQ81: 0 | AS81: 0.0059 | AU81: 0.0002436227112 | AV81: 0.0003288623754 | AW81: 0.0004007321735 | AX81: 0.00046605979 | AY81: 0.0005276335897 | AZ81: 0.0005870127841 | BA81: 0.0006452316688 | BB81: 0.0007030573324 | BC81: 0.0007611048524 | BD81: 0.0008198958387 | BE81: 0.0008798910797 | BF81: 0.0009415101727 | BG81: 0.001005003325 | BH81: 0.001070047016 | BI81: 0.001136184887 | BJ81: 0.001202965005 | BK81: 0.001269931615 | BL81: 0.001336616617 | BM81: 0.001402531441 | BN81: 0.001467159478 | BO81: 0.001530056018 | BP81: 0.001591171349 | BQ81: 0.001650543839 | BR81: 0.001708199354 | BS81: 0.001764154898 | BT81: 0.001818421327 | BU81: 0.001871005438 | BV81: 0.001921911595 | BW81: 0.00197115376 | BX81: 0.002018790188 | BY81: 0.002064894775 | BZ81: 0.002109547724 | CA81: 0.002152836435 | CB81: 0.002194856255 | CC81: 0.002235711123 | CD81: 0.002275514107 | CE81: 0.002314387864 | CF81: 0.002352465026 | CG81: 0.002389888507 | CH81: 0.002426811751
B82: 60 | C82: 3.968129313e-06 | D82: -0.05984197705 | E82: -0.07792397314 | F82: -0.0905600981 | G82: -0.1008485622 | H82: -0.1055656913 | I82: -0.1107897747 | J82: -0.1110033377 | K82: -0.1142891051 | L82: -0.1194647674 | M82: -0.1206810617 | N82: -0.1224260869 | O82: -0.1199724184 | P82: -0.1190661538 | Q82: -0.1204680882 | R82: -0.1177068402 | S82: -0.1151110039 | T82: -0.112081005 | U82: -0.110991354 | V82: -0.1071569652 | W82: -0.1056566541 | X82: -0.1011627324 | Y82: -0.09706449783 | Z82: -0.09239850815 | AA82: -0.08767173635 | AB82: -0.08566554355 | AC82: -0.08089414172 | AD82: -0.07554114894 | AE82: -0.07114926182 | AF82: -0.06538126017 | AG82: -0.06215941509 | AH82: -0.05689759239 | AI82: -0.0509363525 | AJ82: -0.04577645813 | AK82: -0.0398593378 | AL82: -0.03391444965 | AM82: -0.027498382 | AN82: -0.02041313361 | AO82: -0.0137359208 | AP82: -0.00701546473 | AQ82: 0 | AS82: 0.006 | AU82: 0.0002492581188 | AV82: 0.0003363123937 | AW82: 0.0004096822535 | AX82: 0.0004763538603 | AY82: 0.0005391796931 | AZ82: 0.0005997542537 | BA82: 0.0006591347588 | BB82: 0.0007181048754 | BC82: 0.0007772926128 | BD82: 0.0008372302354 | BE82: 0.0008983876734 | BF82: 0.0009611926117 | BG82: 0.001025899899 | BH82: 0.001092179667 | BI82: 0.001159566856 | BJ82: 0.001227601112 | BK82: 0.00129581836 | BL82: 0.001363742109 | BM82: 0.001430875169 | BN82: 0.001496691926 | BO82: 0.001560740109 | BP82: 0.001622969715 | BQ82: 0.001683420372 | BR82: 0.001742118926 | BS82: 0.001799083147 | BT82: 0.001854324511 | BU82: 0.001907850321 | BV82: 0.001959665377 | BW82: 0.002009784219 | BX82: 0.00205826644 | BY82: 0.002105187515 | BZ82: 0.002150629311 | CA82: 0.002194680985 | CB82: 0.002237439758 | CC82: 0.002279011564 | CD82: 0.002319511601 | CE82: 0.002359064802 | CF82: 0.002397806224 | CG82: 0.002435881364 | CH82: 0.002473446411
B83: 61 | C83: 3.968129313e-06 | D83: -0.05965290543 | E83: -0.07761980212 | F83: -0.09054005164 | G83: -0.100671137 | H83: -0.1047250325 | I83: -0.1095422173 | J83: -0.1107457762 | K83: -0.1141012135 | L83: -0.1194556361 | M83: -0.120281128 | N83: -0.1223552686 | O83: -0.1197606006 | P83: -0.1185979771 | Q83: -0.1204078027 | R83: -0.1170962896 | S83: -0.1142213732 | T83: -0.1120631116 | U83: -0.1109755 | V83: -0.1070629581 | W83: -0.1052164431 | X83: -0.1010528743 | Y83: -0.09680186506 | Z83: -0.09224078482 | AA83: -0.08740209123 | AB83: -0.08562016822 | AC83: -0.08060095162 | AD83: -0.07540563756 | AE83: -0.07108336972 | AF83: -0.06531782195 | AG83: -0.06197979099 | AH83: -0.05666132694 | AI83: -0.05087869396 | AJ83: -0.04576029256 | AK83: -0.0398212718 | AL83: -0.03385231467 | AM83: -0.02732841389 | AN83: -0.02038909341 | AO83: -0.01373296345 | AP83: -0.00701139499 | AQ83: 0 | AS83: 0.0061 | AU83: 0.0002549295566 | AV83: 0.0003438063534 | AW83: 0.0004186821518 | AX83: 0.0004867025871 | AY83: 0.0005507846409 | AZ83: 0.0006125583071 | BA83: 0.0006731038449 | BB83: 0.0007332215791 | BC83: 0.0007935525048 | BD83: 0.00085463958 | BE83: 0.0009169619046 | BF83: 0.0009809552706 | BG83: 0.001046879177 | BH83: 0.001114397392 | BI83: 0.001183036142 | BJ83: 0.001252326639 | BK83: 0.001321796478 | BL83: 0.001390960778 | BM83: 0.001459313721 | BN83: 0.001526320694 | BO83: 0.001591521864 | BP83: 0.001654866949 | BQ83: 0.001716396855 | BR83: 0.001776139415 | BS83: 0.001834113179 | BT83: 0.001890330249 | BU83: 0.001944798445 | BV83: 0.001997523009 | BW83: 0.002048519067 | BX83: 0.002097847554 | BY83: 0.002145585535 | BZ83: 0.002191816544 | CA83: 0.002236631501 | CB83: 0.002280129505 | CC83: 0.002322418488 | CD83: 0.002363615785 | CE83: 0.002403848605 | CF83: 0.002443254435 | CG83: 0.002481981355 | CH83: 0.002520188301
B84: 62 | C84: 3.968129313e-06 | D84: -0.05947385849 | E84: -0.07750936414 | F84: -0.09047319534 | G84: -0.100641882 | H84: -0.1044099897 | I84: -0.1094888964 | J84: -0.1103418305 | K84: -0.113655788 | L84: -0.1191719551 | M84: -0.119937207 | N84: -0.1223283845 | O84: -0.1195520755 | P84: -0.1184727327 | Q84: -0.1195085522 | R84: -0.1170376755 | S84: -0.114111238 | T84: -0.1119297842 | U84: -0.1104409318 | V84: -0.1070418952 | W84: -0.1051573683 | X84: -0.1010278901 | Y84: -0.09649905942 | Z84: -0.09211507821 | AA84: -0.08711620282 | AB84: -0.0853610091 | AC84: -0.08023430568 | AD84: -0.07531022514 | AE84: -0.07104476256 | AF84: -0.06527497202 | AG84: -0.06196143444 | AH84: -0.05649050068 | AI84: -0.05083888378 | AJ84: -0.04557345576 | AK84: -0.03976065468 | AL84: -0.03382412388 | AM84: -0.02729063798 | AN84: -0.02036824347 | AO84: -0.01368990519 | AP84: -0.006986113541 | AQ84: 0 | AS84: 0.0062 | AU84: 0.000260636713 | AV84: 0.000351343852 | AW84: 0.0004277313946 | AX84: 0.0004971054357 | AY84: 0.0005624478441 | AZ84: 0.0006254243058 | BA84: 0.0006871382422 | BB84: 0.0007484067141 | BC84: 0.0008098837569 | BD84: 0.00087212306 | BE84: 0.0009356129207 | BF84: 0.001000797258 | BG84: 0.001067940228 | BH84: 0.001136699224 | BI84: 0.001206591741 | BJ84: 0.001277140545 | BK84: 0.001347864899 | BL84: 0.00141827152 | BM84: 0.001487845967 | BN84: 0.001556044621 | BO84: 0.001622400096 | BP84: 0.001686861843 | BQ84: 0.001749472057 | BR84: 0.001810259571 | BS84: 0.001869243725 | BT84: 0.001926437255 | BU84: 0.001981848508 | BV84: 0.002035483175 | BW84: 0.002087356973 | BX84: 0.002137532189 | BY84: 0.002186087483 | BZ84: 0.002233108059 | CA84: 0.00227868661 | CB84: 0.002322924114 | CC84: 0.002365930506 | CD84: 0.00240782526 | CE84: 0.002448737868 | CF84: 0.002488808245 | CG84: 0.002528187062 | CH84: 0.002567035999
B85: 63 | C85: 3.968129313e-06 | D85: -0.05946849228 | E85: -0.07739669966 | F85: -0.09001629964 | G85: -0.1005728966 | H85: -0.1040173535 | I85: -0.1093128421 | J85: -0.1101292969 | K85: -0.1136209928 | L85: -0.1190303183 | M85: -0.1196600938 | N85: -0.1213653665 | O85: -0.1193806792 | P85: -0.1178795982 | Q85: -0.1193538395 | R85: -0.1170193556 | S85: -0.1139692363 | T85: -0.1118588082 | U85: -0.110415364 | V85: -0.1068497297 | W85: -0.104901074 | X85: -0.10091598 | Y85: -0.09632104407 | Z85: -0.0921139739 | AA85: -0.08701098953 | AB85: -0.0851752398 | AC85: -0.08011880826 | AD85: -0.07524786975 | AE85: -0.0709641775 | AF85: -0.06501527146 | AG85: -0.06173954411 | AH85: -0.0561129495 | AI85: -0.05071208992 | AJ85: -0.04533469041 | AK85: -0.03970667804 | AL85: -0.03381374864 | AM85: -0.02724660937 | AN85: -0.02033290386 | AO85: -0.01365799132 | AP85: -0.006939282826 | AQ85: 0 | AS85: 0.0063 | AU85: 0.0002663792846 | AV85: 0.0003589244977 | AW85: 0.0004368295211 | AX85: 0.0005075618862 | AY85: 0.0005741687302 | AZ85: 0.0006383516288 | BA85: 0.0007012372844 | BB85: 0.0007636595716 | BC85: 0.0008262856189 | BD85: 0.0008896798855 | BE85: 0.0009543398932 | BF85: 0.001020717707 | BG85: 0.001089082149 | BH85: 0.001159084223 | BI85: 0.001230232677 | BJ85: 0.001302041822 | BK85: 0.001374022579 | BL85: 0.001445673263 | BM85: 0.001516470803 | BN85: 0.001585862579 | BO85: 0.001653373653 | BP85: 0.001718953222 | BQ85: 0.001782644782 | BR85: 0.001844478179 | BS85: 0.001904473551 | BT85: 0.00196264428 | BU85: 0.002018999245 | BV85: 0.002073544595 | BW85: 0.002126296646 | BX85: 0.002177319042 | BY85: 0.002226692043 | BZ85: 0.002274502533 | CA85: 0.002320844979 | CB85: 0.002365822241 | CC85: 0.002409546267 | CD85: 0.00245213867 | CE85: 0.002493731226 | CF85: 0.002534466286 | CG85: 0.002574497108 | CH85: 0.002613988122
B86: 64 | C86: 3.968129313e-06 | D86: -0.05943666708 | E86: -0.07729629393 | F86: -0.08986850308 | G86: -0.100556514 | H86: -0.1039321801 | I86: -0.1089536128 | J86: -0.1098564971 | K86: -0.1135789907 | L86: -0.1183520217 | M86: -0.1196236663 | N86: -0.1212599662 | O86: -0.1187825704 | P86: -0.1176147053 | Q86: -0.119332835 | R86: -0.1166569867 | S86: -0.1137079737 | T86: -0.1118019597 | U86: -0.1100491389 | V86: -0.106587629 | W86: -0.1048195198 | X86: -0.1008526855 | Y86: -0.09621314276 | Z86: -0.09177798958 | AA86: -0.0869600377 | AB86: -0.08516902712 | AC86: -0.08008350207 | AD86: -0.07519331598 | AE86: -0.07080645604 | AF86: -0.06495724943 | AG86: -0.06171504033 | AH86: -0.05586956746 | AI86: -0.05067634501 | AJ86: -0.04533445665 | AK86: -0.03958082738 | AL86: -0.03370708371 | AM86: -0.02723709742 | AN86: -0.0201556073 | AO86: -0.01365723545 | AP86: -0.006937192516 | AQ86: 0 | AS86: 0.0064 | AU86: 0.0002721569761 | AV86: 0.0003665479089 | AW86: 0.0004459760824 | AX86: 0.0005180714324 | AY86: 0.0005859467416 | AZ86: 0.0006513396717 | BA86: 0.0007154003233 | BB86: 0.0007789794616 | BC86: 0.0008427573612 | BD86: 0.0009073092884 | BE86: 0.0009731420161 | BF86: 0.001040715775 | BG86: 0.001110304061 | BH86: 0.001181551474 | BI86: 0.001253958002 | BJ86: 0.001327029488 | BK86: 0.001400268508 | BL86: 0.001473164965 | BM86: 0.001545187162 | BN86: 0.001615773474 | BO86: 0.001684441417 | BP86: 0.001751139944 | BQ86: 0.001815913868 | BR86: 0.001878794058 | BS86: 0.001939801461 | BT86: 0.00199895011 | BU86: 0.002056249429 | BV86: 0.002111706028 | BW86: 0.002165336832 | BX86: 0.002217206847 | BY86: 0.002267397941 | BZ86: 0.00231599868 | CA86: 0.002363105311 | CB86: 0.002408822586 | CC86: 0.002453264461 | CD86: 0.002496554697 | CE86: 0.002538827356 | CF86: 0.002580227226 | CG86: 0.002620910157 | CH86: 0.002661043329
B87: 65 | C87: 3.968129313e-06 | D87: -0.05936023163 | E87: -0.07727226307 | F87: -0.0898587092 | G87: -0.1001392725 | H87: -0.1036017885 | I87: -0.1083617485 | J87: -0.1095780818 | K87: -0.1134987933 | L87: -0.1182548138 | M87: -0.1194903393 | N87: -0.1211456418 | O87: -0.1187282526 | P87: -0.1172497107 | Q87: -0.1191318596 | R87: -0.1165982229 | S87: -0.113340133 | T87: -0.111728169 | U87: -0.1100170524 | V87: -0.1065088356 | W87: -0.1045736059 | X87: -0.1007293859 | Y87: -0.095950304 | Z87: -0.0917398731 | AA87: -0.08694107382 | AB87: -0.08469873503 | AC87: -0.080043589 | AD87: -0.07507903245 | AE87: -0.07032598882 | AF87: -0.06493574988 | AG87: -0.06161639619 | AH87: -0.05580316572 | AI87: -0.05064972988 | AJ87: -0.04531788811 | AK87: -0.03950990598 | AL87: -0.03352440864 | AM87: -0.02700226157 | AN87: -0.02015253213 | AO87: -0.01364377702 | AP87: -0.006932624963 | AQ87: 0 | AS87: 0.0065 | AU87: =NORMSDIST(-(Correlation*NORMSINV(D$16)-NORMSINV($AS87))/CorrTerm) -> 0.0002779694995 | AV87: =NORMSDIST(-(Correlation*NORMSINV(E$16)-NORMSINV($AS87))/CorrTerm) -> 0.0003742137141 | AW87: =NORMSDIST(-(Correlation*NORMSINV(F$16)-NORMSINV($AS87))/CorrTerm) -> 0.0004551706416 | AX87: =NORMSDIST(-(Correlation*NORMSINV(G$16)-NORMSINV($AS87))/CorrTerm) -> 0.0005286335814 | AY87: =NORMSDIST(-(Correlation*NORMSINV(H$16)-NORMSINV($AS87))/CorrTerm) -> 0.0005977813358 | AZ87: =NORMSDIST(-(Correlation*NORMSINV(I$16)-NORMSINV($AS87))/CorrTerm) -> 0.0006643878462 | BA87: =NORMSDIST(-(Correlation*NORMSINV(J$16)-NORMSINV($AS87))/CorrTerm) -> 0.0007296267281 | BB87: =NORMSDIST(-(Correlation*NORMSINV(K$16)-NORMSINV($AS87))/CorrTerm) -> 0.0007943657128 | BC87: =NORMSDIST(-(Correlation*NORMSINV(L$16)-NORMSINV($AS87))/CorrTerm) -> 0.0008592982737 | BD87: =NORMSDIST(-(Correlation*NORMSINV(M$16)-NORMSINV($AS87))/CorrTerm) -> 0.0009250105209 | BE87: =NORMSDIST(-(Correlation*NORMSINV(N$16)-NORMSINV($AS87))/CorrTerm) -> 0.0009920185054 | BF87: =NORMSDIST(-(Correlation*NORMSINV(O$16)-NORMSINV($AS87))/CorrTerm) -> 0.001060790641 | BG87: =NORMSDIST(-(Correlation*NORMSINV(P$16)-NORMSINV($AS87))/CorrTerm) -> 0.001131605109 | BH87: =NORMSDIST(-(Correlation*NORMSINV(Q$16)-NORMSINV($AS87))/CorrTerm) -> 0.001204100088 | BI87: =NORMSDIST(-(Correlation*NORMSINV(R$16)-NORMSINV($AS87))/CorrTerm) -> 0.001277766792 | BJ87: =NORMSDIST(-(Correlation*NORMSINV(S$16)-NORMSINV($AS87))/CorrTerm) -> 0.00135210259 | BK87: =NORMSDIST(-(Correlation*NORMSINV(T$16)-NORMSINV($AS87))/CorrTerm) -> 0.001426601698 | BL87: =NORMSDIST(-(Correlation*NORMSINV(U$16)-NORMSINV($AS87))/CorrTerm) -> 0.001500745613 | BM87: =NORMSDIST(-(Correlation*NORMSINV(V$16)-NORMSINV($AS87))/CorrTerm) -> 0.001573994002 | BN87: =NORMSDIST(-(Correlation*NORMSINV(W$16)-NORMSINV($AS87))/CorrTerm) -> 0.00164577624 | BO87: =NORMSDIST(-(Correlation*NORMSINV(X$16)-NORMSINV($AS87))/CorrTerm) -> 0.001715602298 | BP87: =NORMSDIST(-(Correlation*NORMSINV(Y$16)-NORMSINV($AS87))/CorrTerm) -> 0.001783420901 | BQ87: =NORMSDIST(-(Correlation*NORMSINV(Z$16)-NORMSINV($AS87))/CorrTerm) -> 0.001849278188 | BR87: =NORMSDIST(-(Correlation*NORMSINV(AA$16)-NORMSINV($AS87))/CorrTerm) -> 0.001913206063 | BS87: =NORMSDIST(-(Correlation*NORMSINV(AB$16)-NORMSINV($AS87))/CorrTerm) -> 0.00197522629 | BT87: =NORMSDIST(-(Correlation*NORMSINV(AC$16)-NORMSINV($AS87))/CorrTerm) -> 0.002035353567 | BU87: =NORMSDIST(-(Correlation*NORMSINV(AD$16)-NORMSINV($AS87))/CorrTerm) -> 0.002093597866 | BV87: =NORMSDIST(-(Correlation*NORMSINV(AE$16)-NORMSINV($AS87))/CorrTerm) -> 0.002149966269 | BW87: =NORMSDIST(-(Correlation*NORMSINV(AF$16)-NORMSINV($AS87))/CorrTerm) -> 0.002204476313 | BX87: =NORMSDIST(-(Correlation*NORMSINV(AG$16)-NORMSINV($AS87))/CorrTerm) -> 0.002257194376 | BY87: =NORMSDIST(-(Correlation*NORMSINV(AH$16)-NORMSINV($AS87))/CorrTerm) -> 0.002308203936 | BZ87: =NORMSDIST(-(Correlation*NORMSINV(AI$16)-NORMSINV($AS87))/CorrTerm) -> 0.002357595251 | CA87: =NORMSDIST(-(Correlation*NORMSINV(AJ$16)-NORMSINV($AS87))/CorrTerm) -> 0.002405466351 | CB87: =NORMSDIST(-(Correlation*NORMSINV(AK$16)-NORMSINV($AS87))/CorrTerm) -> 0.002451923881 | CC87: =NORMSDIST(-(Correlation*NORMSINV(AL$16)-NORMSINV($AS87))/CorrTerm) -> 0.002497083815 | CD87: =NORMSDIST(-(Correlation*NORMSINV(AM$16)-NORMSINV($AS87))/CorrTerm) -> 0.00254107206 | CE87: =NORMSDIST(-(Correlation*NORMSINV(AN$16)-NORMSINV($AS87))/CorrTerm) -> 0.002584024971 | CF87: =NORMSDIST(-(Correlation*NORMSINV(AO$16)-NORMSINV($AS87))/CorrTerm) -> 0.002626089773 | CG87: =NORMSDIST(-(Correlation*NORMSINV(AP$16)-NORMSINV($AS87))/CorrTerm) -> 0.002667424911 | CH87: =NORMSDIST(-(Correlation*NORMSINV(AQ$16)-NORMSINV($AS87))/CorrTerm) -> 0.002708200317
B88: 66 | C88: 3.968129313e-06 | D88: -0.05903579524 | E88: -0.07708811975 | F88: -0.08944187149 | G88: -0.09928322065 | H88: -0.1031644748 | I88: -0.1082242549 | J88: -0.1094140628 | K88: -0.1131916813 | L88: -0.1181031366 | M88: -0.1194882425 | N88: -0.1207719569 | O88: -0.1184854673 | P88: -0.1170889783 | Q88: -0.1188887183 | R88: -0.11643672 | S88: -0.1130412596 | T88: -0.1114141901 | U88: -0.1097471579 | V88: -0.1064696875 | W88: -0.1044147266 | X88: -0.1000303221 | Y88: -0.09591352644 | Z88: -0.09171015134 | AA88: -0.08686574972 | AB88: -0.08437804091 | AC88: -0.07989328192 | AD88: -0.07502777285 | AE88: -0.07024090547 | AF88: -0.06485787299 | AG88: -0.06156522578 | AH88: -0.05574227693 | AI88: -0.05048523998 | AJ88: -0.0450100659 | AK88: -0.03946420182 | AL88: -0.03346753165 | AM88: -0.02687775075 | AN88: -0.0201368953 | AO88: -0.01363522322 | AP88: -0.006931309079 | AQ88: 0 | AS88: =B88/10000 -> 0.0066 | AU88: 0.0002838165743 | AV88: 0.000381921551 | AW88: 0.0004644127728 | AX88: 0.0005392478532 | AY88: 0.0006096719842 | AZ88: 0.0006774955794 | BA88: 0.0007439158842 | BB88: 0.0008098176716 | BC88: 0.000875907665 | BD88: 0.0009427828554 | BE88: 0.001010968598 | BF88: 0.001080941509 | BG88: 0.00115298446 | BH88: 0.001226729199 | BI88: 0.001301658151 | BJ88: 0.001377260197 | BK88: 0.001453021194 | BL88: 0.001528414221 | BM88: 0.001602890312 | BN88: 0.001675869842 | BO88: 0.001746855239 | BP88: 0.001815795013 | BQ88: 0.001882736643 | BR88: 0.001947713076 | BS88: 0.002010746908 | BT88: 0.002071853504 | BU88: 0.002131043395 | BV88: 0.002188324144 | BW88: 0.002243713904 | BX88: 0.002297280432 | BY88: 0.002349108824 | BZ88: 0.002399291032 | CA88: 0.002447926875 | CB88: 0.002495124897 | CC88: 0.00254100309 | CD88: 0.002585689516 | CE88: 0.00262932282 | CF88: 0.002672052671 | CG88: 0.002714040108 | CH88: 0.00275545782
B89: =B88+1 -> 67 | C89: 3.968129313e-06 | D89: -0.05894659934 | E89: -0.07688075383 | F89: -0.08943191876 | G89: -0.09922814684 | H89: -0.1030634448 | I89: -0.107913425 | J89: -0.1093625629 | K89: -0.1130222409 | L89: -0.1177876907 | M89: -0.1191733354 | N89: -0.1206679193 | O89: -0.1184182863 | P89: -0.1170459748 | Q89: -0.118770985 | R89: -0.1160185523 | S89: -0.1130054385 | T89: -0.1113007739 | U89: -0.1092973568 | V89: -0.1063406238 | W89: -0.1034069732 | X89: -0.1000210046 | Y89: -0.09586961763 | Z89: -0.09158296578 | AA89: -0.08666600858 | AB89: -0.0842757131 | AC89: -0.07976389095 | AD89: -0.07490547972 | AE89: -0.0699533849 | AF89: -0.06478563335 | AG89: -0.06153436447 | AH89: -0.05559888886 | AI89: -0.05044406629 | AJ89: -0.04499586586 | AK89: -0.03945477796 | AL89: -0.03336609818 | AM89: -0.02677625483 | AN89: -0.02005238115 | AO89: -0.01362670512 | AP89: -0.006909376042 | AQ89: 0 | AS89: 0.0067 | AU89: 0.0002896979266 | AV89: 0.0003896710667 | AW89: 0.000473702061 | AX89: 0.0005499137797 | AY89: 0.0006216181717 | AZ89: 0.000690662313 | BA89: 0.0007582671933 | BB89: 0.0008253347013 | BC89: 0.0008925848619 | BD89: 0.0009606255831 | BE89: 0.00102999155 | BF89: 0.001101167601 | BG89: 0.001174441304 | BH89: 0.001249437965 | BI89: 0.001325631204 | BJ89: 0.001402501407 | BK89: 0.001479526063 | BL89: 0.00155616983 | BM89: 0.001631875108 | BN89: 0.00170605327 | BO89: 0.00177819921 | BP89: 0.001848261231 | BQ89: 0.001916288164 | BR89: 0.001982314014 | BS89: 0.002046362212 | BT89: 0.002108448806 | BU89: 0.00216858489 | BV89: 0.002226778512 | BW89: 0.002283048454 | BX89: 0.002337463853 | BY89: 0.002390111432 | BZ89: 0.002441084842 | CA89: 0.002490485695 | CB89: 0.002538424437 | CC89: 0.002585021085 | CD89: 0.002630405855 | CE89: 0.002674719689 | CF89: 0.002718114699 | CG89: 0.002760754523 | CH89: 0.002802814606
B90: 68 | C90: 3.968129313e-06 | D90: -0.05879281977 | E90: -0.07657625036 | F90: -0.08867801131 | G90: -0.09921215376 | H90: -0.1029650379 | I90: -0.1078944635 | J90: -0.1092927308 | K90: -0.1130050575 | L90: -0.116940681 | M90: -0.1189021989 | N90: -0.1202676997 | O90: -0.1180914169 | P90: -0.1169966012 | Q90: -0.1186206662 | R90: -0.1158786406 | S90: -0.1128761208 | T90: -0.1109393357 | U90: -0.1084574269 | V90: -0.1059579208 | W90: -0.1031690747 | X90: -0.09967718641 | Y90: -0.09579847129 | Z90: -0.09133001188 | AA90: -0.08613643188 | AB90: -0.08407471375 | AC90: -0.07966317662 | AD90: -0.07488777893 | AE90: -0.06969040812 | AF90: -0.06473614954 | AG90: -0.06122178894 | AH90: -0.05541383699 | AI90: -0.0504181839 | AJ90: -0.0448391506 | AK90: -0.03909806038 | AL90: -0.03333517201 | AM90: -0.02676640953 | AN90: -0.02002653685 | AO90: -0.01361016019 | AP90: -0.006890378812 | AQ90: 0 | AS90: 0.0068 | AU90: 0.0002956132897 | AV90: 0.0003974619166 | AW90: 0.0004830381015 | AX90: 0.0005606309048 | AY90: 0.0006336193963 | AZ90: 0.0007038875031 | BA90: 0.0007726800719 | BB90: 0.0008409161814 | BC90: 0.0009093292083 | BD90: 0.0009785380136 | BE90: 0.001049086638 | BF90: 0.001121468159 | BG90: 0.001195974852 | BH90: 0.001272225564 | BI90: 0.0013496851 | BJ90: 0.00142782534 | BK90: 0.001506115396 | BL90: 0.001584011505 | BM90: 0.001660947431 | BN90: 0.001736325545 | BO90: 0.001809633209 | BP90: 0.001880818533 | BQ90: 0.001949931713 | BR90: 0.002017007819 | BS90: 0.002082071133 | BT90: 0.002145138387 | BU90: 0.00220622125 | BV90: 0.002265328264 | BW90: 0.002322478841 | BX90: 0.002377743509 | BY90: 0.002431210621 | BZ90: 0.002482975532 | CA90: 0.002533141653 | CB90: 0.002581821338 | CC90: 0.002629136628 | CD90: 0.0026752199 | CE90: 0.002720214394 | CF90: 0.002764274669 | CG90: 0.002807566963 | CH90: 0.002850269478
B91: 69 | C91: 3.968129313e-06 | D91: -0.05871185646 | E91: -0.07622054183 | F91: -0.08831323369 | G91: -0.09918399005 | H91: -0.1021581498 | I91: -0.1073452511 | J91: -0.1090571063 | K91: -0.1128434934 | L91: -0.1167717842 | M91: -0.1184637073 | N91: -0.1196893288 | O91: -0.1178922587 | P91: -0.1169777511 | Q91: -0.1177190911 | R91: -0.1158715457 | S91: -0.1123341081 | T91: -0.11065333 | U91: -0.1082003165 | V91: -0.1056886591 | W91: -0.1030241492 | X91: -0.09957732484 | Y91: -0.09578400279 | Z91: -0.09101813231 | AA91: -0.0861255304 | AB91: -0.08394299467 | AC91: -0.07952333935 | AD91: -0.07486071463 | AE91: -0.06937503652 | AF91: -0.06468480918 | AG91: -0.06094202541 | AH91: -0.05540029112 | AI91: -0.05034534732 | AJ91: -0.04480997107 | AK91: -0.03908692578 | AL91: -0.03330091716 | AM91: -0.02669593326 | AN91: -0.02002566002 | AO91: -0.01359272783 | AP91: -0.006886204004 | AQ91: 0 | AS91: 0.0069 | AU91: 0.0003015624028 | AV91: 0.0004052937649 | AW91: 0.0004924204994 | AX91: 0.0005713987835 | AY91: 0.0006456751682 | AZ91: 0.000717170619 | BA91: 0.0007871539514 | BB91: 0.000856561507 | BC91: 0.0009261400646 | BD91: 0.0009965194737 | BE91: 0.001068253156 | BF91: 0.001141842447 | BG91: 0.001217584336 | BH91: 0.001295091199 | BI91: 0.001373819011 | BJ91: 0.001453231138 | BK91: 0.00153278831 | BL91: 0.001611938338 | BM91: 0.001690106347 | BN91: 0.00176668571 | BO91: 0.00184115626 | BP91: 0.001913465924 | BQ91: 0.001983666277 | BR91: 0.002051793465 | BS91: 0.002117872627 | BT91: 0.002181921191 | BU91: 0.002243951408 | BV91: 0.002303972318 | BW91: 0.002362003974 | BX91: 0.002418118299 | BY91: 0.00247240528 | BZ91: 0.002524961984 | CA91: 0.002575893626 | CB91: 0.002625314466 | CC91: 0.002673348581 | CD91: 0.002720130506 | CE91: 0.002765805786 | CF91: 0.002810531426 | CG91: 0.002854476267 | CH91: 0.002897821271
B92: 70 | C92: 3.968129313e-06 | D92: -0.05842772303 | E92: -0.07613828342 | F92: -0.08800705086 | G92: -0.09903522067 | H92: -0.10169935 | I92: -0.1068137488 | J92: -0.1088591271 | K92: -0.1122115785 | L92: -0.1165919201 | M92: -0.1179653478 | N92: -0.1196224879 | O92: -0.1173562165 | P92: -0.1168737347 | Q92: -0.1174553681 | R92: -0.1157309589 | S92: -0.1122507145 | T92: -0.1105587895 | U92: -0.1080573411 | V92: -0.1056500149 | W92: -0.1027900929 | X92: -0.09890654704 | Y92: -0.09514810075 | Z92: -0.09085018216 | AA92: -0.0858935425 | AB92: -0.08391981377 | AC92: -0.079447001 | AD92: -0.07474128476 | AE92: -0.06910852769 | AF92: -0.06449815714 | AG92: -0.06092175749 | AH92: -0.05539739297 | AI92: -0.05031989946 | AJ92: -0.04474365961 | AK92: -0.03907056561 | AL92: -0.03329327269 | AM92: -0.02669141064 | AN92: -0.01997806659 | AO92: -0.01355888973 | AP92: -0.006883243651 | AQ92: 0 | AS92: 0.007 | AU92: 0.0003075450117 | AV92: 0.0004131662836 | AW92: 0.0005018488695 | AX92: 0.0005822169818 | AY92: 0.00065778501 | AZ92: 0.0007305111432 | BA92: 0.0008016882771 | BB92: 0.0008722700882 | BC92: 0.0009430168073 | BD92: 0.001014569307 | BE92: 0.001087490416 | BF92: 0.001162289746 | BG92: 0.001239269005 | BH92: 0.001318034089 | BI92: 0.001398032129 | BJ92: 0.001478717966 | BK92: 0.001559543943 | BL92: 0.001639949441 | BM92: 0.001719350948 | BN92: 0.001797132835 | BO92: 0.001872767412 | BP92: 0.001946202436 | BQ92: 0.00201749087 | BR92: 0.00208666995 | BS92: 0.002153765678 | BT92: 0.00221879619 | BU92: 0.002281774322 | BV92: 0.002342709624 | BW92: 0.002401622792 | BX92: 0.00245858715 | BY92: 0.002513694329 | BZ92: 0.002567043111 | CA92: 0.002618740515 | CB92: 0.00266890272 | CC92: 0.002717655835 | CD92: 0.00276513656 | CE92: 0.002811492743 | CF92: 0.002856883844 | CG92: 0.002901481305 | CH92: 0.002945468851
B93: 71 | C93: 3.968129313e-06 | D93: -0.05817646267 | E93: -0.07606416236 | F93: -0.08774135603 | G93: -0.09863557241 | H93: -0.1016849214 | I93: -0.1066341427 | J93: -0.1082443257 | K93: -0.1122056639 | L93: -0.1162078622 | M93: -0.1179560991 | N93: -0.1195687718 | O93: -0.1173138331 | P93: -0.1167680424 | Q93: -0.1174086134 | R93: -0.1156303818 | S93: -0.1121983885 | T93: -0.1103614912 | U93: -0.1079287343 | V93: -0.1055608121 | W93: -0.1026317102 | X93: -0.09883124983 | Y93: -0.09513703108 | Z93: -0.0907936322 | AA93: -0.08583755665 | AB93: -0.08385860949 | AC93: -0.07925065107 | AD93: -0.07464475176 | AE93: -0.06908872447 | AF93: -0.06427907867 | AG93: -0.06091972694 | AH93: -0.05518258755 | AI93: -0.04988828137 | AJ93: -0.04471390865 | AK93: -0.038890015 | AL93: -0.03327978081 | AM93: -0.02668362713 | AN93: -0.0199593199 | AO93: -0.01353214296 | AP93: -0.006875120684 | AQ93: 0 | AS93: 0.0071 | AU93: 0.0003135608678 | AV93: 0.0004210791525 | AW93: 0.0005113228358 | AX93: 0.0005930850758 | AY93: 0.0006699484554 | AZ93: 0.0007439085709 | BA93: 0.0008162825079 | BB93: 0.0008880413497 | BC93: 0.0009599588281 | BD93: 0.001032686874 | BE93: 0.001106797748 | BF93: 0.001182809353 | BG93: 0.001261028128 | BH93: 0.001341053474 | BI93: 0.001422323665 | BJ93: 0.001504285009 | BK93: 0.001586381455 | BL93: 0.001668043951 | BM93: 0.001748680346 | BN93: 0.001827666012 | BO93: 0.001904465738 | BP93: 0.001979027123 | BQ93: 0.002051404532 | BR93: 0.002121636297 | BS93: 0.002189749297 | BT93: 0.00225576238 | BU93: 0.002319688979 | BV93: 0.002381539155 | BW93: 0.002441334258 | BX93: 0.00249914902 | BY93: 0.002555076717 | BZ93: 0.002609217851 | CA93: 0.002661681255 | CB93: 0.002712585026 | CC93: 0.002762057309 | CD93: 0.002810236974 | CE93: 0.002857274176 | CF93: 0.002903330828 | CG93: 0.002948580979 | CH93: 0.002993211115
B94: 72 | C94: 3.968129313e-06 | D94: -0.05814986849 | E94: -0.0760205448 | F94: -0.08766303803 | G94: -0.09845611152 | H94: -0.1016487446 | I94: -0.1064160417 | J94: -0.1080881973 | K94: -0.1121558922 | L94: -0.1161007765 | M94: -0.1179470698 | N94: -0.1186535305 | O94: -0.1170092226 | P94: -0.1164781841 | Q94: -0.1173502036 | R94: -0.1156000855 | S94: -0.1117227758 | T94: -0.1102140316 | U94: -0.1078227863 | V94: -0.1051507493 | W94: -0.1023120464 | X94: -0.09866261144 | Y94: -0.09505940047 | Z94: -0.09072736679 | AA94: -0.08582582066 | AB94: -0.08371341385 | AC94: -0.0791511391 | AD94: -0.0743526437 | AE94: -0.06908523925 | AF94: -0.06417139157 | AG94: -0.0609049363 | AH94: -0.05516220305 | AI94: -0.04966480524 | AJ94: -0.04467458608 | AK94: -0.03884027318 | AL94: -0.03311291273 | AM94: -0.02661084093 | AN94: -0.01995748105 | AO94: -0.01350294375 | AP94: -0.006873771064 | AQ94: 0 | AS94: 0.0072 | AU94: 0.0003196097285 | AV94: 0.0004290320589 | AW94: 0.0005208420309 | AX94: 0.0006040026519 | AY94: 0.0006821650495 | AZ94: 0.0007573624091 | BA94: 0.0008309361155 | BB94: 0.0009038747297 | BC94: 0.0009769655332 | BD94: 0.00105087155 | BE94: 0.001126174496 | BF94: 0.001203400586 | BG94: 0.001282860993 | BH94: 0.001364148614 | BI94: 0.001446692852 | BJ94: 0.001529931472 | BK94: 0.001613300027 | BL94: 0.001696221026 | BM94: 0.001778093677 | BN94: 0.001858284356 | BO94: 0.001936250335 | BP94: 0.002011939066 | BQ94: 0.002085406326 | BR94: 0.002156691556 | BS94: 0.002225822519 | BT94: 0.002292818784 | BU94: 0.002357694389 | BV94: 0.002420459913 | BW94: 0.002481137365 | BX94: 0.002539802889 | BY94: 0.002596551416 | BZ94: 0.002651485172 | CA94: 0.002704714806 | CB94: 0.002756360336 | CC94: 0.002806551952 | CD94: 0.002855430692 | CE94: 0.002903149022 | CF94: 0.002949871311 | CG94: 0.002995774215 | CH94: 0.003041046986
B95: 73 | C95: 3.968129313e-06 | D95: -0.0580176704 | E95: -0.07600644924 | F95: -0.08755211787 | G95: -0.09783129408 | H95: -0.1015203639 | I95: -0.1061530022 | J95: -0.1078648987 | K95: -0.1119187284 | L95: -0.115766397 | M95: -0.1179079508 | N95: -0.1182641286 | O95: -0.1168838785 | P95: -0.1163848985 | Q95: -0.1172387857 | R95: -0.115562998 | S95: -0.1116221488 | T95: -0.1102134771 | U95: -0.1076934725 | V95: -0.1048016307 | W95: -0.1019083914 | X95: -0.0986067023 | Y95: -0.09503919631 | Z95: -0.09069045227 | AA95: -0.08580668453 | AB95: -0.08370629437 | AC95: -0.07911678843 | AD95: -0.07400673162 | AE95: -0.06908253794 | AF95: -0.06416582051 | AG95: -0.0606274157 | AH95: -0.05515480056 | AI95: -0.04960655964 | AJ95: -0.04463696731 | AK95: -0.03878855748 | AL95: -0.03304917126 | AM95: -0.02654978976 | AN95: -0.01995654257 | AO95: -0.01346356575 | AP95: -0.006873251812 | AQ95: 0 | AS95: 0.0073 | AU95: 0.0003256913566 | AV95: 0.0004370246973 | AW95: 0.0005304060962 | AX95: 0.0006149693061 | AY95: 0.0006944343477 | AZ95: 0.0007708721765 | BA95: 0.0008456485843 | BB95: 0.00091976968 | BC95: 0.0009940363434 | BD95: 0.001069122726 | BE95: 0.001145620022 | BF95: 0.001224062776 | BG95: 0.001304766905 | BH95: 0.001387318784 | BI95: 0.001471138939 | BJ95: 0.001555656582 | BK95: 0.001640298859 | BL95: 0.001724479843 | BM95: 0.001807590099 | BN95: 0.001888987005 | BO95: 0.001968120322 | BP95: 0.002044937367 | BQ95: 0.002119495339 | BR95: 0.002191834799 | BS95: 0.002261984403 | BT95: 0.002329964451 | BU95: 0.002395789589 | BV95: 0.002459470925 | BW95: 0.002521031128 | BX95: 0.002580547768 | BY95: 0.002638117428 | BZ95: 0.002693844066 | CA95: 0.002747840153 | CB95: 0.002800227632 | CC95: 0.002851138737 | CD95: 0.002900716682 | CE95: 0.002949116245 | CF95: 0.002996504252 | CG95: 0.00304305997 | CH95: 0.003088975415
B96: 74 | C96: 3.968129313e-06 | D96: -0.05793185264 | E96: -0.07573174938 | F96: -0.08736216096 | G96: -0.09780578517 | H96: -0.1014144357 | I96: -0.1057734829 | J96: -0.1076335148 | K96: -0.1117706564 | L96: -0.115368479 | M96: -0.1175888031 | N96: -0.1181699605 | O96: -0.1168418084 | P96: -0.115848702 | Q96: -0.1172152047 | R96: -0.1151980977 | S96: -0.1115229716 | T96: -0.1101552192 | U96: -0.1076662614 | V96: -0.1047820204 | W96: -0.1017346762 | X96: -0.09822541924 | Y96: -0.09481480302 | Z96: -0.09066532456 | AA96: -0.08579241014 | AB96: -0.08360907803 | AC96: -0.07910305377 | AD96: -0.07397024351 | AE96: -0.06892995165 | AF96: -0.06412759859 | AG96: -0.0603829905 | AH96: -0.05502369161 | AI96: -0.04960018131 | AJ96: -0.04442096551 | AK96: -0.03874104129 | AL96: -0.03304118464 | AM96: -0.0265336961 | AN96: -0.01993136676 | AO96: -0.01346218305 | AP96: -0.006841117338 | AQ96: 0 | AS96: 0.0074 | AU96: 0.0003318055201 | AV96: 0.000445056769 | AW96: 0.0005400146811 | AX96: 0.0006259846436 | AY96: 0.000706755916 | AZ96: 0.0007844374031 | BA96: 0.0008604194105 | BB96: 0.0009357256651 | BC96: 0.001011170693 | BD96: 0.001087439805 | BE96: 0.001165133702 | BF96: 0.001244795271 | BG96: 0.001326745182 | BH96: 0.001410563281 | BI96: 0.001495661196 | BJ96: 0.001581459581 | BK96: 0.001667377173 | BL96: 0.001752819602 | BM96: 0.001837168789 | BN96: 0.001919773118 | BO96: 0.00200007484 | BP96: 0.002078021149 | BQ96: 0.00215367068 | BR96: 0.002227065121 | BS96: 0.002298234033 | BT96: 0.002367198451 | BU96: 0.002433973639 | BV96: 0.002498571239 | BW96: 0.002561014591 | BX96: 0.002621382687 | BY96: 0.002679773777 | BZ96: 0.002736293552 | CA96: 0.002791056309 | CB96: 0.002844185919 | CC96: 0.002895816666 | CD96: 0.002946093941 | CE96: 0.002995174836 | CF96: 0.003043228637 | CG96: 0.003090437225 | CH96: 0.003136995382
B97: 75 | C97: 3.968129313e-06 | D97: -0.05782175125 | E97: -0.07569550933 | F97: -0.08726263933 | G97: -0.09728842352 | H97: -0.1010670179 | I97: -0.1057083524 | J97: -0.1070265921 | K97: -0.1115937749 | L97: -0.1149260802 | M97: -0.1172007538 | N97: -0.1176507195 | O97: -0.1167476047 | P97: -0.1158254281 | Q97: -0.116865811 | R97: -0.1147316979 | S97: -0.1114066332 | T97: -0.1100244562 | U97: -0.1076259607 | V97: -0.1046606226 | W97: -0.1017001492 | X97: -0.09815040905 | Y97: -0.09468792259 | Z97: -0.09058997481 | AA97: -0.08578487671 | AB97: -0.08356476127 | AC97: -0.07905393658 | AD97: -0.07371915802 | AE97: -0.06890847569 | AF97: -0.06394879811 | AG97: -0.06038281605 | AH97: -0.05494258288 | AI97: -0.04955968685 | AJ97: -0.0443310362 | AK97: -0.03872456506 | AL97: -0.03295340812 | AM97: -0.02648785378 | AN97: -0.01988362651 | AO97: -0.01337468834 | AP97: -0.006824062803 | AQ97: 0 | AS97: 0.0075 | AU97: 0.0003379519924 | AV97: 0.0004531279822 | AW97: 0.0005496674429 | AX97: 0.0006370482784 | AY97: 0.0007191293302 | AZ97: 0.0007980576294 | BA97: 0.0008752481021 | BB97: 0.000951742162 | BC97: 0.001028368028 | BD97: 0.001105822207 | BE97: 0.001184714926 | BF97: 0.001265597436 | BG97: 0.001348795164 | BH97: 0.001433881413 | BI97: 0.001520258907 | BJ97: 0.001607339731 | BK97: 0.001694534206 | BL97: 0.001781239518 | BM97: 0.001866828944 | BN97: 0.001950641871 | BO97: 0.002032113049 | BP97: 0.002111189558 | BQ97: 0.00218793148 | BR97: 0.002262381641 | BS97: 0.002334570513 | BT97: 0.002404519878 | BU97: 0.002472245623 | BV97: 0.00253775993 | BW97: 0.002601086816 | BX97: 0.002662306704 | BY97: 0.002721519513 | BZ97: 0.002778832673 | CA97: 0.002834362308 | CB97: 0.002888234227 | CC97: 0.002940584763 | CD97: 0.002991561487 | CE97: 0.003041323809 | CF97: 0.003090043478 | CG97: 0.003137904988 | CH97: 0.003185105889
B98: 76 | C98: 3.968129313e-06 | D98: -0.05778236689 | E98: -0.07554781447 | F98: -0.08707691848 | G98: -0.09702849832 | H98: -0.1009800274 | I98: -0.1051227891 | J98: -0.1069713067 | K98: -0.1111250272 | L98: -0.1148705108 | M98: -0.1171405085 | N98: -0.1175139983 | O98: -0.1159507968 | P98: -0.1152385437 | Q98: -0.1165433073 | R98: -0.114573629 | S98: -0.1113802016 | T98: -0.1099612126 | U98: -0.1074165429 | V98: -0.1045101617 | W98: -0.10166929 | X98: -0.09792514956 | Y98: -0.09465841574 | Z98: -0.09057344151 | AA98: -0.08551509091 | AB98: -0.08337816598 | AC98: -0.07895854722 | AD98: -0.0737168454 | AE98: -0.0687354076 | AF98: -0.06391555551 | AG98: -0.06020532988 | AH98: -0.0547629518 | AI98: -0.04949059375 | AJ98: -0.04421247053 | AK98: -0.03861085508 | AL98: -0.03293685873 | AM98: -0.02648298394 | AN98: -0.01988061476 | AO98: -0.01336157536 | AP98: -0.006823310609 | AQ98: 0 | AS98: 0.0076 | AU98: 0.0003441305517 | AV98: 0.0004612380512 | AW98: 0.0005593640466 | AX98: 0.0006481598336 | AY98: 0.0007315541755 | AZ98: 0.0008117324065 | BA98: 0.0008901341781 | BB98: 0.0009678186596 | BC98: 0.00104562781 | BD98: 0.001124269363 | BE98: 0.0012043631 | BF98: 0.001286468648 | BG98: 0.0013709162 | BH98: 0.001457272508 | BI98: 0.001544931376 | BJ98: 0.001633296312 | BK98: 0.001721769216 | BL98: 0.001809738828 | BM98: 0.001896569779 | BN98: 0.001981592464 | BO98: 0.002064234132 | BP98: 0.00214444176 | BQ98: 0.00222227689 | BR98: 0.002297783496 | BS98: 0.00237099297 | BT98: 0.002441927846 | BU98: 0.002510604644 | BV98: 0.002577036094 | BW98: 0.002641246891 | BX98: 0.002703318899 | BY98: 0.002763353707 | BZ98: 0.002821460492 | CA98: 0.002877757211 | CB98: 0.00293237161 | CC98: 0.002985442076 | CD98: 0.003037118363 | CE98: 0.003087562204 | CF98: 0.00313694781 | CG98: 0.003185462289 | CH98: 0.003233305965
B99: 77 | C99: 3.968129313e-06 | D99: -0.05767361318 | E99: -0.07533836136 | F99: -0.08687288966 | G99: -0.09700833984 | H99: -0.1009083342 | I99: -0.1049928308 | J99: -0.1062250955 | K99: -0.1110866518 | L99: -0.1148373919 | M99: -0.1165008528 | N99: -0.1168945285 | O99: -0.1158063933 | P99: -0.1149494152 | Q99: -0.1162639271 | R99: -0.1139993159 | S99: -0.1112157923 | T99: -0.1094369853 | U99: -0.1073325789 | V99: -0.1040423001 | W99: -0.1011157623 | X99: -0.09781300556 | Y99: -0.09454286126 | Z99: -0.09052804252 | AA99: -0.08543087847 | AB99: -0.08314876062 | AC99: -0.07893059518 | AD99: -0.0736624954 | AE99: -0.0686050634 | AF99: -0.06369970147 | AG99: -0.05999316462 | AH99: -0.05461823538 | AI99: -0.04940814838 | AJ99: -0.04415758328 | AK99: -0.03849141312 | AL99: -0.03292003864 | AM99: -0.02647678174 | AN99: -0.01987370765 | AO99: -0.01332739315 | AP99: -0.006822766684 | AQ99: 0 | AS99: 0.0077 | AU99: 0.0003503409808 | AV99: 0.0004693866968 | AW99: 0.0005691041645 | AX99: 0.00065931894 | AY99: 0.0007440300465 | AZ99: 0.0008254612955 | BA99: 0.0009050771684 | BB99: 0.000983954658 | BC99: 0.00106294951 | BD99: 0.00114278072 | BE99: 0.001224077641 | BF99: 0.0013074083 | BG99: 0.00139310766 | BH99: 0.001480735908 | BI99: 0.00156967792 | BJ99: 0.001659328618 | BK99: 0.001749081477 | BL99: 0.001838316785 | BM99: 0.00192639053 | BN99: 0.002012624113 | BO99: 0.002096437287 | BP99: 0.00217777694 | BQ99: 0.002256706081 | BR99: 0.002333269844 | BS99: 0.00240750055 | BT99: 0.002479421492 | BU99: 0.00254904983 | BV99: 0.002616398847 | BW99: 0.002681493925 | BX99: 0.002744418371 | BY99: 0.002805275454 | BZ99: 0.002864176099 | CA99: 0.002921240099 | CB99: 0.002976597143 | CC99: 0.003030387676 | CD99: 0.003082763638 | CE99: 0.003133889083 | CF99: 0.00318394069 | CG99: 0.003233108184 | CH99: 0.00328159466
B100: 78 | C100: 3.968129313e-06 | D100: -0.05758248904 | E100: -0.07527774662 | F100: -0.08654160488 | G100: -0.09637696789 | H100: -0.1003723746 | I100: -0.1047950565 | J100: -0.106207274 | K100: -0.1109569429 | L100: -0.1145555104 | M100: -0.1164098202 | N100: -0.1163468211 | O100: -0.1156375989 | P100: -0.1148081886 | Q100: -0.1162207228 | R100: -0.1136890373 | S100: -0.111116493 | T100: -0.1092705128 | U100: -0.1072265046 | V100: -0.1038719108 | W100: -0.1010044128 | X100: -0.09771052873 | Y100: -0.0945182685 | Z100: -0.09040927165 | AA100: -0.08529188568 | AB100: -0.08313477692 | AC100: -0.07852157725 | AD100: -0.07358180886 | AE100: -0.06854959725 | AF100: -0.06363529557 | AG100: -0.05985307484 | AH100: -0.0545619755 | AI100: -0.04936349903 | AJ100: -0.04413519624 | AK100: -0.03848868561 | AL100: -0.03287155345 | AM100: -0.02647624751 | AN100: -0.01976943736 | AO100: -0.01331608999 | AP100: -0.006821233676 | AQ100: 0 | AS100: 0.0078 | AU100: 0.0003565830673 | AV100: 0.0004775736458 | AW100: 0.0005788874761 | AX100: 0.000670525237 | AY100: 0.0007565565465 | AZ100: 0.0008392438669 | BA100: 0.0009200766132 | BB100: 0.001000149669 | BC100: 0.001080332613 | BD100: 0.001161355733 | BE100: 0.001243857982 | BF100: 0.001328415798 | BG100: 0.001415368923 | BH100: 0.001504270971 | BI100: 0.001594497873 | BJ100: 0.001685435961 | BK100: 0.001776470278 | BL100: 0.001866972659 | BM100: 0.001956290448 | BN100: 0.002043736052 | BO100: 0.002128721734 | BP100: 0.002211194302 | BQ100: 0.002291218245 | BR100: 0.002368839865 | BS100: 0.00244409242 | BT100: 0.002516999972 | BU100: 0.002587580328 | BV100: 0.002655847327 | BW100: 0.002721827048 | BX100: 0.002785604245 | BY100: 0.00284728387 | BZ100: 0.002906978601 | CA100: 0.002964810076 | CB100: 0.003020909926 | CC100: 0.003075420657 | CD100: 0.0031284964 | CE100: 0.003180303531 | CF100: 0.0032310212 | CG100: 0.00328084175 | CH100: 0.003329971048
B101: 79 | C101: 3.968129313e-06 | D101: -0.05727378461 | E101: -0.07488216385 | F101: -0.08639303643 | G101: -0.09628208633 | H101: -0.1000880514 | I101: -0.1046650371 | J101: -0.1055674386 | K101: -0.1106430242 | L101: -0.1141615854 | M101: -0.1158154101 | N101: -0.1162709481 | O101: -0.1155267258 | P101: -0.1147418439 | Q101: -0.1156456428 | R101: -0.1136843513 | S101: -0.1107971787 | T101: -0.1088838417 | U101: -0.1063661409 | V101: -0.1036640759 | W101: -0.09986285349 | X101: -0.09767248061 | Y101: -0.09422736129 | Z101: -0.09038681148 | AA101: -0.08522987806 | AB101: -0.0829509867 | AC101: -0.07819267886 | AD101: -0.07356290951 | AE101: -0.06851601128 | AF101: -0.06341717607 | AG101: -0.05976629103 | AH101: -0.05451242681 | AI101: -0.04935872749 | AJ101: -0.04410106578 | AK101: -0.03839228324 | AL101: -0.03265402572 | AM101: -0.0264460149 | AN101: -0.0197612471 | AO101: -0.01330374201 | AP101: -0.006817087387 | AQ101: 0 | AS101: 0.0079 | AU101: 0.0003628566034 | AV101: 0.0004857986305 | AW101: 0.0005887136674 | AX101: 0.0006817783715 | AY101: 0.0007691332875 | AZ101: 0.0008530797009 | BA101: 0.0009351320627 | BB101: 0.001016403214 | BC101: 0.001097776613 | BD101: 0.001179993871 | BE101: 0.001263703566 | BF101: 0.00134949056 | BG101: 0.001437699386 | BH101: 0.001527877067 | BI101: 0.001619390585 | BJ101: 0.001711617669 | BK101: 0.001803934927 | BL101: 0.001895705739 | BM101: 0.001986268802 | BN101: 0.002074927534 | BO101: 0.00216108671 | BP101: 0.002244693068 | BQ101: 0.002325812591 | BR101: 0.002404492755 | BS101: 0.002480767766 | BT101: 0.002554662463 | BU101: 0.002626195303 | BV101: 0.002695380693 | BW101: 0.00276224541 | BX101: 0.002826875661 | BY101: 0.002889378089 | BZ101: 0.002949867131 | CA101: 0.003008466266 | CB101: 0.003065309077 | CC101: 0.003120540134 | CD101: 0.003174315758 | CE101: 0.003226804654 | CF101: 0.003278188442 | CG101: 0.003328662085 | CH101: 0.003378434225
B102: 80 | C102: 3.968129313e-06 | D102: -0.05714125211 | E102: -0.07481878082 | F102: -0.08624791787 | G102: -0.09623228522 | H102: -0.09963311919 | I102: -0.1046181462 | J102: -0.1053797746 | K102: -0.1103530082 | L102: -0.1133975409 | M102: -0.1157400998 | N102: -0.1160478963 | O102: -0.1151499187 | P102: -0.1147132119 | Q102: -0.1153600927 | R102: -0.1132985621 | S102: -0.1106794087 | T102: -0.1086155684 | U102: -0.1060143527 | V102: -0.1035973072 | W102: -0.09984784562 | X102: -0.09764541725 | Y102: -0.09366559966 | Z102: -0.0897243272 | AA102: -0.08519772564 | AB102: -0.08231334244 | AC102: -0.07803600452 | AD102: -0.07351132276 | AE102: -0.06850400601 | AF102: -0.06337752236 | AG102: -0.05952926288 | AH102: -0.05437526602 | AI102: -0.04934831453 | AJ102: -0.04409636505 | AK102: -0.038341254 | AL102: -0.03260931796 | AM102: -0.0263891504 | AN102: -0.01975172838 | AO102: -0.01327909409 | AP102: -0.006796493655 | AQ102: 0 | AS102: 0.008 | AU102: 0.0003691613852 | AV102: 0.0004940613892 | AW102: 0.0005985824315 | AX102: 0.0006930779977 | AY102: 0.0007817598897 | AZ102: 0.0008669683863 | BA102: 0.0009502430768 | BB102: 0.001032714826 | BC102: 0.001115281016 | BD102: 0.001198694617 | BE102: 0.001283613849 | BF102: 0.00137063202 | BG102: 0.001460098455 | BH102: 0.001551553583 | BI102: 0.001644355418 | BJ102: 0.001737873083 | BK102: 0.001831474746 | BL102: 0.001924515326 | BM102: 0.002016324878 | BN102: 0.002106197828 | BO102: 0.002193531468 | BP102: 0.002278272479 | BQ102: 0.002360488344 | BR102: 0.002440227729 | BS102: 0.002517525793 | BT102: 0.002592408158 | BU102: 0.002664893942 | BV102: 0.002734998121 | BW102: 0.002802748179 | BX102: 0.002868231784 | BY102: 0.00293155727 | BZ102: 0.002992840836 | CA102: 0.003052207814 | CB102: 0.003109793736 | CC102: 0.003165745241 | CD102: 0.003220220843 | CE102: 0.003273391579 | CF102: 0.003325441539 | CG102: 0.00337656831 | CH102: 0.003426983308
B103: 81 | C103: 3.968129313e-06 | D103: -0.05714039633 | E103: -0.07473038318 | F103: -0.08618392978 | G103: -0.09582145588 | H103: -0.09962543059 | I103: -0.1040498297 | J103: -0.105341187 | K103: -0.1101923808 | L103: -0.1133816844 | M103: -0.1153922787 | N103: -0.115927119 | O103: -0.1151441961 | P103: -0.1146049633 | Q103: -0.11518383 | R103: -0.1132022757 | S103: -0.1106033002 | T103: -0.1084994294 | U103: -0.1056016677 | V103: -0.1033839091 | W103: -0.09979912597 | X103: -0.09701959059 | Y103: -0.09365951564 | Z103: -0.08948676463 | AA103: -0.08507813845 | AB103: -0.08228707304 | AC103: -0.07799697997 | AD103: -0.07341276614 | AE103: -0.06849665995 | AF103: -0.06332998887 | AG103: -0.05943918999 | AH103: -0.05432680838 | AI103: -0.04929947221 | AJ103: -0.04409210601 | AK103: -0.03828254227 | AL103: -0.03259673757 | AM103: -0.02636320016 | AN103: -0.01970787307 | AO103: -0.01326018528 | AP103: -0.006782292264 | AQ103: 0 | AS103: 0.0081 | AU103: 0.0003754972134 | AV103: 0.0005023616653 | AW103: 0.0006084934676 | AX103: 0.0007044237774 | AY103: 0.0007944359814 | AZ103: 0.000880909521 | BA103: 0.0009654092249 | BB103: 0.001049084048 | BC103: 0.00113284534 | BD103: 0.001217457461 | BE103: 0.001303588299 | BF103: 0.001391839621 | BG103: 0.001482565554 | BH103: 0.001575299917 | BI103: 0.00166939175 | BJ103: 0.00176420156 | BK103: 0.00185908907 | BL103: 0.00195340074 | BM103: 0.002046457977 | BN103: 0.002137546218 | BO103: 0.002226055278 | BP103: 0.002311931791 | BQ103: 0.002395244751 | BR103: 0.002476044021 | BS103: 0.002554365723 | BT103: 0.002630236271 | BU103: 0.002703675447 | BV103: 0.002774698807 | BW103: 0.002843334545 | BX103: 0.002909671793 | BY103: 0.002973820585 | BZ103: 0.003035898887 | CA103: 0.003096033884 | CB103: 0.003154363062 | CC103: 0.003211035133 | CD103: 0.003266210807 | CE103: 0.003320063452 | CF103: 0.003372779634 | CG103: 0.003424559564 | CH103: 0.003475617434
B104: 82 | C104: 3.968129313e-06 | D104: -0.05678468679 | E104: -0.07471023633 | F104: -0.08612891886 | G104: -0.09576240151 | H104: -0.09917150885 | I104: -0.1038926085 | J104: -0.105235994 | K104: -0.1100197783 | L104: -0.1132908075 | M104: -0.1152189043 | N104: -0.1158146066 | O104: -0.1148412791 | P104: -0.1143690402 | Q104: -0.1150534022 | R104: -0.113110132 | S104: -0.11050398 | T104: -0.1084085853 | U104: -0.1055092939 | V104: -0.1029839195 | W104: -0.09966244984 | X104: -0.09689483431 | Y104: -0.09330331498 | Z104: -0.08942422273 | AA104: -0.08504030011 | AB104: -0.08211642756 | AC104: -0.07774669459 | AD104: -0.07339234963 | AE104: -0.06842339229 | AF104: -0.06316948304 | AG104: -0.0593253228 | AH104: -0.05420029639 | AI104: -0.04911220115 | AJ104: -0.04388333721 | AK104: -0.03821360702 | AL104: -0.03251448058 | AM104: -0.02633695185 | AN104: -0.01970241511 | AO104: -0.0132279705 | AP104: -0.006777487492 | AQ104: 0 | AS104: 0.0082 | AU104: 0.0003818638924 | AV104: 0.0005106992075 | AW104: 0.000618446481 | AX104: 0.0007158153793 | AY104: 0.0008071611984 | AZ104: 0.000894902711 | BA104: 0.0009806300853 | BB104: 0.00106551043 | BC104: 0.001150469111 | BD104: 0.001236281907 | BE104: 0.001323626395 | BF104: 0.00141311282 | BG104: 0.001505100114 | BH104: 0.00159911548 | BI104: 0.001694498972 | BJ104: 0.001790602471 | BK104: 0.001886777253 | BL104: 0.001982361314 | BM104: 0.002076667414 | BN104: 0.002168972005 | BO104: 0.002258657428 | BP104: 0.002345670277 | BQ104: 0.002430081072 | BR104: 0.00251194088 | BS104: 0.002591286796 | BT104: 0.002668146031 | BU104: 0.002742539041 | BV104: 0.002814481965 | BW104: 0.002884003714 | BX104: 0.002951194889 | BY104: 0.00301616723 | BZ104: 0.003079040472 | CA104: 0.003139943657 | CB104: 0.003199016233 | CC104: 0.003256408983 | CD104: 0.003312284818 | CE104: 0.003366819439 | CF104: 0.00342020189 | CG104: 0.003472635006 | CH104: 0.003524335759
B105: 83 | C105: 3.968129313e-06 | D105: -0.05677233077 | E105: -0.07470801358 | F105: -0.08603574659 | G105: -0.09536048868 | H105: -0.09866956235 | I105: -0.103892216 | J105: -0.1051653078 | K105: -0.1099691906 | L105: -0.1132014579 | M105: -0.114973863 | N105: -0.1157367538 | O105: -0.1144135449 | P105: -0.114046229 | Q105: -0.1149737555 | R105: -0.1131078701 | S105: -0.1103390295 | T105: -0.1080057632 | U105: -0.1054602748 | V105: -0.1029319955 | W105: -0.09951661577 | X105: -0.09613085649 | Y105: -0.093184208 | Z105: -0.08927279653 | AA105: -0.0849486902 | AB105: -0.08186504753 | AC105: -0.07757042333 | AD105: -0.07318348575 | AE105: -0.06836062155 | AF105: -0.06314054622 | AG105: -0.05929122509 | AH105: -0.05417121687 | AI105: -0.04909945604 | AJ105: -0.04378138004 | AK105: -0.03806919696 | AL105: -0.0324760697 | AM105: -0.02628625486 | AN105: -0.01969779675 | AO105: -0.01321572302 | AP105: -0.006761550599 | AQ105: 0 | AS105: 0.0083 | AU105: 0.0003882612307 | AV105: 0.0005190737696 | AW105: 0.0006284411833 | AX105: 0.0007272524787 | AY105: 0.0008199351843 | AZ105: 0.0009089475707 | BA105: 0.000995905245 | BB105: 0.001081993536 | BC105: 0.001168151866 | BD105: 0.001255167467 | BE105: 0.001343727628 | BF105: 0.001434451084 | BG105: 0.001527701583 | BH105: 0.001622999698 | BI105: 0.001719676486 | BJ105: 0.0018170752 | BK105: 0.001914538658 | BL105: 0.002011396394 | BM105: 0.002106952522 | BN105: 0.002200474507 | BO105: 0.002291337219 | BP105: 0.002379487227 | BQ105: 0.002464996584 | BR105: 0.002547917573 | BS105: 0.002628288268 | BT105: 0.002706136686 | BU105: 0.002781483962 | BV105: 0.002854346826 | BW105: 0.002924754909 | BX105: 0.00299280029 | BY105: 0.003058596414 | BZ105: 0.003122264796 | CA105: 0.003183936336 | CB105: 0.003243752446 | CC105: 0.003301865984 | CD105: 0.003358442065 | CE105: 0.003413658725 | CF105: 0.003467707489 | CG105: 0.003520793816 | CH105: 0.003573137457
B106: 84 | C106: 3.968129313e-06 | D106: -0.05670823681 | E106: -0.07452665645 | F106: -0.08586481933 | G106: -0.09527293411 | H106: -0.09847715976 | I106: -0.1035312533 | J106: -0.1048782528 | K106: -0.1099184167 | L106: -0.1130325286 | M106: -0.1145912167 | N106: -0.1157108381 | O106: -0.1143060146 | P106: -0.1139936037 | Q106: -0.1147347303 | R106: -0.1130646069 | S106: -0.1102229418 | T106: -0.1074531207 | U106: -0.1052532085 | V106: -0.1028955361 | W106: -0.09947328762 | X106: -0.09608632189 | Y106: -0.09316156038 | Z106: -0.08923886654 | AA106: -0.08482728494 | AB106: -0.08159009709 | AC106: -0.07741151952 | AD106: -0.07307356427 | AE106: -0.06834258461 | AF106: -0.06312206869 | AG106: -0.05913353518 | AH106: -0.05416814663 | AI106: -0.04908993214 | AJ106: -0.04369797666 | AK106: -0.03794743152 | AL106: -0.03246538294 | AM106: -0.02623580464 | AN106: -0.01968004132 | AO106: -0.01319572987 | AP106: -0.006714423037 | AQ106: 0 | AS106: 0.0084 | AU106: 0.0003946890404 | AV106: 0.0005274851104 | AW106: 0.0006384772916 | AX106: 0.0007387347575 | AY106: 0.0008327575898 | AZ106: 0.000923043722 | BA106: 0.0010112343 | BB106: 0.001098532934 | BC106: 0.001185893152 | BD106: 0.001274113665 | BE106: 0.001363891497 | BF106: 0.001455853892 | BG106: 0.001550369416 | BH106: 0.001646952006 | BI106: 0.00174492371 | BJ106: 0.001843619142 | BK106: 0.001942372665 | BL106: 0.002040505344 | BM106: 0.002137312645 | BN106: 0.002232053052 | BO106: 0.002324093967 | BP106: 0.002413381944 | BQ106: 0.00249999058 | BR106: 0.002583973382 | BS106: 0.002665369411 | BT106: 0.002744207499 | BU106: 0.002820509465 | BV106: 0.002894292637 | BW106: 0.002965587371 | BX106: 0.003034487228 | BY106: 0.003101107368 | BZ106: 0.003165571082 | CA106: 0.003228011139 | CB106: 0.003288570914 | CC106: 0.003347405346 | CD106: 0.003404681753 | CE106: 0.003460580513 | CF106: 0.003515295628 | CG106: 0.003569035188 | CH106: 0.003622021724
B107: 85 | C107: 3.968129313e-06 | D107: -0.05663596486 | E107: -0.07427736455 | F107: -0.08582386087 | G107: -0.09515889045 | H107: -0.09809519459 | I107: -0.1033098868 | J107: -0.1048625802 | K107: -0.109677531 | L107: -0.1126949595 | M107: -0.1145882554 | N107: -0.1156173861 | O107: -0.1142717369 | P107: -0.1139697057 | Q107: -0.1145884324 | R107: -0.1128188858 | S107: -0.1098633355 | T107: -0.1069100301 | U107: -0.1050958028 | V107: -0.1027695037 | W107: -0.09935521104 | X107: -0.09607580681 | Y107: -0.09312919258 | Z107: -0.08914435853 | AA107: -0.08480445621 | AB107: -0.08140158039 | AC107: -0.07736000749 | AD107: -0.07294214617 | AE107: -0.06820753035 | AF107: -0.06306618612 | AG107: -0.05889724928 | AH107: -0.05415220554 | AI107: -0.04906364068 | AJ107: -0.04366415429 | AK107: -0.03794585152 | AL107: -0.03245353273 | AM107: -0.02617828143 | AN107: -0.01966576534 | AO107: -0.01317582219 | AP107: -0.006712734947 | AQ107: 0 | AS107: 0.0085 | AU107: 0.0004011471374 | AV107: 0.0005359329933 | AW107: 0.0006485545287 | AX107: 0.0007502619042 | AY107: 0.0008456280724 | AZ107: 0.0009371907948 | BA107: 0.001026616853 | BB107: 0.001115128205 | BC107: 0.001203692524 | BD107: 0.001293120034 | BE107: 0.001384117515 | BF107: 0.001477320734 | BG107: 0.001573103084 | BH107: 0.001670971853 | BI107: 0.001770240071 | BJ107: 0.001870233709 | BK107: 0.001970278665 | BL107: 0.002069687537 | BM107: 0.002167747144 | BN107: 0.002263706985 | BO107: 0.002356927005 | BP107: 0.002447353747 | BQ107: 0.002535062367 | BR107: 0.002620107604 | BS107: 0.002702529514 | BT107: 0.002782357749 | BU107: 0.002859614822 | BV107: 0.002934318661 | BW107: 0.003006500357 | BX107: 0.003076254956 | BY107: 0.003143699336 | BZ107: 0.003208958572 | CA107: 0.003272167301 | CB107: 0.003333470868 | CC107: 0.003393026295 | CD107: 0.003451003107 | CE107: 0.003507584022 | CF107: 0.003562965526 | CG107: 0.003617358337 | CH107: 0.003670987769
B108: 86 | C108: 3.968129313e-06 | D108: -0.05659341777 | E108: -0.07417295794 | F108: -0.08576132464 | G108: -0.09504357566 | H108: -0.09806442323 | I108: -0.1031573136 | J108: -0.1047536271 | K108: -0.1096196285 | L108: -0.1125497386 | M108: -0.1145842298 | N108: -0.1155205304 | O108: -0.1142188357 | P108: -0.1136695744 | Q108: -0.1144272758 | R108: -0.1125001561 | S108: -0.1098190378 | T108: -0.10678697 | U108: -0.1047796879 | V108: -0.1027246911 | W108: -0.09929401345 | X108: -0.09598330829 | Y108: -0.09292752744 | Z108: -0.08912805527 | AA108: -0.08475692068 | AB108: -0.08104860105 | AC108: -0.0772320831 | AD108: -0.07281359984 | AE108: -0.06818989733 | AF108: -0.06302232564 | AG108: -0.05880640397 | AH108: -0.05410872231 | AI108: -0.04893590602 | AJ108: -0.04364306699 | AK108: -0.03791121315 | AL108: -0.0324370489 | AM108: -0.02608472835 | AN108: -0.01965795883 | AO108: -0.01314896165 | AP108: -0.006710571325 | AQ108: 0 | AS108: 0.0086 | AU108: 0.0004076353411 | AV108: 0.0005444171863 | AW108: 0.000658672623 | AX108: 0.0007618336132 | AY108: 0.0008585462967 | AZ108: 0.0009513884261 | BA108: 0.001042052516 | BB108: 0.001131778936 | BC108: 0.001221549546 | BD108: 0.001312186116 | BE108: 0.001404405202 | BF108: 0.001498851109 | BG108: 0.001595902064 | BH108: 0.001695058697 | BI108: 0.001795625011 | BJ108: 0.001896918322 | BK108: 0.001998256063 | BL108: 0.002098942361 | BM108: 0.00219825539 | BN108: 0.002295435666 | BO108: 0.002389835677 | BP108: 0.002481401971 | BQ108: 0.002570211268 | BR108: 0.002656319551 | BS108: 0.002739767878 | BT108: 0.00282058673 | BU108: 0.002898799319 | BV108: 0.002974424179 | BW108: 0.003047493141 | BX108: 0.00311810274 | BY108: 0.003186371579 | BZ108: 0.00325242652 | CA108: 0.003316404074 | CB108: 0.003378451556 | CC108: 0.003438728075 | CD108: 0.003497405365 | CE108: 0.003554668489 | CF108: 0.003610716415 | CG108: 0.003665762494 | CH108: 0.003720034821
B109: 87 | C109: 3.968129313e-06 | D109: -0.0565451361 | E109: -0.07415105828 | F109: -0.08568412528 | G109: -0.09487693506 | H109: -0.09790912181 | I109: -0.1027278382 | J109: -0.1045646925 | K109: -0.1094036706 | L109: -0.1123137283 | M109: -0.1145685745 | N109: -0.1153159577 | O109: -0.114195362 | P109: -0.1135876714 | Q109: -0.1143978739 | R109: -0.1124581599 | S109: -0.109544836 | T109: -0.1067167109 | U109: -0.104768096 | V109: -0.1020063326 | W109: -0.09927246455 | X109: -0.09527783778 | Y109: -0.09286881055 | Z109: -0.08911127687 | AA109: -0.08469479849 | AB109: -0.0809595502 | AC109: -0.07703998612 | AD109: -0.07280401967 | AE109: -0.06818636181 | AF109: -0.06296025638 | AG109: -0.05880208456 | AH109: -0.05404138925 | AI109: -0.0489213435 | AJ109: -0.04363152329 | AK109: -0.03783995596 | AL109: -0.03228312115 | AM109: -0.02605006311 | AN109: -0.01960759944 | AO109: -0.01310255646 | AP109: -0.006708799617 | AQ109: 0 | AS109: 0.0087 | AU109: 0.0004141534743 | AV109: 0.000552937462 | AW109: 0.0006688313078 | AX109: 0.0007734495849 | AY109: 0.0008715119338 | AZ109: 0.0009656362602 | BA109: 0.001057540909 | BB109: 0.001148484723 | BC109: 0.001239463793 | BD109: 0.001331311463 | BE109: 0.001424754089 | BF109: 0.001520444527 | BG109: 0.001618765847 | BH109: 0.00171921201 | BI109: 0.001821077979 | BJ109: 0.001923672413 | BK109: 0.002026304274 | BL109: 0.002128269218 | BM109: 0.002228836769 | BN109: 0.002327238466 | BO109: 0.002422819342 | BP109: 0.002515525962 | BQ109: 0.00260543662 | BR109: 0.002692608549 | BS109: 0.002777083823 | BT109: 0.002858893752 | BU109: 0.002938062257 | BV109: 0.003014608485 | BW109: 0.003088565009 | BX109: 0.003160029863 | BY109: 0.003229123374 | BZ109: 0.0032959742 | CA109: 0.003360720724 | CB109: 0.00342351224 | CC109: 0.003484509945 | CD109: 0.003543887785 | CE109: 0.003601833166 | CF109: 0.003658547545 | CG109: 0.003714246905 | CH109: 0.003769162125
B110: 88 | C110: 3.968129313e-06 | D110: -0.05632958744 | E110: -0.07405189294 | F110: -0.08558839588 | G110: -0.09482972379 | H110: -0.09742092114 | I110: -0.1027062583 | J110: -0.1043401424 | K110: -0.1092242294 | L110: -0.11227403 | M110: -0.1143402944 | N110: -0.1152378475 | O110: -0.1139519776 | P110: -0.113503075 | Q110: -0.1143786777 | R110: -0.1122204677 | S110: -0.1094684216 | T110: -0.1063408037 | U110: -0.1040567398 | V110: -0.1019984989 | W110: -0.09918738314 | X110: -0.09486120526 | Y110: -0.09282695867 | Z110: -0.08906935521 | AA110: -0.08459310661 | AB110: -0.08086860132 | AC110: -0.07702621894 | AD110: -0.07279810466 | AE110: -0.06818333575 | AF110: -0.0629405269 | AG110: -0.0587109053 | AH110: -0.05380780314 | AI110: -0.04872563378 | AJ110: -0.04351498399 | AK110: -0.03778305174 | AL110: -0.03213326724 | AM110: -0.02604151449 | AN110: -0.01959878377 | AO110: -0.01308954753 | AP110: -0.006706554785 | AQ110: 0 | AS110: 0.0088 | AU110: 0.0004207013632 | AV110: 0.0005614935972 | AW110: 0.0006790303219 | AX110: 0.0007851095254 | AY110: 0.0008845246609 | AZ110: 0.0009799339482 | BA110: 0.001073081658 | BB110: 0.001165245168 | BC110: 0.001257434845 | BD110: 0.001350495636 | BE110: 0.001445163715 | BF110: 0.001542100509 | BG110: 0.001641693933 | BH110: 0.001743431272 | BI110: 0.001846598439 | BJ110: 0.001950495429 | BK110: 0.002054422728 | BL110: 0.002157667519 | BM110: 0.002259490678 | BN110: 0.002359114768 | BO110: 0.002455877372 | BP110: 0.00254972508 | BQ110: 0.002640737772 | BR110: 0.00272897394 | BS110: 0.002814476678 | BT110: 0.002897278138 | BU110: 0.002977402953 | BV110: 0.003054870887 | BW110: 0.003129715265 | BX110: 0.003202035621 | BY110: 0.003271954014 | BZ110: 0.003339600897 | CA110: 0.003405116536 | CB110: 0.003468652201 | CC110: 0.003530371181 | CD110: 0.003590449637 | CE110: 0.003649077323 | CF110: 0.003706458183 | CG110: 0.003762810834 | CH110: 0.003818368941
B111: 89 | C111: 3.968129313e-06 | D111: -0.05624151332 | E111: -0.07404953948 | F111: -0.08550041376 | G111: -0.09471399446 | H111: -0.09740352029 | I111: -0.1026201408 | J111: -0.1042425343 | K111: -0.109173597 | L111: -0.1122701637 | M111: -0.1140076305 | N111: -0.1151757331 | O111: -0.1136308581 | P111: -0.1133543506 | Q111: -0.1141484594 | R111: -0.1121038641 | S111: -0.1094410884 | T111: -0.106301218 | U111: -0.1040230339 | V111: -0.1017277509 | W111: -0.09891972328 | X111: -0.09479324336 | Y111: -0.09249348734 | Z111: -0.08891063611 | AA111: -0.08452367449 | AB111: -0.08071492381 | AC111: -0.07681263739 | AD111: -0.07264741314 | AE111: -0.06811913998 | AF111: -0.06289225551 | AG111: -0.05870174289 | AH111: -0.05351973291 | AI111: -0.04867346904 | AJ111: -0.04345463993 | AK111: -0.03778231635 | AL111: -0.03206698535 | AM111: -0.02590070094 | AN111: -0.01957240375 | AO111: -0.01307899374 | AP111: -0.006701875409 | AQ111: 0 | AS111: 0.0089 | AU111: 0.0004272788371 | AV111: 0.0005700853728 | AW111: 0.0006892694087 | AX111: 0.0007968131466 | AY111: 0.0008975841618 | AZ111: 0.0009942811481 | BA111: 0.001088674397 | BB111: 0.001182059885 | BC111: 0.001275462293 | BD111: 0.001369738202 | BE111: 0.001465633629 | BF111: 0.001563818583 | BG111: 0.001664685832 | BH111: 0.001767715974 | BI111: 0.001872185864 | BJ111: 0.001977386825 | BK111: 0.002082610865 | BL111: 0.002187136689 | BM111: 0.002290216529 | BN111: 0.00239106397 | BO111: 0.002489009153 | BP111: 0.0025839987 | BQ111: 0.002676114087 | BR111: 0.002765415077 | BS111: 0.002851945789 | BT111: 0.002935739226 | BU111: 0.003016820736 | BV111: 0.00309521071 | BW111: 0.003170943227 | BX111: 0.003244119326 | BY111: 0.003314862804 | BZ111: 0.003383305915 | CA111: 0.003449590806 | CB111: 0.003513870731 | CC111: 0.003576311072 | CD111: 0.003637090208 | CE111: 0.003696400242 | CF111: 0.003754447608 | CG111: 0.003811453559 | CH111: 0.003867654545
B112: 90 | C112: 3.968129313e-06 | D112: -0.05624009853 | E112: -0.0740177478 | F112: -0.08549784853 | G112: -0.09468913256 | H112: -0.09718796146 | I112: -0.1025597946 | J112: -0.1040631464 | K112: -0.1091541792 | L112: -0.1122220845 | M112: -0.1140004705 | N112: -0.1149022312 | O112: -0.1134452619 | P112: -0.1133540608 | Q112: -0.1140207665 | R112: -0.1119882605 | S112: -0.1091070207 | T112: -0.1056316521 | U112: -0.1038666778 | V112: -0.1016638181 | W112: -0.09890504372 | X112: -0.09476202088 | Y112: -0.09233461484 | Z112: -0.08889481554 | AA112: -0.08451185494 | AB112: -0.08068706701 | AC112: -0.07663707261 | AD112: -0.07264644746 | AE112: -0.06804578072 | AF112: -0.06285843154 | AG112: -0.0586154845 | AH112: -0.05350817697 | AI112: -0.04856028507 | AJ112: -0.04344429283 | AK112: -0.03776934825 | AL112: -0.03196142513 | AM112: -0.02589906611 | AN112: -0.01955932834 | AO112: -0.01304332725 | AP112: -0.006700023942 | AQ112: 0 | AS112: 0.009 | AU112: 0.0004338857286 | AV112: 0.000578712574 | AW112: 0.0006995483167 | AX112: 0.0008085601655 | AY112: 0.0009106901259 | AZ112: 0.001008677524 | BA112: 0.001104318768 | BB112: 0.001198928491 | BC112: 0.001293545734 | BD112: 0.001389038741 | BE112: 0.00148616339 | BF112: 0.001585598288 | BG112: 0.001687741064 | BH112: 0.001792065618 | BI112: 0.001897839738 | BJ112: 0.002004346068 | BK112: 0.002110868134 | BL112: 0.002216676164 | BM112: 0.002321013743 | BN112: 0.002423085481 | BO112: 0.00252221408 | BP112: 0.002618346206 | BQ112: 0.002711564942 | BR112: 0.002801931327 | BS112: 0.002889490515 | BT112: 0.002974276365 | BU112: 0.003056314949 | BV112: 0.003135627291 | BW112: 0.003212248224 | BX112: 0.003286280304 | BY112: 0.003357849066 | BZ112: 0.003427088568 | CA112: 0.003494142846 | CB112: 0.003559167138 | CC112: 0.003622328923 | CD112: 0.0036838088 | CE112: 0.003743801223 | CF112: 0.003802515117 | CG112: 0.003860174372 | CH112: 0.003917018227
B113: 91 | C113: 3.968129313e-06 | D113: -0.05616464189 | E113: -0.07382746273 | F113: -0.08503250225 | G113: -0.09460271389 | H113: -0.0967736221 | I113: -0.1024513315 | J113: -0.1040419288 | K113: -0.1086210087 | L113: -0.1117326025 | M113: -0.1137802235 | N113: -0.1137628057 | O113: -0.113349317 | P113: -0.1132660642 | Q113: -0.113925796 | R113: -0.1119734693 | S113: -0.1090801465 | T113: -0.105545103 | U113: -0.1033502121 | V113: -0.1015223255 | W113: -0.09883182911 | X113: -0.09467862206 | Y113: -0.09228823324 | Z113: -0.08868281713 | AA113: -0.08442240017 | AB113: -0.08060618698 | AC113: -0.07651814353 | AD113: -0.07253682529 | AE113: -0.0679674293 | AF113: -0.06279701243 | AG113: -0.05837850264 | AH113: -0.05340636937 | AI113: -0.04854993325 | AJ113: -0.04343607514 | AK113: -0.03763816922 | AL113: -0.03195741875 | AM113: -0.02583979224 | AN113: -0.01953392781 | AO113: -0.01304184456 | AP113: -0.006688091938 | AQ113: 0 | AS113: 0.0091 | AU113: 0.0004405218733 | AV113: 0.0005873749898 | AW113: 0.0007098667987 | AX113: 0.0008203503048 | AY113: 0.0009238422486 | AZ113: 0.001023122747 | BA113: 0.001120014417 | BB113: 0.001215850613 | BC113: 0.001311684774 | BD113: 0.001408396836 | BE113: 0.001506752562 | BF113: 0.001607439171 | BG113: 0.001710859156 | BH113: 0.001816479714 | BI113: 0.001923559554 | BJ113: 0.002031372635 | BK113: 0.002139193997 | BL113: 0.00224628539 | BM113: 0.002351881752 | BN113: 0.002455178722 | BO113: 0.002555491563 | BP113: 0.002652766998 | BQ113: 0.002747089725 | BR113: 0.002838522069 | BS113: 0.002927110227 | BT113: 0.00301288892 | BU113: 0.003095884951 | BV113: 0.003176119978 | BW113: 0.003253629603 | BX113: 0.003328517894 | BY113: 0.003400912133 | BZ113: 0.003470948188 | CA113: 0.003538771983 | CB113: 0.003604540745 | CC113: 0.003668424054 | CD113: 0.003730604728 | CE113: 0.003791279578 | CF113: 0.00385066002 | CG113: 0.003908972583 | CH113: 0.003966459293
B114: 92 | C114: 3.968129313e-06 | D114: -0.05598720462 | E114: -0.07366788365 | F114: -0.08493302193 | G114: -0.09459045578 | H114: -0.09671801233 | I114: -0.1023829423 | J114: -0.103896598 | K114: -0.1086189751 | L114: -0.111204761 | M114: -0.1135930336 | N114: -0.1133075039 | O114: -0.1130283168 | P114: -0.1132562144 | Q114: -0.1133845601 | R114: -0.1117901025 | S114: -0.1090791813 | T114: -0.10553567 | U114: -0.1031401843 | V114: -0.1013204346 | W114: -0.09843533031 | X114: -0.09446301004 | Y114: -0.0920720458 | Z114: -0.08867399072 | AA114: -0.08442003621 | AB114: -0.08033744176 | AC114: -0.07649563427 | AD114: -0.07249163377 | AE114: -0.06782702817 | AF114: -0.06267991748 | AG114: -0.05818128977 | AH114: -0.0533668309 | AI114: -0.04840566008 | AJ114: -0.04341107193 | AK114: -0.03758160982 | AL114: -0.03195109262 | AM114: -0.02583384094 | AN114: -0.01952004634 | AO114: -0.0130391285 | AP114: -0.006684926892 | AQ114: 0 | AS114: 0.0092 | AU114: 0.0004471871096 | AV114: 0.000596072413 | AW114: 0.0007202246124 | AX114: 0.0008321832919 | AY114: 0.000937040231 | AZ114: 0.001037616494 | BA114: 0.001135761 | BB114: 0.001232825883 | BC114: 0.001329879025 | BD114: 0.001427812082 | BE114: 0.001527400721 | BF114: 0.001629340787 | BG114: 0.001734039647 | BH114: 0.001840957783 | BI114: 0.001949344815 | BJ114: 0.002058466013 | BK114: 0.002167587927 | BL114: 0.002275963826 | BM114: 0.002382820002 | BN114: 0.002487343123 | BO114: 0.002588841022 | BP114: 0.002687260486 | BQ114: 0.002782687836 | BR114: 0.002875186695 | BS114: 0.002964804308 | BT114: 0.003051576266 | BU114: 0.003135530109 | BV114: 0.003216688137 | BW114: 0.00329508672 | BX114: 0.003370831448 | BY114: 0.003444051354 | BZ114: 0.003514884117 | CA114: 0.003583477555 | CB114: 0.003649990887 | CC114: 0.003714595795 | CD114: 0.003777477322 | CE114: 0.003838834633 | CF114: 0.00389888164 | CG114: 0.003957847511 | CH114: 0.004015977063
B115: 93 | C115: 3.968129313e-06 | D115: -0.05582056279 | E115: -0.07358700505 | F115: -0.08490141789 | G115: -0.09440340244 | H115: -0.0967123375 | I115: -0.1023282144 | J115: -0.1035804258 | K115: -0.1085878079 | L115: -0.1108197359 | M115: -0.1135458094 | N115: -0.1132032879 | O115: -0.113018098 | P115: -0.1129359541 | Q115: -0.1131552118 | R115: -0.1115454223 | S115: -0.1090654188 | T115: -0.1054611156 | U115: -0.1029756901 | V115: -0.1011297931 | W115: -0.09828519493 | X115: -0.09421472082 | Y115: -0.09178937071 | Z115: -0.08858443777 | AA115: -0.08413147454 | AB115: -0.0803254308 | AC115: -0.07645997901 | AD115: -0.07244592851 | AE115: -0.06769251765 | AF115: -0.06259834837 | AG115: -0.0581428481 | AH115: -0.05333394947 | AI115: -0.04828071625 | AJ115: -0.04338659421 | AK115: -0.03757313335 | AL115: -0.031909619 | AM115: -0.0257608409 | AN115: -0.01951462813 | AO115: -0.01302759468 | AP115: -0.0066804002 | AQ115: 0 | AS115: 0.0093 | AU115: 0.0004538812789 | AV115: 0.0006048046403 | AW115: 0.0007306215196 | AX115: 0.0008440588593 | AY115: 0.0009502837795 | AZ115: 0.001052158446 | BA115: 0.001151558176 | BB115: 0.001249853942 | BC115: 0.001348128107 | BD115: 0.00144728408 | BE115: 0.001548107449 | BF115: 0.001651302702 | BG115: 0.001757282084 | BH115: 0.001865499353 | BI115: 0.001975195035 | BJ115: 0.0020856257 | BK115: 0.002196049405 | BL115: 0.002305710939 | BM115: 0.002413827947 | BN115: 0.002519578128 | BO115: 0.002622261889 | BP115: 0.00272182609 | BQ115: 0.002818358687 | BR115: 0.002911924607 | BS115: 0.003002572153 | BT115: 0.003090337792 | BU115: 0.003175249806 | BV115: 0.003257331141 | BW115: 0.003336618945 | BX115: 0.003413220332 | BY115: 0.003487266089 | BZ115: 0.003558895711 | CA115: 0.003628258915 | CB115: 0.003695516914 | CC115: 0.003760843493 | CD115: 0.003824425924 | CE115: 0.003886465728 | CF115: 0.003947179315 | CG115: 0.004006798492 | CH115: 0.004065570868
B116: 94 | C116: 3.968129313e-06 | D116: -0.05575338541 | E116: -0.07334140114 | F116: -0.08484485288 | G116: -0.09437709888 | H116: -0.09602669221 | I116: -0.1021431168 | J116: -0.103313119 | K116: -0.1084785582 | L116: -0.1107609267 | M116: -0.1135337942 | N116: -0.1123434868 | O116: -0.112857518 | P116: -0.1127076578 | Q116: -0.113140508 | R116: -0.1115108356 | S116: -0.1090434688 | T116: -0.1054493364 | U116: -0.1029670205 | V116: -0.1010332325 | W116: -0.0982417257 | X116: -0.09391400481 | Y116: -0.09174760652 | Z116: -0.08856801936 | AA116: -0.08412948673 | AB116: -0.08022207851 | AC116: -0.07644299483 | AD116: -0.07236586831 | AE116: -0.06763556905 | AF116: -0.06242938418 | AG116: -0.05804551393 | AH116: -0.05327956206 | AI116: -0.04825390105 | AJ116: -0.04329488891 | AK116: -0.03745977257 | AL116: -0.03182964545 | AM116: -0.02568538953 | AN116: -0.01948749569 | AO116: -0.01301593983 | AP116: -0.006663650476 | AQ116: 0 | AS116: 0.0094 | AU116: 0.0004606042254 | AV116: 0.0006135714717 | AW116: 0.0007410572866 | AX116: 0.0008559767445 | AY116: 0.000963572606 | AZ116: 0.001066748294 | BA116: 0.001167405613 | BB116: 0.001266934435 | BC116: 0.001366431648 | BD116: 0.001466812436 | BE116: 0.001568872335 | BF116: 0.001673324486 | BG116: 0.001780586021 | BH116: 0.001890103964 | BI116: 0.002001109734 | BJ116: 0.002112851201 | BK116: 0.002224577923 | BL116: 0.002335526206 | BM116: 0.002444905052 | BN116: 0.00255188319 | BO116: 0.002655753606 | BP116: 0.002756463243 | BQ116: 0.002854101702 | BR116: 0.002948735222 | BS116: 0.003040413171 | BT116: 0.003129172898 | BU116: 0.003215043434 | BV116: 0.00329804838 | BW116: 0.003378225661 | BX116: 0.003455683922 | BY116: 0.00353055571 | BZ116: 0.00360298234 | CA116: 0.003673115428 | CB116: 0.003741118185 | CC116: 0.003807166506 | CD116: 0.003871449889 | CE116: 0.003934172216 | CF116: 0.003995552394 | CG116: 0.004055824875 | CH116: 0.004115240056
B117: 95 | C117: 3.968129313e-06 | D117: -0.05573234496 | E117: -0.07332918328 | F117: -0.0846987871 | G117: -0.09401161799 | H117: -0.09601971171 | I117: -0.1020792288 | J117: -0.1032523495 | K117: -0.1084668161 | L117: -0.1105895901 | M117: -0.1133563497 | N117: -0.1115889174 | O117: -0.1121316071 | P117: -0.1126918971 | Q117: -0.1128188346 | R117: -0.1113427684 | S117: -0.1084987535 | T117: -0.1053558913 | U117: -0.1028411579 | V117: -0.1010182651 | W117: -0.09822166628 | X117: -0.09391287448 | Y117: -0.09163484246 | Z117: -0.08827240934 | AA117: -0.08407298998 | AB117: -0.07998174366 | AC117: -0.07642789975 | AD117: -0.07220563594 | AE117: -0.06759600693 | AF117: -0.06224672394 | AG117: -0.05799612178 | AH117: -0.05327451171 | AI117: -0.04818746337 | AJ117: -0.04307927961 | AK117: -0.037361707 | AL117: -0.03182866065 | AM117: -0.02565632597 | AN117: -0.01945889448 | AO117: -0.01301075133 | AP117: -0.006643694262 | AQ117: 0 | AS117: 0.0095 | AU117: 0.000467355796 | AV117: 0.0006223727111 | AW117: 0.0007515316835 | AX117: 0.0008679366894 | AY117: 0.0009769064272 | AZ117: 0.001081385731 | BA117: 0.001183302984 | BB117: 0.001284067017 | BC117: 0.001384789281 | BD117: 0.001486396768 | BE117: 0.001589694977 | BF117: 0.001695405721 | BG117: 0.001803951021 | BH117: 0.001914771161 | BI117: 0.002027088445 | BJ117: 0.002140142032 | BK117: 0.002253172982 | BL117: 0.002365409117 | BM117: 0.002476050792 | BN117: 0.002584257773 | BO117: 0.002689315626 | BP117: 0.002791171388 | BQ117: 0.002889916315 | BR117: 0.002985617965 | BS117: 0.003078326779 | BT117: 0.003168080995 | BU117: 0.003254910401 | BV117: 0.003338839253 | BW117: 0.003419906261 | BX117: 0.003498221609 | BY117: 0.003573919603 | BZ117: 0.003647143383 | CA117: 0.003718046471 | CB117: 0.003786794076 | CC117: 0.003853564204 | CD117: 0.003918548585 | CE117: 0.003981953462 | CF117: 0.004044000242 | CG117: 0.004104926018 | CH117: 0.004164983983
B118: 96 | C118: 3.968129313e-06 | D118: -0.05534944487 | E118: -0.07325099197 | F118: -0.08461923412 | G118: -0.09394424511 | H118: -0.09579872359 | I118: -0.1020593495 | J118: -0.1031685407 | K118: -0.1084135671 | L118: -0.1102854928 | M118: -0.1129929245 | N118: -0.111088208 | O118: -0.1120076081 | P118: -0.1126884421 | Q118: -0.1125495542 | R118: -0.1113088993 | S118: -0.1084907447 | T118: -0.1052015862 | U118: -0.1025717118 | V118: -0.1010041945 | W118: -0.0981082212 | X118: -0.09346848333 | Y118: -0.09158834673 | Z118: -0.08793696202 | AA118: -0.08397669886 | AB118: -0.07981164311 | AC118: -0.07629438466 | AD118: -0.07218549573 | AE118: -0.06749559759 | AF118: -0.06224447331 | AG118: -0.0579330668 | AH118: -0.05322285707 | AI118: -0.04815811015 | AJ118: -0.04303864536 | AK118: -0.03731828315 | AL118: -0.03175782339 | AM118: -0.02563901734 | AN118: -0.0194475702 | AO118: -0.01299810486 | AP118: -0.006643043938 | AQ118: 0 | AS118: 0.0096 | AU118: 0.0004741358403 | AV118: 0.0006312081654 | AW118: 0.0007620444848 | AX118: 0.0008799384405 | AY118: 0.0009902849653 | AZ118: 0.001096070457 | BA118: 0.001199249967 | BB118: 0.001301251345 | BC118: 0.001403200646 | BD118: 0.001506036697 | BE118: 0.001610574981 | BF118: 0.001717545994 | BG118: 0.001827376656 | BH118: 0.0019395005 | BI118: 0.002053130706 | BJ118: 0.002167497718 | BK118: 0.002281834094 | BL118: 0.002395359168 | BM118: 0.002507264653 | BN118: 0.00261670135 | BO118: 0.002722947413 | BP118: 0.002825949979 | BQ118: 0.00292580197 | BR118: 0.003022572272 | BS118: 0.003116312407 | BT118: 0.003207061507 | BU118: 0.003294850121 | BV118: 0.00337970317 | BW118: 0.003461660153 | BX118: 0.003540832793 | BY118: 0.003617357165 | BZ118: 0.003691378235 | CA118: 0.003763051433 | CB118: 0.003832543973 | CC118: 0.003900035971 | CD118: 0.003965721393 | CE118: 0.004029808844 | CF118: 0.004092522232 | CG118: 0.004154101297 | CH118: 0.004214802023
B119: 97 | C119: 3.968129313e-06 | D119: -0.05515803672 | E119: -0.07313399928 | F119: -0.08455519719 | G119: -0.09385676085 | H119: -0.09565597534 | I119: -0.1019576374 | J119: -0.1031607278 | K119: -0.1083952627 | L119: -0.1100777921 | M119: -0.1128895761 | N119: -0.1109850882 | O119: -0.1118330561 | P119: -0.1125435456 | Q119: -0.1124041995 | R119: -0.1110214499 | S119: -0.1082738725 | T119: -0.1051902281 | U119: -0.1024737158 | V119: -0.1009740738 | W119: -0.09806583579 | X119: -0.09320516812 | Y119: -0.09157814989 | Z119: -0.08772878383 | AA119: -0.08378861857 | AB119: -0.07967407027 | AC119: -0.07615555241 | AD119: -0.07215058435 | AE119: -0.06742821368 | AF119: -0.0621916881 | AG119: -0.0579210367 | AH119: -0.05319827367 | AI119: -0.04809771385 | AJ119: -0.04302177347 | AK119: -0.03728161079 | AL119: -0.03173212184 | AM119: -0.02559703402 | AN119: -0.01940869397 | AO119: -0.01297123101 | AP119: -0.006616101989 | AQ119: 0 | AS119: 0.0097 | AU119: 0.0004809442102 | AV119: 0.0006400776452 | AW119: 0.0007725954687 | AX119: 0.0008919817489 | AY119: 0.001003707947 | AZ119: 0.001110802175 | BA119: 0.001215246246 | BB119: 0.001318487086 | BC119: 0.001421665391 | BD119: 0.001525731852 | BE119: 0.001631511957 | BF119: 0.0017397449 | BG119: 0.001850862504 | BH119: 0.001964291543 | BI119: 0.002079236065 | BJ119: 0.002194917793 | BK119: 0.002310560777 | BL119: 0.002425375866 | BM119: 0.002538546129 | BN119: 0.002649213405 | BO119: 0.002756648439 | BP119: 0.002860798481 | BQ119: 0.002961758124 | BR119: 0.003059597592 | BS119: 0.003154369494 | BT119: 0.003246113867 | BU119: 0.003334862023 | BV119: 0.003420639553 | BW119: 0.003503486751 | BX119: 0.003583516886 | BY119: 0.003660867802 | BZ119: 0.003735686298 | CA119: 0.003808129715 | CB119: 0.003878367272 | CC119: 0.003946581201 | CD119: 0.004012967704 | CE119: 0.004077737751 | CF119: 0.004141117753 | CG119: 0.004203350095 | CH119: 0.004264693557
B120: 98 | C120: 3.968129313e-06 | D120: -0.05506000248 | E120: -0.07303701856 | F120: -0.08415642532 | G120: -0.09316994607 | H120: -0.09559764613 | I120: -0.1019063451 | J120: -0.1030822439 | K120: -0.1081936155 | L120: -0.1098702354 | M120: -0.1126765757 | N120: -0.110522661 | O120: -0.1118271689 | P120: -0.1123790586 | Q120: -0.1123587864 | R120: -0.1109656598 | S120: -0.1081959633 | T120: -0.1050031101 | U120: -0.102036697 | V120: -0.1008646101 | W120: -0.09783206875 | X120: -0.09311646512 | Y120: -0.09128747599 | Z120: -0.08771979271 | AA120: -0.08378858416 | AB120: -0.07963632565 | AC120: -0.07612232524 | AD120: -0.07202723145 | AE120: -0.06720367876 | AF120: -0.06212857761 | AG120: -0.05774854346 | AH120: -0.0531178167 | AI120: -0.04796742928 | AJ120: -0.04301036042 | AK120: -0.03727518941 | AL120: -0.03154871985 | AM120: -0.02558877851 | AN120: -0.01939474753 | AO120: -0.01294230525 | AP120: -0.006576827653 | AQ120: 0 | AS120: 0.0098 | AU120: 0.0004877807604 | AV120: 0.0006489809641 | AW120: 0.0007831844171 | AX120: 0.0009040663699 | AY120: 0.001017175104 | AZ120: 0.001125580598 | BA120: 0.001231291513 | BB120: 0.00133577391 | BC120: 0.001440183168 | BD120: 0.001545481869 | BE120: 0.001652505526 | BF120: 0.001762002043 | BG120: 0.001874408152 | BH120: 0.001989143862 | BI120: 0.002105404077 | BJ120: 0.002222401797 | BK120: 0.002339352559 | BL120: 0.002455458727 | BM120: 0.002569894724 | BN120: 0.002681793431 | BO120: 0.002790418188 | BP120: 0.002895716365 | BQ120: 0.00299778424 | BR120: 0.003096693382 | BS120: 0.003192497492 | BT120: 0.003285237518 | BU120: 0.003374945544 | BV120: 0.003461647835 | BW120: 0.003545385485 | BX120: 0.003626273312 | BY120: 0.003704450935 | BZ120: 0.003780066989 | CA120: 0.003853280728 | CB120: 0.003924263382 | CC120: 0.0039931993 | CD120: 0.004060286921 | CE120: 0.004125739584 | CF120: 0.004189786202 | CG120: 0.004252671809 | CH120: 0.00431465798
B121: 99 | C121: 3.968129313e-06 | D121: -0.05487817711 | E121: -0.0728811406 | F121: -0.08413206759 | G121: -0.09273132322 | H121: -0.09544224769 | I121: -0.1018651694 | J121: -0.1027344878 | K121: -0.108154339 | L121: -0.1098485102 | M121: -0.1126503371 | N121: -0.1105008222 | O121: -0.1115939542 | P121: -0.1123301611 | Q121: -0.1117591243 | R121: -0.1108307315 | S121: -0.1081869191 | T121: -0.1044352874 | U121: -0.1018507567 | V121: -0.1007542182 | W121: -0.09782374047 | X121: -0.09307306617 | Y121: -0.09125826944 | Z121: -0.08753776043 | AA121: -0.08376333506 | AB121: -0.07961606891 | AC121: -0.07604125669 | AD121: -0.07192038641 | AE121: -0.0671672 | AF121: -0.06173950099 | AG121: -0.05761950583 | AH121: -0.05309005142 | AI121: -0.047876615 | AJ121: -0.04298728367 | AK121: -0.03708248036 | AL121: -0.03147731921 | AM121: -0.02558563762 | AN121: -0.01939186157 | AO121: -0.01292712201 | AP121: -0.006576005732 | AQ121: 0 | AS121: 0.0099 | AU121: 0.0004946453479 | AV121: 0.0006579179388 | AW121: 0.000793811116 | AX121: 0.0009161920628 | AY121: 0.001030686173 | AZ121: 0.001140405438 | BA121: 0.001247385461 | BB121: 0.001353111493 | BC121: 0.001458753636 | BD121: 0.00156528639 | BE121: 0.001673555312 | BF121: 0.00178431703 | BG121: 0.001898013194 | BH121: 0.002014057035 | BI121: 0.002131634308 | BJ121: 0.002249949281 | BK121: 0.002368208978 | BL121: 0.002485607274 | BM121: 0.00260130995 | BN121: 0.002714440929 | BO121: 0.002824256151 | BP121: 0.002930703116 | BQ121: 0.003033879795 | BR121: 0.003133859108 | BS121: 0.003230695862 | BT121: 0.003324431915 | BU121: 0.003415100133 | BV121: 0.00350272746 | BW121: 0.003587355793 | BX121: 0.003669101504 | BY121: 0.003748105994 | BZ121: 0.003824519734 | CA121: 0.003898503897 | CB121: 0.003970231724 | CC121: 0.004039889686 | CD121: 0.00410767846 | CE121: 0.004173813755 | CF121: 0.00423852699 | CG121: 0.004302065848 | CH121: 0.004364694699
B122: 100 | C122: 3.968129313e-06 | D122: -0.05480964206 | E122: -0.07277815093 | F122: -0.08412517853 | G122: -0.09222446587 | H122: -0.09541531311 | I122: -0.1015998155 | J122: -0.1027125165 | K122: -0.1080744102 | L122: -0.1095832868 | M122: -0.1125624553 | N122: -0.1104763634 | O122: -0.1111259435 | P122: -0.1117631203 | Q122: -0.1116777759 | R122: -0.1105378655 | S122: -0.1078779722 | T122: -0.1044271213 | U122: -0.1018497258 | V122: -0.1005555578 | W122: -0.09778955306 | X122: -0.09305378803 | Y122: -0.09125681359 | Z122: -0.08738019725 | AA122: -0.08375024577 | AB122: -0.07960938319 | AC122: -0.07590962236 | AD122: -0.07171058651 | AE122: -0.06698824692 | AF122: -0.06173217947 | AG122: -0.05756273565 | AH122: -0.05307894754 | AI122: -0.04786129715 | AJ122: -0.0428835969 | AK122: -0.03704717001 | AL122: -0.03133711047 | AM122: -0.02557578889 | AN122: -0.01932423861 | AO122: -0.0129012704 | AP122: -0.006568583125 | AQ122: 0 | AS122: 0.01 | AU122: 0.0005015378319 | AV122: 0.0006668883893 | AW122: 0.0008044753546 | AX122: 0.0009283585913 | AY122: 0.001044240893 | AZ122: 0.001155276417 | BA122: 0.001263527792 | BB122: 0.001370499519 | BC122: 0.001477376461 | BD122: 0.001585145064 | BE122: 0.001694660947 | BF122: 0.001806689479 | BG122: 0.00192167723 | BH122: 0.002039030647 | BI122: 0.002157926328 | BJ122: 0.002277559802 | BK122: 0.002397129578 | BL122: 0.002515821041 | BM122: 0.002632791329 | BN122: 0.002747155411 | BO122: 0.00285816183 | BP122: 0.002965758227 | BQ122: 0.003070044272 | BR122: 0.003171094249 | BS122: 0.003268964072 | BT122: 0.003363696522 | BU122: 0.003455325249 | BV122: 0.00354387788 | BW122: 0.003629397123 | BX122: 0.003712000907 | BY122: 0.003791832418 | BZ122: 0.003869043969 | CA122: 0.003943798653 | CB122: 0.004016271727 | CC122: 0.004086651784 | CD122: 0.004155141744 | CE122: 0.004221959686 | CF122: 0.004287339537 | CG122: 0.004351531629 | CH122: 0.004414803129
B123: 101 | C123: 3.968129313e-06 | D123: -0.05455194425 | E123: -0.07267658342 | F123: -0.08382749143 | G123: -0.09219102755 | H123: -0.09512409879 | I123: -0.1014943328 | J123: -0.1026883459 | K123: -0.1079015598 | L123: -0.1095569666 | M123: -0.1125438174 | N123: -0.1104235513 | O123: -0.1110719761 | P123: -0.111660762 | Q123: -0.1115283042 | R123: -0.1102227627 | S123: -0.1078196991 | T123: -0.1043525146 | U123: -0.101660036 | V123: -0.100542107 | W123: -0.09773021495 | X123: -0.09280582445 | Y123: -0.09074656409 | Z123: -0.08717533014 | AA123: -0.08366449917 | AB123: -0.07960456752 | AC123: -0.07561044343 | AD123: -0.07157445468 | AE123: -0.06689974494 | AF123: -0.06167949097 | AG123: -0.05752119843 | AH123: -0.0530411808 | AI123: -0.04785246288 | AJ123: -0.04278554871 | AK123: -0.0370333714 | AL123: -0.03129150421 | AM123: -0.02544944203 | AN123: -0.01932362089 | AO123: -0.01289101675 | AP123: -0.006549835479 | AQ123: 0 | AS123: 0.0101 | AU123: 0.0005084580743 | AV123: 0.0006758921384 | AW123: 0.0008151769257 | AX123: 0.0009405657227 | AY123: 0.001057839011 | AZ123: 0.001170193259 | BA123: 0.001279718212 | BB123: 0.001387937675 | BC123: 0.001496051313 | BD123: 0.001605057544 | BE123: 0.00171582207 | BF123: 0.001829119013 | BG123: 0.001945399868 | BH123: 0.002064064293 | BI123: 0.002184279717 | BJ123: 0.002305232926 | BK123: 0.002426113912 | BL123: 0.002546099568 | BM123: 0.002664338391 | BN123: 0.002779936396 | BO123: 0.002892134735 | BP123: 0.003000881198 | BQ123: 0.003106277165 | BR123: 0.003208398291 | BS123: 0.003307301603 | BT123: 0.003403030813 | BU123: 0.003495620359 | BV123: 0.003585098558 | BW123: 0.003671508933 | BX123: 0.003754970975 | BY123: 0.003835629658 | BZ123: 0.003913639141 | CA123: 0.003989164441 | CB123: 0.004062382833 | CC123: 0.004133485034 | CD123: 0.00420267621 | CE123: 0.004270176812 | CF123: 0.004336223274 | CG123: 0.004401068582 | CH123: 0.0044649827
B124: 102 | C124: 3.968129313e-06 | D124: -0.0543742961 | E124: -0.07243488412 | F124: -0.08366569442 | G124: -0.09211548948 | H124: -0.09495598106 | I124: -0.1007803155 | J124: -0.1025723771 | K124: -0.1074774968 | L124: -0.1094064945 | M124: -0.1124841919 | N124: -0.1098913338 | O124: -0.1110631459 | P124: -0.1116147551 | Q124: -0.1114272297 | R124: -0.1101824843 | S124: -0.1074439023 | T124: -0.1040330017 | U124: -0.1016374115 | V124: -0.1005104922 | W124: -0.0976626171 | X124: -0.09275585548 | Y124: -0.09073567533 | Z124: -0.08710473584 | AA124: -0.08364209349 | AB124: -0.07955180442 | AC124: -0.07560010584 | AD124: -0.07118493064 | AE124: -0.06688235095 | AF124: -0.06152780335 | AG124: -0.05748273444 | AH124: -0.05286280479 | AI124: -0.04760104555 | AJ124: -0.04271441496 | AK124: -0.03701784028 | AL124: -0.03125444265 | AM124: -0.0254048422 | AN124: -0.01931787396 | AO124: -0.01288932702 | AP124: -0.006549526997 | AQ124: 0 | AS124: 0.0102 | AU124: 0.0005154059389 | AV124: 0.0006849290117 | AW124: 0.0008259156256 | AX124: 0.0009528132285 | AY124: 0.001071480275 | AZ124: 0.001185155693 | BA124: 0.00129595643 | BB124: 0.001405425654 | BC124: 0.001514777868 | BD124: 0.001625023491 | BE124: 0.001737038326 | BF124: 0.00185160526 | BG124: 0.001969180723 | BH124: 0.002089157572 | BI124: 0.002210694061 | BJ124: 0.002332968227 | BK124: 0.002455161541 | BL124: 0.002576442404 | BM124: 0.002695950673 | BN124: 0.002812783412 | BO124: 0.002926174385 | BP124: 0.00303607154 | BQ124: 0.003142577978 | BR124: 0.003245770728 | BS124: 0.003345707944 | BT124: 0.003442434271 | BU124: 0.003535984941 | BV124: 0.003626388968 | BW124: 0.003713690691 | BX124: 0.003798011173 | BY124: 0.003879497175 | BZ124: 0.003958304708 | CA124: 0.004034600715 | CB124: 0.004108564492 | CC124: 0.004180388885 | CD124: 0.004250281304 | CE124: 0.004318464575 | CF124: 0.004385177644 | CG124: 0.004450676147 | CH124: 0.004515232849
B125: 103 | C125: 3.968129313e-06 | D125: -0.05435777928 | E125: -0.07230596616 | F125: -0.08352609248 | G125: -0.09161952275 | H125: -0.09489033058 | I125: -0.1006483044 | J125: -0.1025119682 | K125: -0.1073290714 | L125: -0.1091769556 | M125: -0.1124210365 | N125: -0.1098108565 | O125: -0.1110305422 | P125: -0.1115361421 | Q125: -0.1109971406 | R125: -0.109536486 | S125: -0.107362068 | T125: -0.1035403275 | U125: -0.1010248543 | V125: -0.1004775489 | W125: -0.09762974206 | X125: -0.09274362136 | Y125: -0.09048478633 | Z125: -0.08710023217 | AA125: -0.08320263519 | AB125: -0.07944605224 | AC125: -0.07528840586 | AD125: -0.07100177446 | AE125: -0.06680048304 | AF125: -0.06151205574 | AG125: -0.05747722668 | AH125: -0.05279185746 | AI125: -0.04747962805 | AJ125: -0.04251357841 | AK125: -0.0369662328 | AL125: -0.03124055503 | AM125: -0.0254015579 | AN125: -0.01931592776 | AO125: -0.01288277886 | AP125: -0.006541652963 | AQ125: 0 | AS125: 0.0103 | AU125: 0.0005223812917 | AV125: 0.0006939988378 | AW125: 0.000836691254 | AX125: 0.0009651008838 | AY125: 0.001085164439 | AZ125: 0.001200163453 | BA125: 0.001312242162 | BB125: 0.001422963154 | BC125: 0.001533555808 | BD125: 0.001645042571 | BE125: 0.001758309365 | BF125: 0.001874147857 | BG125: 0.001993019416 | BH125: 0.002114310091 | BI125: 0.002237168952 | BJ125: 0.002360765284 | BK125: 0.002484272033 | BL125: 0.002606849107 | BM125: 0.002727627722 | BN125: 0.002845695996 | BO125: 0.002960280307 | BP125: 0.003071328771 | BQ125: 0.00317894622 | BR125: 0.003283211066 | BS125: 0.003384182593 | BT125: 0.003481906387 | BU125: 0.003576418482 | BV125: 0.00366774859 | BW125: 0.003755941876 | BX125: 0.003841120972 | BY125: 0.003923434437 | BZ125: 0.004003040135 | CA125: 0.004080106937 | CB125: 0.004154816165 | CC125: 0.004227362793 | CD125: 0.00429795648 | CE125: 0.004366822429 | CF125: 0.004434202098 | CG125: 0.004500353774 | CH125: 0.004565553024
B126: 104 | C126: 3.968129313e-06 | D126: -0.05414038364 | E126: -0.07190605589 | F126: -0.08341409706 | G126: -0.09073539684 | H126: -0.09476741074 | I126: -0.1006397771 | J126: -0.1024637286 | K126: -0.1071233745 | L126: -0.10915247 | M126: -0.1123718135 | N126: -0.1097999477 | O126: -0.1109371518 | P126: -0.1113859951 | Q126: -0.1107815365 | R126: -0.1093740426 | S126: -0.1072783532 | T126: -0.1035158009 | U126: -0.1010155141 | V126: -0.10040795 | W126: -0.09756584265 | X126: -0.09260851967 | Y126: -0.09043882158 | Z126: -0.08705192668 | AA126: -0.08318674621 | AB126: -0.07936135021 | AC126: -0.07518237978 | AD126: -0.07096640344 | AE126: -0.06677587089 | AF126: -0.06150596861 | AG126: -0.05741076291 | AH126: -0.05274452318 | AI126: -0.04747440732 | AJ126: -0.04236169573 | AK126: -0.03694737953 | AL126: -0.03122412896 | AM126: -0.0253665585 | AN126: -0.01930696072 | AO126: -0.01288094524 | AP126: -0.006530146017 | AQ126: 0 | AS126: 0.0104 | AU126: 0.000529384001 | AV126: 0.0007031014481 | AW126: 0.0008475036135 | AX126: 0.0009774284672 | AY126: 0.00109889126 | AZ126: 0.001215216276 | BA126: 0.001328575128 | BB126: 0.001440549879 | BC126: 0.00155238482 | BD126: 0.001665114455 | BE126: 0.001779634843 | BF126: 0.001896746445 | BG126: 0.002016915574 | BH126: 0.002139521464 | BI126: 0.002263703992 | BJ126: 0.002388623686 | BK126: 0.002513444963 | BL126: 0.002637319239 | BM126: 0.002759369092 | BN126: 0.002878673691 | BO126: 0.002994452036 | BP126: 0.00310665242 | BQ126: 0.003215381411 | BR126: 0.003320718817 | BS126: 0.003422725057 | BT126: 0.003521446664 | BU126: 0.003616920478 | BV126: 0.003709176917 | BW126: 0.003798261974 | BX126: 0.003884299857 | BY126: 0.003967440925 | BZ126: 0.004047844898 | CA126: 0.004125682582 | CB126: 0.004201137321 | CC126: 0.004274406226 | CD126: 0.004345701205 | CE126: 0.004415249838 | CF126: 0.004483296096 | CG126: 0.004550100923 | CH126: 0.004615942683
B127: 105 | C127: 3.968129313e-06 | D127: -0.05387126407 | E127: -0.07190251441 | F127: -0.08312029158 | G127: -0.0907146563 | H127: -0.0947379101 | I127: -0.1004586173 | J127: -0.1024565211 | K127: -0.1067766002 | L127: -0.1090820074 | M127: -0.1123555194 | N127: -0.1095875986 | O127: -0.1103516442 | P127: -0.1110902621 | Q127: -0.1103174849 | R127: -0.1093628885 | S127: -0.1072641473 | T127: -0.1032007458 | U127: -0.1009947958 | V127: -0.100382377 | W127: -0.0971663991 | X127: -0.09256876116 | Y127: -0.09022624766 | Z127: -0.08704613611 | AA127: -0.08305556033 | AB127: -0.0792317931 | AC127: -0.07516869697 | AD127: -0.07089978102 | AE127: -0.06675023765 | AF127: -0.06150036308 | AG127: -0.05740767486 | AH127: -0.05267679094 | AI127: -0.04738978326 | AJ127: -0.04228903492 | AK127: -0.03685001481 | AL127: -0.03121969185 | AM127: -0.02534928993 | AN127: -0.01923319427 | AO127: -0.01286830981 | AP127: -0.006525899802 | AQ127: 0 | AS127: 0.0105 | AU127: 0.000536413937 | AV127: 0.0007122366764 | AW127: 0.0008583525103 | AX127: 0.000989795761 | AY127: 0.001112660499 | AZ127: 0.001230313906 | BA127: 0.001344955053 | BB127: 0.001458185535 | BC127: 0.001571264597 | BD127: 0.001685238819 | BE127: 0.001801014423 | BF127: 0.001919400672 | BG127: 0.002040868831 | BH127: 0.00216479131 | BI127: 0.002290298787 | BJ127: 0.002416543027 | BK127: 0.002542679915 | BL127: 0.002667852374 | BM127: 0.002791174344 | BN127: 0.002911716049 | BO127: 0.003028689115 | BP127: 0.003142042021 | BQ127: 0.003251883081 | BR127: 0.003358293503 | BS127: 0.003461334851 | BT127: 0.00356105461 | BU127: 0.003657490433 | BV127: 0.003750673448 | BW127: 0.003840650481 | BX127: 0.003927547319 | BY127: 0.004011516127 | BZ127: 0.004092718482 | CA127: 0.00417132713 | CB127: 0.004247527442 | CC127: 0.004321518662 | CD127: 0.004393514953 | CE127: 0.004463746275 | CF127: 0.004532459111 | CG127: 0.004599917062 | CH127: 0.004666401293
B128: 106 | C128: 3.968129313e-06 | D128: -0.05384140136 | E128: -0.07189596268 | F128: -0.0830622651 | G128: -0.09070798106 | H128: -0.09469886446 | I128: -0.1004435849 | J128: -0.1016981842 | K128: -0.106768176 | L128: -0.1089898723 | M128: -0.112336813 | N128: -0.1095836344 | O128: -0.1101372643 | P128: -0.1106926725 | Q128: -0.1102646015 | R128: -0.1093579491 | S128: -0.10723783 | T128: -0.1031891262 | U128: -0.100904837 | V128: -0.0999178672 | W128: -0.09716063762 | X128: -0.09252255979 | Y128: -0.09014176699 | Z128: -0.08692036997 | AA128: -0.08304447408 | AB128: -0.07922489547 | AC128: -0.07507336641 | AD128: -0.07080471041 | AE128: -0.06671148769 | AF128: -0.06139722834 | AG128: -0.05739003497 | AH128: -0.05265340045 | AI128: -0.04738604699 | AJ128: -0.04224448552 | AK128: -0.03675588354 | AL128: -0.03118118275 | AM128: -0.02524099852 | AN128: -0.01919701953 | AO128: -0.01286696989 | AP128: -0.006505194474 | AQ128: 0 | AS128: 0.0106 | AU128: 0.0005434709722 | AV128: 0.0007214043594 | AW128: 0.0008692377533 | AX128: 0.001002202551 | AY128: 0.001126471923 | AZ128: 0.001245456088 | BA128: 0.001361381667 | BB128: 0.001475869837 | BC128: 0.001590194834 | BD128: 0.001705415347 | BE128: 0.001822447772 | BF128: 0.001942110191 | BG128: 0.002064878827 | BH128: 0.002190119256 | BI128: 0.002316952951 | BJ128: 0.002444522907 | BK128: 0.002571976478 | BL128: 0.00269844809 | BM128: 0.002823043047 | BN128: 0.00294482263 | BO128: 0.003062991096 | BP128: 0.003177497118 | BQ128: 0.003288450764 | BR128: 0.003395934653 | BS128: 0.003500011498 | BT128: 0.003600729743 | BU128: 0.00369812786 | BV128: 0.003792237692 | BW128: 0.0038831069 | BX128: 0.003970862859 | BY128: 0.004055659539 | BZ128: 0.004137660382 | CA128: 0.004217040072 | CB128: 0.004293986013 | CC128: 0.004368699587 | CD128: 0.004441397209 | CE128: 0.00451231122 | CF128: 0.004581690621 | CG128: 0.004649801669 | CH128: 0.004716928331
B129: 107 | C129: 3.968129313e-06 | D129: -0.05381175957 | E129: -0.07174734456 | F129: -0.08285687722 | G129: -0.09069346246 | H129: -0.09466558248 | I129: -0.1001223306 | J129: -0.1013966005 | K129: -0.1064995101 | L129: -0.1089460459 | M129: -0.1122721303 | N129: -0.1092459628 | O129: -0.1099691941 | P129: -0.1104668416 | Q129: -0.1101463176 | R129: -0.1084543522 | S129: -0.1072038658 | T129: -0.1030190374 | U129: -0.1008479106 | V129: -0.09973054069 | W129: -0.09696431705 | X129: -0.09241408492 | Y129: -0.09013319728 | Z129: -0.08680337046 | AA129: -0.08298147332 | AB129: -0.07909575867 | AC129: -0.07501547205 | AD129: -0.07077880162 | AE129: -0.06667139258 | AF129: -0.06137545471 | AG129: -0.05735963031 | AH129: -0.05250942398 | AI129: -0.04732487684 | AJ129: -0.04220912769 | AK129: -0.03673770196 | AL129: -0.03115182239 | AM129: -0.02520700102 | AN129: -0.01917116535 | AO129: -0.01286331896 | AP129: -0.006505086476 | AQ129: 0 | AS129: 0.0107 | AU129: 0.0005505549806 | AV129: 0.0007306043362 | AW129: 0.0008801591546 | AX129: 0.001014648627 | AY129: 0.001140325299 | AZ129: 0.001260642573 | BA129: 0.001377854701 | BB129: 0.001493602501 | BC129: 0.001609175235 | BD129: 0.001725643726 | BE129: 0.001843934563 | BF129: 0.001964874662 | BG129: 0.002088945207 | BH129: 0.002215504935 | BI129: 0.002343666104 | BJ129: 0.002472562936 | BK129: 0.002601334248 | BL129: 0.002729105973 | BM129: 0.002854974777 | BN129: 0.002977993001 | BO129: 0.003097357537 | BP129: 0.003213017261 | BQ129: 0.003325084005 | BR129: 0.003433641804 | BS129: 0.003538754529 | BT129: 0.00364047159 | BU129: 0.003738832281 | BV129: 0.003833869164 | BW129: 0.003925630745 | BX129: 0.004014245985 | BY129: 0.004099870667 | BZ129: 0.0041826701 | CA129: 0.00426282091 | CB129: 0.004340512534 | CC129: 0.004415948495 | CD129: 0.004489347464 | CE129: 0.004560944165 | CF129: 0.004630990116 | CG129: 0.004699754232 | CH129: 0.004767523284
B130: 108 | C130: 3.968129313e-06 | D130: -0.05375762079 | E130: -0.07173052174 | F130: -0.0828401418 | G130: -0.09016066918 | H130: -0.09452305722 | I130: -0.100042386 | J130: -0.101386789 | K130: -0.1064530192 | L130: -0.1089242196 | M130: -0.1121430162 | N130: -0.1091920271 | O130: -0.1098401839 | P130: -0.1104651723 | Q130: -0.1092275215 | R130: -0.1083459971 | S130: -0.1070336273 | T130: -0.1029149978 | U130: -0.1008253871 | V130: -0.09951291681 | W130: -0.0962715848 | X130: -0.09238969041 | Y130: -0.09003468813 | Z130: -0.08653296578 | AA130: -0.08284950376 | AB130: -0.07889937522 | AC130: -0.07498135181 | AD130: -0.07071936951 | AE130: -0.06666665657 | AF130: -0.06129360502 | AG130: -0.05723556595 | AH130: -0.05249865831 | AI130: -0.04729485592 | AJ130: -0.04215351388 | AK130: -0.03672130591 | AL130: -0.03113757229 | AM130: -0.02519177091 | AN130: -0.01916233132 | AO130: -0.01284621676 | AP130: -0.006502968993 | AQ130: 0 | AS130: 0.0108 | AU130: 0.0005576658385 | AV130: 0.0007398364485 | AW130: 0.0008911165291 | AX130: 0.00102713378 | AY130: 0.001154220401 | AZ130: 0.001275873116 | BA130: 0.001394373895 | BB130: 0.001511383249 | BC130: 0.001628205507 | BD130: 0.001745923647 | BE130: 0.001865474475 | BF130: 0.00198769375 | BG130: 0.002113067622 | BH130: 0.002240947985 | BI130: 0.002370437872 | BJ130: 0.002500662726 | BK130: 0.002630752829 | BL130: 0.002759825616 | BM130: 0.002886969117 | BN130: 0.003011226736 | BO130: 0.003131788003 | BP130: 0.003248602008 | BQ130: 0.003361782355 | BR130: 0.003471414502 | BS130: 0.003577563485 | BT130: 0.003680279685 | BU130: 0.003779603224 | BV130: 0.003875567391 | BW130: 0.003968221536 | BX130: 0.004057696215 | BY130: 0.004144149025 | BZ130: 0.004227747147 | CA130: 0.00430866915 | CB130: 0.00438710651 | CC130: 0.004463264889 | CD130: 0.004537365219 | CE130: 0.004609644609 | CF130: 0.004680357094 | CG130: 0.004749774247 | CH130: 0.004818185645
B131: 109 | C131: 3.968129313e-06 | D131: -0.05374830692 | E131: -0.07145121305 | F131: -0.08281176706 | G131: -0.09009497293 | H131: -0.09443952979 | I131: -0.09957177757 | J131: -0.1012406124 | K131: -0.1061435573 | L131: -0.108901999 | M131: -0.1120872439 | N131: -0.1091296462 | O131: -0.1098361836 | P131: -0.1104066826 | Q131: -0.1088863508 | R131: -0.1082735434 | S131: -0.1068059454 | T131: -0.102903709 | U131: -0.1008231845 | V131: -0.09938132756 | W131: -0.09608389363 | X131: -0.09231990467 | Y131: -0.08967455434 | Z131: -0.08650147664 | AA131: -0.08263034169 | AB131: -0.07878026239 | AC131: -0.07483797467 | AD131: -0.0706759982 | AE131: -0.06663527191 | AF131: -0.06120652493 | AG131: -0.0571346105 | AH131: -0.05244260936 | AI131: -0.04722742193 | AJ131: -0.04203617004 | AK131: -0.03671257206 | AL131: -0.03110028092 | AM131: -0.0251916953 | AN131: -0.01916042672 | AO131: -0.01283510358 | AP131: -0.006494382606 | AQ131: 0 | AS131: 0.0109 | AU131: 0.0005648034241 | AV131: 0.0007491005401 | AW131: 0.0009021096947 | AX131: 0.001039657807 | AY131: 0.001168157004 | AZ131: 0.001291147475 | BA131: 0.001410938989 | BB131: 0.001529211808 | BC131: 0.001647285359 | BD131: 0.001766254808 | BE131: 0.00188706719 | BF131: 0.002010567123 | BG131: 0.00213724573 | BH131: 0.002266448051 | BI131: 0.002397267887 | BJ131: 0.0025288219 | BK131: 0.00266023183 | BL131: 0.002790606617 | BM131: 0.002919025656 | BN131: 0.003044523416 | BO131: 0.003166282069 | BP131: 0.003284250925 | BQ131: 0.003398545372 | BR131: 0.003509252299 | BS131: 0.003616437912 | BT131: 0.003720153569 | BU131: 0.003820440228 | BV131: 0.003917331905 | BW131: 0.004010878803 | BX131: 0.004101213075 | BY131: 0.004188494136 | BZ131: 0.004272891041 | CA131: 0.004354584309 | CB131: 0.004433767454 | CC131: 0.004510648282 | CD131: 0.004585449986 | CE131: 0.00465841206 | CF131: 0.00472979106 | CG131: 0.004799861219 | CH131: 0.004868914918
B132: 110 | C132: 3.968129313e-06 | D132: -0.05367411702 | E132: -0.07143863974 | F132: -0.08250958222 | G132: -0.08995388497 | H132: -0.09439599715 | I132: -0.09956614775 | J132: -0.100794076 | K132: -0.1060047429 | L132: -0.1087081318 | M132: -0.1120586735 | N132: -0.109100839 | O132: -0.1096628096 | P132: -0.1101723236 | Q132: -0.1088746655 | R132: -0.1081829176 | S132: -0.1067259424 | T132: -0.1028440127 | U132: -0.1007655433 | V132: -0.09918039049 | W132: -0.09538122992 | X132: -0.09216414682 | Y132: -0.08940382473 | Z132: -0.08649710599 | AA132: -0.08255412328 | AB132: -0.07871768714 | AC132: -0.07480253851 | AD132: -0.07065670749 | AE132: -0.06659957296 | AF132: -0.06118891781 | AG132: -0.05704693381 | AH132: -0.05220742042 | AI132: -0.04717372907 | AJ132: -0.04192455233 | AK132: -0.03662213647 | AL132: -0.0310088621 | AM132: -0.02517518539 | AN132: -0.01910374246 | AO132: -0.01282474632 | AP132: -0.006489909035 | AQ132: 0 | AS132: 0.011 | AU132: 0.0005719676171 | AV132: 0.0007583964576 | AW132: 0.000913138472 | AX132: 0.001052220506 | AY132: 0.001182134887 | AZ132: 0.001306465411 | BA132: 0.00142754973 | BB132: 0.001547087907 | BC132: 0.00166641451 | BD132: 0.001786636911 | BE132: 0.001908712398 | BF132: 0.002033494458 | BG132: 0.002161479193 | BH132: 0.002292004781 | BI132: 0.002424155787 | BJ132: 0.002557040083 | BK132: 0.002689770868 | BL132: 0.002821448583 | BM132: 0.002951143992 | BN132: 0.003077882628 | BO132: 0.003200839312 | BP132: 0.003319963585 | BQ132: 0.003435372624 | BR132: 0.003547154755 | BS132: 0.003655377364 | BT132: 0.003760092793 | BU132: 0.003861342836 | BV132: 0.003959162247 | BW132: 0.004053602081 | BX132: 0.004144796096 | BY132: 0.004232905529 | BZ132: 0.004318101311 | CA132: 0.004400565912 | CB132: 0.004480494889 | CC132: 0.004558098194 | CD132: 0.004633601281 | CE132: 0.004707246034 | CF132: 0.004779291529 | CG132: 0.004850014661 | CH132: 0.004919710614
B133: 111 | C133: 3.968129313e-06 | D133: -0.05365717569 | E133: -0.07141848538 | F133: -0.08241084612 | G133: -0.08949588444 | H133: -0.0943855135 | I133: -0.09956499767 | J133: -0.1007454445 | K133: -0.1059758086 | L133: -0.1085722357 | M133: -0.1120350018 | N133: -0.1090216407 | O133: -0.1096089996 | P133: -0.1100206717 | Q133: -0.1087623415 | R133: -0.1080667149 | S133: -0.1064741028 | T133: -0.1028116299 | U133: -0.1007645893 | V133: -0.0991599688 | W133: -0.09532676906 | X133: -0.09216355486 | Y133: -0.08934739207 | Z133: -0.08647466654 | AA133: -0.08217811489 | AB133: -0.07850512509 | AC133: -0.07472241366 | AD133: -0.07055466839 | AE133: -0.06652158684 | AF133: -0.06106414852 | AG133: -0.05704634241 | AH133: -0.05215021268 | AI133: -0.04717045778 | AJ133: -0.04190626137 | AK133: -0.03646232823 | AL133: -0.03098047026 | AM133: -0.02513376228 | AN133: -0.01907249371 | AO133: -0.01282005317 | AP133: -0.00648962227 | AQ133: 0 | AS133: 0.0111 | AU133: 0.0005791582992 | AV133: 0.0007677240496 | AW133: 0.0009242026842 | AX133: 0.001064821679 | AY133: 0.001196153835 | AZ133: 0.001321826692 | BA133: 0.001444205867 | BB133: 0.001565011282 | BC133: 0.001685592678 | BD133: 0.001807069663 | BE133: 0.001930409792 | BF133: 0.002056475435 | BG133: 0.002185767679 | BH133: 0.002317617833 | BI133: 0.002451101215 | BJ133: 0.002585316908 | BK133: 0.002719369563 | BL133: 0.002852351126 | BM133: 0.002983323727 | BN133: 0.003111303967 | BO133: 0.003235459321 | BP133: 0.003355739568 | BQ133: 0.003472263682 | BR133: 0.003585121437 | BS133: 0.003694381404 | BT133: 0.003800096912 | BU133: 0.003902310601 | BV133: 0.004001057964 | BW133: 0.004096390916 | BX133: 0.004188444822 | BY133: 0.004277382742 | BZ133: 0.004363377491 | CA133: 0.004446613491 | CB133: 0.004527288344 | CC133: 0.004605614152 | CD133: 0.004681818631 | CE133: 0.004756146055 | CF133: 0.004828858024 | CG133: 0.004900234092 | CH133: 0.004970572254
B134: 112 | C134: 3.968129313e-06 | D134: -0.05350606109 | E134: -0.07131268608 | F134: -0.08235992275 | G134: -0.08912679746 | H134: -0.09437038732 | I134: -0.09952123286 | J134: -0.1006709564 | K134: -0.1059229433 | L134: -0.108200549 | M134: -0.112034602 | N134: -0.1090128694 | O134: -0.1094639873 | P134: -0.1099593632 | Q134: -0.1082766126 | R134: -0.1078302559 | S134: -0.1063417252 | T134: -0.1027988681 | U134: -0.1005945419 | V134: -0.09901352727 | W134: -0.09531176148 | X134: -0.09214468165 | Y134: -0.08930017041 | Z134: -0.08638145448 | AA134: -0.0819835494 | AB134: -0.07846158521 | AC134: -0.07469491588 | AD134: -0.07053875082 | AE134: -0.06650296934 | AF134: -0.06104743963 | AG134: -0.05691055357 | AH134: -0.05212363456 | AI134: -0.04714685702 | AJ134: -0.04187815276 | AK134: -0.03633850435 | AL134: -0.03093897981 | AM134: -0.0251274236 | AN134: -0.01901741592 | AO134: -0.01280974451 | AP134: -0.006471077216 | AQ134: 0 | AS134: 0.0112 | AU134: 0.000586375354 | AV134: 0.0007770831671 | AW134: 0.0009353021573 | AX134: 0.001077461131 | AY134: 0.001210213632 | AZ134: 0.001337231085 | BA134: 0.001460907155 | BB134: 0.001582981672 | BC134: 0.001704819589 | BD134: 0.001827552775 | BE134: 0.00195215907 | BF134: 0.00207950974 | BG134: 0.00221011086 | BH134: 0.002343286865 | BI134: 0.002478103822 | BJ134: 0.002613652013 | BK134: 0.002749027545 | BL134: 0.002883313865 | BM134: 0.00301556447 | BN134: 0.003144787034 | BO134: 0.003270141689 | BP134: 0.003391578459 | BQ134: 0.003509218126 | BR134: 0.00362315192 | BS134: 0.0037334496 | BT134: 0.003840165491 | BU134: 0.003943343082 | BV134: 0.004043018612 | BW134: 0.00413924486 | BX134: 0.004232158798 | BY134: 0.004321925321 | BZ134: 0.004408719123 | CA134: 0.004492726586 | CB134: 0.004574147358 | CC134: 0.004653195691 | CD134: 0.00473010157 | CE134: 0.004805111655 | CF134: 0.004878490074 | CG134: 0.004950519044 | CH134: 0.005021499363
B135: 113 | C135: 3.968129313e-06 | D135: -0.05349237501 | E135: -0.07120663673 | F135: -0.08214986233 | G135: -0.08911795698 | H135: -0.09430287777 | I135: -0.09945092738 | J135: -0.1006321109 | K135: -0.1058626906 | L135: -0.1080072429 | M135: -0.1119857235 | N135: -0.1090091181 | O135: -0.1092595807 | P135: -0.109902343 | Q135: -0.1075895189 | R135: -0.1078222097 | S135: -0.1057394219 | T135: -0.1025419216 | U135: -0.1004913889 | V135: -0.09893013764 | W135: -0.09505195594 | X135: -0.0919673618 | Y135: -0.0892194661 | Z135: -0.08626622373 | AA135: -0.08165820739 | AB135: -0.07834566575 | AC135: -0.07468865483 | AD135: -0.0704852523 | AE135: -0.0664814966 | AF135: -0.06103575704 | AG135: -0.05668283491 | AH135: -0.05209029396 | AI135: -0.04696955168 | AJ135: -0.041798953 | AK135: -0.03632545381 | AL135: -0.0309062831 | AM135: -0.02512394398 | AN135: -0.01900713974 | AO135: -0.0128036741 | AP135: -0.006469080924 | AQ135: 0 | AS135: 0.0113 | AU135: 0.0005936186664 | AV135: 0.0007864736632 | AW135: 0.0009464367198 | AX135: 0.00109013867 | AY135: 0.001224314069 | AZ135: 0.001352678363 | BA135: 0.001477653349 | BB135: 0.001600998819 | BC135: 0.001724094971 | BD135: 0.001848085962 | BE135: 0.001973959934 | BF135: 0.002102597061 | BG135: 0.002234508415 | BH135: 0.002369011546 | BI135: 0.002505163262 | BJ135: 0.002642045043 | BK135: 0.002778744447 | BL135: 0.002914336422 | BM135: 0.003047865836 | BN135: 0.003178331436 | BO135: 0.003304886014 | BP135: 0.003427479851 | BQ135: 0.003546235544 | BR135: 0.003661245784 | BS135: 0.003772581527 | BT135: 0.0038802981 | BU135: 0.003984439847 | BV135: 0.004085043754 | BW135: 0.00418216347 | BX135: 0.004275937583 | BY135: 0.004366532818 | BZ135: 0.004454125758 | CA135: 0.004538904745 | CB135: 0.004621071476 | CC135: 0.004700842356 | CD135: 0.004778449637 | CE135: 0.004854142375 | CF135: 0.004928187218 | CG135: 0.005000869051 | CH135: 0.005072491479
B136: 114 | C136: 3.968129313e-06 | D136: -0.05340146315 | E136: -0.07114041903 | F136: -0.08205512756 | G136: -0.08911483034 | H136: -0.09425008272 | I136: -0.09916869302 | J136: -0.1006123713 | K136: -0.1058336075 | L136: -0.1079269953 | M136: -0.1118329481 | N136: -0.10893339 | O136: -0.1091022858 | P136: -0.1098192856 | Q136: -0.1075108414 | R136: -0.1077702522 | S136: -0.1054842852 | T136: -0.1025006541 | U136: -0.1004403143 | V136: -0.09884958255 | W136: -0.09503245501 | X136: -0.09177457693 | Y136: -0.08896600459 | Z136: -0.08625556082 | AA136: -0.08140568544 | AB136: -0.07833501451 | AC136: -0.07452441405 | AD136: -0.07039793351 | AE136: -0.06646919671 | AF136: -0.0609789289 | AG136: -0.05667933257 | AH136: -0.05203329754 | AI136: -0.04687948567 | AJ136: -0.04176690908 | AK136: -0.03619758883 | AL136: -0.03086939139 | AM136: -0.02507135924 | AN136: -0.01899928692 | AO136: -0.01275534563 | AP136: -0.006455363848 | AQ136: 0 | AS136: 0.0114 | AU136: 0.0006008881234 | AV136: 0.0007958953932 | AW136: 0.0009576062029 | AX136: 0.001102854107 | AY136: 0.001238454938 | AZ136: 0.001368168303 | BA136: 0.001494444211 | BB136: 0.001619062469 | BC136: 0.001743418558 | BD136: 0.001868668944 | BE136: 0.001995812092 | BF136: 0.002125737095 | BG136: 0.002258960026 | BH136: 0.002394791546 | BI136: 0.002532279194 | BJ136: 0.002670495647 | BK136: 0.002808519909 | BL136: 0.002945418429 | BM136: 0.003080227448 | BN136: 0.003211936787 | BO136: 0.003339691904 | BP136: 0.003463443344 | BQ136: 0.003583315529 | BR136: 0.003699402617 | BS136: 0.003811776769 | BT136: 0.003920494317 | BU136: 0.004025600467 | BV136: 0.004127132959 | BW136: 0.004225146314 | BX136: 0.004319780737 | BY136: 0.004411204793 | BZ136: 0.004499596953 | CA136: 0.004585147522 | CB136: 0.00466806025 | CC136: 0.004748553697 | CD136: 0.004826862383 | CE136: 0.004903237759 | CF136: 0.004977949002 | CG136: 0.005051283658 | CH136: 0.005123548142
B137: 115 | C137: 3.968129313e-06 | D137: -0.05331083362 | E137: -0.07113510617 | F137: -0.08191658698 | G137: -0.08863040134 | H137: -0.09413068088 | I137: -0.09847056516 | J137: -0.100481625 | K137: -0.1055832322 | L137: -0.1078587156 | M137: -0.1114727187 | N137: -0.1083522687 | O137: -0.10905275 | P137: -0.1098006911 | Q137: -0.1073027305 | R137: -0.1077356036 | S137: -0.104922478 | T137: -0.1024119003 | U137: -0.1004185248 | V137: -0.09871893462 | W137: -0.09502832443 | X137: -0.09147198764 | Y137: -0.08869017886 | Z137: -0.08614301757 | AA137: -0.08132589568 | AB137: -0.0782297554 | AC137: -0.07452254791 | AD137: -0.07035590959 | AE137: -0.06629435342 | AF137: -0.06079933299 | AG137: -0.05660025049 | AH137: -0.05197074141 | AI137: -0.04687484598 | AJ137: -0.04162841786 | AK137: -0.03616313055 | AL137: -0.03086879294 | AM137: -0.02506130269 | AN137: -0.0189969283 | AO137: -0.01273694752 | AP137: -0.006447999375 | AQ137: 0 | AS137: 0.0115 | AU137: 0.0006081836132 | AV137: 0.0008053482146 | AW137: 0.00096881044 | AX137: 0.001115607254 | AY137: 0.001252636034 | AZ137: 0.001383700684 | BA137: 0.001511279506 | BB137: 0.001637172374 | BC137: 0.001762790086 | BD137: 0.001889301445 | BE137: 0.002017715256 | BF137: 0.002148929541 | BG137: 0.002283465382 | BH137: 0.002420626541 | BI137: 0.002559451285 | BJ137: 0.002699003479 | BK137: 0.002838353575 | BL137: 0.002976559522 | BM137: 0.003112648932 | BN137: 0.003245602705 | BO137: 0.00337455897 | BP137: 0.003499468544 | BQ137: 0.00362045768 | BR137: 0.003737622012 | BS137: 0.003851034913 | BT137: 0.003960753727 | BU137: 0.004066824524 | BV137: 0.004169285804 | BW137: 0.004268192963 | BX137: 0.004363687831 | BY137: 0.004455940812 | BZ137: 0.004545132272 | CA137: 0.00463145448 | CB137: 0.00471511324 | CC137: 0.00479632927 | CD137: 0.004875339363 | CE137: 0.004952397364 | CF137: 0.005027774977 | CG137: 0.005101762416 | CH137: 0.005174668905
B138: 116 | C138: 3.968129313e-06 | D138: -0.05325182938 | E138: -0.07110923204 | F138: -0.08182718444 | G138: -0.08858387853 | H138: -0.09389427195 | I138: -0.09844133505 | J138: -0.1004078689 | K138: -0.1052211552 | L138: -0.1077580539 | M138: -0.111286442 | N138: -0.1083406897 | O138: -0.1089359687 | P138: -0.1094472838 | Q138: -0.1069958664 | R138: -0.1074853877 | S138: -0.1048519636 | T138: -0.1024088682 | U138: -0.1003659833 | V138: -0.09865106709 | W138: -0.09489581968 | X138: -0.09123560482 | Y138: -0.08864373814 | Z138: -0.0860331586 | AA138: -0.08127529913 | AB138: -0.07818841805 | AC138: -0.07451803076 | AD138: -0.07030745119 | AE138: -0.06626569017 | AF138: -0.06078927644 | AG138: -0.05658234925 | AH138: -0.05183248779 | AI138: -0.04687283711 | AJ138: -0.04161581217 | AK138: -0.03611483798 | AL138: -0.03084959883 | AM138: -0.02504302408 | AN138: -0.01898459286 | AO138: -0.01273663122 | AP138: -0.00643504004 | AQ138: 0 | AS138: 0.0116 | AU138: 0.0006155050259 | AV138: 0.0008148319866 | AW138: 0.0009800492671 | AX138: 0.001128397928 | AY138: 0.001266857157 | AZ138: 0.001399275289 | BA138: 0.001528159002 | BB138: 0.001655328287 | BC138: 0.001782209297 | BD138: 0.001909983195 | BE138: 0.002039669141 | BF138: 0.002172174103 | BG138: 0.002308024174 | BH138: 0.002446516213 | BI138: 0.002586679205 | BJ138: 0.002727568201 | BK138: 0.002868245096 | BL138: 0.003007759342 | BM138: 0.003145129921 | BN138: 0.003279328817 | BO138: 0.003409486831 | BP138: 0.003535555061 | BQ138: 0.003657661602 | BR138: 0.00377590357 | BS138: 0.003890355556 | BT138: 0.00400107592 | BU138: 0.004108111604 | BV138: 0.004211501871 | BW138: 0.004311302998 | BX138: 0.004407658442 | BY138: 0.00450074045 | BZ138: 0.004590731286 | CA138: 0.004677825186 | CB138: 0.004762230013 | CC138: 0.004844168642 | CD138: 0.00492388014 | CE138: 0.00500162075 | CF138: 0.005077664705 | CG138: 0.005152304885 | CH138: 0.005225853323
B139: 117 | C139: 3.968129313e-06 | D139: -0.05321300502 | E139: -0.07101238719 | F139: -0.0817898775 | G139: -0.08856586497 | H139: -0.09381925786 | I139: -0.09842157332 | J139: -0.1002377596 | K139: -0.1049724379 | L139: -0.107723706 | M139: -0.1108113205 | N139: -0.1082772491 | O139: -0.1087372734 | P139: -0.1092737692 | Q139: -0.106875788 | R139: -0.1074714226 | S139: -0.1046745394 | T139: -0.1023704359 | U139: -0.1002815708 | V139: -0.0986271504 | W139: -0.09481973712 | X139: -0.09111640917 | Y139: -0.08843058991 | Z139: -0.08594283478 | AA139: -0.08112710125 | AB139: -0.0778845711 | AC139: -0.0744417068 | AD139: -0.07009547009 | AE139: -0.06625495679 | AF139: -0.06077188798 | AG139: -0.05656080495 | AH139: -0.051776715 | AI139: -0.04685530406 | AJ139: -0.04157395247 | AK139: -0.03609571121 | AL139: -0.03074271139 | AM139: -0.02494911806 | AN139: -0.01889092376 | AO139: -0.01272331843 | AP139: -0.006427839935 | AQ139: 0 | AS139: 0.0117 | AU139: 0.0006228522531 | AV139: 0.0008243465709 | AW139: 0.0009913225224 | AX139: 0.001141225947 | AY139: 0.001281118107 | AZ139: 0.001414891904 | BA139: 0.001545082469 | BB139: 0.001673529965 | BC139: 0.001801675934 | BD139: 0.001930713924 | BE139: 0.002061673467 | BF139: 0.00219547049 | BG139: 0.002332636099 | BH139: 0.002472460248 | BI139: 0.002613962629 | BJ139: 0.002756189477 | BK139: 0.002898194129 | BL139: 0.003039017535 | BM139: 0.003177670055 | BN139: 0.003313114753 | BO139: 0.00344447511 | BP139: 0.003571702514 | BQ139: 0.003694926907 | BR139: 0.003814246898 | BS139: 0.003929738298 | BT139: 0.004041460493 | BU139: 0.0041494613 | BV139: 0.004253780749 | BW139: 0.004354476005 | BX139: 0.004451692151 | BY139: 0.004545603287 | BZ139: 0.004636393572 | CA139: 0.004724259217 | CB139: 0.004809410141 | CC139: 0.004892071383 | CD139: 0.004972484284 | CE139: 0.005050907486 | CF139: 0.005127617751 | CG139: 0.005202910628 | CH139: 0.005277100962
B140: 118 | C140: 3.968129313e-06 | D140: -0.05320869072 | E140: -0.07026131344 | F140: -0.08153327608 | G140: -0.0884917046 | H140: -0.09376339984 | I140: -0.09809827599 | J140: -0.1001364465 | K140: -0.1049246303 | L140: -0.1073763157 | M140: -0.110568737 | N140: -0.1081715756 | O140: -0.1084697161 | P140: -0.1092279813 | Q140: -0.1068457486 | R140: -0.1072730643 | S140: -0.1043821463 | T140: -0.1021143998 | U140: -0.1001424573 | V140: -0.09837052152 | W140: -0.09479237216 | X140: -0.09093317804 | Y140: -0.08829167615 | Z140: -0.08576046194 | AA140: -0.08082993583 | AB140: -0.07787087176 | AC140: -0.074328616 | AD140: -0.0700626587 | AE140: -0.06622816137 | AF140: -0.06073131823 | AG140: -0.05650803671 | AH140: -0.05177493765 | AI140: -0.04684551057 | AJ140: -0.04156693902 | AK140: -0.03606001046 | AL140: -0.03073530868 | AM140: -0.02494871978 | AN140: -0.01884289131 | AO140: -0.01269078567 | AP140: -0.006423041229 | AQ140: 0 | AS140: 0.0118 | AU140: 0.0006302251878 | AV140: 0.0008338918307 | AW140: 0.001002630047 | AX140: 0.001154091134 | AY140: 0.001295418689 | AZ140: 0.001430550317 | BA140: 0.001562049682 | BB140: 0.001691777171 | BC140: 0.001821189747 | BD140: 0.001951493369 | BE140: 0.00208372796 | BF140: 0.002218818413 | BG140: 0.00235730086 | BH140: 0.002498458335 | BI140: 0.002641301237 | BJ140: 0.002784866977 | BK140: 0.002928200333 | BL140: 0.003070333754 | BM140: 0.003210268976 | BN140: 0.003346960149 | BO140: 0.003479523437 | BP140: 0.003607910525 | BQ140: 0.003732253214 | BR140: 0.003852651608 | BS140: 0.003969182748 | BT140: 0.00408190705 | BU140: 0.004190873212 | BV140: 0.004296122035 | BW140: 0.004397711575 | BX140: 0.00449578855 | BY140: 0.004590528908 | BZ140: 0.004682118716 | CA140: 0.004770756154 | CB140: 0.004856653205 | CC140: 0.004940037071 | CD140: 0.005021151371 | CE140: 0.005100257146 | CF140: 0.005177633689 | CG140: 0.00525357922 | CH140: 0.005328411391
B141: 119 | C141: 3.968129313e-06 | D141: -0.05298036049 | E141: -0.07022295704 | F141: -0.08146005315 | G141: -0.08834392405 | H141: -0.09372755376 | I141: -0.09802176021 | J141: -0.1001199392 | K141: -0.1047550168 | L141: -0.1073040232 | M141: -0.11023335 | N141: -0.108116546 | O141: -0.1083220475 | P141: -0.109225668 | Q141: -0.1068078115 | R141: -0.1069991271 | S141: -0.1041586887 | T141: -0.1021114844 | U141: -0.1001186966 | V141: -0.09833985504 | W141: -0.09474409061 | X141: -0.09083322935 | Y141: -0.08829047642 | Z141: -0.08555443327 | AA141: -0.08078390603 | AB141: -0.077845184 | AC141: -0.07423305966 | AD141: -0.07000825655 | AE141: -0.06614732353 | AF141: -0.0606438049 | AG141: -0.056401697 | AH141: -0.05173595699 | AI141: -0.04680507418 | AJ141: -0.04154171279 | AK141: -0.03603948087 | AL141: -0.03068362012 | AM141: -0.02487899439 | AN141: -0.01881613418 | AO141: -0.0126646312 | AP141: -0.006419382466 | AQ141: 0 | AS141: 0.0119 | AU141: 0.0006376237246 | AV141: 0.0008434676314 | AW141: 0.001013971682 | AX141: 0.001166993311 | AY141: 0.00130975871 | AZ141: 0.001446250321 | BA141: 0.00157906042 | BB141: 0.001710069669 | BC141: 0.001840750488 | BD141: 0.00197232127 | BE141: 0.002105832346 | BF141: 0.002242217591 | BG141: 0.002382018162 | BH141: 0.002524510171 | BI141: 0.002668694715 | BJ141: 0.002813600378 | BK141: 0.002958263375 | BL141: 0.003101707657 | BM141: 0.003242926335 | BN141: 0.003380864648 | BO141: 0.003514631448 | BP141: 0.003644178725 | BQ141: 0.003769640145 | BR141: 0.003891117318 | BS141: 0.004008688519 | BT141: 0.0041224152 | BU141: 0.004232346945 | BV141: 0.004338525331 | BW141: 0.004441009308 | BX141: 0.004539947233 | BY141: 0.004635516909 | BZ141: 0.004727906307 | CA141: 0.004817315586 | CB141: 0.004903958792 | CC141: 0.004988065292 | CD141: 0.005069880984 | CE141: 0.005149669311 | CF141: 0.0052277121 | CG141: 0.005304310237 | CH141: 0.00537978419
B142: 120 | C142: 3.968129313e-06 | D142: -0.05297851491 | E142: -0.06998829424 | F142: -0.08138744024 | G142: -0.08833673407 | H142: -0.09362546622 | I142: -0.09776804636 | J142: -0.09995103243 | K142: -0.1046872699 | L142: -0.1071450989 | M142: -0.1099512944 | N142: -0.1079340885 | O142: -0.1082528353 | P142: -0.1091647705 | Q142: -0.1064349631 | R142: -0.1066769916 | S142: -0.1041089436 | T142: -0.102096384 | U142: -0.09998169007 | V142: -0.09802677192 | W142: -0.09443881965 | X142: -0.09080461846 | Y142: -0.08815833917 | Z142: -0.08545401982 | AA142: -0.08069929165 | AB142: -0.07740167111 | AC142: -0.07414216234 | AD142: -0.06992215133 | AE142: -0.06614159997 | AF142: -0.06058647734 | AG142: -0.05629367184 | AH142: -0.05172219491 | AI142: -0.04675696805 | AJ142: -0.0415065764 | AK142: -0.03600608678 | AL142: -0.03064665916 | AM142: -0.02486282482 | AN142: -0.01879193119 | AO142: -0.01266198016 | AP142: -0.00639959838 | AQ142: 0 | AS142: 0.012 | AU142: 0.0006450477595 | AV142: 0.0008530738401 | AW142: 0.001025347275 | AX142: 0.001179932305 | AY142: 0.00132413798 | AZ142: 0.00146199171 | BA142: 0.001596114464 | BB142: 0.001728407226 | BC142: 0.001860357912 | BD142: 0.00199319737 | BE142: 0.002127986359 | BF142: 0.002265667744 | BG142: 0.002406787716 | BH142: 0.002550615455 | BI142: 0.002696142751 | BJ142: 0.002842389357 | BK142: 0.002988382925 | BL142: 0.003133138905 | BM142: 0.003275641786 | BN142: 0.003414827897 | BO142: 0.003549798782 | BP142: 0.003680506747 | BQ142: 0.00380708733 | BR142: 0.003929643652 | BS142: 0.004048255231 | BT142: 0.004162984559 | BU142: 0.00427388211 | BV142: 0.004380990244 | BW142: 0.004484368809 | BX142: 0.004584167802 | BY142: 0.004680566887 | BZ142: 0.004773755942 | CA142: 0.004863937107 | CB142: 0.004951326493 | CC142: 0.005036155636 | CD142: 0.005118672713 | CE142: 0.005199143571 | CF142: 0.005277852569 | CG142: 0.005355103267 | CH142: 0.005431218942
B143: 121 | C143: 3.968129313e-06 | D143: -0.05268334171 | E143: -0.06996003919 | F143: -0.08123691582 | G143: -0.08822513808 | H143: -0.09361364131 | I143: -0.09772152895 | J143: -0.09986239967 | K143: -0.1046118555 | L143: -0.106825709 | M143: -0.1096345675 | N143: -0.1073730967 | O143: -0.107890113 | P143: -0.1090948812 | Q143: -0.1064024952 | R143: -0.1066745011 | S143: -0.104042177 | T143: -0.1020947079 | U143: -0.09992388585 | V143: -0.09795360836 | W143: -0.09440088366 | X143: -0.09077141239 | Y143: -0.08796834168 | Z143: -0.0854433638 | AA143: -0.08050840668 | AB143: -0.0772201904 | AC143: -0.07397389917 | AD143: -0.06984903098 | AE143: -0.06604215176 | AF143: -0.06056880963 | AG143: -0.056185057 | AH143: -0.05158180487 | AI143: -0.04671748493 | AJ143: -0.04146396236 | AK143: -0.03598734189 | AL143: -0.03060880522 | AM143: -0.02485929431 | AN143: -0.01876851452 | AO143: -0.01266133688 | AP143: -0.006392538785 | AQ143: 0 | AS143: 0.0121 | AU143: 0.0006524971898 | AV143: 0.0008627103259 | AW143: 0.001036756671 | AX143: 0.001192907946 | AY143: 0.001338556312 | AZ143: 0.001477774282 | BA143: 0.001613211597 | BB143: 0.001746789615 | BC143: 0.001880011778 | BD143: 0.002014121418 | BE143: 0.002150189735 | BF143: 0.002289168597 | BG143: 0.002431609235 | BH143: 0.002576773891 | BI143: 0.002723645041 | BJ143: 0.002871233602 | BK143: 0.00301855866 | BL143: 0.003164627166 | BM143: 0.003308414988 | BN143: 0.003448849548 | BO143: 0.003585025087 | BP143: 0.003716894232 | BQ143: 0.003844594403 | BR143: 0.003968230239 | BS143: 0.004087882508 | BT143: 0.004203614746 | BU143: 0.004315478324 | BV143: 0.004423516388 | BW143: 0.004527789687 | BX143: 0.004628449866 | BY143: 0.004725678448 | BZ143: 0.004819667226 | CA143: 0.004910620319 | CB143: 0.004998755909 | CC143: 0.0050843077 | CD143: 0.005167526153 | CE143: 0.005248679518 | CF143: 0.00532805469 | CG143: 0.005405957899 | CH143: 0.005482715237
B144: 122 | C144: 3.968129313e-06 | D144: -0.05267472735 | E144: -0.0698778257 | F144: -0.08119262194 | G144: -0.08820933392 | H144: -0.0934239084 | I144: -0.09771301726 | J144: -0.09978738651 | K144: -0.1045143451 | L144: -0.1067120098 | M144: -0.1095484077 | N144: -0.1070935964 | O144: -0.107752806 | P144: -0.1090431591 | Q144: -0.1063924144 | R144: -0.106672498 | S144: -0.1039494317 | T144: -0.1019972038 | U144: -0.09990635363 | V144: -0.09779730065 | W144: -0.09428000311 | X144: -0.09035576856 | Y144: -0.08793962478 | Z144: -0.08539408294 | AA144: -0.08022978333 | AB144: -0.07720068917 | AC144: -0.0739199629 | AD144: -0.06978351305 | AE144: -0.06602182159 | AF144: -0.06055224252 | AG144: -0.05613107602 | AH144: -0.05153027416 | AI144: -0.04667803551 | AJ144: -0.04144769251 | AK144: -0.03596133565 | AL144: -0.03057495838 | AM144: -0.02484411407 | AN144: -0.01874981353 | AO144: -0.01262052203 | AP144: -0.006385199967 | AQ144: 0 | AS144: 0.0122 | AU144: 0.0006599719145 | AV144: 0.0008723769596 | AW144: 0.00104819972 | AX144: 0.001205920063 | AY144: 0.00135301352 | AZ144: 0.001493597838 | BA144: 0.001630351606 | BB144: 0.001765216609 | BC144: 0.00189971185 | BD144: 0.002035093165 | BE144: 0.002172442213 | BF144: 0.002312719879 | BG144: 0.002456482438 | BH144: 0.002602985187 | BI144: 0.002751201282 | BJ144: 0.0029001328 | BK144: 0.00304879026 | BL144: 0.003196172112 | BM144: 0.003341245606 | BN144: 0.003482929259 | BO144: 0.003620310012 | BP144: 0.003753340824 | BQ144: 0.003882161004 | BR144: 0.004006876716 | BS144: 0.004127569982 | BT144: 0.00424430539 | BU144: 0.004357135211 | BV144: 0.004466103383 | BW144: 0.004571271561 | BX144: 0.004672793038 | BY144: 0.004770851204 | BZ144: 0.004865639766 | CA144: 0.004957364828 | CB144: 0.005046246644 | CC144: 0.005132521088 | CD144: 0.005216440906 | CE144: 0.005298276754 | CF144: 0.005378318062 | CG144: 0.005456873733 | CH144: 0.005534272673
B145: 123 | C145: 3.968129313e-06 | D145: -0.05264035452 | E145: -0.06984792973 | F145: -0.08095191758 | G145: -0.08817915864 | H145: -0.09336854988 | I145: -0.09763370206 | J145: -0.0996745204 | K145: -0.1043003609 | L145: -0.1064755665 | M145: -0.1094608775 | N145: -0.1070472344 | O145: -0.1075949458 | P145: -0.1088413267 | Q145: -0.1063592278 | R145: -0.1066234536 | S145: -0.1039386763 | T145: -0.1019812006 | U145: -0.09989698956 | V145: -0.09774448734 | W145: -0.09426307803 | X145: -0.09020203962 | Y145: -0.08790093009 | Z145: -0.08530494798 | AA145: -0.08006687428 | AB145: -0.07718707958 | AC145: -0.07370630609 | AD145: -0.06956178417 | AE145: -0.06593264617 | AF145: -0.06053243766 | AG145: -0.05597563419 | AH145: -0.05151475002 | AI145: -0.04665341403 | AJ145: -0.04141101362 | AK145: -0.03595632306 | AL145: -0.030548872 | AM145: -0.02480598717 | AN145: -0.01872338057 | AO145: -0.01259706438 | AP145: -0.006367947075 | AQ145: 0 | AS145: 0.0123 | AU145: 0.0006674718336 | AV145: 0.0008820736136 | AW145: 0.001059676274 | AX145: 0.001218968491 | AY145: 0.001367509423 | AZ145: 0.001509462182 | BA145: 0.001647534283 | BB145: 0.001783687987 | BC145: 0.001919457891 | BD145: 0.002056112363 | BE145: 0.002194743537 | BF145: 0.002336321324 | BG145: 0.002481407047 | BH145: 0.002629249057 | BI145: 0.002778811177 | BJ145: 0.002929086645 | BK145: 0.00307907741 | BL145: 0.00322777342 | BM145: 0.003374133309 | BN145: 0.003517066692 | BO145: 0.003655653215 | BP145: 0.003789846175 | BQ145: 0.003919786778 | BR145: 0.004045582722 | BS145: 0.004167317288 | BT145: 0.004285056121 | BU145: 0.004398852399 | BV145: 0.004508750854 | BW145: 0.004614814051 | BX145: 0.004717196937 | BY145: 0.004816084771 | BZ145: 0.004911673177 | CA145: 0.005004170247 | CB145: 0.005093798308 | CC145: 0.005180795409 | CD145: 0.00526541658 | CE145: 0.005347934884 | CF145: 0.005428642289 | CG145: 0.005507850372 | CH145: 0.005585890852
B146: 124 | C146: 3.968129313e-06 | D146: -0.05255918502 | E146: -0.06972576789 | F146: -0.08091280066 | G146: -0.08806377598 | H146: -0.0932015584 | I146: -0.09756815286 | J146: -0.09945425123 | K146: -0.1042882813 | L146: -0.106403223 | M146: -0.1090791281 | N146: -0.1069769761 | O146: -0.1074636153 | P146: -0.1086284042 | Q146: -0.1062945327 | R146: -0.1063914224 | S146: -0.1036748002 | T146: -0.1017840223 | U146: -0.09969790495 | V146: -0.09763373323 | W146: -0.09366154702 | X146: -0.09019327984 | Y146: -0.08771899987 | Z146: -0.08529524339 | AA146: -0.07990801914 | AB146: -0.07718496222 | AC146: -0.07368644315 | AD146: -0.06932526794 | AE146: -0.06588240603 | AF146: -0.0605291144 | AG146: -0.05595900227 | AH146: -0.05145234343 | AI146: -0.0465556451 | AJ146: -0.041387816 | AK146: -0.03588869552 | AL146: -0.0305214622 | AM146: -0.02477683431 | AN146: -0.0187070208 | AO146: -0.01254429335 | AP146: -0.006352480989 | AQ146: 0 | AS146: 0.0124 | AU146: 0.0006749968486 | AV146: 0.0008918001622 | AW146: 0.001071186186 | AX146: 0.001232053065 | AY146: 0.00138204384 | AZ146: 0.001525367118 | BA146: 0.001664759419 | BB146: 0.001802203529 | BC146: 0.001939249673 | BD146: 0.002077178773 | BE146: 0.002217093454 | BF146: 0.002359972667 | BG146: 0.00250638279 | BH146: 0.002655565215 | BI146: 0.002806474433 | BJ146: 0.002958094835 | BK146: 0.003109419798 | BL146: 0.003259430772 | BM146: 0.003407077773 | BN146: 0.003551261515 | BO146: 0.003691054357 | BP146: 0.00382640994 | BQ146: 0.003957471376 | BR146: 0.004084347903 | BS146: 0.004207124067 | BT146: 0.004325866578 | BU146: 0.004440629522 | BV146: 0.004551458431 | BW146: 0.004658416785 | BX146: 0.004761661188 | BY146: 0.004861378771 | BZ146: 0.004957767079 | CA146: 0.005051036195 | CB146: 0.005141410519 | CC146: 0.005229130278 | CD146: 0.005314452787 | CE146: 0.00539765352 | CF146: 0.005479026983 | CG146: 0.005558887426 | CH146: 0.005637569383
B147: 125 | C147: 3.968129313e-06 | D147: -0.0525354698 | E147: -0.06962935566 | F147: -0.08080607822 | G147: -0.0877133905 | H147: -0.09317644738 | I147: -0.09749800723 | J147: -0.09930765834 | K147: -0.1041414924 | L147: -0.1063209564 | M147: -0.108642408 | N147: -0.106665774 | O147: -0.1074396369 | P147: -0.1085284663 | Q147: -0.1061994725 | R147: -0.1060493267 | S147: -0.1035495341 | T147: -0.1017198994 | U147: -0.09953469653 | V147: -0.09757329303 | W147: -0.09335217591 | X147: -0.09010992281 | Y147: -0.08765432559 | Z147: -0.08527435463 | AA147: -0.07983539249 | AB147: -0.07717475116 | AC147: -0.07362567593 | AD147: -0.06919935428 | AE147: -0.06588191972 | AF147: -0.06046648064 | AG147: -0.05593377747 | AH147: -0.05139245809 | AI147: -0.04652677011 | AJ147: -0.04129394928 | AK147: -0.035885973 | AL147: -0.03045899545 | AM147: -0.02476186866 | AN147: -0.01869729076 | AO147: -0.0125405963 | AP147: -0.006344157873 | AQ147: 0 | AS147: 0.0125 | AU147: 0.0006825468623 | AV147: 0.0009015564813 | AW147: 0.001082729311 | AX147: 0.001245173623 | AY147: 0.001396616594 | AZ147: 0.001541312457 | BA147: 0.001682026812 | BB147: 0.001820763018 | BC147: 0.001959086967 | BD147: 0.002098292154 | BE147: 0.002239491714 | BF147: 0.002383673649 | BG147: 0.002531409395 | BH147: 0.002681933382 | BI147: 0.002834190761 | BJ147: 0.002987157072 | BK147: 0.003139817121 | BL147: 0.003291143854 | BM147: 0.003440078675 | BN147: 0.0035855134 | BO147: 0.003726513103 | BP147: 0.003863031779 | BQ147: 0.003995214453 | BR147: 0.004123171909 | BS147: 0.004246989967 | BT147: 0.004366736402 | BU147: 0.004482466219 | BV147: 0.004594225751 | BW147: 0.004702079397 | BX147: 0.004806185422 | BY147: 0.004906732834 | BZ147: 0.005003921099 | CA147: 0.005097962295 | CB147: 0.005189082899 | CC147: 0.005277525314 | CD147: 0.005363549147 | CE147: 0.005447432281 | CF147: 0.00552947176 | CG147: 0.00560998451 | CH147: 0.00568930788
B148: 126 | C148: 3.968129313e-06 | D148: -0.05248295596 | E148: -0.06962858399 | F148: -0.08072470505 | G148: -0.08769934462 | H148: -0.09305959178 | I148: -0.09749194743 | J148: -0.09905358634 | K148: -0.1040341424 | L148: -0.1062136213 | M148: -0.1086241966 | N148: -0.1066635418 | O148: -0.1070666461 | P148: -0.108293771 | Q148: -0.1061984845 | R148: -0.1060131372 | S148: -0.1035494768 | T148: -0.1014932919 | U148: -0.09952388644 | V148: -0.09747360025 | W148: -0.09324972458 | X148: -0.09009457324 | Y148: -0.08757880982 | Z148: -0.08507540526 | AA148: -0.07977692728 | AB148: -0.07701478981 | AC148: -0.07350730066 | AD148: -0.06919366289 | AE148: -0.06575045717 | AF148: -0.0602926718 | AG148: -0.05590256602 | AH148: -0.05136345811 | AI148: -0.04652599985 | AJ148: -0.04128437609 | AK148: -0.03575174219 | AL148: -0.03040905645 | AM148: -0.02475486805 | AN148: -0.01865568665 | AO148: -0.01253966007 | AP148: -0.006343868418 | AQ148: 0 | AS148: 0.0126 | AU148: 0.0006901217789 | AV148: 0.0009113424486 | AW148: 0.001094305506 | AX148: 0.001258330006 | AY148: 0.001411227511 | AZ148: 0.001557298009 | BA148: 0.001699336258 | BB148: 0.001839366243 | BC148: 0.001978969548 | BD148: 0.002119452272 | BE148: 0.002261938072 | BF148: 0.002407424014 | BG148: 0.002556486597 | BH148: 0.002708353284 | BI148: 0.002861959877 | BJ148: 0.003016273063 | BK148: 0.003170269074 | BL148: 0.003322912357 | BM148: 0.003473135698 | BN148: 0.003619822024 | BO148: 0.003762029124 | BP148: 0.003899711358 | BQ148: 0.00403301567 | BR148: 0.004162054397 | BS148: 0.004286914639 | BT148: 0.004407665243 | BU148: 0.004524362134 | BV148: 0.004637052454 | BW148: 0.004745801524 | BX148: 0.004850769275 | BY148: 0.004952146591 | BZ148: 0.005050134868 | CA148: 0.005144948176 | CB148: 0.005236815075 | CC148: 0.005325980146 | CD148: 0.005412705286 | CE148: 0.005497270789 | CF148: 0.005579976242 | CG148: 0.005661141245 | CH148: 0.005741105964
B149: 127 | C149: 3.968129313e-06 | D149: -0.05235017217 | E149: -0.06958627079 | F149: -0.08072282145 | G149: -0.08764451148 | H149: -0.09305781648 | I149: -0.09733107973 | J149: -0.09904124222 | K149: -0.1039459608 | L149: -0.1061086974 | M149: -0.1086216447 | N149: -0.106586163 | O149: -0.1069941891 | P149: -0.1082655499 | Q149: -0.1059487627 | R149: -0.1059011861 | S149: -0.103323585 | T149: -0.1014752011 | U149: -0.09919937834 | V149: -0.09741058045 | W149: -0.0928030592 | X149: -0.09009397129 | Y149: -0.08753159466 | Z149: -0.08502557089 | AA149: -0.07969464879 | AB149: -0.07696927086 | AC149: -0.07349782026 | AD149: -0.06902431405 | AE149: -0.06571684148 | AF149: -0.06026405374 | AG149: -0.05586586277 | AH149: -0.05134925554 | AI149: -0.04638835623 | AJ149: -0.04120836713 | AK149: -0.03574888226 | AL149: -0.03039301615 | AM149: -0.02471701498 | AN149: -0.01865398755 | AO149: -0.01253456492 | AP149: -0.006341856405 | AQ149: 0 | AS149: 0.0127 | AU149: 0.0006977215035 | AV149: 0.0009211579431 | AW149: 0.00110591463 | AX149: 0.001271522054 | AY149: 0.001425876417 | AZ149: 0.001573323588 | BA149: 0.00171668756 | BB149: 0.001858012991 | BC149: 0.001998897195 | BD149: 0.002140658893 | BE149: 0.002284432286 | BF149: 0.00243122351 | BG149: 0.002581614134 | BH149: 0.002734824648 | BI149: 0.0028897815 | BJ149: 0.003045442519 | BK149: 0.003200775361 | BL149: 0.003354735974 | BM149: 0.003506248532 | BN149: 0.003654187068 | BO149: 0.003797602096 | BP149: 0.003936448346 | BQ149: 0.004070874691 | BR149: 0.004200995027 | BS149: 0.004326897738 | BT149: 0.004448652752 | BU149: 0.004566316917 | BV149: 0.004679938187 | BW149: 0.004789582812 | BX149: 0.004895412388 | BY149: 0.004997619683 | BZ149: 0.005096408023 | CA149: 0.005191993474 | CB149: 0.00528460668 | CC149: 0.005374494403 | CD149: 0.005461920832 | CE149: 0.005547168673 | CF149: 0.005630540057 | CG149: 0.005712357258 | CH149: 0.00579296326
B150: 128 | C150: 3.968129313e-06 | D150: -0.05233182836 | E150: -0.06958296573 | F150: -0.08064341398 | G150: -0.08759601893 | H150: -0.09286290521 | I150: -0.0971847018 | J150: -0.09899343942 | K150: -0.1038832611 | L150: -0.1059688415 | M150: -0.1083169819 | N150: -0.1064641429 | O150: -0.106747097 | P150: -0.1079679706 | Q150: -0.1059136297 | R150: -0.1058549821 | S150: -0.103264187 | T150: -0.1013468223 | U150: -0.09903913724 | V150: -0.0973613772 | W150: -0.09258756948 | X150: -0.09006600103 | Y150: -0.08744598572 | Z150: -0.08487738639 | AA150: -0.07960487439 | AB150: -0.07695211427 | AC150: -0.07340332189 | AD150: -0.06895469933 | AE150: -0.06563773042 | AF150: -0.06021788689 | AG150: -0.05580398244 | AH150: -0.05129606901 | AI150: -0.04633752845 | AJ150: -0.04119501892 | AK150: -0.03566674548 | AL150: -0.03037970191 | AM150: -0.02467825851 | AN150: -0.01865317854 | AO150: -0.01251619685 | AP150: -0.006340762702 | AQ150: 0 | AS150: 0.0128 | AU150: 0.0007053459428 | AV150: 0.0009310028456 | AW150: 0.001117556545 | AX150: 0.001284749614 | AY150: 0.001440563142 | AZ150: 0.00158938901 | BA150: 0.001734080522 | BB150: 0.001876703056 | BC150: 0.00201886969 | BD150: 0.00216191179 | BE150: 0.002306974114 | BF150: 0.002455071886 | BG150: 0.002606791747 | BH150: 0.002761347206 | BI150: 0.002917655352 | BJ150: 0.003074665153 | BK150: 0.003231335689 | BL150: 0.003386614405 | BM150: 0.003539416867 | BN150: 0.003688608218 | BO150: 0.003833231699 | BP150: 0.003973242419 | BQ150: 0.004108791186 | BR150: 0.004239993465 | BS150: 0.004366938928 | BT150: 0.004489698587 | BU150: 0.004608330221 | BV150: 0.004722882602 | BW150: 0.004833422907 | BX150: 0.004940114407 | BY150: 0.005043151753 | BZ150: 0.005142740205 | CA150: 0.005239097829 | CB150: 0.005332457353 | CC150: 0.005423067722 | CD150: 0.005511195421 | CE150: 0.005597125569 | CF150: 0.005681162837 | CG150: 0.005763632181 | CH150: 0.005844879398
B151: 129 | C151: 3.968129313e-06 | D151: -0.05231037128 | E151: -0.06935794582 | F151: -0.0805818012 | G151: -0.08759550139 | H151: -0.09274821366 | I151: -0.0971227682 | J151: -0.09893789959 | K151: -0.1037711758 | L151: -0.1058653284 | M151: -0.1082876511 | N151: -0.1059548309 | O151: -0.1066202108 | P151: -0.1079532155 | Q151: -0.1059051563 | R151: -0.1057874859 | S151: -0.1030224313 | T151: -0.1012935357 | U151: -0.09896265128 | V151: -0.09735089163 | W151: -0.09243979311 | X151: -0.08989440268 | Y151: -0.08743472191 | Z151: -0.08481215589 | AA151: -0.07953747872 | AB151: -0.07679510203 | AC151: -0.07337044327 | AD151: -0.06878034614 | AE151: -0.06556450859 | AF151: -0.06018197339 | AG151: -0.05580373875 | AH151: -0.05124439942 | AI151: -0.0462021793 | AJ151: -0.04111429388 | AK151: -0.03566069616 | AL151: -0.03036870383 | AM151: -0.02467251994 | AN151: -0.01864921711 | AO151: -0.01251556909 | AP151: -0.006335723674 | AQ151: 0 | AS151: 0.0129 | AU151: =NORMSDIST(-(Correlation*NORMSINV(D$16)-NORMSINV($AS151))/CorrTerm) -> 0.0007129950044 | AV151: =NORMSDIST(-(Correlation*NORMSINV(E$16)-NORMSINV($AS151))/CorrTerm) -> 0.0009408770384 | AW151: =NORMSDIST(-(Correlation*NORMSINV(F$16)-NORMSINV($AS151))/CorrTerm) -> 0.001129231113 | AX151: =NORMSDIST(-(Correlation*NORMSINV(G$16)-NORMSINV($AS151))/CorrTerm) -> 0.001298012531 | AY151: =NORMSDIST(-(Correlation*NORMSINV(H$16)-NORMSINV($AS151))/CorrTerm) -> 0.001455287517 | AZ151: =NORMSDIST(-(Correlation*NORMSINV(I$16)-NORMSINV($AS151))/CorrTerm) -> 0.001605494095 | BA151: =NORMSDIST(-(Correlation*NORMSINV(J$16)-NORMSINV($AS151))/CorrTerm) -> 0.00175151495 | BB151: =NORMSDIST(-(Correlation*NORMSINV(K$16)-NORMSINV($AS151))/CorrTerm) -> 0.001895436233 | BC151: =NORMSDIST(-(Correlation*NORMSINV(L$16)-NORMSINV($AS151))/CorrTerm) -> 0.002038886816 | BD151: =NORMSDIST(-(Correlation*NORMSINV(M$16)-NORMSINV($AS151))/CorrTerm) -> 0.002183210735 | BE151: =NORMSDIST(-(Correlation*NORMSINV(N$16)-NORMSINV($AS151))/CorrTerm) -> 0.002329563323 | BF151: =NORMSDIST(-(Correlation*NORMSINV(O$16)-NORMSINV($AS151))/CorrTerm) -> 0.002478968897 | BG151: =NORMSDIST(-(Correlation*NORMSINV(P$16)-NORMSINV($AS151))/CorrTerm) -> 0.00263201918 | BH151: =NORMSDIST(-(Correlation*NORMSINV(Q$16)-NORMSINV($AS151))/CorrTerm) -> 0.002787920693 | BI151: =NORMSDIST(-(Correlation*NORMSINV(R$16)-NORMSINV($AS151))/CorrTerm) -> 0.00294558116 | BJ151: =NORMSDIST(-(Correlation*NORMSINV(S$16)-NORMSINV($AS151))/CorrTerm) -> 0.003103940685 | BK151: =NORMSDIST(-(Correlation*NORMSINV(T$16)-NORMSINV($AS151))/CorrTerm) -> 0.003261949767 | BL151: =NORMSDIST(-(Correlation*NORMSINV(U$16)-NORMSINV($AS151))/CorrTerm) -> 0.003418547354 | BM151: =NORMSDIST(-(Correlation*NORMSINV(V$16)-NORMSINV($AS151))/CorrTerm) -> 0.0035726404 | BN151: =NORMSDIST(-(Correlation*NORMSINV(W$16)-NORMSINV($AS151))/CorrTerm) -> 0.003723085164 | BO151: =NORMSDIST(-(Correlation*NORMSINV(X$16)-NORMSINV($AS151))/CorrTerm) -> 0.003868917617 | BP151: =NORMSDIST(-(Correlation*NORMSINV(Y$16)-NORMSINV($AS151))/CorrTerm) -> 0.004010093255 | BQ151: =NORMSDIST(-(Correlation*NORMSINV(Z$16)-NORMSINV($AS151))/CorrTerm) -> 0.00414676483 | BR151: =NORMSDIST(-(Correlation*NORMSINV(AA$16)-NORMSINV($AS151))/CorrTerm) -> 0.00427904938 | BS151: =NORMSDIST(-(Correlation*NORMSINV(AB$16)-NORMSINV($AS151))/CorrTerm) -> 0.004407037873 | BT151: =NORMSDIST(-(Correlation*NORMSINV(AC$16)-NORMSINV($AS151))/CorrTerm) -> 0.004530802411 | BU151: =NORMSDIST(-(Correlation*NORMSINV(AD$16)-NORMSINV($AS151))/CorrTerm) -> 0.004650401707 | BV151: =NORMSDIST(-(Correlation*NORMSINV(AE$16)-NORMSINV($AS151))/CorrTerm) -> 0.004765885354 | BW151: =NORMSDIST(-(Correlation*NORMSINV(AF$16)-NORMSINV($AS151))/CorrTerm) -> 0.004877321464 | BX151: =NORMSDIST(-(Correlation*NORMSINV(AG$16)-NORMSINV($AS151))/CorrTerm) -> 0.004984874982 | BY151: =NORMSDIST(-(Correlation*NORMSINV(AH$16)-NORMSINV($AS151))/CorrTerm) -> 0.00508874245 | BZ151: =NORMSDIST(-(Correlation*NORMSINV(AI$16)-NORMSINV($AS151))/CorrTerm) -> 0.005189131061 | CA151: =NORMSDIST(-(Correlation*NORMSINV(AJ$16)-NORMSINV($AS151))/CorrTerm) -> 0.005286260885 | CB151: =NORMSDIST(-(Correlation*NORMSINV(AK$16)-NORMSINV($AS151))/CorrTerm) -> 0.005380366736 | CC151: =NORMSDIST(-(Correlation*NORMSINV(AL$16)-NORMSINV($AS151))/CorrTerm) -> 0.005471699747 | CD151: =NORMSDIST(-(Correlation*NORMSINV(AM$16)-NORMSINV($AS151))/CorrTerm) -> 0.005560528693 | CE151: =NORMSDIST(-(Correlation*NORMSINV(AN$16)-NORMSINV($AS151))/CorrTerm) -> 0.005647141114 | CF151: =NORMSDIST(-(Correlation*NORMSINV(AO$16)-NORMSINV($AS151))/CorrTerm) -> 0.005731844222 | CG151: =NORMSDIST(-(Correlation*NORMSINV(AP$16)-NORMSINV($AS151))/CorrTerm) -> 0.00581496565 | CH151: =NORMSDIST(-(Correlation*NORMSINV(AQ$16)-NORMSINV($AS151))/CorrTerm) -> 0.005896854017
B152: 130 | C152: 3.968129313e-06 | D152: -0.05230754254 | E152: -0.06926464105 | F152: -0.08034818153 | G152: -0.08751712132 | H152: -0.09242146246 | I152: -0.09694516861 | J152: -0.09874020878 | K152: -0.1036909774 | L152: -0.1058465822 | M152: -0.1080694226 | N152: -0.1058415787 | O152: -0.1065735426 | P152: -0.1077067835 | Q152: -0.1058265202 | R152: -0.1057439991 | S152: -0.1028765211 | T152: -0.1012859679 | U152: -0.09880520452 | V152: -0.09722810035 | W152: -0.09230555626 | X152: -0.08965977213 | Y152: -0.08728413107 | Z152: -0.08475542872 | AA152: -0.07946341086 | AB152: -0.07662004716 | AC152: -0.07334059879 | AD152: -0.06876528094 | AE152: -0.06545826013 | AF152: -0.06011678813 | AG152: -0.05577322287 | AH152: -0.05111141332 | AI152: -0.04616183003 | AJ152: -0.04094717036 | AK152: -0.03565009685 | AL152: -0.03029277572 | AM152: -0.02465956619 | AN152: -0.01863097018 | AO152: -0.0124913619 | AP152: -0.006332472712 | AQ152: 0 | AS152: =B152/10000 -> 0.013 | AU152: 0.0007206685973 | AV152: 0.0009507804053 | AW152: 0.001140938198 | AX152: 0.001311310653 | AY152: 0.001470049378 | AZ152: 0.001621638663 | BA152: 0.001768990653 | BB152: 0.001914212319 | BC152: 0.002058948361 | BD152: 0.002204555507 | BE152: 0.002352199678 | BF152: 0.002502914301 | BG152: 0.002657296182 | BH152: 0.002814544848 | BI152: 0.002973558654 | BJ152: 0.003133268835 | BK152: 0.003292617311 | BL152: 0.003450534527 | BM152: 0.003605918832 | BN152: 0.0037576176 | BO152: 0.003904659539 | BP152: 0.004047000538 | BQ152: 0.004184795302 | BR152: 0.004318162447 | BS152: 0.004447194245 | BT152: 0.004571963891 | BU152: 0.004692531039 | BV152: 0.004808946105 | BW152: 0.00492127814 | BX152: 0.005029693771 | BY152: 0.005134391427 | BZ152: 0.005235580243 | CA152: 0.005333482293 | CB152: 0.00542833448 | CC152: 0.005520390122 | CD152: 0.005609920295 | CE152: 0.005697214953 | CF152: 0.005782583854 | CG152: 0.005866357309 | CH152: 0.005948886756
B153: =B152+1 -> 131 | C153: 3.968129313e-06 | D153: -0.05229758709 | E153: -0.06918252192 | F153: -0.08018666444 | G153: -0.08711007419 | H153: -0.0922933248 | I153: -0.09694243166 | J153: -0.09863334748 | K153: -0.1034291221 | L153: -0.1052594886 | M153: -0.1079749207 | N153: -0.1057822493 | O153: -0.1065258829 | P153: -0.1072518949 | Q153: -0.1058214876 | R153: -0.1056149063 | S153: -0.1028488738 | T153: -0.1009933128 | U153: -0.09848614604 | V153: -0.09719345454 | W153: -0.09230505735 | X153: -0.0894791351 | Y153: -0.08722332669 | Z153: -0.08457434777 | AA153: -0.07938162419 | AB153: -0.07647212601 | AC153: -0.07332538164 | AD153: -0.06871583157 | AE153: -0.06540466643 | AF153: -0.06004571679 | AG153: -0.05577176482 | AH153: -0.05096401878 | AI153: -0.04610072285 | AJ153: -0.04093686081 | AK153: -0.03559944139 | AL153: -0.03025506144 | AM153: -0.02464192248 | AN153: -0.01860596525 | AO153: -0.01247918141 | AP153: -0.006320078432 | AQ153: 0 | AS153: 0.0131 | AU153: 0.0007283666315 | AV153: 0.0009607128315 | AW153: 0.001152677668 | AX153: 0.001324643831 | AY153: 0.00148484856 | AZ153: 0.001637822537 | BA153: 0.001786507444 | BB153: 0.001933031116 | BC153: 0.002079054115 | BD153: 0.002225945884 | BE153: 0.00237488295 | BF153: 0.002526907858 | BG153: 0.002682622503 | BH153: 0.002841219414 | BI153: 0.003001587569 | BJ153: 0.003162649331 | BK153: 0.003323338038 | BL153: 0.003482575636 | BM153: 0.003639251867 | BN153: 0.003792205224 | BO153: 0.003940457157 | BP153: 0.004083963956 | BQ153: 0.004222882284 | BR153: 0.004357332345 | BS153: 0.004487407718 | BT153: 0.004613182699 | BU153: 0.004734717884 | BV153: 0.00485206452 | BW153: 0.0049652926 | BX153: 0.005074570433 | BY153: 0.005180098344 | BZ153: 0.005282087408 | CA153: 0.005380761707 | CB153: 0.005476360236 | CC153: 0.005569138501 | CD153: 0.005659369878 | CE153: 0.005747346736 | CF153: 0.005833381381 | CG153: 0.005917806805 | CH153: 0.006000977262
B154: 132 | C154: 3.968129313e-06 | D154: -0.05229420014 | E154: -0.06910581525 | F154: -0.08017398225 | G154: -0.08699159798 | H154: -0.0922034504 | I154: -0.09673580149 | J154: -0.09850186492 | K154: -0.1033881786 | L154: -0.1051876046 | M154: -0.1078118948 | N154: -0.1056796705 | O154: -0.1065240754 | P154: -0.1072385589 | Q154: -0.1057948776 | R154: -0.1055903732 | S154: -0.1027723197 | T154: -0.1004200611 | U154: -0.09833804101 | V154: -0.09712813985 | W154: -0.09227775164 | X154: -0.0893515059 | Y154: -0.08721062929 | Z154: -0.08448726413 | AA154: -0.07929148285 | AB154: -0.07641081727 | AC154: -0.07328594628 | AD154: -0.06860520821 | AE154: -0.06529437819 | AF154: -0.05999062521 | AG154: -0.05576053888 | AH154: -0.05095713024 | AI154: -0.04589988491 | AJ154: -0.04085016034 | AK154: -0.03555158814 | AL154: -0.03023887398 | AM154: -0.02463185287 | AN154: -0.01860103148 | AO154: -0.01244557414 | AP154: -0.0063103683 | AQ154: 0 | AS154: 0.0132 | AU154: 0.0007360890181 | AV154: 0.0009706742037 | AW154: 0.001164449389 | AX154: 0.001338011916 | AY154: 0.001499684901 | AZ154: 0.001654045544 | BA154: 0.001804065135 | BB154: 0.001951892426 | BC154: 0.00209920387 | BD154: 0.002247381649 | BE154: 0.002397612912 | BF154: 0.002550949332 | BG154: 0.002707997899 | BH154: 0.002867944138 | BI154: 0.003029667642 | BJ154: 0.003192081902 | BK154: 0.00335411167 | BL154: 0.003514670395 | BM154: 0.003672639214 | BN154: 0.00382684774 | BO154: 0.003976310169 | BP154: 0.0041209832 | BQ154: 0.004261025465 | BR154: 0.004396558757 | BS154: 0.004527677973 | BT154: 0.004654458511 | BU154: 0.004776961916 | BV154: 0.00489524027 | BW154: 0.005009364511 | BX154: 0.005119504634 | BY154: 0.005225862864 | BZ154: 0.005328652217 | CA154: 0.005428098788 | CB154: 0.005524443663 | CC154: 0.005617944541 | CD154: 0.005708877095 | CE154: 0.005797536116 | CF154: 0.005884236457 | CG154: 0.005969313789 | CH154: 0.006053125186
B155: 133 | C155: 3.968129313e-06 | D155: -0.05212953011 | E155: -0.06892700996 | F155: -0.08012068339 | G155: -0.08693029371 | H155: -0.09213105568 | I155: -0.09643398853 | J155: -0.09849262912 | K155: -0.1031920669 | L155: -0.1051468331 | M155: -0.1077617086 | N155: -0.1056398749 | O155: -0.1064561113 | P155: -0.1071727854 | Q155: -0.1056136938 | R155: -0.1054735265 | S155: -0.1027082821 | T155: -0.1003399141 | U155: -0.09829157365 | V155: -0.09712177157 | W155: -0.09224006096 | X155: -0.08922174055 | Y155: -0.08716871815 | Z155: -0.08442852254 | AA155: -0.07925632966 | AB155: -0.07638245554 | AC155: -0.07320549018 | AD155: -0.06855436268 | AE155: -0.06503532763 | AF155: -0.05998712987 | AG155: -0.05570169713 | AH155: -0.05095410297 | AI155: -0.04584884514 | AJ155: -0.0407489656 | AK155: -0.03551440394 | AL155: -0.0302274647 | AM155: -0.02463147195 | AN155: -0.01859769829 | AO155: -0.01244518517 | AP155: -0.006303190221 | AQ155: 0 | AS155: 0.0133 | AU155: 0.0007438356695 | AV155: 0.00098066441 | AW155: 0.001176253232 | AX155: 0.001351414764 | AY155: 0.001514558242 | AZ155: 0.001670307511 | BA155: 0.001821663543 | BB155: 0.001970796054 | BC155: 0.002119397423 | BD155: 0.002268862589 | BE155: 0.00242038934 | BF155: 0.00257503849 | BG155: 0.002733422127 | BH155: 0.002894718767 | BI155: 0.003057798615 | BJ155: 0.00322156628 | BK155: 0.003384937934 | BL155: 0.003546818524 | BM155: 0.003706080585 | BN155: 0.003861544854 | BO155: 0.004012218276 | BP155: 0.004158057969 | BQ155: 0.004299224536 | BR155: 0.004435841373 | BS155: 0.004568004694 | BT155: 0.004695791008 | BU155: 0.004819262813 | BV155: 0.00493847303 | BW155: 0.005053493545 | BX155: 0.005164496044 | BY155: 0.005271684653 | BZ155: 0.005375274336 | CA155: 0.005475493199 | CB155: 0.005572584424 | CC155: 0.005666807902 | CD155: 0.005758441608 | CE155: 0.005847782754 | CF155: 0.00593514874 | CG155: 0.00602087792 | CH155: 0.006105330186
B156: 134 | C156: 3.968129313e-06 | D156: -0.05189780571 | E156: -0.06886127072 | F156: -0.08008311428 | G156: -0.0866719941 | H156: -0.09213093375 | I156: -0.09596958947 | J156: -0.09842124013 | K156: -0.1030173489 | L156: -0.1051161989 | M156: -0.1077408517 | N156: -0.1056118619 | O156: -0.1063744377 | P156: -0.1070892357 | Q156: -0.1053196927 | R156: -0.1053342956 | S156: -0.1025251539 | T156: -0.1002501271 | U156: -0.09821182474 | V156: -0.09679938159 | W156: -0.09217911579 | X156: -0.08918889859 | Y156: -0.08704701497 | Z156: -0.0842448256 | AA156: -0.07920189673 | AB156: -0.07623278483 | AC156: -0.07315799303 | AD156: -0.06843045802 | AE156: -0.0649901311 | AF156: -0.05997126392 | AG156: -0.05558543704 | AH156: -0.05095285031 | AI156: -0.04582753371 | AJ156: -0.04067235084 | AK156: -0.03546324962 | AL156: -0.03020263202 | AM156: -0.02458772735 | AN156: -0.01856150695 | AO156: -0.01244251963 | AP156: -0.0062977864 | AQ156: 0 | AS156: 0.0134 | AU156: 0.0007516064989 | AV156: 0.0009906833401 | AW156: 0.001188089067 | AX156: 0.001364852229 | AY156: 0.001529468426 | AZ156: 0.001686608268 | BA156: 0.001839302488 | BB156: 0.00198974181 | BC156: 0.00213963457 | BD156: 0.002290388491 | BE156: 0.002443212013 | BF156: 0.002599175102 | BG156: 0.002758894949 | BH156: 0.002921543055 | BI156: 0.003085980231 | BJ156: 0.003251102204 | BK156: 0.003415816559 | BL156: 0.003579019746 | BM156: 0.003739575696 | BN156: 0.003896296276 | BO156: 0.004048181183 | BP156: 0.00419518796 | BQ156: 0.004337479193 | BR156: 0.004475179882 | BS156: 0.004608387568 | BT156: 0.004737179874 | BU156: 0.004861620257 | BV156: 0.004981762478 | BW156: 0.005097679379 | BX156: 0.005209544338 | BY156: 0.005317563386 | BZ156: 0.005421953437 | CA156: 0.00552294461 | CB156: 0.005620782186 | CC156: 0.00571572825 | CD156: 0.005808063081 | CE156: 0.005898086313 | CF156: 0.005986117893 | CG156: 0.006072498858 | CH156: 0.006157591921
B157: 135 | C157: 3.968129313e-06 | D157: -0.0517742037 | E157: -0.06856037967 | F157: -0.07990107957 | G157: -0.08659700057 | H157: -0.09199260568 | I157: -0.09591642978 | J157: -0.09826950808 | K157: -0.1028599393 | L157: -0.104893099 | M157: -0.1077396872 | N157: -0.1054958501 | O157: -0.1063460661 | P157: -0.1067853761 | Q157: -0.1052235347 | R157: -0.1051960891 | S157: -0.1022960444 | T157: -0.09996354305 | U157: -0.09797373725 | V157: -0.09672950375 | W157: -0.09206124017 | X157: -0.08899266685 | Y157: -0.0870326965 | Z157: -0.08416613084 | AA157: -0.07908593063 | AB157: -0.07605964363 | AC157: -0.07308683585 | AD157: -0.06842456965 | AE157: -0.06497813963 | AF157: -0.05993441875 | AG157: -0.05552906119 | AH157: -0.05093867688 | AI157: -0.04574500354 | AJ157: -0.04066782312 | AK157: -0.03543538472 | AL157: -0.03018243084 | AM157: -0.02458270845 | AN157: -0.018549947 | AO157: -0.01244008798 | AP157: -0.006291436645 | AQ157: 0 | AS157: 0.0135 | AU157: 0.0007594014208 | AV157: 0.001000730885 | AW157: 0.001199956768 | AX157: 0.00137832417 | AY157: 0.001544415295 | AZ157: 0.001702947648 | BA157: 0.00185698179 | BB157: 0.002008729503 | BC157: 0.002159915113 | BD157: 0.002311959146 | BE157: 0.002466080713 | BF157: 0.00262335894 | BG157: 0.002784416129 | BH157: 0.002948416758 | BI157: 0.003114212238 | BJ157: 0.003280689412 | BK157: 0.003446747277 | BL157: 0.003611273785 | BM157: 0.003773124268 | BN157: 0.003931101721 | BO157: 0.004084198599 | BP157: 0.00423237288 | BQ157: 0.004375789136 | BR157: 0.004514573981 | BS157: 0.004648826288 | BT157: 0.004778624798 | BU157: 0.004904033933 | BV157: 0.005025108298 | BW157: 0.005141921694 | BX157: 0.005254649195 | BY157: 0.005363498739 | BZ157: 0.005468689193 | CA157: 0.005570452693 | CB157: 0.005669036621 | CC157: 0.005764705257 | CD157: 0.005857741184 | CE157: 0.00594844646 | CF157: 0.006037143582 | CG157: 0.00612417627 | CH157: 0.006209910058
B158: 136 | C158: 3.968129313e-06 | D158: -0.05172225206 | E158: -0.06849107325 | F158: -0.07977353444 | G158: -0.08651560508 | H158: -0.0918887174 | I158: -0.09559904649 | J158: -0.09812311571 | K158: -0.1026103512 | L158: -0.1048275552 | M158: -0.1074674073 | N158: -0.1054914302 | O158: -0.1058806763 | P158: -0.1065440263 | Q158: -0.1051714693 | R158: -0.1051274881 | S158: -0.10218925 | T158: -0.09992305877 | U158: -0.09785927565 | V158: -0.09664046367 | W158: -0.09188669999 | X158: -0.08896754414 | Y158: -0.08690187484 | Z158: -0.0840246736 | AA158: -0.07899473812 | AB158: -0.07591217907 | AC158: -0.07297170263 | AD158: -0.06826358129 | AE158: -0.06490053191 | AF158: -0.05987220676 | AG158: -0.05551573489 | AH158: -0.05093246699 | AI158: -0.04568300209 | AJ158: -0.0405230402 | AK158: -0.03540798606 | AL158: -0.03015187886 | AM158: -0.02456987969 | AN158: -0.01850741218 | AO158: -0.01243690282 | AP158: -0.006279300092 | AQ158: 0 | AS158: 0.0136 | AU158: 0.0007672203506 | AV158: 0.001010806936 | AW158: 0.001211856209 | AX158: 0.001391830446 | AY158: 0.001559398697 | AZ158: 0.001719325485 | BA158: 0.001874701273 | BB158: 0.002027758947 | BC158: 0.002180238855 | BD158: 0.002333574349 | BE158: 0.002488995224 | BF158: 0.002647589781 | BG158: 0.002809985434 | BH158: 0.002975339634 | BI158: 0.003142494387 | BJ158: 0.003310327648 | BK158: 0.003477729826 | BL158: 0.003643580373 | BM158: 0.003806726024 | BN158: 0.003965960906 | BO158: 0.004120270238 | BP158: 0.004269612435 | BQ158: 0.004414154069 | BR158: 0.004554023371 | BS158: 0.00468932055 | BT158: 0.004820125475 | BU158: 0.004946503532 | BV158: 0.005068510178 | BW158: 0.005186220175 | BX158: 0.005299810297 | BY158: 0.005409490393 | BZ158: 0.005515481284 | CA158: 0.005618017128 | CB158: 0.005717347405 | CC158: 0.005813738597 | CD158: 0.005907475591 | CE158: 0.005998862869 | CF158: 0.006088225481 | CG158: 0.006175909827 | CH158: 0.006262284266
B159: 137 | C159: 3.968129313e-06 | D159: -0.05170454294 | E159: -0.0684526128 | F159: -0.07962134077 | G159: -0.08627604151 | H159: -0.09180907197 | I159: -0.09558887866 | J159: -0.09811339602 | K159: -0.1023193063 | L159: -0.1047588178 | M159: -0.1071582643 | N159: -0.1054451988 | O159: -0.1057840312 | P159: -0.1063726621 | Q159: -0.104993365 | R159: -0.1050897361 | S159: -0.1021029094 | T159: -0.09991720166 | U159: -0.09767560462 | V159: -0.09647159174 | W159: -0.09180360702 | X159: -0.08885733909 | Y159: -0.08678558994 | Z159: -0.08396601474 | AA159: -0.0789052135 | AB159: -0.07572762597 | AC159: -0.07294204782 | AD159: -0.06823396911 | AE159: -0.06489661809 | AF159: -0.05982873096 | AG159: -0.05551155702 | AH159: -0.05086203362 | AI159: -0.04565740142 | AJ159: -0.04051046568 | AK159: -0.03539892898 | AL159: -0.03007484183 | AM159: -0.02452094399 | AN159: -0.01847899433 | AO159: -0.01242997254 | AP159: -0.006272172355 | AQ159: 0 | AS159: 0.0137 | AU159: 0.0007750632048 | AV159: 0.001020911387 | AW159: 0.001223787267 | AX159: 0.001405370918 | AY159: 0.001574418481 | AZ159: 0.001735741616 | BA159: 0.001892460762 | BB159: 0.002046829957 | BC159: 0.002200605601 | BD159: 0.002355233895 | BE159: 0.002511955334 | BF159: 0.002671867403 | BG159: 0.002835602634 | BH159: 0.003002311446 | BI159: 0.003170826433 | BJ159: 0.003340016659 | BK159: 0.003508763944 | BL159: 0.003675939242 | BM159: 0.003840380691 | BN159: 0.004000873553 | BO159: 0.004156395815 | BP159: 0.004306906339 | BQ159: 0.0044525737 | BR159: 0.004593527756 | BS159: 0.004729870056 | BT159: 0.004861681601 | BU159: 0.004989028749 | BV159: 0.005111967811 | BW159: 0.005230574512 | BX159: 0.005345027332 | BY159: 0.005455538034 | BZ159: 0.005562329395 | CA159: 0.005665637595 | CB159: 0.00576571422 | CC159: 0.005862827949 | CD159: 0.005957265979 | CE159: 0.006049335217 | CF159: 0.006139363263 | CG159: 0.006227699205 | CH159: 0.00631471422
B160: 138 | C160: 3.968129313e-06 | D160: -0.05166981026 | E160: -0.06837522019 | F160: -0.07961879672 | G160: -0.08603142948 | H160: -0.09178734218 | I160: -0.0953566654 | J160: -0.09802419966 | K160: -0.1022776975 | L160: -0.1047153484 | M160: -0.1071085645 | N160: -0.1053871438 | O160: -0.1056378758 | P160: -0.1062148767 | Q160: -0.1045940366 | R160: -0.1050894908 | S160: -0.1019178934 | T160: -0.09981809997 | U160: -0.09754559141 | V160: -0.09637516091 | W160: -0.09177385538 | X160: -0.08880655536 | Y160: -0.08657303415 | Z160: -0.08393090822 | AA160: -0.07885361997 | AB160: -0.07570244082 | AC160: -0.07277917303 | AD160: -0.06796351184 | AE160: -0.0647606408 | AF160: -0.05963261722 | AG160: -0.05541179176 | AH160: -0.05076062308 | AI160: -0.04561012406 | AJ160: -0.04048387219 | AK160: -0.03539352441 | AL160: -0.03006696498 | AM160: -0.02449428459 | AN160: -0.01847657021 | AO160: -0.01240769916 | AP160: -0.006269296248 | AQ160: 0 | AS160: 0.0138 | AU160: 0.0007829299008 | AV160: 0.001031044134 | AW160: 0.001235749817 | AX160: 0.001418945448 | AY160: 0.001589474495 | AZ160: 0.001752195878 | BA160: 0.001910260084 | BB160: 0.00206594235 | BC160: 0.002221015159 | BD160: 0.002376937583 | BE160: 0.002534960833 | BF160: 0.002696191587 | BG160: 0.002861267502 | BH160: 0.003029331958 | BI160: 0.003199208132 | BJ160: 0.003369756195 | BK160: 0.003539849375 | BL160: 0.003708350129 | BM160: 0.003874088 | BN160: 0.004035839388 | BO160: 0.004192575051 | BP160: 0.004344254307 | BQ160: 0.00449104774 | BR160: 0.004633086842 | BS160: 0.00477047451 | BT160: 0.004903292878 | BU160: 0.005031609282 | BV160: 0.00515548089 | BW160: 0.005274984399 | BX160: 0.005390299992 | BY160: 0.00550164135 | BZ160: 0.005609233212 | CA160: 0.005713313782 | CB160: 0.00581413675 | CC160: 0.005911972998 | CD160: 0.006007112032 | CE160: 0.006099863185 | CF160: 0.006190556612 | CG160: 0.006279544083 | CH160: 0.006367199599
B161: 139 | C161: 3.968129313e-06 | D161: -0.0516176395 | E161: -0.06826413485 | F161: -0.07947920722 | G161: -0.08594441107 | H161: -0.09178179506 | I161: -0.09533473036 | J161: -0.09800235291 | K161: -0.1022206197 | L161: -0.1043556168 | M161: -0.1067525839 | N161: -0.10530105 | O161: -0.1056329459 | P161: -0.1059608357 | Q161: -0.1043996408 | R161: -0.1050021746 | S161: -0.1016030287 | T161: -0.09967971627 | U161: -0.09751669029 | V161: -0.09619507832 | W161: -0.09116496437 | X161: -0.08855134591 | Y161: -0.0865703612 | Z161: -0.08389691672 | AA161: -0.07880669492 | AB161: -0.0756454137 | AC161: -0.07273373564 | AD161: -0.06794820101 | AE161: -0.0646578709 | AF161: -0.05955757064 | AG161: -0.05538352116 | AH161: -0.05071600986 | AI161: -0.04558834711 | AJ161: -0.0404380789 | AK161: -0.03527331885 | AL161: -0.03006092599 | AM161: -0.02449396671 | AN161: -0.01846064215 | AO161: -0.0123980462 | AP161: -0.006265801118 | AQ161: 0 | AS161: 0.0139 | AU161: 0.0007908203572 | AV161: 0.001041205072 | AW161: 0.00124774374 | AX161: 0.001432553903 | AY161: 0.001604566592 | AZ161: 0.001768688112 | BA161: 0.00192809907 | BB161: 0.002085095946 | BC161: 0.00224146734 | BD161: 0.002398685215 | BE161: 0.002558011514 | BF161: 0.002720562118 | BG161: 0.002886979814 | BH161: 0.003056400938 | BI161: 0.003227639245 | BJ161: 0.003399546009 | BK161: 0.003570985865 | BL161: 0.003740812774 | BM161: 0.003907847685 | BN161: 0.004070858139 | BO161: 0.004228807669 | BP161: 0.004381656057 | BQ161: 0.004529575905 | BR161: 0.004672700342 | BS161: 0.004811133619 | BT161: 0.004944959011 | BU161: 0.005074244833 | BV161: 0.005199049118 | BW161: 0.005319449532 | BX161: 0.005435627971 | BY161: 0.005547800036 | BZ161: 0.005656192428 | CA161: 0.005761045378 | CB161: 0.005862614684 | CC161: 0.005961173431 | CD161: 0.006057013436 | CE161: 0.006150446459 | CF161: 0.00624180521 | CG161: 0.006331444144 | CH161: 0.006419740086
B162: 140 | C162: 3.968129313e-06 | D162: -0.05154959749 | E162: -0.06822764981 | F162: -0.07942120571 | G162: -0.08592258255 | H162: -0.09168972783 | I162: -0.09527627617 | J162: -0.09798453706 | K162: -0.1021983967 | L162: -0.1041196711 | M162: -0.1065760748 | N162: -0.1052577502 | O162: -0.1056232057 | P162: -0.1059539407 | Q162: -0.1043347627 | R162: -0.1044766488 | S162: -0.1013918047 | T162: -0.09966210061 | U162: -0.0974511881 | V162: -0.09618557636 | W162: -0.09088921912 | X162: -0.08848179274 | Y162: -0.08637375325 | Z162: -0.08388185302 | AA162: -0.07876392545 | AB162: -0.07561436564 | AC162: -0.07267308325 | AD162: -0.06787809901 | AE162: -0.06458640156 | AF162: -0.05952993473 | AG162: -0.05532898478 | AH162: -0.05068884711 | AI162: -0.04554232137 | AJ162: -0.04042657505 | AK162: -0.03526868321 | AL162: -0.02996563694 | AM162: -0.02445223781 | AN162: -0.01845646815 | AO162: -0.01239395904 | AP162: -0.006261898 | AQ162: 0 | AS162: 0.014 | AU162: 0.0007987344932 | AV162: 0.001051394098 | AW162: 0.001259768915 | AX162: 0.001446196147 | AY162: 0.001619694625 | AZ162: 0.00178521816 | BA162: 0.001945977552 | BB162: 0.002104290568 | BC162: 0.002261961956 | BD162: 0.002420476594 | BE162: 0.00258110717 | BF162: 0.002744978782 | BG162: 0.002912739349 | BH162: 0.003083518158 | BI162: 0.003256119536 | BJ162: 0.003429385857 | BK162: 0.003602173165 | BL162: 0.003773326921 | BM162: 0.003941659484 | BN162: 0.004105929539 | BO162: 0.004265093398 | BP162: 0.004419111314 | BQ162: 0.004568157914 | BR162: 0.004712367971 | BS162: 0.004851847096 | BT162: 0.004986679708 | BU162: 0.005116935109 | BV162: 0.005242672197 | BW162: 0.005363969614 | BX162: 0.005481010971 | BY162: 0.00559401379 | BZ162: 0.005703206739 | CA162: 0.005808832078 | CB162: 0.005911147715 | CC162: 0.00601042894 | CD162: 0.006106969881 | CE162: 0.006201084729 | CF162: 0.006293108747 | CG162: 0.006383399077 | CH162: 0.006472335368
B163: 141 | C163: 3.968129313e-06 | D163: -0.05152582154 | E163: -0.06798880374 | F163: -0.07931460114 | G163: -0.08575520767 | H163: -0.09168575126 | I163: -0.09456313007 | J163: -0.09790220605 | K163: -0.101715029 | L163: -0.1041060491 | M163: -0.1059437029 | N163: -0.1050767041 | O163: -0.1054346091 | P163: -0.105847769 | Q163: -0.1041819394 | R163: -0.104354709 | S163: -0.1010813463 | T163: -0.09957827594 | U163: -0.09740553099 | V163: -0.09614564881 | W163: -0.09067111084 | X163: -0.08844186742 | Y163: -0.08637013627 | Z163: -0.08387651925 | AA163: -0.07876174011 | AB163: -0.075409604 | AC163: -0.07264684642 | AD163: -0.06779879778 | AE163: -0.06456343836 | AF163: -0.05946847837 | AG163: -0.05532036008 | AH163: -0.05051551836 | AI163: -0.04551711324 | AJ163: -0.04041317782 | AK163: -0.03522753206 | AL163: -0.02994874416 | AM163: -0.02432255398 | AN163: -0.01842525263 | AO163: -0.01239036017 | AP163: -0.006253781779 | AQ163: 0 | AS163: 0.0141 | AU163: 0.0008066722293 | AV163: 0.001061611111 | AW163: 0.001271825226 | AX163: 0.001459872048 | AY163: 0.001634858451 | AZ163: 0.001801785867 | BA163: 0.001963895362 | BB163: 0.002123526039 | BC163: 0.002282498823 | BD163: 0.002442311527 | BE163: 0.002604247601 | BF163: 0.002769441369 | BG163: 0.002938545888 | BH163: 0.003110683391 | BI163: 0.003284648771 | BJ163: 0.003459275499 | BK163: 0.003633411025 | BL163: 0.003805892315 | BM163: 0.003975523137 | BN163: 0.004141053322 | BO163: 0.004301431968 | BP163: 0.004456619803 | BQ163: 0.004606793489 | BR163: 0.004752089447 | BS163: 0.004892614656 | BT163: 0.005028454683 | BU163: 0.005159679819 | BV163: 0.005286349834 | BW163: 0.005408544349 | BX163: 0.005526448692 | BY163: 0.005640282312 | BZ163: 0.005750275844 | CA163: 0.00585667358 | CB163: 0.00595973554 | CC163: 0.00605973922 | CD163: 0.006156981063 | CE163: 0.006251777688 | CF163: 0.006344466916 | CG163: 0.006435408575 | CH163: 0.006524985136
B164: 142 | C164: 3.968129313e-06 | D164: -0.05145946693 | E164: -0.06797554407 | F164: -0.07930279712 | G164: -0.08568610942 | H164: -0.09121928406 | I164: -0.09448517752 | J164: -0.09771738592 | K164: -0.1010485491 | L164: -0.1036111939 | M164: -0.1058890155 | N164: -0.105075936 | O164: -0.1053059433 | P164: -0.105667168 | Q164: -0.104120313 | R164: -0.1040929791 | S164: -0.1008265284 | T164: -0.0995671199 | U164: -0.09719235929 | V164: -0.09607721995 | W164: -0.09059076182 | X164: -0.088430778 | Y164: -0.08636034897 | Z164: -0.08374165041 | AA164: -0.0785168144 | AB164: -0.07523270576 | AC164: -0.07246304722 | AD164: -0.067756417 | AE164: -0.06398922091 | AF164: -0.05942330622 | AG164: -0.05520041357 | AH164: -0.05048197377 | AI164: -0.04551400159 | AJ164: -0.04039040586 | AK164: -0.03519955546 | AL164: -0.02992579106 | AM164: -0.02427677019 | AN164: -0.01839673103 | AO164: -0.01238890562 | AP164: -0.006247080125 | AQ164: 0 | AS164: 0.0142 | AU164: 0.0008146334867 | AV164: 0.001071856011 | AW164: 0.001283912553 | AX164: 0.001473581476 | AY164: 0.001650057925 | AZ164: 0.001818391079 | BA164: 0.001981852338 | BB164: 0.002142802186 | BC164: 0.002303077757 | BD164: 0.002464189822 | BE164: 0.002627432607 | BF164: 0.002793949671 | BG164: 0.002964399216 | BH164: 0.003137896413 | BI164: 0.003313226718 | BJ164: 0.003489214697 | BK164: 0.003664699204 | BL164: 0.003838508707 | BM164: 0.004009438389 | BN164: 0.004176229229 | BO164: 0.004337823113 | BP164: 0.004494181255 | BQ164: 0.004645482356 | BR164: 0.004791864495 | BS164: 0.004933436018 | BT164: 0.005070283652 | BU164: 0.005202478678 | BV164: 0.005330081742 | BW164: 0.005453173447 | BX164: 0.005571940844 | BY164: 0.005686605309 | BZ164: 0.005797399448 | CA164: 0.005904569587 | CB164: 0.006008377861 | CC164: 0.006109103973 | CD164: 0.00620704668 | CE164: 0.006302525035 | CF164: 0.006395879413 | CG164: 0.006487472332 | CH164: 0.006577689087
B165: 143 | C165: 3.968129313e-06 | D165: -0.05140554489 | E165: -0.06796792297 | F165: -0.07914342884 | G165: -0.08544621241 | H165: -0.09105629667 | I165: -0.09436514244 | J165: -0.09744522578 | K165: -0.1010447907 | L165: -0.1035835384 | M165: -0.1058459995 | N165: -0.1049594796 | O165: -0.1052638764 | P165: -0.1055938944 | Q165: -0.1040052137 | R165: -0.1040699934 | S165: -0.1006230993 | T165: -0.09942644858 | U165: -0.09707898591 | V165: -0.09602924882 | W165: -0.09057811238 | X165: -0.08840361841 | Y165: -0.08625408526 | Z165: -0.08362396326 | AA165: -0.07844887615 | AB165: -0.0750383893 | AC165: -0.07241789379 | AD165: -0.06763086723 | AE165: -0.06396773292 | AF165: -0.05925554496 | AG165: -0.05519473962 | AH165: -0.05042931742 | AI165: -0.04548321281 | AJ165: -0.04030657517 | AK165: -0.03518870629 | AL165: -0.02985538523 | AM165: -0.0242711431 | AN165: -0.01839458622 | AO165: -0.0123531467 | AP165: -0.006246091558 | AQ165: 0 | AS165: 0.0143 | AU165: 0.0008226181876 | AV165: 0.001082128698 | AW165: 0.001296030783 | AX165: 0.001487324302 | AY165: 0.001665292907 | AZ165: 0.001835033644 | BA165: 0.001999848317 | BB165: 0.002162118837 | BC165: 0.002323698578 | BD165: 0.00248611129 | BE165: 0.002650661989 | BF165: 0.002818503483 | BG165: 0.002990299119 | BH165: 0.003165157003 | BI165: 0.003341853151 | BJ165: 0.003519203216 | BK165: 0.003696037458 | BL165: 0.00387117585 | BM165: 0.004043404987 | BN165: 0.004211457001 | BO165: 0.00437426657 | BP165: 0.004531795403 | BQ165: 0.004684224244 | BR165: 0.004831692838 | BS165: 0.004974310907 | BT165: 0.005112166334 | BU165: 0.005245331403 | BV165: 0.005373867634 | BW165: 0.005497856621 | BX165: 0.005617487136 | BY165: 0.005732982489 | BZ165: 0.005844577258 | CA165: 0.005952519805 | CB165: 0.006057074381 | CC165: 0.0061585229 | CD165: 0.006257166434 | CE165: 0.00635332647 | CF165: 0.00644734594 | CG165: 0.00653959005 | CH165: 0.006630446919
B166: 144 | C166: 3.968129313e-06 | D166: -0.05138781542 | E166: -0.06789876468 | F166: -0.07906709253 | G166: -0.08539454159 | H166: -0.09091624383 | I166: -0.09414451604 | J166: -0.09742576613 | K166: -0.1009089973 | L166: -0.103580708 | M166: -0.1056090789 | N166: -0.1048340418 | O166: -0.1051687433 | P166: -0.1054839113 | Q166: -0.1039903885 | R166: -0.1037431606 | S166: -0.1005207232 | T166: -0.09940698777 | U166: -0.09703398832 | V166: -0.09601508936 | W166: -0.09043698475 | X166: -0.08836039412 | Y166: -0.08624407485 | Z166: -0.083507418 | AA166: -0.0783145547 | AB166: -0.07501314102 | AC166: -0.07239475617 | AD166: -0.06760407767 | AE166: -0.0639469365 | AF166: -0.05923256568 | AG166: -0.05514807867 | AH166: -0.0504017437 | AI166: -0.04547290179 | AJ166: -0.04027408469 | AK166: -0.03518456618 | AL166: -0.02980426903 | AM166: -0.02426343657 | AN166: -0.01839023079 | AO166: -0.01234183732 | AP166: -0.006239576516 | AQ166: 0 | AS166: 0.0144 | AU166: 0.000830626255 | AV166: 0.001092429075 | AW166: 0.001308179802 | AX166: 0.001501100398 | AY166: 0.001680563257 | AZ166: 0.001851713411 | BA166: 0.002017883138 | BB166: 0.002181475823 | BC166: 0.002344361108 | BD166: 0.002508075745 | BE166: 0.002673935554 | BF166: 0.002843102601 | BG166: 0.003016245386 | BH166: 0.003192464944 | BI166: 0.003370527843 | BJ166: 0.003549240824 | BK166: 0.00372742555 | BL166: 0.003903893499 | BM166: 0.004077422681 | BN166: 0.004246736383 | BO166: 0.004410762081 | BP166: 0.004569461983 | BQ166: 0.004723018887 | BR166: 0.004871574207 | BS166: 0.005015239046 | BT166: 0.005154102454 | BU166: 0.005288237713 | BV166: 0.00541770723 | BW166: 0.005542593587 | BX166: 0.005663087284 | BY166: 0.005779413564 | BZ166: 0.005891808985 | CA166: 0.006000523944 | CB166: 0.00610582481 | CC166: 0.00620799571 | CD166: 0.006307340033 | CE166: 0.0064041817 | CF166: 0.0064988662 | CG166: 0.006591761431 | CH166: 0.006683258336
B167: 145 | C167: 3.968129313e-06 | D167: -0.05138111159 | E167: -0.06789658759 | F167: -0.07905464608 | G167: -0.08531681241 | H167: -0.09082825841 | I167: -0.09408149938 | J167: -0.09719819066 | K167: -0.1008752893 | L167: -0.1034251814 | M167: -0.1052178512 | N167: -0.1047930444 | O167: -0.1049975456 | P167: -0.1054102877 | Q167: -0.1039592599 | R167: -0.1036947013 | S167: -0.1003223883 | T167: -0.09867692539 | U167: -0.09669978758 | V167: -0.09565641334 | W167: -0.09021107811 | X167: -0.08823971078 | Y167: -0.08616875086 | Z167: -0.08345282354 | AA167: -0.07825558206 | AB167: -0.0750108123 | AC167: -0.07210676125 | AD167: -0.06760186937 | AE167: -0.06389489717 | AF167: -0.05913378084 | AG167: -0.05513851735 | AH167: -0.05039811265 | AI167: -0.0454475716 | AJ167: -0.04020534111 | AK167: -0.0351823778 | AL167: -0.02977216481 | AM167: -0.02426021825 | AN167: -0.01837172838 | AO167: -0.01233462852 | AP167: -0.006226366419 | AQ167: 0 | AS167: 0.0145 | AU167: 0.000838657613 | AV167: 0.001102757044 | AW167: 0.001320359495 | AX167: 0.001514909638 | AY167: 0.001695868838 | AZ167: 0.001868430232 | BA167: 0.002035956644 | BB167: 0.002200872976 | BC167: 0.002365065171 | BD167: 0.002530083 | BE167: 0.002697253107 | BF167: 0.002867746825 | BG167: 0.003042237809 | BH167: 0.003219820021 | BI167: 0.003399250572 | BJ167: 0.003579327293 | BK167: 0.003758863244 | BL167: 0.003936661413 | BM167: 0.004111491225 | BN167: 0.004282067124 | BO167: 0.00444730939 | BP167: 0.004607180735 | BQ167: 0.004761866021 | BR167: 0.004911508335 | BS167: 0.005056220168 | BT167: 0.005196091737 | BU167: 0.005331197335 | BV167: 0.005461600252 | BW167: 0.005587384065 | BX167: 0.005708741005 | BY167: 0.005825898253 | BZ167: 0.005939094343 | CA167: 0.006048581717 | CB167: 0.00615462886 | CC167: 0.006257522113 | CD167: 0.006357567185 | CE167: 0.006455090433 | CF167: 0.006550439903 | CG167: 0.006643986184 | CH167: 0.006736123043
